Workbook

Sheet MENU
B2: ● | C2: Solve Problems Using Coordinates | AC2: 𝒙 | AD2: y | AE2: 𝒍 | AF2: w
B5: =CONCATENATE(" Find midpoint m of a line joining a point to another (1ˢᵗ quadrant)") -> Find midpoint m of a line joining a point to another (1ˢᵗ quadrant)
B7: =CONCATENATE(" Find midpoint m of a line joining a point to another (4 quadrants)") -> Find midpoint m of a line joining a point to another (4 quadrants)
B9: Find a point dividing a line joining 2 others in a ratio (1ˢᵗ quadrant)
B11: Find a point dividing a line joining 2 others in a ratio (4 quadrants)
B13: Find 3 positions for a parallelogram’s 4ᵗʰ vertex given 3 vertices
B14: Find 3 vertices on 3 shapes given 2 vertices of a congruent shape
B15: Find point of intersection P of the two diagonals of a quadrilateral
B17: Find a quadrilateral’s 4ᵗʰ vertex & area using symmetry & 3 vertices
B19: Find a tilted square’s 2 missing vertices & centre C given 2 vertices
B21: Find an isosceles triangle’s 3ʳᵈ vertex given 2 vertices & a region
B23: Find 2 points defined by the ratio of their distances along a line
B25: Find 3 points defined by the intersection & midpoints of 2 lines
B27: =CONCATENATE(" Find ",AE2,", ",AF2,", u, v, total perimeter P & area A of a compound shape") -> Find 𝒍, w, u, v, total perimeter P & area A of a compound shape

Sheet LINK
C2: All content © eStarters Ltd 2020
C4: For more downloads and further information
C6: Visit the Trinity Maths website
C8: To contact us directly, email: info@estarters.com
C10: Solve Problems Using Coordinates
C12: is № 4 of 12 free sample files from the
C14: 178 Topic Files in Trinity Maths (Version 3)

Sheet CONGRUENT
C2: These four shapes are congruent to each other. | AT2: =RAND() -> 0.2958256717 | AU2: 0.466457895 | AX2: 0.35 | AZ2: 0 | BA2: 0 | BB2: 0 | BC2: 0 | BD2: 0 | BE2: =BK16 -> 4 | BF2: =BL16 -> -3 | BG2: =CA16 -> -5 | BH2: =CB16 -> -4 | BI2: =CQ16 -> -1 | BJ2: =CR16 -> 3 | BK2: =DG16 -> 8 | BL2: =DH16 -> 4
AT3: 168 | AU3: =INT(168*AU2)+1 -> 79 | AV3: =IF(AW5>5,0,1) -> 0 | BE3: =BM16 -> 2 | BF3: =BN16 -> -3 | BG3: =CC16 -> -7 | BH3: =CD16 -> -4 | BI3: =CS16 -> -3 | BJ3: =CT16 -> 3 | BK3: =DI16 -> 3 | BL3: =DJ16 -> 4
AT4: 0 | AU4: 0 | AV4: =AT4 -> 0 | AW4: =AU4 -> 0 | AX4: =AV4 -> 0 | AY4: =AW4 -> 0 | AZ4: =IF($AV$3=1,AV4,AX4) -> 0 | BA4: =IF($AV$3=1,AW4,AY4) -> 0 | BE4: =BO16 -> 2 | BF4: =BP16 -> 2 | BG4: =CE16 -> -7 | BH4: =CF16 -> 1 | BI4: =CU16 -> -3 | BJ4: =CV16 -> -2 | BK4: =DK16 -> 3 | BL4: =DL16 -> 2
AT5: =2*AT9 -> 4 | AU5: =2*AU9 -> 4 | AV5: 10 | AW5: =AV5/AT5*AU5 -> 10 | AX5: =AY5/AU5*AT5 -> 5 | AY5: 5 | AZ5: =IF($AV$3=1,AV5,AX5) -> 5 | BA5: =IF($AV$3=1,AW5,AY5) -> 5 | BE5: =BQ16 -> 4 | BF5: =BR16 -> -3 | BG5: =CG16 -> -5 | BH5: =CH16 -> -4 | BI5: =CW16 -> -1 | BJ5: =CX16 -> 3 | BK5: =DM16 -> 8 | BL5: =DN16 -> 4
AT6: =((AU9/3*2)-AU10)/((AT9/3*2)-AT10) -> -1.625 | AU6: =AU10-AT6*AT10 -> 3.5 | BE6: =BS16 -> 4 | BF6: =BT16 -> -3 | BG6: =CI16 -> -5 | BH6: =CJ16 -> -4 | BI6: =CY16 -> -1 | BJ6: =CZ16 -> 3 | BK6: =DO16 -> 8 | BL6: =DP16 -> 4
AT7: 0 | AU7: =AT7*AT6+AU6 -> 3.5 | BE7: =BU16 -> 4 | BF7: =BV16 -> -3 | BG7: =CK16 -> -5 | BH7: =CL16 -> -4 | BI7: =DA16 -> -1 | BJ7: =DB16 -> 3 | BK7: =DQ16 -> 8 | BL7: =DR16 -> 4
AT8: =4*(AT9/3*2) -> 5.333333333 | AU8: =AU7-4*(AU7-(AU9/3*2)) -> -5.166666667 | BE8: =BW16 -> 4 | BF8: =BX16 -> -3 | BG8: =CM16 -> -5 | BH8: =CN16 -> -4 | BI8: =DC16 -> -1 | BJ8: =DD16 -> 3 | BK8: =DS16 -> 8 | BL8: =DT16 -> 4
AT9: =AU16 -> 2 | AU9: =AV16 -> 2 | BE9: =BY16 -> 4 | BF9: =BZ16 -> -3 | BG9: =CO16 -> -5 | BH9: =CP16 -> -4 | BI9: =DE16 -> -1 | BJ9: =DF16 -> 3 | BK9: =DU16 -> 8 | BL9: =DV16 -> 4
AT10: =AW16 -> 4 | AU10: =AX16 -> -3 | BE10: =BE2 -> 4 | BF10: -3 | BG10: -5 | BH10: -4 | BI10: -1 | BJ10: 3 | BK10: 8 | BL10: 4
AT12: =BC16 -> -1 | AU12: =BD16 -> 3 | AV12: =BE16 -> -3 | AW12: =BF16 -> -2 | AX12: =EG16 -> -1 | AY12: =EH16 -> 3.5 | AZ12: =CONCATENATE("(",$AT$12+10,", ",$AU$12+5,")") -> (9, 8) | BA12: =IF(BD12=1,AV12+$AX$2,IF(BD12=2,AV12-$AX$2,IF(BD12=3,AV12-$AX$2,AV12+$AX$2))) -> -3.35 | BB12: =IF(BD12=1,AW12+$AX$2,IF(BD12=2,AW12+$AX$2,IF(BD12=3,AW12-$AX$2,AW12-$AX$2))) -> -2.35 | BC12: G | BD12: =$DY$16 -> 3
AT13: =BG16 -> 8 | AU13: =BH16 -> 4 | AV13: =BI16 -> 3 | AW13: =BJ16 -> 2 | AX13: =EI16 -> 8 | AY13: =EJ16 -> 4.5 | AZ13: =CONCATENATE("(",$AT$13+10,", ",$AU$13+5,")") -> (18, 9) | BA13: =IF(BD13=1,AV13+$AX$2,IF(BD13=2,AV13-$AX$2,IF(BD13=3,AV13-$AX$2,AV13+$AX$2))) -> 2.65 | BB13: =IF(BD13=1,AW13+$AX$2,IF(BD13=2,AW13+$AX$2,IF(BD13=3,AW13-$AX$2,AW13-$AX$2))) -> 1.65 | BC13: P | BD13: =$DZ$16 -> 3
C14: Complete | N14: R = | O14: =IF(BB2=1,CONCATENATE("(",EK16+10,", ",EL16+5,")"),"( , )") -> ( , ) | X14: G = | Y14: =IF(BC2=1,CONCATENATE("(",EM16+10,", ",EN16+5,")"),"( , )") -> ( , ) | AH14: P = | AI14: =IF(BD2=1,CONCATENATE("(",EO16+10,", ",EP16+5,")"),"( , )") -> ( , ) | AT14: =AY16 -> -7 | AU14: =AZ16 -> 1 | AV14: =BA16 -> -5 | AW14: =BB16 -> -4 | AX14: =EE16 -> -7 | AY14: =EF16 -> 1.5 | AZ14: =CONCATENATE("(",$AT$14+10,", ",$AU$14+5,")") -> (3, 6) | BA14: =IF(BD14=1,AV14+$AX$2,IF(BD14=2,AV14-$AX$2,IF(BD14=3,AV14-$AX$2,AV14+$AX$2))) -> -4.65 | BB14: =IF(BD14=1,AW14+$AX$2,IF(BD14=2,AW14+$AX$2,IF(BD14=3,AW14-$AX$2,AW14-$AX$2))) -> -4.35 | BC14: R | BD14: =$DX$16 -> 4
AT15: =AU16 -> 2 | AU15: =AV16 -> 2 | AV15: =AW16 -> 4 | AW15: =AX16 -> -3 | AX15: =EC16 -> 2 | AY15: =ED16 -> 2.5 | AZ15: =CONCATENATE("(",$AT$15+10,", ",$AU$15+5,")") -> (12, 7) | BA15: =EA16 -> 4 | BB15: =EB16 -> -3.5 | BC15: =CONCATENATE("(",$AV$15+10,", ",$AW$15+5,")") -> (14, 2) | BD15: =$DW$16 -> 9
AT16: =AU3 -> 79 | AU16: =VLOOKUP($AT$16,$AT$17:$AX$216,2) -> 2 | AV16: =VLOOKUP($AT$16,$AT$17:$AX$216,3) -> 2 | AW16: =VLOOKUP($AT$16,$AT$17:$AX$216,4) -> 4 | AX16: =VLOOKUP($AT$16,$AT$17:$AX$216,5) -> -3 | AY16: =VLOOKUP($AT$16,$AT$17:$BD$216,6) -> -7 | AZ16: =VLOOKUP($AT$16,$AT$17:$BD$216,7) -> 1 | BA16: =VLOOKUP($AT$16,$AT$17:$BD$216,8) -> -5 | BB16: =VLOOKUP($AT$16,$AT$17:$BD$216,9) -> -4 | BC16: =VLOOKUP($AT$16,$AT$17:$CD$216,10) -> -1 | BD16: =VLOOKUP($AT$16,$AT$17:$CD$216,11) -> 3 | BE16: =VLOOKUP($AT$16,$AT$17:$CD$216,12) -> -3 | BF16: =VLOOKUP($AT$16,$AT$17:$CD$216,13) -> -2 | BG16: =VLOOKUP($AT$16,$AT$17:$CD$216,14) -> 8 | BH16: =VLOOKUP($AT$16,$AT$17:$CD$216,15) -> 4 | BI16: =VLOOKUP($AT$16,$AT$17:$CD$216,16) -> 3 | BJ16: =VLOOKUP($AT$16,$AT$17:$CD$216,17) -> 2 | BK16: =VLOOKUP($AT$16,$AT$17:$CD$216,18) -> 4 | BL16: =VLOOKUP($AT$16,$AT$17:$CD$216,19) -> -3 | BM16: =VLOOKUP($AT$16,$AT$17:$CD$216,20) -> 2 | BN16: =VLOOKUP($AT$16,$AT$17:$CD$216,21) -> -3 | BO16: =VLOOKUP($AT$16,$AT$17:$CD$216,22) -> 2 | BP16: =VLOOKUP($AT$16,$AT$17:$CD$216,23) -> 2 | BQ16: =VLOOKUP($AT$16,$AT$17:$CD$216,24) -> 4 | BR16: =VLOOKUP($AT$16,$AT$17:$CD$216,25) -> -3 | BS16: =VLOOKUP($AT$16,$AT$17:$CD$216,26) -> 4 | BT16: =VLOOKUP($AT$16,$AT$17:$CD$216,27) -> -3 | BU16: =VLOOKUP($AT$16,$AT$17:$CD$216,28) -> 4 | BV16: =VLOOKUP($AT$16,$AT$17:$CD$216,29) -> -3 | BW16: =VLOOKUP($AT$16,$AT$17:$CD$216,30) -> 4 | BX16: =VLOOKUP($AT$16,$AT$17:$CX$216,31) -> -3 | BY16: =VLOOKUP($AT$16,$AT$17:$CX$216,32) -> 4 | BZ16: =VLOOKUP($AT$16,$AT$17:$CX$216,33) -> -3 | CA16: =VLOOKUP($AT$16,$AT$17:$CX$216,34) -> -5 | CB16: =VLOOKUP($AT$16,$AT$17:$CX$216,35) -> -4 | CC16: =VLOOKUP($AT$16,$AT$17:$CX$216,36) -> -7 | CD16: =VLOOKUP($AT$16,$AT$17:$CX$216,37) -> -4 | CE16: =VLOOKUP($AT$16,$AT$17:$CX$216,38) -> -7 | CF16: =VLOOKUP($AT$16,$AT$17:$CX$216,39) -> 1 | CG16: =VLOOKUP($AT$16,$AT$17:$CX$216,40) -> -5 | CH16: =VLOOKUP($AT$16,$AT$17:$CX$216,41) -> -4 | CI16: =VLOOKUP($AT$16,$AT$17:$CX$216,42) -> -5 | CJ16: =VLOOKUP($AT$16,$AT$17:$CX$216,43) -> -4 | CK16: =VLOOKUP($AT$16,$AT$17:$CX$216,44) -> -5 | CL16: =VLOOKUP($AT$16,$AT$17:$CX$216,45) -> -4 | CM16: =VLOOKUP($AT$16,$AT$17:$CX$216,46) -> -5 | CN16: =VLOOKUP($AT$16,$AT$17:$CX$216,47) -> -4 | CO16: =VLOOKUP($AT$16,$AT$17:$CX$216,48) -> -5 | CP16: =VLOOKUP($AT$16,$AT$17:$CX$216,49) -> -4 | CQ16: =VLOOKUP($AT$16,$AT$17:$DX$216,50) -> -1 | CR16: =VLOOKUP($AT$16,$AT$17:$DX$216,51) -> 3 | CS16: =VLOOKUP($AT$16,$AT$17:$DX$216,52) -> -3 | CT16: =VLOOKUP($AT$16,$AT$17:$DX$216,53) -> 3 | CU16: =VLOOKUP($AT$16,$AT$17:$DX$216,54) -> -3 | CV16: =VLOOKUP($AT$16,$AT$17:$DX$216,55) -> -2 | CW16: =VLOOKUP($AT$16,$AT$17:$DX$216,56) -> -1 | CX16: =VLOOKUP($AT$16,$AT$17:$DX$216,57) -> 3 | CY16: =VLOOKUP($AT$16,$AT$17:$DX$216,58) -> -1 | CZ16: =VLOOKUP($AT$16,$AT$17:$DX$216,59) -> 3 | DA16: =VLOOKUP($AT$16,$AT$17:$DX$216,60) -> -1 | DB16: =VLOOKUP($AT$16,$AT$17:$DX$216,61) -> 3 | DC16: =VLOOKUP($AT$16,$AT$17:$DX$216,62) -> -1 | DD16: =VLOOKUP($AT$16,$AT$17:$DX$216,63) -> 3 | DE16: =VLOOKUP($AT$16,$AT$17:$DX$216,64) -> -1 | DF16: =VLOOKUP($AT$16,$AT$17:$DX$216,65) -> 3 | DG16: =VLOOKUP($AT$16,$AT$17:$DX$216,66) -> 8 | DH16: =VLOOKUP($AT$16,$AT$17:$DX$216,67) -> 4 | DI16: =VLOOKUP($AT$16,$AT$17:$DX$216,68) -> 3 | DJ16: =VLOOKUP($AT$16,$AT$17:$DX$216,69) -> 4 | DK16: =VLOOKUP($AT$16,$AT$17:$DX$216,70) -> 3 | DL16: =VLOOKUP($AT$16,$AT$17:$DX$216,71) -> 2 | DM16: =VLOOKUP($AT$16,$AT$17:$DX$216,72) -> 8 | DN16: =VLOOKUP($AT$16,$AT$17:$DX$216,73) -> 4 | DO16: =VLOOKUP($AT$16,$AT$17:$DX$216,74) -> 8 | DP16: =VLOOKUP($AT$16,$AT$17:$DX$216,75) -> 4 | DQ16: =VLOOKUP($AT$16,$AT$17:$DX$216,76) -> 8 | DR16: =VLOOKUP($AT$16,$AT$17:$DX$216,77) -> 4 | DS16: =VLOOKUP($AT$16,$AT$17:$DX$216,78) -> 8 | DT16: =VLOOKUP($AT$16,$AT$17:$DX$216,79) -> 4 | DU16: =VLOOKUP($AT$16,$AT$17:$DX$216,80) -> 8 | DV16: =VLOOKUP($AT$16,$AT$17:$DX$216,81) -> 4 | DW16: =VLOOKUP($AT$16,$AT$17:$DX$216,82) -> 9 | DX16: =VLOOKUP($AT$16,$AT$17:$DX$216,83) -> 4 | DY16: =VLOOKUP($AT$16,$AT$17:$DZ$216,84) -> 3 | DZ16: =VLOOKUP($AT$16,$AT$17:$DZ$216,85) -> 3 | EA16: =VLOOKUP($AT$16,$AT$17:$EC$216,86) -> 4 | EB16: =VLOOKUP($AT$16,$AT$17:$EC$216,87) -> -3.5 | EC16: =VLOOKUP($AT$16,$AT$17:$EM$216,88) -> 2 | ED16: =VLOOKUP($AT$16,$AT$17:$EM$216,89) -> 2.5 | EE16: =VLOOKUP($AT$16,$AT$17:$EM$216,90) -> -7 | EF16: =VLOOKUP($AT$16,$AT$17:$EM$216,91) -> 1.5 | EG16: =VLOOKUP($AT$16,$AT$17:$EM$216,92) -> -1 | EH16: =VLOOKUP($AT$16,$AT$17:$EM$216,93) -> 3.5 | EI16: =VLOOKUP($AT$16,$AT$17:$EM$216,94) -> 8 | EJ16: =VLOOKUP($AT$16,$AT$17:$EM$216,95) -> 4.5 | EK16: =VLOOKUP($AT$16,$AT$17:$EM$216,96) -> -5 | EL16: =VLOOKUP($AT$16,$AT$17:$EM$216,97) -> -4 | EM16: =VLOOKUP($AT$16,$AT$17:$EM$216,98) -> -3 | EN16: =VLOOKUP($AT$16,$AT$17:$EP$216,99) -> -2 | EO16: =VLOOKUP($AT$16,$AT$17:$EP$216,100) -> 3 | EP16: =VLOOKUP($AT$16,$AT$17:$EP$216,101) -> 2
AT17: 1 | AU17: -5 | AV17: 2 | AW17: -6 | AX17: 4 | AY17: 4 | AZ17: 1 | BA17: 3 | BB17: 3 | BC17: 7 | BD17: -2 | BE17: 6 | BF17: -4 | BG17: -7 | BH17: -2 | BI17: -5 | BJ17: -1 | BK17: -5 | BL17: 2 | BM17: -5 | BN17: 3 | BO17: -6 | BP17: 3 | BQ17: -6 | BR17: 4 | BS17: -3 | BT17: 4 | BU17: -3 | BV17: 3 | BW17: -4 | BX17: 3 | BY17: -4 | BZ17: 2 | CA17: 4 | CB17: 1 | CC17: 4 | CD17: 2 | CE17: 3 | CF17: 2 | CG17: 3 | CH17: 3 | CI17: 6 | CJ17: 3 | CK17: 6 | CL17: 2 | CM17: 5 | CN17: 2 | CO17: 5 | CP17: 1 | CQ17: 7 | CR17: -2 | CS17: 7 | CT17: -3 | CU17: 6 | CV17: -3 | CW17: 6 | CX17: -4 | CY17: 9 | CZ17: -4 | DA17: 9 | DB17: -3 | DC17: 8 | DD17: -3 | DE17: 8 | DF17: -2 | DG17: -7 | DH17: -3 | DI17: -6 | DJ17: -3 | DK17: -6 | DL17: -4 | DM17: -5 | DN17: -4 | DO17: -5 | DP17: -1 | DQ17: -6 | DR17: -1 | DS17: -6 | DT17: -2 | DU17: -7 | DV17: -2 | DW17: 9 | DX17: 2 | DY17: 3 | DZ17: 1 | EA17: -6 | EB17: 4.5 | EC17: -5 | ED17: 1.5 | EE17: 4 | EF17: 0.5 | EG17: 7 | EH17: -1.5 | EI17: -7 | EJ17: -1.5 | EK17: 3 | EL17: 3 | EM17: 6 | EN17: -4 | EO17: -5 | EP17: -1 | EQ17: =BA17 -> 3 | ER17: =BB17 -> 3 | ES17: =BE17 -> 6 | ET17: =BF17 -> -4 | EU17: =BI17 -> -5 | EV17: =BJ17 -> -1 | EW17: =IF(EQ17=EK17,1,0) -> 1 | EX17: 1 | EY17: 1 | EZ17: 1 | FA17: 1 | FB17: 1
C18: =IF($AZ$2=1,10,"") ->  | D18: =IF($AZ$2=1,9,"") ->  | E18: =IF($AZ$2=1,8,"") ->  | F18: =IF($AZ$2=1,7,"") ->  | G18: =IF($AZ$2=1,6,"") ->  | H18: =IF($AZ$2=1,5,"") ->  | I18: =IF($AZ$2=1,4,"") ->  | J18: =IF($AZ$2=1,3,"") ->  | K18: =IF($AZ$2=1,2,"") ->  | L18: =IF($AZ$2=1,1,"") ->  | AT18: =AT17+1 -> 2 | AU18: -3 | AV18: 2 | AW18: -6 | AX18: 4 | AY18: 4 | AZ18: 1 | BA18: 1 | BB18: 3 | BC18: 6 | BD18: -1 | BE18: 3 | BF18: -3 | BG18: -3 | BH18: -3 | BI18: -1 | BJ18: 0 | BK18: -5 | BL18: 2 | BM18: -5 | BN18: 4 | BO18: -6 | BP18: 4 | BQ18: -6 | BR18: 5 | BS18: -4 | BT18: 5 | BU18: -4 | BV18: 3 | BW18: -3 | BX18: 3 | BY18: -3 | BZ18: 2 | CA18: 2 | CB18: 1 | CC18: 2 | CD18: 3 | CE18: 1 | CF18: 3 | CG18: 1 | CH18: 4 | CI18: 3 | CJ18: 4 | CK18: 3 | CL18: 2 | CM18: 4 | CN18: 2 | CO18: 4 | CP18: 1 | CQ18: 4 | CR18: -1 | CS18: 4 | CT18: -3 | CU18: 3 | CV18: -3 | CW18: 3 | CX18: -4 | CY18: 5 | CZ18: -4 | DA18: 5 | DB18: -2 | DC18: 6 | DD18: -2 | DE18: 6 | DF18: -1 | DG18: 0 | DH18: -2 | DI18: -2 | DJ18: -2 | DK18: -2 | DL18: -3 | DM18: -3 | DN18: -3 | DO18: -3 | DP18: -1 | DQ18: -1 | DR18: -1 | DS18: -1 | DT18: 0 | DU18: 0 | DV18: 0 | DW18: 9 | DX18: 3 | DY18: 2 | DZ18: 2 | EA18: -6 | EB18: 3.5 | EC18: -3 | ED18: 1.5 | EE18: 4 | EF18: 0.5 | EG18: 6 | EH18: -0.5 | EI18: -3 | EJ18: -3.5 | EK18: 1 | EL18: 3 | EM18: 3 | EN18: -3 | EO18: -1 | EP18: 0 | EQ18: =BA18 -> 1 | ER18: =BB18 -> 3 | ES18: =BE18 -> 3 | ET18: =BF18 -> -3 | EU18: =BI18 -> -1 | EV18: =BJ18 -> 0 | EW18: =IF(EQ18=EK18,1,0) -> 1 | EX18: =IF(ER18=EL18,1,0) -> 1 | EY18: =IF(ES18=EM18,1,0) -> 1 | EZ18: =IF(ET18=EN18,1,0) -> 1 | FA18: =IF(EU18=EO18,1,0) -> 1 | FB18: =IF(EV18=EP18,1,0) -> 1
C19: =IF($AZ$2=1,20,"") ->  | D19: =IF($AZ$2=1,19,"") ->  | E19: =IF($AZ$2=1,18,"") ->  | F19: =IF($AZ$2=1,17,"") ->  | G19: =IF($AZ$2=1,16,"") ->  | H19: =IF($AZ$2=1,15,"") ->  | I19: =IF($AZ$2=1,14,"") ->  | J19: =IF($AZ$2=1,13,"") ->  | K19: =IF($AZ$2=1,12,"") ->  | L19: =IF($AZ$2=1,11,"") ->  | M19: =IF($AZ$2=1,10,"") ->  | N19: =IF($AZ$2=1,9,"") ->  | O19: =IF($AZ$2=1,8,"") ->  | P19: =IF($AZ$2=1,7,"") ->  | Q19: =IF($AZ$2=1,6,"") ->  | R19: =IF($AZ$2=1,5,"") ->  | S19: =IF($AZ$2=1,4,"") ->  | T19: =IF($AZ$2=1,3,"") ->  | U19: =IF($AZ$2=1,2,"") ->  | V19: =IF($AZ$2=1,1,"") ->  | AT19: =AT18+1 -> 3 | AU19: -5 | AV19: 2 | AW19: -8 | AX19: 4 | AY19: 2 | AZ19: 3 | BA19: 5 | BB19: 1 | BC19: 4 | BD19: -4 | BE19: 7 | BF19: -2 | BG19: -3 | BH19: -3 | BI19: -1 | BJ19: 0 | BK19: -5 | BL19: 2 | BM19: -5 | BN19: 4 | BO19: -8 | BP19: 4 | BQ19: -8 | BR19: 1 | BS19: -7 | BT19: 1 | BU19: -7 | BV19: 3 | BW19: -6 | BX19: 3 | BY19: -6 | BZ19: 2 | CA19: 5 | CB19: 1 | CC19: 5 | CD19: 3 | CE19: 2 | CF19: 3 | CG19: 2 | CH19: 0 | CI19: 3 | CJ19: 0 | CK19: 3 | CL19: 2 | CM19: 4 | CN19: 2 | CO19: 4 | CP19: 1 | CQ19: 4 | CR19: -4 | CS19: 4 | CT19: -1 | CU19: 5 | CV19: -1 | CW19: 5 | CX19: -3 | CY19: 6 | CZ19: -3 | DA19: 6 | DB19: -2 | DC19: 7 | DD19: -2 | DE19: 7 | DF19: -4 | DG19: -3 | DH19: -3 | DI19: -3 | DJ19: 0 | DK19: -1 | DL19: 0 | DM19: -1 | DN19: -1 | DO19: -2 | DP19: -1 | DQ19: -2 | DR19: -2 | DS19: 0 | DT19: -2 | DU19: 0 | DV19: -3 | DW19: 9 | DX19: 4 | DY19: 1 | DZ19: 1 | EA19: -8 | EB19: 4.5 | EC19: -5 | ED19: 1.5 | EE19: 2 | EF19: 3.5 | EG19: 4 | EH19: -4.5 | EI19: -3 | EJ19: -3.5 | EK19: 5 | EL19: 1 | EM19: 7 | EN19: -2 | EO19: -1 | EP19: 0 | EQ19: 5 | ER19: 1 | ES19: 7 | ET19: -2 | EU19: -1 | EV19: 0 | EW19: 1 | EX19: 1 | EY19: 1 | EZ19: 1 | FA19: 1 | FB19: 1
C20: x | D20: y | E20: =IF(BA2=1,0,-99) -> -99 | AT20: 4 | AU20: -5 | AV20: 4 | AW20: -8 | AX20: 2 | AY20: 4 | AZ20: 3 | BA20: 1 | BB20: 1 | BC20: 7 | BD20: -4 | BE20: 4 | BF20: -2 | BG20: -7 | BH20: -2 | BI20: -5 | BJ20: 1 | BK20: -5 | BL20: 4 | BM20: -5 | BN20: 3 | BO20: -8 | BP20: 3 | BQ20: -8 | BR20: 2 | BS20: -3 | BT20: 2 | BU20: -3 | BV20: 3 | BW20: -4 | BX20: 3 | BY20: -4 | BZ20: 4 | CA20: 4 | CB20: 3 | CC20: 4 | CD20: 2 | CE20: 1 | CF20: 2 | CG20: 1 | CH20: 1 | CI20: 6 | CJ20: 1 | CK20: 6 | CL20: 2 | CM20: 5 | CN20: 2 | CO20: 5 | CP20: 3 | CQ20: 7 | CR20: -4 | CS20: 7 | CT20: -3 | CU20: 4 | CV20: -3 | CW20: 4 | CX20: -2 | CY20: 9 | CZ20: -2 | DA20: 9 | DB20: -3 | DC20: 8 | DD20: -3 | DE20: 8 | DF20: -4 | DG20: -7 | DH20: -3 | DI20: -6 | DJ20: -3 | DK20: -6 | DL20: -4 | DM20: -5 | DN20: -4 | DO20: -5 | DP20: 1 | DQ20: -6 | DR20: 1 | DS20: -6 | DT20: -2 | DU20: -7 | DV20: -2 | DW20: 9 | DX20: 3 | DY20: 2 | DZ20: 1 | EA20: -8 | EB20: 1.5 | EC20: -5 | ED20: 4.5 | EE20: 4 | EF20: 3.5 | EG20: 7 | EH20: -4.5 | EI20: -7 | EJ20: -1.5 | EK20: 1 | EL20: 1 | EM20: 4 | EN20: -2 | EO20: -5 | EP20: 1 | EQ20: 1 | ER20: 1 | ES20: 4 | ET20: -2 | EU20: -5 | EV20: 1 | EW20: 1 | EX20: 1 | EY20: 1 | EZ20: 1 | FA20: 1 | FB20: 1
C21: =$E$20+E21 -> -109 | D21: -104 | E21: -10 | F21: -5 | G21: =E21-10 -> -20 | H21: =F21-5 -> -10 | AT21: 5 | AU21: -9 | AV21: 2 | AW21: -7 | AX21: 5 | AY21: 3 | AZ21: 4 | BA21: 1 | BB21: 1 | BC21: 6 | BD21: -4 | BE21: 4 | BF21: -1 | BG21: -4 | BH21: -3 | BI21: -7 | BJ21: -1 | BK21: -7 | BL21: 2 | BM21: -9 | BN21: 2 | BO21: -9 | BP21: 5 | BQ21: -7 | BR21: 5 | BS21: -7 | BT21: 4 | BU21: -8 | BV21: 4 | BW21: -8 | BX21: 3 | BY21: -7 | BZ21: 3 | CA21: 3 | CB21: 1 | CC21: 1 | CD21: 1 | CE21: 1 | CF21: 4 | CG21: 3 | CH21: 4 | CI21: 3 | CJ21: 3 | CK21: 2 | CL21: 3 | CM21: 2 | CN21: 2 | CO21: 3 | CP21: 2 | CQ21: 4 | CR21: -4 | CS21: 4 | CT21: -3 | CU21: 5 | CV21: -3 | CW21: 5 | CX21: -2 | CY21: 4 | CZ21: -2 | DA21: 4 | DB21: -1 | DC21: 6 | DD21: -1 | DE21: 6 | DF21: -4 | DG21: -7 | DH21: -3 | DI21: -7 | DJ21: -1 | DK21: -4 | DL21: -1 | DM21: -4 | DN21: -3 | DO21: -5 | DP21: -3 | DQ21: -5 | DR21: -2 | DS21: -6 | DT21: -2 | DU21: -6 | DV21: -3 | DW21: 9 | DX21: 3 | DY21: 2 | DZ21: 2 | EA21: -7 | EB21: 5.5 | EC21: -9 | ED21: 1.5 | EE21: 3 | EF21: 4.5 | EG21: 6 | EH21: -4.5 | EI21: -4 | EJ21: -3.5 | EK21: 1 | EL21: 1 | EM21: 4 | EN21: -1 | EO21: -7 | EP21: -1 | EQ21: 1 | ER21: 1 | ES21: 4 | ET21: -1 | EU21: -7 | EV21: -1 | EW21: 1 | EX21: 1 | EY21: 1 | EZ21: 1 | FA21: 1 | FB21: 1
C22: -109 | D22: -94 | E22: -10 | F22: 5 | G22: =E22-10 -> -20 | H22: =F22-5 -> 0 | AT22: 6 | AU22: -3 | AV22: 2 | AW22: -5 | AX22: 5 | AY22: 4 | AZ22: 1 | BA22: 2 | BB22: 4 | BC22: 6 | BD22: -1 | BE22: 4 | BF22: -4 | BG22: -3 | BH22: -2 | BI22: 0 | BJ22: 0 | BK22: -5 | BL22: 2 | BM22: -5 | BN22: 5 | BO22: -4 | BP22: 5 | BQ22: -4 | BR22: 5 | BS22: -4 | BT22: 5 | BU22: -4 | BV22: 3 | BW22: -3 | BX22: 3 | BY22: -3 | BZ22: 2 | CA22: 2 | CB22: 1 | CC22: 2 | CD22: 4 | CE22: 3 | CF22: 4 | CG22: 3 | CH22: 4 | CI22: 3 | CJ22: 4 | CK22: 3 | CL22: 2 | CM22: 4 | CN22: 2 | CO22: 4 | CP22: 1 | CQ22: 4 | CR22: -1 | CS22: 4 | CT22: -3 | CU22: 4 | CV22: -3 | CW22: 4 | CX22: -4 | CY22: 5 | CZ22: -4 | DA22: 5 | DB22: -2 | DC22: 6 | DD22: -2 | DE22: 6 | DF22: -1 | DG22: 0 | DH22: -2 | DI22: -2 | DJ22: -2 | DK22: -2 | DL22: -2 | DM22: -3 | DN22: -2 | DO22: -3 | DP22: -1 | DQ22: -1 | DR22: -1 | DS22: -1 | DT22: 0 | DU22: 0 | DV22: 0 | DW22: 9 | DX22: 2 | DY22: 3 | DZ22: 1 | EA22: -5 | EB22: 5.5 | EC22: -3 | ED22: 1.5 | EE22: 4 | EF22: 0.5 | EG22: 6 | EH22: -0.5 | EI22: -3 | EJ22: -2.5 | EK22: 2 | EL22: 4 | EM22: 4 | EN22: -4 | EO22: 0 | EP22: 0 | EQ22: 2 | ER22: 4 | ES22: 4 | ET22: -4 | EU22: 0 | EV22: 0 | EW22: 1 | EX22: 1 | EY22: 1 | EZ22: 1 | FA22: 1 | FB22: 1
C23: -108 | D23: -94 | E23: -9 | F23: 5 | G23: -19 | H23: 0 | AT23: 7 | AU23: -2 | AV23: 3 | AW23: -5 | AX23: 5 | AY23: 7 | AZ23: 1 | BA23: 4 | BB23: 3 | BC23: 9 | BD23: -2 | BE23: 6 | BF23: -4 | BG23: -6 | BH23: 0 | BI23: -8 | BJ23: -3 | BK23: -5 | BL23: 2 | BM23: -5 | BN23: 5 | BO23: -2 | BP23: 5 | BQ23: -2 | BR23: 3 | BS23: -4 | BT23: 3 | BU23: -4 | BV23: 2 | BW23: -4 | BX23: 2 | BY23: -4 | BZ23: 2 | CA23: 4 | CB23: 0 | CC23: 4 | CD23: 3 | CE23: 7 | CF23: 3 | CG23: 7 | CH23: 1 | CI23: 5 | CJ23: 1 | CK23: 5 | CL23: 0 | CM23: 5 | CN23: 0 | CO23: 5 | CP23: 0 | CQ23: 6 | CR23: -4 | CS23: 6 | CT23: -1 | CU23: 7 | CV23: -1 | CW23: 7 | CX23: -2 | CY23: 9 | CZ23: -2 | DA23: 9 | DB23: -4 | DC23: 6 | DD23: -4 | DE23: 6 | DF23: -4 | DG23: -8 | DH23: -3 | DI23: -8 | DJ23: 0 | DK23: -6 | DL23: 0 | DM23: -6 | DN23: -2 | DO23: -5 | DP23: -2 | DQ23: -5 | DR23: -3 | DS23: -5 | DT23: -3 | DU23: -5 | DV23: -3 | DW23: 9 | DX23: 2 | DY23: 3 | DZ23: 3 | EA23: -5 | EB23: 5.5 | EC23: -2 | ED23: 2.5 | EE23: 7 | EF23: 0.5 | EG23: 9 | EH23: -1.5 | EI23: -6 | EJ23: 0.5 | EK23: 4 | EL23: 3 | EM23: 6 | EN23: -4 | EO23: -8 | EP23: -3 | EQ23: 4 | ER23: 3 | ES23: 6 | ET23: -4 | EU23: -8 | EV23: -3 | EW23: 1 | EX23: 1 | EY23: 1 | EZ23: 1 | FA23: 1 | FB23: 1
C24: -108 | D24: -104 | E24: -9 | F24: -5 | G24: -19 | H24: -10 | AT24: 8 | AU24: -2 | AV24: 1 | AW24: 1 | AX24: 5 | AY24: 4 | AZ24: -1 | BA24: 7 | BB24: 3 | BC24: 6 | BD24: 0 | BE24: 9 | BF24: -4 | BG24: -5 | BH24: -3 | BI24: -9 | BJ24: 0 | BK24: -3 | BL24: 1 | BM24: -3 | BN24: 5 | BO24: 1 | BP24: 5 | BQ24: 1 | BR24: 4 | BS24: -2 | BT24: 4 | BU24: -2 | BV24: 1 | BW24: -2 | BX24: 1 | BY24: -2 | BZ24: 1 | CA24: 3 | CB24: -1 | CC24: 3 | CD24: 3 | CE24: 7 | CF24: 3 | CG24: 7 | CH24: 2 | CI24: 4 | CJ24: 2 | CK24: 4 | CL24: -1 | CM24: 4 | CN24: -1 | CO24: 4 | CP24: -1 | CQ24: 5 | CR24: -4 | CS24: 5 | CT24: 0 | CU24: 6 | CV24: 0 | CW24: 6 | CX24: -3 | CY24: 9 | CZ24: -3 | DA24: 9 | DB24: -4 | DC24: 9 | DD24: -4 | DE24: 9 | DF24: -4 | DG24: -5 | DH24: -3 | DI24: -6 | DJ24: -3 | DK24: -6 | DL24: 0 | DM24: -9 | DN24: 0 | DO24: -9 | DP24: 1 | DQ24: -5 | DR24: 1 | DS24: -5 | DT24: -3 | DU24: -5 | DV24: -3 | DW24: 9 | DX24: 1 | DY24: 4 | DZ24: 3 | EA24: 1 | EB24: 5.5 | EC24: -2 | ED24: 0.5 | EE24: 4 | EF24: -1.5 | EG24: 6 | EH24: 0.5 | EI24: -5 | EJ24: -3.5 | EK24: 7 | EL24: 3 | EM24: 9 | EN24: -4 | EO24: -9 | EP24: 0 | EQ24: 7 | ER24: 3 | ES24: 9 | ET24: -4 | EU24: -9 | EV24: 0 | EW24: 1 | EX24: 1 | EY24: 1 | EZ24: 1 | FA24: 1 | FB24: 1
C25: -107 | D25: -104 | E25: -8 | F25: -5 | G25: -18 | H25: -10 | AT25: 9 | AU25: -3 | AV25: 2 | AW25: -7 | AX25: 4 | AY25: 4 | AZ25: 1 | BA25: 0 | BB25: 3 | BC25: 6 | BD25: -1 | BE25: 2 | BF25: -3 | BG25: -3 | BH25: -3 | BI25: -1 | BJ25: 1 | BK25: -5 | BL25: 2 | BM25: -5 | BN25: 4 | BO25: -7 | BP25: 4 | BQ25: -7 | BR25: 5 | BS25: -4 | BT25: 5 | BU25: -4 | BV25: 3 | BW25: -3 | BX25: 3 | BY25: -3 | BZ25: 2 | CA25: 2 | CB25: 1 | CC25: 2 | CD25: 3 | CE25: 0 | CF25: 3 | CG25: 0 | CH25: 4 | CI25: 3 | CJ25: 4 | CK25: 3 | CL25: 2 | CM25: 4 | CN25: 2 | CO25: 4 | CP25: 1 | CQ25: 4 | CR25: -1 | CS25: 4 | CT25: -3 | CU25: 2 | CV25: -3 | CW25: 2 | CX25: -4 | CY25: 5 | CZ25: -4 | DA25: 5 | DB25: -2 | DC25: 6 | DD25: -2 | DE25: 6 | DF25: -1 | DG25: 0 | DH25: -2 | DI25: -2 | DJ25: -2 | DK25: -2 | DL25: -3 | DM25: -3 | DN25: -3 | DO25: -3 | DP25: -1 | DQ25: -1 | DR25: -1 | DS25: -1 | DT25: 1 | DU25: 0 | DV25: 1 | DW25: 9 | DX25: 3 | DY25: 2 | DZ25: 2 | EA25: -7 | EB25: 3.5 | EC25: -3 | ED25: 1.5 | EE25: 4 | EF25: 0.5 | EG25: 6 | EH25: -0.5 | EI25: -3 | EJ25: -3.5 | EK25: 0 | EL25: 3 | EM25: 2 | EN25: -3 | EO25: -1 | EP25: 1 | EQ25: 0 | ER25: 3 | ES25: 2 | ET25: -3 | EU25: -1 | EV25: 1 | EW25: 1 | EX25: 1 | EY25: 1 | EZ25: 1 | FA25: 1 | FB25: 1
C26: -107 | D26: -94 | E26: -8 | F26: 5 | G26: -18 | H26: 0 | AT26: 10 | AU26: -4 | AV26: 2 | AW26: -5 | AX26: 4 | AY26: 3 | AZ26: 3 | BA26: 2 | BB26: 5 | BC26: 7 | BD26: -1 | BE26: 6 | BF26: -3 | BG26: -6 | BH26: -3 | BI26: -8 | BJ26: -4 | BK26: -3 | BL26: 4 | BM26: -3 | BN26: 2 | BO26: -4 | BP26: 2 | BQ26: -4 | BR26: 2 | BS26: -4 | BT26: 2 | BU26: -4 | BV26: 3 | BW26: -5 | BX26: 3 | BY26: -5 | BZ26: 4 | CA26: 4 | CB26: 5 | CC26: 4 | CD26: 3 | CE26: 3 | CF26: 3 | CG26: 3 | CH26: 3 | CI26: 3 | CJ26: 3 | CK26: 3 | CL26: 4 | CM26: 2 | CN26: 4 | CO26: 2 | CP26: 5 | CQ26: 8 | CR26: -3 | CS26: 8 | CT26: -1 | CU26: 7 | CV26: -1 | CW26: 7 | CX26: -1 | CY26: 7 | CZ26: -1 | DA26: 7 | DB26: -2 | DC26: 6 | DD26: -2 | DE26: 6 | DF26: -3 | DG26: -8 | DH26: -4 | DI26: -8 | DJ26: -2 | DK26: -6 | DL26: -2 | DM26: -6 | DN26: -3 | DO26: -7 | DP26: -3 | DQ26: -7 | DR26: -4 | DS26: -8 | DT26: -4 | DU26: -8 | DV26: -4 | DW26: 9 | DX26: 2 | DY26: 3 | DZ26: 3 | EA26: -5 | EB26: 4.5 | EC26: -4 | ED26: 1.5 | EE26: 3 | EF26: 2.5 | EG26: 7 | EH26: -0.5 | EI26: -6 | EJ26: -3.5 | EK26: 2 | EL26: 5 | EM26: 6 | EN26: -3 | EO26: -8 | EP26: -4 | EQ26: 2 | ER26: 5 | ES26: 6 | ET26: -3 | EU26: -8 | EV26: -4 | EW26: 1 | EX26: 1 | EY26: 1 | EZ26: 1 | FA26: 1 | FB26: 1
C27: -106 | D27: -94 | E27: -7 | F27: 5 | G27: -17 | H27: 0 | AT27: 11 | AU27: -5 | AV27: 2 | AW27: -3 | AX27: 5 | AY27: 6 | AZ27: 0 | BA27: 8 | BB27: 3 | BC27: 9 | BD27: -4 | BE27: 7 | BF27: -1 | BG27: -6 | BH27: -1 | BI27: -9 | BJ27: 1 | BK27: -5 | BL27: 2 | BM27: -6 | BN27: 3 | BO27: -6 | BP27: 4 | BQ27: -5 | BR27: 5 | BS27: -3 | BT27: 5 | BU27: -2 | BV27: 4 | BW27: -2 | BX27: 3 | BY27: -3 | BZ27: 2 | CA27: 6 | CB27: 0 | CC27: 5 | CD27: 1 | CE27: 5 | CF27: 2 | CG27: 6 | CH27: 3 | CI27: 8 | CJ27: 3 | CK27: 9 | CL27: 2 | CM27: 9 | CN27: 1 | CO27: 8 | CP27: 0 | CQ27: 7 | CR27: -4 | CS27: 6 | CT27: -3 | CU27: 6 | CV27: -2 | CW27: 7 | CX27: -1 | CY27: 9 | CZ27: -1 | DA27: 10 | DB27: -2 | DC27: 10 | DD27: -3 | DE27: 9 | DF27: -4 | DG27: -8 | DH27: -2 | DI27: -9 | DJ27: -1 | DK27: -9 | DL27: 1 | DM27: -8 | DN27: 2 | DO27: -7 | DP27: 2 | DQ27: -6 | DR27: 1 | DS27: -6 | DT27: -1 | DU27: -7 | DV27: -2 | DW27: 9 | DX27: 1 | DY27: 1 | DZ27: 2 | EA27: -3 | EB27: 5.5 | EC27: -5 | ED27: 1.5 | EE27: 6 | EF27: -0.5 | EG27: 9 | EH27: -4.5 | EI27: -5 | EJ27: -0.5 | EK27: 8 | EL27: 3 | EM27: 7 | EN27: -1 | EO27: -9 | EP27: 1 | EQ27: 8 | ER27: 3 | ES27: 7 | ET27: -1 | EU27: -9 | EV27: 1 | EW27: 1 | EX27: 1 | EY27: 1 | EZ27: 1 | FA27: 1 | FB27: 1
C28: -106 | D28: -104 | E28: -7 | F28: -5 | G28: -17 | H28: -10 | AT28: 12 | AU28: -7 | AV28: 2 | AW28: -5 | AX28: 5 | AY28: 4 | AZ28: 0 | BA28: 6 | BB28: 3 | BC28: 7 | BD28: -4 | BE28: 5 | BF28: -1 | BG28: -5 | BH28: -2 | BI28: -8 | BJ28: -4 | BK28: -5 | BL28: 2 | BM28: -7 | BN28: 2 | BO28: -6 | BP28: 3 | BQ28: -7 | BR28: 4 | BS28: -5 | BT28: 4 | BU28: -5 | BV28: 5 | BW28: -4 | BX28: 4 | BY28: -4 | BZ28: 3 | CA28: 6 | CB28: 0 | CC28: 4 | CD28: 0 | CE28: 5 | CF28: 1 | CG28: 4 | CH28: 2 | CI28: 6 | CJ28: 2 | CK28: 6 | CL28: 3 | CM28: 7 | CN28: 2 | CO28: 7 | CP28: 1 | CQ28: 7 | CR28: -1 | CS28: 5 | CT28: -1 | CU28: 6 | CV28: -2 | CW28: 5 | CX28: -3 | CY28: 7 | CZ28: -3 | DA28: 7 | DB28: -4 | DC28: 8 | DD28: -3 | DE28: 8 | DF28: -2 | DG28: -8 | DH28: -4 | DI28: -8 | DJ28: -2 | DK28: -7 | DL28: -1 | DM28: -6 | DN28: -1 | DO28: -5 | DP28: -2 | DQ28: -6 | DR28: -2 | DS28: -6 | DT28: -4 | DU28: -7 | DV28: -3 | DW28: 9 | DX28: 2 | DY28: 3 | DZ28: 3 | EA28: -5 | EB28: 5.5 | EC28: -7 | ED28: 1.5 | EE28: 4 | EF28: -0.5 | EG28: 7 | EH28: -4.5 | EI28: -5 | EJ28: -2.5 | EK28: 6 | EL28: 3 | EM28: 5 | EN28: -1 | EO28: -8 | EP28: -4 | EQ28: 6 | ER28: 3 | ES28: 5 | ET28: -1 | EU28: -8 | EV28: -4 | EW28: 1 | EX28: 1 | EY28: 1 | EZ28: 1 | FA28: 1 | FB28: 1
C29: -105 | D29: -104 | E29: -6 | F29: -5 | G29: -16 | H29: -10 | AT29: 13 | AU29: -5 | AV29: 1 | AW29: -4 | AX29: 5 | AY29: 6 | AZ29: -1 | BA29: 7 | BB29: 3 | BC29: 3 | BD29: -4 | BE29: 2 | BF29: 0 | BG29: -5 | BH29: -1 | BI29: -9 | BJ29: -2 | BK29: -5 | BL29: 1 | BM29: -7 | BN29: 3 | BO29: -7 | BP29: 4 | BQ29: -6 | BR29: 5 | BS29: -5 | BT29: 4 | BU29: -4 | BV29: 5 | BW29: -3 | BX29: 4 | BY29: -3 | BZ29: 3 | CA29: 6 | CB29: -1 | CC29: 4 | CD29: 1 | CE29: 4 | CF29: 2 | CG29: 5 | CH29: 3 | CI29: 6 | CJ29: 2 | CK29: 7 | CL29: 3 | CM29: 8 | CN29: 2 | CO29: 8 | CP29: 1 | CQ29: 2 | CR29: 0 | CS29: 0 | CT29: -2 | CU29: 0 | CV29: -3 | CW29: 1 | CX29: -4 | CY29: 2 | CZ29: -3 | DA29: 3 | DB29: -4 | DC29: 4 | DD29: -3 | DE29: 4 | DF29: -2 | DG29: -7 | DH29: -4 | DI29: -9 | DJ29: -2 | DK29: -7 | DL29: 0 | DM29: -6 | DN29: 0 | DO29: -5 | DP29: -1 | DQ29: -6 | DR29: -2 | DS29: -5 | DT29: -3 | DU29: -6 | DV29: -4 | DW29: 9 | DX29: 1 | DY29: 1 | DZ29: 2 | EA29: -4 | EB29: 5.5 | EC29: -5 | ED29: 0.5 | EE29: 6 | EF29: -1.5 | EG29: 3 | EH29: -4.5 | EI29: -4 | EJ29: -0.5 | EK29: 7 | EL29: 3 | EM29: 2 | EN29: 0 | EO29: -9 | EP29: -2 | EQ29: 7 | ER29: 3 | ES29: 2 | ET29: 0 | EU29: -9 | EV29: -2 | EW29: 1 | EX29: 1 | EY29: 1 | EZ29: 1 | FA29: 1 | FB29: 1
C30: -105 | D30: -94 | E30: -6 | F30: 5 | G30: -16 | H30: 0 | AT30: 14 | AU30: -5 | AV30: 2 | AW30: -7 | AX30: 5 | AY30: 5 | AZ30: 1 | BA30: 3 | BB30: 4 | BC30: 9 | BD30: 1 | BE30: 7 | BF30: -2 | BG30: -9 | BH30: -1 | BI30: -7 | BJ30: -4 | BK30: -5 | BL30: 2 | BM30: -8 | BN30: 2 | BO30: -8 | BP30: 5 | BQ30: -7 | BR30: 5 | BS30: -7 | BT30: 4 | BU30: -6 | BV30: 4 | BW30: -6 | BX30: 3 | BY30: -5 | BZ30: 3 | CA30: 5 | CB30: 1 | CC30: 2 | CD30: 1 | CE30: 2 | CF30: 4 | CG30: 3 | CH30: 4 | CI30: 3 | CJ30: 3 | CK30: 4 | CL30: 3 | CM30: 4 | CN30: 2 | CO30: 5 | CP30: 2 | CQ30: 9 | CR30: 1 | CS30: 6 | CT30: 1 | CU30: 6 | CV30: -2 | CW30: 7 | CX30: -2 | CY30: 7 | CZ30: -1 | DA30: 8 | DB30: -1 | DC30: 8 | DD30: 0 | DE30: 9 | DF30: 0 | DG30: -9 | DH30: -1 | DI30: -6 | DJ30: -1 | DK30: -6 | DL30: -4 | DM30: -7 | DN30: -4 | DO30: -7 | DP30: -3 | DQ30: -8 | DR30: -3 | DS30: -8 | DT30: -2 | DU30: -9 | DV30: -2 | DW30: 9 | DX30: 1 | DY30: 4 | DZ30: 3 | EA30: -7 | EB30: 5.5 | EC30: -5 | ED30: 1.5 | EE30: 5 | EF30: 0.5 | EG30: 9 | EH30: 1.5 | EI30: -9 | EJ30: -0.5 | EK30: 3 | EL30: 4 | EM30: 7 | EN30: -2 | EO30: -7 | EP30: -4 | EQ30: 3 | ER30: 4 | ES30: 7 | ET30: -2 | EU30: -7 | EV30: -4 | EW30: 1 | EX30: 1 | EY30: 1 | EZ30: 1 | FA30: 1 | FB30: 1
C31: -104 | D31: -94 | E31: -5 | F31: 5 | G31: -15 | H31: 0 | AT31: 15 | AU31: -8 | AV31: 1 | AW31: -6 | AX31: 5 | AY31: 6 | AZ31: 4 | BA31: 8 | BB31: 0 | BC31: 1 | BD31: 0 | BE31: 3 | BF31: -4 | BG31: -6 | BH31: -4 | BI31: -2 | BJ31: -2 | BK31: -9 | BL31: 2 | BM31: -8 | BN31: 1 | BO31: -7 | BP31: 2 | BQ31: -6 | BR31: 1 | BS31: -5 | BT31: 2 | BU31: -4 | BV31: 1 | BW31: -3 | BX31: 2 | BY31: -6 | BZ31: 5 | CA31: 3 | CB31: 1 | CC31: 4 | CD31: 0 | CE31: 5 | CF31: 1 | CG31: 6 | CH31: 0 | CI31: 7 | CJ31: 1 | CK31: 8 | CL31: 0 | CM31: 9 | CN31: 1 | CO31: 6 | CP31: 4 | CQ31: 0 | CR31: -1 | CS31: 1 | CT31: 0 | CU31: 2 | CV31: -1 | CW31: 3 | CX31: 0 | CY31: 4 | CZ31: -1 | DA31: 5 | DB31: 0 | DC31: 6 | DD31: -1 | DE31: 3 | DF31: -4 | DG31: -5 | DH31: -5 | DI31: -6 | DJ31: -4 | DK31: -5 | DL31: -3 | DM31: -6 | DN31: -2 | DO31: -5 | DP31: -1 | DQ31: -6 | DR31: 0 | DS31: -5 | DT31: 1 | DU31: -2 | DV31: -2 | DW31: 9 | DX31: 4 | DY31: 4 | DZ31: 4 | EA31: -6 | EB31: 5.5 | EC31: -8 | ED31: 0.5 | EE31: 6 | EF31: 4.5 | EG31: 1 | EH31: 0.5 | EI31: -7 | EJ31: -3.5 | EK31: 8 | EL31: 0 | EM31: 3 | EN31: -4 | EO31: -2 | EP31: -2 | EQ31: 8 | ER31: 0 | ES31: 3 | ET31: -4 | EU31: -2 | EV31: -2 | EW31: 1 | EX31: 1 | EY31: 1 | EZ31: 1 | FA31: 1 | FB31: 1
C32: -104 | D32: -104 | E32: -5 | F32: -5 | G32: -15 | H32: -10 | AT32: 16 | AU32: -6 | AV32: 1 | AW32: -8 | AX32: 5 | AY32: 4 | AZ32: 4 | BA32: 6 | BB32: 0 | BC32: 1 | BD32: -4 | BE32: 3 | BF32: 0 | BG32: -5 | BH32: -4 | BI32: -7 | BJ32: 0 | BK32: -9 | BL32: 2 | BM32: -8 | BN32: 3 | BO32: -9 | BP32: 4 | BQ32: -8 | BR32: 5 | BS32: -5 | BT32: 2 | BU32: -6 | BV32: 1 | BW32: -7 | BX32: 2 | BY32: -8 | BZ32: 1 | CA32: 3 | CB32: 1 | CC32: 4 | CD32: 2 | CE32: 3 | CF32: 3 | CG32: 4 | CH32: 4 | CI32: 7 | CJ32: 1 | CK32: 6 | CL32: 0 | CM32: 5 | CN32: 1 | CO32: 4 | CP32: 0 | CQ32: 0 | CR32: -1 | CS32: 1 | CT32: -2 | CU32: 0 | CV32: -3 | CW32: 1 | CX32: -4 | CY32: 4 | CZ32: -1 | DA32: 3 | DB32: 0 | DC32: 2 | DD32: -1 | DE32: 1 | DF32: 0 | DG32: -5 | DH32: -4 | DI32: -8 | DJ32: -1 | DK32: -7 | DL32: 0 | DM32: -6 | DN32: -1 | DO32: -5 | DP32: 0 | DQ32: -4 | DR32: -1 | DS32: -5 | DT32: -2 | DU32: -4 | DV32: -3 | DW32: 9 | DX32: 4 | DY32: 2 | DZ32: 2 | EA32: -8 | EB32: 5.5 | EC32: -6 | ED32: 0.5 | EE32: 4 | EF32: 4.5 | EG32: 1 | EH32: -4.5 | EI32: -5 | EJ32: -4.5 | EK32: 6 | EL32: 0 | EM32: 3 | EN32: 0 | EO32: -7 | EP32: 0 | EQ32: 6 | ER32: 0 | ES32: 3 | ET32: 0 | EU32: -7 | EV32: 0 | EW32: 1 | EX32: 1 | EY32: 1 | EZ32: 1 | FA32: 1 | FB32: 1
C33: -103 | D33: -104 | E33: -4 | F33: -5 | G33: -14 | H33: -10 | AT33: 17 | AU33: -6 | AV33: -1 | AW33: -7 | AX33: 4 | AY33: 5 | AZ33: 3 | BA33: 6 | BB33: -2 | BC33: 2 | BD33: -3 | BE33: 3 | BF33: 2 | BG33: -6 | BH33: -3 | BI33: -1 | BJ33: -2 | BK33: -6 | BL33: -1 | BM33: -8 | BN33: 1 | BO33: -7 | BP33: 2 | BQ33: -8 | BR33: 3 | BS33: -7 | BT33: 4 | BU33: -5 | BV33: 2 | BW33: -6 | BX33: 1 | BY33: -5 | BZ33: 0 | CA33: 6 | CB33: -2 | CC33: 4 | CD33: 0 | CE33: 5 | CF33: 1 | CG33: 4 | CH33: 2 | CI33: 5 | CJ33: 3 | CK33: 7 | CL33: 1 | CM33: 6 | CN33: 0 | CO33: 7 | CP33: -1 | CQ33: 3 | CR33: 2 | CS33: 1 | CT33: 0 | CU33: 2 | CV33: -1 | CW33: 1 | CX33: -2 | CY33: 2 | CZ33: -3 | DA33: 4 | DB33: -1 | DC33: 3 | DD33: 0 | DE33: 4 | DF33: 1 | DG33: -5 | DH33: -4 | DI33: -6 | DJ33: -3 | DK33: -4 | DL33: -1 | DM33: -3 | DN33: -2 | DO33: -2 | DP33: -1 | DQ33: -1 | DR33: -2 | DS33: -3 | DT33: -4 | DU33: -4 | DV33: -3 | DW33: 9 | DX33: 4 | DY33: 2 | DZ33: 1 | EA33: -7 | EB33: 4.5 | EC33: -6 | ED33: -1.5 | EE33: 5 | EF33: 3.5 | EG33: 2 | EH33: -3.5 | EI33: -7 | EJ33: -2.5 | EK33: 6 | EL33: -2 | EM33: 3 | EN33: 2 | EO33: -1 | EP33: -2 | EQ33: 6 | ER33: -2 | ES33: 3 | ET33: 2 | EU33: -1 | EV33: -2 | EW33: 1 | EX33: 1 | EY33: 1 | EZ33: 1 | FA33: 1 | FB33: 1
C34: -103 | D34: -94 | E34: -4 | F34: 5 | G34: -14 | H34: 0 | AT34: 18 | AU34: -4 | AV34: 3 | AW34: -7 | AX34: 4 | AY34: 5 | AZ34: 3 | BA34: 8 | BB34: 2 | BC34: 6 | BD34: -3 | BE34: 9 | BF34: -2 | BG34: -4 | BH34: -1 | BI34: -5 | BJ34: -4 | BK34: -6 | BL34: 1 | BM34: -7 | BN34: 2 | BO34: -6 | BP34: 3 | BQ34: -7 | BR34: 4 | BS34: -6 | BT34: 5 | BU34: -4 | BV34: 3 | BW34: -6 | BX34: 1 | BY34: -6 | BZ34: 1 | CA34: 6 | CB34: 0 | CC34: 5 | CD34: 1 | CE34: 6 | CF34: 2 | CG34: 5 | CH34: 3 | CI34: 6 | CJ34: 4 | CK34: 8 | CL34: 2 | CM34: 6 | CN34: 0 | CO34: 6 | CP34: 0 | CQ34: 8 | CR34: -1 | CS34: 9 | CT34: -2 | CU34: 8 | CV34: -3 | CW34: 9 | CX34: -4 | CY34: 8 | CZ34: -5 | DA34: 6 | DB34: -3 | DC34: 8 | DD34: -1 | DE34: 8 | DF34: -1 | DG34: -5 | DH34: -4 | DI34: -6 | DJ34: -3 | DK34: -4 | DL34: -1 | DM34: -2 | DN34: -3 | DO34: -3 | DP34: -4 | DQ34: -4 | DR34: -3 | DS34: -5 | DT34: -4 | DU34: -5 | DV34: -4 | DW34: 9 | DX34: 1 | DY34: 1 | DZ34: 4 | EA34: -8 | EB34: 4.5 | EC34: -3 | ED34: 3.5 | EE34: 4 | EF34: 3.5 | EG34: 5 | EH34: -2.5 | EI34: -4 | EJ34: -0.5 | EK34: 8 | EL34: 2 | EM34: 9 | EN34: -2 | EO34: -5 | EP34: -4 | EQ34: 8 | ER34: 2 | ES34: 9 | ET34: -2 | EU34: -5 | EV34: -4 | EW34: 1 | EX34: 1 | EY34: 1 | EZ34: 1 | FA34: 1 | FB34: 1
C35: -102 | D35: -94 | E35: -3 | F35: 5 | G35: -13 | H35: 0 | AT35: 19 | AU35: -3 | AV35: 1 | AW35: -8 | AX35: 0 | AY35: 5 | AZ35: 1 | BA35: 10 | BB35: 2 | BC35: 5 | BD35: -2 | BE35: 0 | BF35: -1 | BG35: -3 | BH35: 0 | BI35: -2 | BJ35: -5 | BK35: -8 | BL35: 0 | BM35: -7 | BN35: 1 | BO35: -6 | BP35: 0 | BQ35: -5 | BR35: 1 | BS35: -7 | BT35: 3 | BU35: -6 | BV35: 4 | BW35: -3 | BX35: 1 | BY35: -6 | BZ35: -2 | CA35: 5 | CB35: 1 | CC35: 6 | CD35: 2 | CE35: 7 | CF35: 1 | CG35: 8 | CH35: 2 | CI35: 6 | CJ35: 4 | CK35: 7 | CL35: 5 | CM35: 10 | CN35: 2 | CO35: 7 | CP35: -1 | CQ35: 2 | CR35: -5 | CS35: 1 | CT35: -4 | CU35: 3 | CV35: -2 | CW35: 2 | CX35: -1 | CY35: 1 | CZ35: -2 | DA35: 0 | DB35: -1 | DC35: 2 | DD35: 1 | DE35: 5 | DF35: -2 | DG35: -2 | DH35: -5 | DI35: -3 | DJ35: -4 | DK35: -2 | DL35: -3 | DM35: -3 | DN35: -2 | DO35: -5 | DP35: -4 | DQ35: -6 | DR35: -3 | DS35: -3 | DT35: 0 | DU35: 0 | DV35: -3 | DW35: 9 | DX35: 1 | DY35: 2 | DZ35: 4 | EA35: -9 | EB35: 0.5 | EC35: -2 | ED35: 1.5 | EE35: 4 | EF35: 1.5 | EG35: 6 | EH35: -1.5 | EI35: -2 | EJ35: 0.5 | EK35: 10 | EL35: 2 | EM35: 0 | EN35: -1 | EO35: -2 | EP35: -5 | EQ35: 10 | ER35: 2 | ES35: 0 | ET35: -1 | EU35: -2 | EV35: -5 | EW35: 1 | EX35: 1 | EY35: 1 | EZ35: 1 | FA35: 1 | FB35: 1
C36: -102 | D36: -104 | E36: -3 | F36: -5 | G36: -13 | H36: -10 | AT36: 20 | AU36: -7 | AV36: 4 | AW36: -8 | AX36: 1 | AY36: 6 | AZ36: 5 | BA36: 5 | BB36: 2 | BC36: 4 | BD36: -4 | BE36: 3 | BF36: -1 | BG36: -4 | BH36: -2 | BI36: -1 | BJ36: -3 | BK36: -8 | BL36: 1 | BM36: -9 | BN36: 2 | BO36: -8 | BP36: 4 | BQ36: -7 | BR36: 4 | BS36: -6 | BT36: 2 | BU36: -7 | BV36: 1 | BW36: -8 | BX36: 1 | BY36: -8 | BZ36: 1 | CA36: 5 | CB36: 2 | CC36: 4 | CD36: 3 | CE36: 5 | CF36: 5 | CG36: 6 | CH36: 5 | CI36: 7 | CJ36: 3 | CK36: 6 | CL36: 2 | CM36: 5 | CN36: 2 | CO36: 5 | CP36: 2 | CQ36: 2 | CR36: -2 | CS36: 3 | CT36: -1 | CU36: 4 | CV36: -1 | CW36: 5 | CX36: -2 | CY36: 4 | CZ36: -4 | DA36: 3 | DB36: -4 | DC36: 2 | DD36: -2 | DE36: 2 | DF36: -2 | DG36: -3 | DH36: -4 | DI36: -4 | DJ36: -3 | DK36: -4 | DL36: -2 | DM36: -3 | DN36: -1 | DO36: -1 | DP36: -2 | DQ36: -1 | DR36: -3 | DS36: -3 | DT36: -4 | DU36: -3 | DV36: -4 | DW36: 9 | DX36: 3 | DY36: 2 | DZ36: 4 | EA36: -8 | EB36: 0.5 | EC36: -7 | ED36: 4.5 | EE36: 6 | EF36: 5.5 | EG36: 4 | EH36: -4.5 | EI36: -5 | EJ36: -1.5 | EK36: 5 | EL36: 2 | EM36: 3 | EN36: -1 | EO36: -1 | EP36: -3 | EQ36: 5 | ER36: 2 | ES36: 3 | ET36: -1 | EU36: -1 | EV36: -3 | EW36: 1 | EX36: 1 | EY36: 1 | EZ36: 1 | FA36: 1 | FB36: 1
C37: -101 | D37: -104 | E37: -2 | F37: -5 | G37: -12 | H37: -10 | AT37: 21 | AU37: -5 | AV37: 3 | AW37: -8 | AX37: 1 | AY37: 8 | AZ37: 4 | BA37: 5 | BB37: 2 | BC37: 7 | BD37: -3 | BE37: 4 | BF37: -1 | BG37: -3 | BH37: 2 | BI37: -5 | BJ37: -1 | BK37: -8 | BL37: 1 | BM37: -9 | BN37: 2 | BO37: -9 | BP37: 3 | BQ37: -7 | BR37: 4 | BS37: -5 | BT37: 3 | BU37: -5 | BV37: 2 | BW37: -6 | BX37: 1 | BY37: -8 | BZ37: 1 | CA37: 5 | CB37: 2 | CC37: 4 | CD37: 3 | CE37: 4 | CF37: 4 | CG37: 6 | CH37: 5 | CI37: 8 | CJ37: 4 | CK37: 8 | CL37: 3 | CM37: 7 | CN37: 2 | CO37: 5 | CP37: 2 | CQ37: 5 | CR37: -4 | CS37: 3 | CT37: -3 | CU37: 3 | CV37: -2 | CW37: 4 | CX37: -1 | CY37: 6 | CZ37: -1 | DA37: 7 | DB37: -2 | DC37: 7 | DD37: -3 | DE37: 5 | DF37: -4 | DG37: -3 | DH37: -2 | DI37: -4 | DJ37: -2 | DK37: -5 | DL37: -1 | DM37: -5 | DN37: 1 | DO37: -4 | DP37: 2 | DQ37: -3 | DR37: 2 | DS37: -2 | DT37: 0 | DU37: -3 | DV37: -2 | DW37: 9 | DX37: 3 | DY37: 2 | DZ37: 3 | EA37: -8 | EB37: 0.5 | EC37: -4 | ED37: 3.5 | EE37: 9 | EF37: 4.5 | EG37: 8 | EH37: -3.5 | EI37: -3 | EJ37: 2.5 | EK37: 5 | EL37: 2 | EM37: 4 | EN37: -1 | EO37: -5 | EP37: -1 | EQ37: 5 | ER37: 2 | ES37: 4 | ET37: -1 | EU37: -5 | EV37: -1 | EW37: 1 | EX37: 1 | EY37: 1 | EZ37: 1 | FA37: 1 | FB37: 1
C38: -101 | D38: -94 | E38: -2 | F38: 5 | G38: -12 | H38: 0 | AT38: 22 | AU38: -5 | AV38: 2 | AW38: -2 | AX38: 3 | AY38: 7 | AZ38: 1 | BA38: 10 | BB38: 2 | BC38: 7 | BD38: -2 | BE38: 4 | BF38: -1 | BG38: -7 | BH38: 0 | BI38: -6 | BJ38: -3 | BK38: -5 | BL38: 2 | BM38: -6 | BN38: 3 | BO38: -4 | BP38: 5 | BQ38: -2 | BR38: 3 | BS38: -3 | BT38: 2 | BU38: -5 | BV38: 2 | BW38: -5 | BX38: 2 | BY38: -5 | BZ38: 2 | CA38: 7 | CB38: 1 | CC38: 6 | CD38: 2 | CE38: 8 | CF38: 4 | CG38: 10 | CH38: 2 | CI38: 9 | CJ38: 1 | CK38: 7 | CL38: 1 | CM38: 7 | CN38: 1 | CO38: 7 | CP38: 1 | CQ38: 5 | CR38: -4 | CS38: 3 | CT38: -2 | CU38: 4 | CV38: -1 | CW38: 6 | CX38: -1 | CY38: 7 | CZ38: -2 | DA38: 5 | DB38: -4 | DC38: 5 | DD38: -4 | DE38: 5 | DF38: -4 | DG38: -7 | DH38: -4 | DI38: -9 | DJ38: -2 | DK38: -7 | DL38: 0 | DM38: -6 | DN38: -1 | DO38: -6 | DP38: -3 | DQ38: -7 | DR38: -4 | DS38: -7 | DT38: -4 | DU38: -7 | DV38: -4 | DW38: 9 | DX38: 1 | DY38: 2 | DZ38: 4 | EA38: -1 | EB38: 3.5 | EC38: -5 | ED38: 1.5 | EE38: 7 | EF38: 0.5 | EG38: 8 | EH38: -1.5 | EI38: -7 | EJ38: 0.5 | EK38: 10 | EL38: 2 | EM38: 4 | EN38: -1 | EO38: -6 | EP38: -3 | EQ38: 10 | ER38: 2 | ES38: 4 | ET38: -1 | EU38: -6 | EV38: -3 | EW38: 1 | EX38: 1 | EY38: 1 | EZ38: 1 | FA38: 1 | FB38: 1
C39: -100 | D39: -94 | E39: -1 | F39: 5 | G39: -11 | H39: 0 | AT39: 23 | AU39: -5 | AV39: 1 | AW39: -6 | AX39: 4 | AY39: 6 | AZ39: 3 | BA39: 7 | BB39: 0 | BC39: 4 | BD39: -4 | BE39: 5 | BF39: -1 | BG39: -3 | BH39: -2 | BI39: -6 | BJ39: -3 | BK39: -5 | BL39: 1 | BM39: -6 | BN39: 1 | BO39: -6 | BP39: 3 | BQ39: -7 | BR39: 3 | BS39: -6 | BT39: 4 | BU39: -5 | BV39: 4 | BW39: -5 | BX39: 1 | BY39: -5 | BZ39: 1 | CA39: 7 | CB39: 0 | CC39: 6 | CD39: 0 | CE39: 6 | CF39: 2 | CG39: 5 | CH39: 2 | CI39: 6 | CJ39: 3 | CK39: 7 | CL39: 3 | CM39: 7 | CN39: 0 | CO39: 7 | CP39: 0 | CQ39: 5 | CR39: -4 | CS39: 4 | CT39: -4 | CU39: 3 | CV39: -3 | CW39: 4 | CX39: -3 | CY39: 4 | CZ39: -1 | DA39: 5 | DB39: -1 | DC39: 5 | DD39: -4 | DE39: 5 | DF39: -4 | DG39: -5 | DH39: -4 | DI39: -6 | DJ39: -3 | DK39: -6 | DL39: -2 | DM39: -3 | DN39: -2 | DO39: -3 | DP39: -3 | DQ39: -5 | DR39: -3 | DS39: -5 | DT39: -4 | DU39: -5 | DV39: -4 | DW39: 9 | DX39: 4 | DY39: 1 | DZ39: 3 | EA39: -6 | EB39: 4.5 | EC39: -5 | ED39: 0.5 | EE39: 6 | EF39: 3.5 | EG39: 4 | EH39: -4.5 | EI39: -3 | EJ39: -1.5 | EK39: 7 | EL39: 0 | EM39: 5 | EN39: -1 | EO39: -6 | EP39: -3 | EQ39: 7 | ER39: 0 | ES39: 5 | ET39: -1 | EU39: -6 | EV39: -3 | EW39: 1 | EX39: 1 | EY39: 1 | EZ39: 1 | FA39: 1 | FB39: 1
C40: -100 | D40: -104 | E40: -1 | F40: -5 | G40: -11 | H40: -10 | AT40: 24 | AU40: -4 | AV40: 1 | AW40: -6 | AX40: 4 | AY40: 6 | AZ40: 2 | BA40: 8 | BB40: -1 | BC40: 3 | BD40: -4 | BE40: 5 | BF40: -1 | BG40: -8 | BH40: -4 | BI40: -5 | BJ40: -2 | BK40: -5 | BL40: 1 | BM40: -7 | BN40: 3 | BO40: -6 | BP40: 4 | BQ40: -4 | BR40: 2 | BS40: -4 | BT40: 1 | BU40: -5 | BV40: 1 | BW40: -5 | BX40: 1 | BY40: -5 | BZ40: 1 | CA40: 7 | CB40: -1 | CC40: 5 | CD40: 1 | CE40: 6 | CF40: 2 | CG40: 8 | CH40: 0 | CI40: 8 | CJ40: -1 | CK40: 7 | CL40: -1 | CM40: 7 | CN40: -1 | CO40: 7 | CP40: -1 | CQ40: 3 | CR40: -4 | CS40: 2 | CT40: -3 | CU40: 4 | CV40: -1 | CW40: 5 | CX40: -1 | CY40: 5 | CZ40: -2 | DA40: 3 | DB40: -4 | DC40: 3 | DD40: -4 | DE40: 3 | DF40: -4 | DG40: -8 | DH40: -4 | DI40: -8 | DJ40: -3 | DK40: -6 | DL40: -1 | DM40: -5 | DN40: -2 | DO40: -7 | DP40: -4 | DQ40: -8 | DR40: -4 | DS40: -8 | DT40: -4 | DU40: -8 | DV40: -4 | DW40: 9 | DX40: 4 | DY40: 1 | DZ40: 1 | EA40: -6 | EB40: 4.5 | EC40: -4 | ED40: 0.5 | EE40: 6 | EF40: 2.5 | EG40: 3 | EH40: -4.5 | EI40: -8 | EJ40: -4.5 | EK40: 8 | EL40: -1 | EM40: 5 | EN40: -1 | EO40: -5 | EP40: -2 | EQ40: 8 | ER40: -1 | ES40: 5 | ET40: -1 | EU40: -5 | EV40: -2 | EW40: 1 | EX40: 1 | EY40: 1 | EZ40: 1 | FA40: 1 | FB40: 1
C41: -99 | D41: -104 | E41: 0 | F41: -5 | G41: -10 | H41: -10 | AT41: 25 | AU41: -3 | AV41: 4 | AW41: -7 | AX41: 2 | AY41: 5 | AZ41: 0 | BA41: 9 | BB41: 2 | BC41: 5 | BD41: -4 | BE41: 1 | BF41: -2 | BG41: -6 | BH41: -4 | BI41: -4 | BJ41: 0 | BK41: -6 | BL41: 1 | BM41: -7 | BN41: 2 | BO41: -6 | BP41: 2 | BQ41: -5 | BR41: 4 | BS41: -3 | BT41: 4 | BU41: -4 | BV41: 2 | BW41: -3 | BX41: 2 | BY41: -4 | BZ41: 1 | CA41: 6 | CB41: -1 | CC41: 5 | CD41: 0 | CE41: 6 | CF41: 0 | CG41: 7 | CH41: 2 | CI41: 9 | CJ41: 2 | CK41: 8 | CL41: 0 | CM41: 9 | CN41: 0 | CO41: 8 | CP41: -1 | CQ41: 5 | CR41: -4 | CS41: 3 | CT41: -4 | CU41: 2 | CV41: -2 | CW41: 1 | CX41: -2 | CY41: 2 | CZ41: -1 | DA41: 4 | DB41: -1 | DC41: 5 | DD41: -2 | DE41: 4 | DF41: -2 | DG41: -6 | DH41: -4 | DI41: -7 | DJ41: -3 | DK41: -7 | DL41: -1 | DM41: -6 | DN41: 0 | DO41: -6 | DP41: -1 | DQ41: -4 | DR41: 0 | DS41: -4 | DT41: -2 | DU41: -6 | DV41: -3 | DW41: 9 | DX41: 1 | DY41: 3 | DZ41: 1 | EA41: -7 | EB41: 2.5 | EC41: -3 | ED41: 4.5 | EE41: 5 | EF41: 0.5 | EG41: 5 | EH41: -4.5 | EI41: -6 | EJ41: -4.5 | EK41: 9 | EL41: 2 | EM41: 1 | EN41: -2 | EO41: -4 | EP41: 0 | EQ41: 9 | ER41: 2 | ES41: 1 | ET41: -2 | EU41: -4 | EV41: 0 | EW41: 1 | EX41: 1 | EY41: 1 | EZ41: 1 | FA41: 1 | FB41: 1
C42: -99 | D42: -94 | E42: 0 | F42: 5 | G42: -10 | H42: 0 | AT42: 26 | AU42: -4 | AV42: 5 | AW42: -5 | AX42: 1 | AY42: 8 | AZ42: 3 | BA42: 7 | BB42: -1 | BC42: 4 | BD42: -3 | BE42: 3 | BF42: 1 | BG42: -8 | BH42: -1 | BI42: -4 | BJ42: -2 | BK42: -3 | BL42: 1 | BM42: -5 | BN42: 1 | BO42: -5 | BP42: 3 | BQ42: -6 | BR42: 3 | BS42: -4 | BT42: 5 | BU42: -2 | BV42: 3 | BW42: -3 | BX42: 3 | BY42: -3 | BZ42: 1 | CA42: 9 | CB42: -1 | CC42: 7 | CD42: -1 | CE42: 7 | CF42: 1 | CG42: 6 | CH42: 1 | CI42: 8 | CJ42: 3 | CK42: 10 | CL42: 1 | CM42: 9 | CN42: 1 | CO42: 9 | CP42: -1 | CQ42: 5 | CR42: 1 | CS42: 3 | CT42: 1 | CU42: 3 | CV42: -1 | CW42: 2 | CX42: -1 | CY42: 4 | CZ42: -3 | DA42: 6 | DB42: -1 | DC42: 5 | DD42: -1 | DE42: 5 | DF42: 1 | DG42: -6 | DH42: -4 | DI42: -6 | DJ42: -3 | DK42: -8 | DL42: -3 | DM42: -8 | DN42: -1 | DO42: -6 | DP42: -1 | DQ42: -6 | DR42: 0 | DS42: -4 | DT42: -2 | DU42: -6 | DV42: -4 | DW42: 9 | DX42: 3 | DY42: 2 | DZ42: 1 | EA42: -5 | EB42: 0.5 | EC42: -4 | ED42: 5.5 | EE42: 8 | EF42: 3.5 | EG42: 4 | EH42: -3.5 | EI42: -8 | EJ42: -0.5 | EK42: 7 | EL42: -1 | EM42: 3 | EN42: 1 | EO42: -4 | EP42: -2 | EQ42: 7 | ER42: -1 | ES42: 3 | ET42: 1 | EU42: -4 | EV42: -2 | EW42: 1 | EX42: 1 | EY42: 1 | EZ42: 1 | FA42: 1 | FB42: 1
C43: -98 | D43: -94 | E43: 1 | F43: 5 | G43: -9 | H43: 0 | AT43: 27 | AU43: -6 | AV43: 4 | AW43: -7 | AX43: 1 | AY43: 6 | AZ43: 2 | BA43: 5 | BB43: -1 | BC43: 2 | BD43: -2 | BE43: 1 | BF43: 1 | BG43: -8 | BH43: -3 | BI43: -5 | BJ43: -4 | BK43: -3 | BL43: 1 | BM43: -7 | BN43: 1 | BO43: -6 | BP43: 4 | BQ43: -4 | BR43: 4 | BS43: -3 | BT43: 1 | BU43: -3 | BV43: 1 | BW43: -3 | BX43: 1 | BY43: -3 | BZ43: 1 | CA43: 9 | CB43: -1 | CC43: 5 | CD43: -1 | CE43: 6 | CF43: 2 | CG43: 8 | CH43: 2 | CI43: 9 | CJ43: -1 | CK43: 9 | CL43: -1 | CM43: 9 | CN43: -1 | CO43: 9 | CP43: -1 | CQ43: 5 | CR43: 1 | CS43: 1 | CT43: 1 | CU43: 2 | CV43: -2 | CW43: 4 | CX43: -2 | CY43: 5 | CZ43: 1 | DA43: 5 | DB43: 1 | DC43: 5 | DD43: 1 | DE43: 5 | DF43: 1 | DG43: -5 | DH43: -4 | DI43: -8 | DJ43: -3 | DK43: -8 | DL43: -1 | DM43: -5 | DN43: 0 | DO43: -5 | DP43: -4 | DQ43: -5 | DR43: -4 | DS43: -5 | DT43: -4 | DU43: -5 | DV43: -4 | DW43: 9 | DX43: 3 | DY43: 2 | DZ43: 4 | EA43: -7 | EB43: 0.5 | EC43: -6 | ED43: 4.5 | EE43: 6 | EF43: 2.5 | EG43: 2 | EH43: -2.5 | EI43: -8 | EJ43: -3.5 | EK43: 5 | EL43: -1 | EM43: 1 | EN43: 1 | EO43: -5 | EP43: -4 | EQ43: 5 | ER43: -1 | ES43: 1 | ET43: 1 | EU43: -5 | EV43: -4 | EW43: 1 | EX43: 1 | EY43: 1 | EZ43: 1 | FA43: 1 | FB43: 1
C44: -98 | D44: -104 | E44: 1 | F44: -5 | G44: -9 | H44: -10 | AT44: 28 | AU44: -6 | AV44: 5 | AW44: -3 | AX44: 1 | AY44: 6 | AZ44: 3 | BA44: 9 | BB44: -1 | BC44: 2 | BD44: -3 | BE44: 5 | BF44: 1 | BG44: -8 | BH44: -4 | BI44: -4 | BJ44: -1 | BK44: -3 | BL44: 1 | BM44: -6 | BN44: 2 | BO44: -6 | BP44: 5 | BQ44: -3 | BR44: 3 | BS44: -3 | BT44: 1 | BU44: -3 | BV44: 1 | BW44: -3 | BX44: 1 | BY44: -3 | BZ44: 1 | CA44: 9 | CB44: -1 | CC44: 6 | CD44: 0 | CE44: 6 | CF44: 3 | CG44: 9 | CH44: 1 | CI44: 9 | CJ44: -1 | CK44: 9 | CL44: -1 | CM44: 9 | CN44: -1 | CO44: 9 | CP44: -1 | CQ44: 5 | CR44: 1 | CS44: 2 | CT44: 0 | CU44: 2 | CV44: -3 | CW44: 5 | CX44: -1 | CY44: 5 | CZ44: 1 | DA44: 5 | DB44: 1 | DC44: 5 | DD44: 1 | DE44: 5 | DF44: 1 | DG44: -5 | DH44: -4 | DI44: -8 | DJ44: -4 | DK44: -6 | DL44: -1 | DM44: -4 | DN44: -1 | DO44: -5 | DP44: -4 | DQ44: -5 | DR44: -4 | DS44: -5 | DT44: -4 | DU44: -5 | DV44: -4 | DW44: 9 | DX44: 4 | DY44: 1 | DZ44: 1 | EA44: -3 | EB44: 0.5 | EC44: -6 | ED44: 5.5 | EE44: 6 | EF44: 3.5 | EG44: 2 | EH44: -3.5 | EI44: -8 | EJ44: -4.5 | EK44: 9 | EL44: -1 | EM44: 5 | EN44: 1 | EO44: -4 | EP44: -1 | EQ44: 9 | ER44: -1 | ES44: 5 | ET44: 1 | EU44: -4 | EV44: -1 | EW44: 1 | EX44: 1 | EY44: 1 | EZ44: 1 | FA44: 1 | FB44: 1
C45: -97 | D45: -104 | E45: 2 | F45: -5 | G45: -8 | H45: -10 | AT45: 29 | AU45: -1 | AV45: 4 | AW45: -6 | AX45: 1 | AY45: 8 | AZ45: 3 | BA45: 3 | BB45: 0 | BC45: 4 | BD45: -3 | BE45: -1 | BF45: 0 | BG45: -5 | BH45: -4 | BI45: -8 | BJ45: 1 | BK45: -3 | BL45: 1 | BM45: -6 | BN45: 1 | BO45: -4 | BP45: 4 | BQ45: -1 | BR45: 4 | BS45: -3 | BT45: 1 | BU45: -3 | BV45: 1 | BW45: -3 | BX45: 1 | BY45: -3 | BZ45: 1 | CA45: 6 | CB45: 0 | CC45: 3 | CD45: 0 | CE45: 5 | CF45: 3 | CG45: 8 | CH45: 3 | CI45: 6 | CJ45: 0 | CK45: 6 | CL45: 0 | CM45: 6 | CN45: 0 | CO45: 6 | CP45: 0 | CQ45: 2 | CR45: 0 | CS45: -1 | CT45: 0 | CU45: 1 | CV45: -3 | CW45: 4 | CX45: -3 | CY45: 2 | CZ45: 0 | DA45: 2 | DB45: 0 | DC45: 2 | DD45: 0 | DE45: 2 | DF45: 0 | DG45: -5 | DH45: -4 | DI45: -8 | DJ45: -2 | DK45: -8 | DL45: 1 | DM45: -5 | DN45: -1 | DO45: -5 | DP45: -4 | DQ45: -5 | DR45: -4 | DS45: -5 | DT45: -4 | DU45: -5 | DV45: -4 | DW45: 9 | DX45: 2 | DY45: 2 | DZ45: 2 | EA45: -6 | EB45: 0.5 | EC45: -1 | ED45: 4.5 | EE45: 8 | EF45: 3.5 | EG45: 4 | EH45: -3.5 | EI45: -5 | EJ45: -4.5 | EK45: 3 | EL45: 0 | EM45: -1 | EN45: 0 | EO45: -8 | EP45: 1 | EQ45: 3 | ER45: 0 | ES45: -1 | ET45: 0 | EU45: -8 | EV45: 1 | EW45: 1 | EX45: 1 | EY45: 1 | EZ45: 1 | FA45: 1 | FB45: 1
C46: -97 | D46: -94 | E46: 2 | F46: 5 | G46: -8 | H46: 0 | AT46: 30 | AU46: -3 | AV46: -3 | AW46: -5 | AX46: 5 | AY46: 6 | AZ46: 4 | BA46: 8 | BB46: -4 | BC46: 2 | BD46: -4 | BE46: 4 | BF46: 4 | BG46: -8 | BH46: -4 | BI46: 0 | BJ46: -2 | BK46: -3 | BL46: -3 | BM46: -5 | BN46: -1 | BO46: -5 | BP46: 5 | BQ46: -3 | BR46: 3 | BS46: -3 | BT46: -3 | BU46: -3 | BV46: -3 | BW46: -3 | BX46: -3 | BY46: -3 | BZ46: -3 | CA46: 8 | CB46: -4 | CC46: 6 | CD46: -2 | CE46: 6 | CF46: 4 | CG46: 8 | CH46: 2 | CI46: 8 | CJ46: -4 | CK46: 8 | CL46: -4 | CM46: 8 | CN46: -4 | CO46: 8 | CP46: -4 | CQ46: 4 | CR46: 4 | CS46: 2 | CT46: 2 | CU46: 2 | CV46: -4 | CW46: 4 | CX46: -2 | CY46: 4 | CZ46: 4 | DA46: 4 | DB46: 4 | DC46: 4 | DD46: 4 | DE46: 4 | DF46: 4 | DG46: -8 | DH46: -4 | DI46: -6 | DJ46: -2 | DK46: 0 | DL46: -2 | DM46: -2 | DN46: -4 | DO46: -8 | DP46: -4 | DQ46: -8 | DR46: -4 | DS46: -8 | DT46: -4 | DU46: -8 | DV46: -4 | DW46: 9 | DX46: 4 | DY46: 1 | DZ46: 1 | EA46: -5 | EB46: 5.5 | EC46: -3 | ED46: -3.5 | EE46: 6 | EF46: 4.5 | EG46: 2 | EH46: -4.5 | EI46: -8 | EJ46: -4.5 | EK46: 8 | EL46: -4 | EM46: 4 | EN46: 4 | EO46: 0 | EP46: -2 | EQ46: 8 | ER46: -4 | ES46: 4 | ET46: 4 | EU46: 0 | EV46: -2 | EW46: 1 | EX46: 1 | EY46: 1 | EZ46: 1 | FA46: 1 | FB46: 1
C47: -96 | D47: -94 | E47: 3 | F47: 5 | G47: -7 | H47: 0 | AT47: 31 | AU47: -2 | AV47: 3 | AW47: -5 | AX47: 5 | AY47: 6 | AZ47: 4 | BA47: 9 | BB47: 2 | BC47: 2 | BD47: -4 | BE47: 5 | BF47: -2 | BG47: -5 | BH47: -4 | BI47: -3 | BJ47: -1 | BK47: -5 | BL47: 1 | BM47: -8 | BN47: 3 | BO47: -5 | BP47: 5 | BQ47: -2 | BR47: 3 | BS47: -5 | BT47: 1 | BU47: -5 | BV47: 1 | BW47: -5 | BX47: 1 | BY47: -5 | BZ47: 1 | CA47: 6 | CB47: 0 | CC47: 3 | CD47: 2 | CE47: 6 | CF47: 4 | CG47: 9 | CH47: 2 | CI47: 6 | CJ47: 0 | CK47: 6 | CL47: 0 | CM47: 6 | CN47: 0 | CO47: 6 | CP47: 0 | CQ47: 2 | CR47: 0 | CS47: -1 | CT47: -2 | CU47: 2 | CV47: -4 | CW47: 5 | CX47: -2 | CY47: 2 | CZ47: 0 | DA47: 2 | DB47: 0 | DC47: 2 | DD47: 0 | DE47: 2 | DF47: 0 | DG47: -5 | DH47: -4 | DI47: -7 | DJ47: -1 | DK47: -5 | DL47: 2 | DM47: -3 | DN47: -1 | DO47: -5 | DP47: -4 | DQ47: -5 | DR47: -4 | DS47: -5 | DT47: -4 | DU47: -5 | DV47: -4 | DW47: 9 | DX47: 1 | DY47: 1 | DZ47: 1 | EA47: -5 | EB47: 5.5 | EC47: -1 | ED47: 3.5 | EE47: 6 | EF47: 4.5 | EG47: 2 | EH47: -4.5 | EI47: -5 | EJ47: -4.5 | EK47: 9 | EL47: 2 | EM47: 5 | EN47: -2 | EO47: -3 | EP47: -1 | EQ47: 9 | ER47: 2 | ES47: 5 | ET47: -2 | EU47: -3 | EV47: -1 | EW47: 1 | EX47: 1 | EY47: 1 | EZ47: 1 | FA47: 1 | FB47: 1
C48: -96 | D48: -104 | E48: 3 | F48: -5 | G48: -7 | H48: -10 | AT48: 32 | AU48: -8 | AV48: 3 | AW48: -5 | AX48: 5 | AY48: 6 | AZ48: 4 | BA48: 3 | BB48: 2 | BC48: 2 | BD48: -4 | BE48: -1 | BF48: -2 | BG48: -5 | BH48: -4 | BI48: -3 | BJ48: -1 | BK48: -5 | BL48: 1 | BM48: -8 | BN48: 3 | BO48: -5 | BP48: 5 | BQ48: -4 | BR48: 3 | BS48: -5 | BT48: 1 | BU48: -5 | BV48: 1 | BW48: -5 | BX48: 1 | BY48: -5 | BZ48: 1 | CA48: 6 | CB48: 0 | CC48: 3 | CD48: 2 | CE48: 6 | CF48: 4 | CG48: 7 | CH48: 2 | CI48: 6 | CJ48: 0 | CK48: 6 | CL48: 0 | CM48: 6 | CN48: 0 | CO48: 6 | CP48: 0 | CQ48: 2 | CR48: 0 | CS48: -1 | CT48: -2 | CU48: 2 | CV48: -4 | CW48: 3 | CX48: -2 | CY48: 2 | CZ48: 0 | DA48: 2 | DB48: 0 | DC48: 2 | DD48: 0 | DE48: 2 | DF48: 0 | DG48: -5 | DH48: -4 | DI48: -7 | DJ48: -1 | DK48: -5 | DL48: 0 | DM48: -3 | DN48: -1 | DO48: -5 | DP48: -4 | DQ48: -5 | DR48: -4 | DS48: -5 | DT48: -4 | DU48: -5 | DV48: -4 | DW48: 9 | DX48: 2 | DY48: 2 | DZ48: 4 | EA48: -5 | EB48: 5.5 | EC48: -9 | ED48: 3.5 | EE48: 6 | EF48: 4.5 | EG48: 2 | EH48: -4.5 | EI48: -5 | EJ48: -4.5 | EK48: 3 | EL48: 2 | EM48: -1 | EN48: -2 | EO48: -3 | EP48: -1 | EQ48: 3 | ER48: 2 | ES48: -1 | ET48: -2 | EU48: -3 | EV48: -1 | EW48: 1 | EX48: 1 | EY48: 1 | EZ48: 1 | FA48: 1 | FB48: 1
C49: -95 | D49: -104 | E49: 4 | F49: -5 | G49: -6 | H49: -10 | AT49: 33 | AU49: -7 | AV49: 1 | AW49: -5 | AX49: 5 | AY49: 6 | AZ49: 4 | BA49: 4 | BB49: 0 | BC49: 3 | BD49: -4 | BE49: 1 | BF49: 0 | BG49: -6 | BH49: -1 | BI49: -2 | BJ49: -3 | BK49: -5 | BL49: 2 | BM49: -7 | BN49: 1 | BO49: -5 | BP49: 5 | BQ49: -3 | BR49: 1 | BS49: -5 | BT49: 2 | BU49: -5 | BV49: 2 | BW49: -5 | BX49: 2 | BY49: -5 | BZ49: 2 | CA49: 6 | CB49: 1 | CC49: 4 | CD49: 0 | CE49: 6 | CF49: 4 | CG49: 8 | CH49: 0 | CI49: 6 | CJ49: 1 | CK49: 6 | CL49: 1 | CM49: 6 | CN49: 1 | CO49: 6 | CP49: 1 | CQ49: 3 | CR49: -1 | CS49: 1 | CT49: 0 | CU49: 3 | CV49: -4 | CW49: 5 | CX49: 0 | CY49: 3 | CZ49: -1 | DA49: 3 | DB49: -1 | DC49: 3 | DD49: -1 | DE49: 3 | DF49: -1 | DG49: -6 | DH49: -5 | DI49: -5 | DJ49: -3 | DK49: -6 | DL49: -1 | DM49: -2 | DN49: -3 | DO49: -6 | DP49: -5 | DQ49: -6 | DR49: -5 | DS49: -6 | DT49: -5 | DU49: -6 | DV49: -5 | DW49: 9 | DX49: 2 | DY49: 2 | DZ49: 4 | EA49: -5 | EB49: 5.5 | EC49: -7 | ED49: 0.5 | EE49: 6 | EF49: 4.5 | EG49: 3 | EH49: -4.5 | EI49: -6 | EJ49: -0.5 | EK49: 4 | EL49: 0 | EM49: 1 | EN49: 0 | EO49: -2 | EP49: -3 | EQ49: 4 | ER49: 0 | ES49: 1 | ET49: 0 | EU49: -2 | EV49: -3 | EW49: 1 | EX49: 1 | EY49: 1 | EZ49: 1 | FA49: 1 | FB49: 1
C50: -95 | D50: -94 | E50: 4 | F50: 5 | G50: -6 | H50: 0 | AT50: 34 | AU50: -8 | AV50: 1 | AW50: -6 | AX50: 4 | AY50: 7 | AZ50: 5 | BA50: 5 | BB50: 2 | BC50: 8 | BD50: -4 | BE50: 6 | BF50: -1 | BG50: -8 | BH50: -2 | BI50: -5 | BJ50: -4 | BK50: -5 | BL50: 1 | BM50: -8 | BN50: 1 | BO50: -9 | BP50: 2 | BQ50: -6 | BR50: 4 | BS50: -5 | BT50: 1 | BU50: -5 | BV50: 1 | BW50: -5 | BX50: 1 | BY50: -5 | BZ50: 1 | CA50: 8 | CB50: 2 | CC50: 5 | CD50: 2 | CE50: 4 | CF50: 3 | CG50: 7 | CH50: 5 | CI50: 8 | CJ50: 2 | CK50: 8 | CL50: 2 | CM50: 8 | CN50: 2 | CO50: 8 | CP50: 2 | CQ50: 9 | CR50: -1 | CS50: 6 | CT50: -1 | CU50: 5 | CV50: -2 | CW50: 8 | CX50: -4 | CY50: 9 | CZ50: -1 | DA50: 9 | DB50: -1 | DC50: 9 | DD50: -1 | DE50: 9 | DF50: -1 | DG50: -6 | DH50: -5 | DI50: -8 | DJ50: -2 | DK50: -5 | DL50: -1 | DM50: -5 | DN50: -4 | DO50: -6 | DP50: -5 | DQ50: -6 | DR50: -5 | DS50: -6 | DT50: -5 | DU50: -6 | DV50: -5 | DW50: 9 | DX50: 3 | DY50: 2 | DZ50: 1 | EA50: -6 | EB50: 4.5 | EC50: -8 | ED50: 0.5 | EE50: 7 | EF50: 5.5 | EG50: 8 | EH50: -4.5 | EI50: -9 | EJ50: -1.5 | EK50: 5 | EL50: 2 | EM50: 6 | EN50: -1 | EO50: -5 | EP50: -4 | EQ50: 5 | ER50: 2 | ES50: 6 | ET50: -1 | EU50: -5 | EV50: -4 | EW50: 1 | EX50: 1 | EY50: 1 | EZ50: 1 | FA50: 1 | FB50: 1
C51: -94 | D51: -94 | E51: 5 | F51: 5 | G51: -5 | H51: 0 | AT51: 35 | AU51: -8 | AV51: 2 | AW51: -5 | AX51: 1 | AY51: 8 | AZ51: 0 | BA51: 5 | BB51: 1 | BC51: 1 | BD51: 0 | BE51: 4 | BF51: 1 | BG51: -2 | BH51: -4 | BI51: -1 | BJ51: -1 | BK51: -5 | BL51: 1 | BM51: -6 | BN51: 2 | BO51: -8 | BP51: 2 | BQ51: -5 | BR51: 5 | BS51: -5 | BT51: 1 | BU51: -5 | BV51: 1 | BW51: -5 | BX51: 1 | BY51: -5 | BZ51: 1 | CA51: 8 | CB51: 0 | CC51: 7 | CD51: 1 | CE51: 5 | CF51: 1 | CG51: 8 | CH51: 4 | CI51: 8 | CJ51: 0 | CK51: 8 | CL51: 0 | CM51: 8 | CN51: 0 | CO51: 8 | CP51: 0 | CQ51: 4 | CR51: 1 | CS51: 3 | CT51: 0 | CU51: 1 | CV51: 0 | CW51: 4 | CX51: -3 | CY51: 4 | CZ51: 1 | DA51: 4 | DB51: 1 | DC51: 4 | DD51: 1 | DE51: 4 | DF51: 1 | DG51: -2 | DH51: -4 | DI51: -5 | DJ51: -1 | DK51: -1 | DL51: -1 | DM51: -2 | DN51: -2 | DO51: -2 | DP51: -4 | DQ51: -2 | DR51: -4 | DS51: -2 | DT51: -4 | DU51: -2 | DV51: -4 | DW51: 9 | DX51: 3 | DY51: 2 | DZ51: 1 | EA51: -5 | EB51: 0.5 | EC51: -8 | ED51: 1.5 | EE51: 8 | EF51: -0.5 | EG51: 1 | EH51: 0.5 | EI51: -2 | EJ51: -4.5 | EK51: 5 | EL51: 1 | EM51: 4 | EN51: 1 | EO51: -1 | EP51: -1 | EQ51: 5 | ER51: 1 | ES51: 4 | ET51: 1 | EU51: -1 | EV51: -1 | EW51: 1 | EX51: 1 | EY51: 1 | EZ51: 1 | FA51: 1 | FB51: 1
C52: -94 | D52: -104 | E52: 5 | F52: -5 | G52: -5 | H52: -10 | AT52: 36 | AU52: -8 | AV52: 5 | AW52: -5 | AX52: 1 | AY52: 8 | AZ52: 0 | BA52: 5 | BB52: 4 | BC52: 1 | BD52: -3 | BE52: 4 | BF52: 1 | BG52: -6 | BH52: -4 | BI52: -2 | BJ52: -1 | BK52: -5 | BL52: 1 | BM52: -8 | BN52: 1 | BO52: -8 | BP52: 5 | BQ52: -5 | BR52: 1 | BS52: -5 | BT52: 1 | BU52: -5 | BV52: 1 | BW52: -5 | BX52: 1 | BY52: -5 | BZ52: 1 | CA52: 8 | CB52: 0 | CC52: 5 | CD52: 0 | CE52: 5 | CF52: 4 | CG52: 8 | CH52: 0 | CI52: 8 | CJ52: 0 | CK52: 8 | CL52: 0 | CM52: 8 | CN52: 0 | CO52: 8 | CP52: 0 | CQ52: 4 | CR52: 1 | CS52: 1 | CT52: 1 | CU52: 1 | CV52: -3 | CW52: 4 | CX52: 1 | CY52: 4 | CZ52: 1 | DA52: 4 | DB52: 1 | DC52: 4 | DD52: 1 | DE52: 4 | DF52: 1 | DG52: -2 | DH52: -1 | DI52: -6 | DJ52: -1 | DK52: -6 | DL52: -4 | DM52: -2 | DN52: -1 | DO52: -2 | DP52: -1 | DQ52: -2 | DR52: -1 | DS52: -2 | DT52: -1 | DU52: -2 | DV52: -1 | DW52: 9 | DX52: 2 | DY52: 1 | DZ52: 1 | EA52: -5 | EB52: 0.5 | EC52: -8 | ED52: 5.5 | EE52: 8 | EF52: -0.5 | EG52: 1 | EH52: -3.5 | EI52: -6 | EJ52: -4.5 | EK52: 5 | EL52: 4 | EM52: 4 | EN52: 1 | EO52: -2 | EP52: -1 | EQ52: 5 | ER52: 4 | ES52: 4 | ET52: 1 | EU52: -2 | EV52: -1 | EW52: 1 | EX52: 1 | EY52: 1 | EZ52: 1 | FA52: 1 | FB52: 1
C53: =$E$20+E53 -> -93 | D53: -104 | E53: 6 | F53: -5 | G53: -4 | H53: -10 | AT53: 37 | AU53: -2 | AV53: -2 | AW53: -4 | AX53: 3 | AY53: 7 | AZ53: -1 | BA53: 5 | BB53: 4 | BC53: 1 | BD53: -3 | BE53: 3 | BF53: 2 | BG53: -8 | BH53: -4 | BI53: -3 | BJ53: -2 | BK53: -4 | BL53: 3 | BM53: -2 | BN53: 3 | BO53: -2 | BP53: -2 | BQ53: -4 | BR53: 3 | BS53: -4 | BT53: 3 | BU53: -4 | BV53: 3 | BW53: -4 | BX53: 3 | BY53: -4 | BZ53: 3 | CA53: 5 | CB53: 4 | CC53: 7 | CD53: 4 | CE53: 7 | CF53: -1 | CG53: 5 | CH53: 4 | CI53: 5 | CJ53: 4 | CK53: 5 | CL53: 4 | CM53: 5 | CN53: 4 | CO53: 5 | CP53: 4 | CQ53: 1 | CR53: -3 | CS53: 3 | CT53: -3 | CU53: 3 | CV53: 2 | CW53: 1 | CX53: -3 | CY53: 1 | CZ53: -3 | DA53: 1 | DB53: -3 | DC53: 1 | DD53: -3 | DE53: 1 | DF53: -3 | DG53: -8 | DH53: -4 | DI53: -3 | DJ53: -4 | DK53: -3 | DL53: -2 | DM53: -8 | DN53: -4 | DO53: -8 | DP53: -4 | DQ53: -8 | DR53: -4 | DS53: -8 | DT53: -4 | DU53: -8 | DV53: -4 | DW53: 9 | DX53: 2 | DY53: 1 | DZ53: 1 | EA53: -4 | EB53: 3.5 | EC53: -2 | ED53: -2.5 | EE53: 7 | EF53: -1.5 | EG53: 1 | EH53: -3.5 | EI53: -8 | EJ53: -4.5 | EK53: 5 | EL53: 4 | EM53: 3 | EN53: 2 | EO53: -3 | EP53: -2 | EQ53: 5 | ER53: 4 | ES53: 3 | ET53: 2 | EU53: -3 | EV53: -2 | EW53: 1 | EX53: 1 | EY53: 1 | EZ53: 1 | FA53: 1 | FB53: 1
C54: -93 | D54: -94 | E54: 6 | F54: 5 | G54: -4 | H54: 0 | AT54: 38 | AU54: -7 | AV54: 5 | AW54: -3 | AX54: 4 | AY54: 6 | AZ54: 2 | BA54: 2 | BB54: 3 | BC54: 2 | BD54: -1 | BE54: -2 | BF54: -2 | BG54: -6 | BH54: -4 | BI54: -5 | BJ54: 0 | BK54: -5 | BL54: 2 | BM54: -7 | BN54: 5 | BO54: -3 | BP54: 4 | BQ54: -5 | BR54: 2 | BS54: -5 | BT54: 2 | BU54: -5 | BV54: 2 | BW54: -5 | BX54: 2 | BY54: -5 | BZ54: 2 | CA54: 4 | CB54: 0 | CC54: 2 | CD54: 3 | CE54: 6 | CF54: 2 | CG54: 4 | CH54: 0 | CI54: 4 | CJ54: 0 | CK54: 4 | CL54: 0 | CM54: 4 | CN54: 0 | CO54: 4 | CP54: 0 | CQ54: 0 | CR54: 1 | CS54: -2 | CT54: -2 | CU54: 2 | CV54: -1 | CW54: 0 | CX54: 1 | CY54: 0 | CZ54: 1 | DA54: 0 | DB54: 1 | DC54: 0 | DD54: 1 | DE54: 0 | DF54: 1 | DG54: -8 | DH54: -2 | DI54: -5 | DJ54: 0 | DK54: -6 | DL54: -4 | DM54: -8 | DN54: -2 | DO54: -8 | DP54: -2 | DQ54: -8 | DR54: -2 | DS54: -8 | DT54: -2 | DU54: -8 | DV54: -2 | DW54: 9 | DX54: 2 | DY54: 3 | DZ54: 1 | EA54: -2 | EB54: 4.5 | EC54: -7 | ED54: 5.5 | EE54: 7 | EF54: 2.5 | EG54: 3 | EH54: -0.5 | EI54: -6 | EJ54: -4.5 | EK54: 2 | EL54: 3 | EM54: -2 | EN54: -2 | EO54: -5 | EP54: 0 | EQ54: 2 | ER54: 3 | ES54: -2 | ET54: -2 | EU54: -5 | EV54: 0 | EW54: 1 | EX54: 1 | EY54: 1 | EZ54: 1 | FA54: 1 | FB54: 1
C55: -92 | D55: -94 | E55: 7 | F55: 5 | G55: -3 | H55: 0 | AT55: 39 | AU55: -6 | AV55: 3 | AW55: -5 | AX55: -2 | AY55: 4 | AZ55: 0 | BA55: 3 | BB55: 5 | BC55: 7 | BD55: -4 | BE55: 8 | BF55: 1 | BG55: 1 | BH55: -2 | BI55: -4 | BJ55: -3 | BK55: -5 | BL55: -2 | BM55: -7 | BN55: 1 | BO55: -6 | BP55: 3 | BQ55: -5 | BR55: -2 | BS55: -5 | BT55: -2 | BU55: -5 | BV55: -2 | BW55: -5 | BX55: -2 | BY55: -5 | BZ55: -2 | CA55: 4 | CB55: 0 | CC55: 2 | CD55: 3 | CE55: 3 | CF55: 5 | CG55: 4 | CH55: 0 | CI55: 4 | CJ55: 0 | CK55: 4 | CL55: 0 | CM55: 4 | CN55: 0 | CO55: 4 | CP55: 0 | CQ55: 8 | CR55: 1 | CS55: 6 | CT55: -2 | CU55: 7 | CV55: -4 | CW55: 8 | CX55: 1 | CY55: 8 | CZ55: 1 | DA55: 8 | DB55: 1 | DC55: 8 | DD55: 1 | DE55: 8 | DF55: 1 | DG55: -4 | DH55: -3 | DI55: -2 | DJ55: -4 | DK55: 1 | DL55: -2 | DM55: -4 | DN55: -3 | DO55: -4 | DP55: -3 | DQ55: -4 | DR55: -3 | DS55: -4 | DT55: -3 | DU55: -4 | DV55: -3 | DW55: 9 | DX55: 2 | DY55: 1 | DZ55: 3 | EA55: -5 | EB55: -2.5 | EC55: -6 | ED55: 3.5 | EE55: 4 | EF55: -0.5 | EG55: 7 | EH55: -4.5 | EI55: 1 | EJ55: -1.5 | EK55: 3 | EL55: 5 | EM55: 8 | EN55: 1 | EO55: -4 | EP55: -3 | EQ55: 3 | ER55: 5 | ES55: 8 | ET55: 1 | EU55: -4 | EV55: -3 | EW55: 1 | EX55: 1 | EY55: 1 | EZ55: 1 | FA55: 1 | FB55: 1
C56: -92 | D56: -104 | E56: 7 | F56: -5 | G56: -3 | H56: -10 | AT56: 40 | AU56: -4 | AV56: 3 | AW56: -2 | AX56: -1 | AY56: 7 | AZ56: 1 | BA56: 5 | BB56: 5 | BC56: 8 | BD56: -4 | BE56: 10 | BF56: 0 | BG56: -9 | BH56: 0 | BI56: -5 | BJ56: -2 | BK56: -6 | BL56: -1 | BM56: -2 | BN56: -1 | BO56: -4 | BP56: 3 | BQ56: -6 | BR56: -1 | BS56: -6 | BT56: -1 | BU56: -6 | BV56: -1 | BW56: -6 | BX56: -1 | BY56: -6 | BZ56: -1 | CA56: 3 | CB56: 1 | CC56: 7 | CD56: 1 | CE56: 5 | CF56: 5 | CG56: 3 | CH56: 1 | CI56: 3 | CJ56: 1 | CK56: 3 | CL56: 1 | CM56: 3 | CN56: 1 | CO56: 3 | CP56: 1 | CQ56: 6 | CR56: 0 | CS56: 10 | CT56: 0 | CU56: 8 | CV56: -4 | CW56: 6 | CX56: 0 | CY56: 6 | CZ56: 0 | DA56: 6 | DB56: 0 | DC56: 6 | DD56: 0 | DE56: 6 | DF56: 0 | DG56: -9 | DH56: -4 | DI56: -9 | DJ56: 0 | DK56: -5 | DL56: -2 | DM56: -9 | DN56: -4 | DO56: -9 | DP56: -4 | DQ56: -9 | DR56: -4 | DS56: -9 | DT56: -4 | DU56: -9 | DV56: -4 | DW56: 9 | DX56: 2 | DY56: 1 | DZ56: 4 | EA56: -2 | EB56: -1.5 | EC56: -4 | ED56: 3.5 | EE56: 7 | EF56: 0.5 | EG56: 8 | EH56: -4.5 | EI56: -9 | EJ56: 0.5 | EK56: 5 | EL56: 5 | EM56: 10 | EN56: 0 | EO56: -5 | EP56: -2 | EQ56: 5 | ER56: 5 | ES56: 10 | ET56: 0 | EU56: -5 | EV56: -2 | EW56: 1 | EX56: 1 | EY56: 1 | EZ56: 1 | FA56: 1 | FB56: 1
C57: -91 | D57: -104 | E57: 8 | F57: -5 | G57: -2 | H57: -10 | AT57: 41 | AU57: -4 | AV57: 5 | AW57: -6 | AX57: 1 | AY57: 5 | AZ57: 3 | BA57: 3 | BB57: -1 | BC57: 8 | BD57: -3 | BE57: 6 | BF57: 1 | BG57: -9 | BH57: -1 | BI57: -5 | BJ57: -3 | BK57: -6 | BL57: 1 | BM57: -8 | BN57: 3 | BO57: -4 | BP57: 5 | BQ57: -6 | BR57: 1 | BS57: -6 | BT57: 1 | BU57: -6 | BV57: 1 | BW57: -6 | BX57: 1 | BY57: -6 | BZ57: 1 | CA57: 3 | CB57: -1 | CC57: 1 | CD57: 1 | CE57: 5 | CF57: 3 | CG57: 3 | CH57: -1 | CI57: 3 | CJ57: -1 | CK57: 3 | CL57: -1 | CM57: 3 | CN57: -1 | CO57: 3 | CP57: -1 | CQ57: 6 | CR57: 1 | CS57: 4 | CT57: -1 | CU57: 8 | CV57: -3 | CW57: 6 | CX57: 1 | CY57: 6 | CZ57: 1 | DA57: 6 | DB57: 1 | DC57: 6 | DD57: 1 | DE57: 6 | DF57: 1 | DG57: -5 | DH57: -3 | DI57: -7 | DJ57: -5 | DK57: -9 | DL57: -1 | DM57: -5 | DN57: -3 | DO57: -5 | DP57: -3 | DQ57: -5 | DR57: -3 | DS57: -5 | DT57: -3 | DU57: -5 | DV57: -3 | DW57: 9 | DX57: 3 | DY57: 1 | DZ57: 1 | EA57: -6 | EB57: 0.5 | EC57: -4 | ED57: 5.5 | EE57: 5 | EF57: 3.5 | EG57: 8 | EH57: -3.5 | EI57: -9 | EJ57: -0.5 | EK57: 3 | EL57: -1 | EM57: 6 | EN57: 1 | EO57: -5 | EP57: -3 | EQ57: 3 | ER57: -1 | ES57: 6 | ET57: 1 | EU57: -5 | EV57: -3 | EW57: 1 | EX57: 1 | EY57: 1 | EZ57: 1 | FA57: 1 | FB57: 1
C58: -91 | D58: -94 | E58: 8 | F58: 5 | G58: -2 | H58: 0 | AT58: 42 | AU58: -3 | AV58: 5 | AW58: -7 | AX58: 1 | AY58: 3 | AZ58: 3 | BA58: -1 | BB58: -1 | BC58: 9 | BD58: -3 | BE58: 5 | BF58: 1 | BG58: -8 | BH58: -1 | BI58: -4 | BJ58: -5 | BK58: -7 | BL58: 1 | BM58: -4 | BN58: 2 | BO58: -3 | BP58: 5 | BQ58: -7 | BR58: 1 | BS58: -7 | BT58: 1 | BU58: -7 | BV58: 1 | BW58: -7 | BX58: 1 | BY58: -7 | BZ58: 1 | CA58: -1 | CB58: -1 | CC58: 2 | CD58: 0 | CE58: 3 | CF58: 3 | CG58: -1 | CH58: -1 | CI58: -1 | CJ58: -1 | CK58: -1 | CL58: -1 | CM58: -1 | CN58: -1 | CO58: -1 | CP58: -1 | CQ58: 5 | CR58: 1 | CS58: 8 | CT58: 0 | CU58: 9 | CV58: -3 | CW58: 5 | CX58: 1 | CY58: 5 | CZ58: 1 | DA58: 5 | DB58: 1 | DC58: 5 | DD58: 1 | DE58: 5 | DF58: 1 | DG58: -8 | DH58: -1 | DI58: -4 | DJ58: -5 | DK58: -7 | DL58: -4 | DM58: -8 | DN58: -1 | DO58: -8 | DP58: -1 | DQ58: -8 | DR58: -1 | DS58: -8 | DT58: -1 | DU58: -8 | DV58: -1 | DW58: 9 | DX58: 3 | DY58: 2 | DZ58: 1 | EA58: -7 | EB58: 0.5 | EC58: -3 | ED58: 5.5 | EE58: 3 | EF58: 3.5 | EG58: 9 | EH58: -3.5 | EI58: -8 | EJ58: -0.5 | EK58: -1 | EL58: -1 | EM58: 5 | EN58: 1 | EO58: -4 | EP58: -5 | EQ58: =BA58 -> -1 | ER58: =BB58 -> -1 | ES58: 5 | ET58: =BF58 -> 1 | EU58: =BI58 -> -4 | EV58: =BJ58 -> -5 | EW58: =IF(EQ58=EK58,1,0) -> 1 | EX58: =IF(ER58=EL58,1,0) -> 1 | EY58: =IF(ES58=EM58,1,0) -> 1 | EZ58: =IF(ET58=EN58,1,0) -> 1 | FA58: =IF(EU58=EO58,1,0) -> 1 | FB58: =IF(EV58=EP58,1,0) -> 1
C59: -90 | D59: -94 | E59: 9 | F59: 5 | G59: -1 | H59: 0 | AR59: 0 | AS59: 1 | AT59: 43 | AU59: =-AU17+$AR59 -> 5 | AV59: =-AV17+$AS59 -> -1 | AW59: =-AW17+$AR59 -> 6 | AX59: =-AX17+$AS59 -> -3 | AY59: =-AY17+$AR59 -> -4 | AZ59: =-AZ17+$AS59 -> 0 | BA59: =-BA17+$AR59 -> -3 | BB59: =-BB17+$AS59 -> -2 | BC59: =-BC17+$AR59 -> -7 | BD59: =-BD17+$AS59 -> 3 | BE59: =-BE17+$AR59 -> -6 | BF59: =-BF17+$AS59 -> 5 | BG59: =-BG17+$AR59 -> 7 | BH59: =-BH17+$AS59 -> 3 | BI59: =-BI17+$AR59 -> 5 | BJ59: =-BJ17+$AS59 -> 2 | BK59: =-BK17+$AR59 -> 5 | BL59: =-BL17+$AS59 -> -1 | BM59: =-BM17+$AR59 -> 5 | BN59: =-BN17+$AS59 -> -2 | BO59: =-BO17+$AR59 -> 6 | BP59: =-BP17+$AS59 -> -2 | BQ59: =-BQ17+$AR59 -> 6 | BR59: =-BR17+$AS59 -> -3 | BS59: =-BS17+$AR59 -> 3 | BT59: =-BT17+$AS59 -> -3 | BU59: =-BU17+$AR59 -> 3 | BV59: =-BV17+$AS59 -> -2 | BW59: =-BW17+$AR59 -> 4 | BX59: =-BX17+$AS59 -> -2 | BY59: =-BY17+$AR59 -> 4 | BZ59: =-BZ17+$AS59 -> -1 | CA59: =-CA17+$AR59 -> -4 | CB59: =-CB17+$AS59 -> 0 | CC59: =-CC17+$AR59 -> -4 | CD59: =-CD17+$AS59 -> -1 | CE59: =-CE17+$AR59 -> -3 | CF59: =-CF17+$AS59 -> -1 | CG59: =-CG17+$AR59 -> -3 | CH59: =-CH17+$AS59 -> -2 | CI59: =-CI17+$AR59 -> -6 | CJ59: =-CJ17+$AS59 -> -2 | CK59: =-CK17+$AR59 -> -6 | CL59: =-CL17+$AS59 -> -1 | CM59: =-CM17+$AR59 -> -5 | CN59: =-CN17+$AS59 -> -1 | CO59: =-CO17+$AR59 -> -5 | CP59: =-CP17+$AS59 -> 0 | CQ59: =-CQ17+$AR59 -> -7 | CR59: =-CR17+$AS59 -> 3 | CS59: =-CS17+$AR59 -> -7 | CT59: =-CT17+$AS59 -> 4 | CU59: =-CU17+$AR59 -> -6 | CV59: =-CV17+$AS59 -> 4 | CW59: =-CW17+$AR59 -> -6 | CX59: =-CX17+$AS59 -> 5 | CY59: =-CY17+$AR59 -> -9 | CZ59: =-CZ17+$AS59 -> 5 | DA59: =-DA17+$AR59 -> -9 | DB59: =-DB17+$AS59 -> 4 | DC59: =-DC17+$AR59 -> -8 | DD59: =-DD17+$AS59 -> 4 | DE59: =-DE17+$AR59 -> -8 | DF59: =-DF17+$AS59 -> 3 | DG59: =-DG17+$AR59 -> 7 | DH59: =-DH17+$AS59 -> 4 | DI59: =-DI17+$AR59 -> 6 | DJ59: =-DJ17+$AS59 -> 4 | DK59: =-DK17+$AR59 -> 6 | DL59: =-DL17+$AS59 -> 5 | DM59: =-DM17+$AR59 -> 5 | DN59: =-DN17+$AS59 -> 5 | DO59: =-DO17+$AR59 -> 5 | DP59: =-DP17+$AS59 -> 2 | DQ59: =-DQ17+$AR59 -> 6 | DR59: =-DR17+$AS59 -> 2 | DS59: =-DS17+$AR59 -> 6 | DT59: =-DT17+$AS59 -> 3 | DU59: =-DU17+$AR59 -> 7 | DV59: =-DV17+$AS59 -> 3 | DW59: 9 | DX59: 4 | DY59: 1 | DZ59: 3 | EA59: =-EA17+$AR59 -> 6 | EB59: =-EB17+$AS59 -> -3.5 | EC59: =-EC17+$AR59 -> 5 | ED59: =-ED17+$AS59 -> -0.5 | EE59: =-EE17+$AR59 -> -4 | EF59: =-EF17+$AS59 -> 0.5 | EG59: =-EG17+$AR59 -> -7 | EH59: =-EH17+$AS59 -> 2.5 | EI59: =-EI17+$AR59 -> 7 | EJ59: =-EJ17+$AS59 -> 2.5 | EK59: =-EK17+$AR59 -> -3 | EL59: =-EL17+$AS59 -> -2 | EM59: =-EM17+$AR59 -> -6 | EN59: =-EN17+$AS59 -> 5 | EO59: =-EO17+$AR59 -> 5 | EP59: =-EP17+$AS59 -> 2 | EQ59: =BA59 -> -3 | ER59: =BB59 -> -2 | ES59: =BE59 -> -6 | ET59: =BF59 -> 5 | EU59: =BI59 -> 5 | EV59: =BJ59 -> 2 | EW59: =IF(EQ59=EK59,1,0) -> 1 | EX59: 1 | EY59: 1 | EZ59: 1 | FA59: 1 | FB59: 1
C60: -90 | D60: -104 | E60: 9 | F60: -5 | G60: -1 | H60: -10 | AR60: 0 | AS60: 1 | AT60: 44 | AU60: 3 | AV60: -1 | AW60: 6 | AX60: -3 | AY60: -4 | AZ60: 0 | BA60: -1 | BB60: -2 | BC60: -6 | BD60: 2 | BE60: -3 | BF60: 4 | BG60: 3 | BH60: 4 | BI60: 1 | BJ60: 1 | BK60: 5 | BL60: -1 | BM60: 5 | BN60: -3 | BO60: 6 | BP60: -3 | BQ60: 6 | BR60: -4 | BS60: 4 | BT60: -4 | BU60: 4 | BV60: -2 | BW60: 3 | BX60: -2 | BY60: 3 | BZ60: -1 | CA60: -2 | CB60: 0 | CC60: -2 | CD60: -2 | CE60: -1 | CF60: -2 | CG60: -1 | CH60: -3 | CI60: -3 | CJ60: -3 | CK60: -3 | CL60: -1 | CM60: -4 | CN60: -1 | CO60: -4 | CP60: 0 | CQ60: -4 | CR60: 2 | CS60: -4 | CT60: 4 | CU60: -3 | CV60: 4 | CW60: -3 | CX60: 5 | CY60: -5 | CZ60: 5 | DA60: -5 | DB60: 3 | DC60: -6 | DD60: 3 | DE60: -6 | DF60: 2 | DG60: 0 | DH60: 3 | DI60: 2 | DJ60: 3 | DK60: 2 | DL60: 4 | DM60: 3 | DN60: 4 | DO60: 3 | DP60: 2 | DQ60: 1 | DR60: 2 | DS60: 1 | DT60: 1 | DU60: 0 | DV60: 1 | DW60: 9 | DX60: 1 | DY60: 4 | DZ60: 4 | EA60: 6 | EB60: -2.5 | EC60: 3 | ED60: -0.5 | EE60: -4 | EF60: 0.5 | EG60: -6 | EH60: 1.5 | EI60: 3 | EJ60: 4.5 | EK60: -1 | EL60: -2 | EM60: -3 | EN60: 4 | EO60: 1 | EP60: 1 | EQ60: =BA60 -> -1 | ER60: =BB60 -> -2 | ES60: =BE60 -> -3 | ET60: =BF60 -> 4 | EU60: =BI60 -> 1 | EV60: =BJ60 -> 1 | EW60: =IF(EQ60=EK60,1,0) -> 1 | EX60: 1 | EY60: 1 | EZ60: 1 | FA60: 1 | FB60: 1
C61: -89 | D61: -104 | E61: 10 | F61: -5 | G61: 0 | H61: -10 | AR61: 0 | AS61: 1 | AT61: 45 | AU61: 5 | AV61: -1 | AW61: 8 | AX61: -3 | AY61: -2 | AZ61: -2 | BA61: -5 | BB61: 0 | BC61: -4 | BD61: 5 | BE61: -7 | BF61: 3 | BG61: 3 | BH61: 4 | BI61: 1 | BJ61: 1 | BK61: 5 | BL61: -1 | BM61: 5 | BN61: -3 | BO61: 8 | BP61: -3 | BQ61: 8 | BR61: 0 | BS61: 7 | BT61: 0 | BU61: 7 | BV61: -2 | BW61: 6 | BX61: -2 | BY61: 6 | BZ61: -1 | CA61: -5 | CB61: 0 | CC61: -5 | CD61: -2 | CE61: -2 | CF61: -2 | CG61: -2 | CH61: 1 | CI61: -3 | CJ61: 1 | CK61: -3 | CL61: -1 | CM61: -4 | CN61: -1 | CO61: -4 | CP61: 0 | CQ61: -4 | CR61: 5 | CS61: -4 | CT61: 2 | CU61: -5 | CV61: 2 | CW61: -5 | CX61: 4 | CY61: -6 | CZ61: 4 | DA61: -6 | DB61: 3 | DC61: -7 | DD61: 3 | DE61: -7 | DF61: 5 | DG61: 3 | DH61: 4 | DI61: 3 | DJ61: 1 | DK61: 1 | DL61: 1 | DM61: 1 | DN61: 2 | DO61: 2 | DP61: 2 | DQ61: 2 | DR61: 3 | DS61: 0 | DT61: 3 | DU61: 0 | DV61: 4 | DW61: 9 | DX61: 2 | DY61: 3 | DZ61: 3 | EA61: 8 | EB61: -3.5 | EC61: 5 | ED61: -0.5 | EE61: -2 | EF61: -2.5 | EG61: -4 | EH61: 5.5 | EI61: 3 | EJ61: 4.5 | EK61: -5 | EL61: 0 | EM61: -7 | EN61: 3 | EO61: 1 | EP61: 1 | EQ61: -5 | ER61: 0 | ES61: -7 | ET61: 3 | EU61: 1 | EV61: 1 | EW61: 1 | EX61: 1 | EY61: 1 | EZ61: 1 | FA61: 1 | FB61: 1
C62: -89 | D62: -94 | E62: 10 | F62: 5 | G62: 0 | H62: 0 | AR62: 0 | AS62: 1 | AT62: 46 | AU62: 5 | AV62: -3 | AW62: 8 | AX62: -1 | AY62: -4 | AZ62: -2 | BA62: -1 | BB62: 0 | BC62: -7 | BD62: 5 | BE62: -4 | BF62: 3 | BG62: 7 | BH62: 3 | BI62: 5 | BJ62: 0 | BK62: 5 | BL62: -3 | BM62: 5 | BN62: -2 | BO62: 8 | BP62: -2 | BQ62: 8 | BR62: -1 | BS62: 3 | BT62: -1 | BU62: 3 | BV62: -2 | BW62: 4 | BX62: -2 | BY62: 4 | BZ62: -3 | CA62: -4 | CB62: -2 | CC62: -4 | CD62: -1 | CE62: -1 | CF62: -1 | CG62: -1 | CH62: 0 | CI62: -6 | CJ62: 0 | CK62: -6 | CL62: -1 | CM62: -5 | CN62: -1 | CO62: -5 | CP62: -2 | CQ62: -7 | CR62: 5 | CS62: -7 | CT62: 4 | CU62: -4 | CV62: 4 | CW62: -4 | CX62: 3 | CY62: -9 | CZ62: 3 | DA62: -9 | DB62: 4 | DC62: -8 | DD62: 4 | DE62: -8 | DF62: 5 | DG62: 7 | DH62: 4 | DI62: 6 | DJ62: 4 | DK62: 6 | DL62: 5 | DM62: 5 | DN62: 5 | DO62: 5 | DP62: 0 | DQ62: 6 | DR62: 0 | DS62: 6 | DT62: 3 | DU62: 7 | DV62: 3 | DW62: 9 | DX62: 1 | DY62: 4 | DZ62: 3 | EA62: 8 | EB62: -0.5 | EC62: 5 | ED62: -3.5 | EE62: -4 | EF62: -2.5 | EG62: -7 | EH62: 5.5 | EI62: 7 | EJ62: 2.5 | EK62: -1 | EL62: 0 | EM62: -4 | EN62: 3 | EO62: 5 | EP62: 0 | EQ62: -1 | ER62: 0 | ES62: -4 | ET62: 3 | EU62: 5 | EV62: 0 | EW62: 1 | EX62: 1 | EY62: 1 | EZ62: 1 | FA62: 1 | FB62: 1
C63: -89 | D63: -94 | E63: 10 | F63: 5 | G63: 0 | H63: 0 | AR63: 0 | AS63: 1 | AT63: 47 | AU63: 9 | AV63: -1 | AW63: 7 | AX63: -4 | AY63: -3 | AZ63: -3 | BA63: -1 | BB63: 0 | BC63: -6 | BD63: 5 | BE63: -4 | BF63: 2 | BG63: 4 | BH63: 4 | BI63: 7 | BJ63: 2 | BK63: 7 | BL63: -1 | BM63: 9 | BN63: -1 | BO63: 9 | BP63: -4 | BQ63: 7 | BR63: -4 | BS63: 7 | BT63: -3 | BU63: 8 | BV63: -3 | BW63: 8 | BX63: -2 | BY63: 7 | BZ63: -2 | CA63: -3 | CB63: 0 | CC63: -1 | CD63: 0 | CE63: -1 | CF63: -3 | CG63: -3 | CH63: -3 | CI63: -3 | CJ63: -2 | CK63: -2 | CL63: -2 | CM63: -2 | CN63: -1 | CO63: -3 | CP63: -1 | CQ63: -4 | CR63: 5 | CS63: -4 | CT63: 4 | CU63: -5 | CV63: 4 | CW63: -5 | CX63: 3 | CY63: -4 | CZ63: 3 | DA63: -4 | DB63: 2 | DC63: -6 | DD63: 2 | DE63: -6 | DF63: 5 | DG63: 7 | DH63: 4 | DI63: 7 | DJ63: 2 | DK63: 4 | DL63: 2 | DM63: 4 | DN63: 4 | DO63: 5 | DP63: 4 | DQ63: 5 | DR63: 3 | DS63: 6 | DT63: 3 | DU63: 6 | DV63: 4 | DW63: 9 | DX63: 1 | DY63: 4 | DZ63: 4 | EA63: 7 | EB63: -4.5 | EC63: 9 | ED63: -0.5 | EE63: -3 | EF63: -3.5 | EG63: -6 | EH63: 5.5 | EI63: 4 | EJ63: 4.5 | EK63: -1 | EL63: 0 | EM63: -4 | EN63: 2 | EO63: 7 | EP63: 2 | EQ63: -1 | ER63: 0 | ES63: -4 | ET63: 2 | EU63: 7 | EV63: 2 | EW63: 1 | EX63: 1 | EY63: 1 | EZ63: 1 | FA63: 1 | FB63: 1
C64: -89 | D64: -104 | E64: 10 | F64: -5 | G64: 0 | H64: -10 | AR64: 0 | AS64: 1 | AT64: 48 | AU64: 3 | AV64: -1 | AW64: 5 | AX64: -4 | AY64: -4 | AZ64: 0 | BA64: -2 | BB64: -3 | BC64: -6 | BD64: 2 | BE64: -4 | BF64: 5 | BG64: 3 | BH64: 3 | BI64: 0 | BJ64: 1 | BK64: 5 | BL64: -1 | BM64: 5 | BN64: -4 | BO64: 4 | BP64: -4 | BQ64: 4 | BR64: -4 | BS64: 4 | BT64: -4 | BU64: 4 | BV64: -2 | BW64: 3 | BX64: -2 | BY64: 3 | BZ64: -1 | CA64: -2 | CB64: 0 | CC64: -2 | CD64: -3 | CE64: -3 | CF64: -3 | CG64: -3 | CH64: -3 | CI64: -3 | CJ64: -3 | CK64: -3 | CL64: -1 | CM64: -4 | CN64: -1 | CO64: -4 | CP64: 0 | CQ64: -4 | CR64: 2 | CS64: -4 | CT64: 4 | CU64: -4 | CV64: 4 | CW64: -4 | CX64: 5 | CY64: -5 | CZ64: 5 | DA64: -5 | DB64: 3 | DC64: -6 | DD64: 3 | DE64: -6 | DF64: 2 | DG64: 0 | DH64: 3 | DI64: 2 | DJ64: 3 | DK64: 2 | DL64: 3 | DM64: 3 | DN64: 3 | DO64: 3 | DP64: 2 | DQ64: 1 | DR64: 2 | DS64: 1 | DT64: 1 | DU64: 0 | DV64: 1 | DW64: 9 | DX64: 4 | DY64: 1 | DZ64: 3 | EA64: 5 | EB64: -4.5 | EC64: 3 | ED64: -0.5 | EE64: -4 | EF64: 0.5 | EG64: -6 | EH64: 1.5 | EI64: 3 | EJ64: 3.5 | EK64: -2 | EL64: -3 | EM64: -4 | EN64: 5 | EO64: 0 | EP64: 1 | EQ64: -2 | ER64: -3 | ES64: -4 | ET64: 5 | EU64: 0 | EV64: 1 | EW64: 1 | EX64: 1 | EY64: 1 | EZ64: 1 | FA64: 1 | FB64: 1
C65: -89 | D65: -104 | E65: 10 | F65: -5 | G65: 0 | H65: -10 | AR65: 0 | AS65: 1 | AT65: 49 | AU65: 2 | AV65: -2 | AW65: 5 | AX65: -4 | AY65: -7 | AZ65: 0 | BA65: -4 | BB65: -2 | BC65: -9 | BD65: 3 | BE65: -6 | BF65: 5 | BG65: 6 | BH65: 1 | BI65: 8 | BJ65: 4 | BK65: 5 | BL65: -1 | BM65: 5 | BN65: -4 | BO65: 2 | BP65: -4 | BQ65: 2 | BR65: -2 | BS65: 4 | BT65: -2 | BU65: 4 | BV65: -1 | BW65: 4 | BX65: -1 | BY65: 4 | BZ65: -1 | CA65: -4 | CB65: 1 | CC65: -4 | CD65: -2 | CE65: -7 | CF65: -2 | CG65: -7 | CH65: 0 | CI65: -5 | CJ65: 0 | CK65: -5 | CL65: 1 | CM65: -5 | CN65: 1 | CO65: -5 | CP65: 1 | CQ65: -6 | CR65: 5 | CS65: -6 | CT65: 2 | CU65: -7 | CV65: 2 | CW65: -7 | CX65: 3 | CY65: -9 | CZ65: 3 | DA65: -9 | DB65: 5 | DC65: -6 | DD65: 5 | DE65: -6 | DF65: 5 | DG65: 8 | DH65: 4 | DI65: 8 | DJ65: 1 | DK65: 6 | DL65: 1 | DM65: 6 | DN65: 3 | DO65: 5 | DP65: 3 | DQ65: 5 | DR65: 4 | DS65: 5 | DT65: 4 | DU65: 5 | DV65: 4 | DW65: 9 | DX65: 4 | DY65: 1 | DZ65: 1 | EA65: 5 | EB65: -4.5 | EC65: 2 | ED65: -1.5 | EE65: -7 | EF65: 0.5 | EG65: -9 | EH65: 2.5 | EI65: 6 | EJ65: 0.5 | EK65: -4 | EL65: -2 | EM65: -6 | EN65: 5 | EO65: 8 | EP65: 4 | EQ65: -4 | ER65: -2 | ES65: -6 | ET65: 5 | EU65: 8 | EV65: 4 | EW65: 1 | EX65: 1 | EY65: 1 | EZ65: 1 | FA65: 1 | FB65: 1
C66: -89 | D66: -94 | E66: 10 | F66: 5 | G66: 0 | H66: 0 | AR66: 0 | AS66: 1 | AT66: 50 | AU66: 2 | AV66: 0 | AW66: -1 | AX66: -4 | AY66: -4 | AZ66: 2 | BA66: -7 | BB66: -2 | BC66: -6 | BD66: 1 | BE66: -9 | BF66: 5 | BG66: 5 | BH66: 4 | BI66: 9 | BJ66: 1 | BK66: 3 | BL66: 0 | BM66: 3 | BN66: -4 | BO66: -1 | BP66: -4 | BQ66: -1 | BR66: -3 | BS66: 2 | BT66: -3 | BU66: 2 | BV66: 0 | BW66: 2 | BX66: 0 | BY66: 2 | BZ66: 0 | CA66: -3 | CB66: 2 | CC66: -3 | CD66: -2 | CE66: -7 | CF66: -2 | CG66: -7 | CH66: -1 | CI66: -4 | CJ66: -1 | CK66: -4 | CL66: 2 | CM66: -4 | CN66: 2 | CO66: -4 | CP66: 2 | CQ66: -5 | CR66: 5 | CS66: -5 | CT66: 1 | CU66: -6 | CV66: 1 | CW66: -6 | CX66: 4 | CY66: -9 | CZ66: 4 | DA66: -9 | DB66: 5 | DC66: -9 | DD66: 5 | DE66: -9 | DF66: 5 | DG66: 5 | DH66: 4 | DI66: 6 | DJ66: 4 | DK66: 6 | DL66: 1 | DM66: 9 | DN66: 1 | DO66: 9 | DP66: 0 | DQ66: 5 | DR66: 0 | DS66: 5 | DT66: 4 | DU66: 5 | DV66: 4 | DW66: 9 | DX66: 3 | DY66: 2 | DZ66: 1 | EA66: -1 | EB66: -4.5 | EC66: 2 | ED66: 0.5 | EE66: -4 | EF66: 2.5 | EG66: -6 | EH66: 0.5 | EI66: 5 | EJ66: 4.5 | EK66: -7 | EL66: -2 | EM66: -9 | EN66: 5 | EO66: 9 | EP66: 1 | EQ66: -7 | ER66: -2 | ES66: -9 | ET66: 5 | EU66: 9 | EV66: 1 | EW66: 1 | EX66: 1 | EY66: 1 | EZ66: 1 | FA66: 1 | FB66: 1
C67: -109 | D67: -94 | E67: -10 | F67: 5 | G67: -20 | H67: 0 | AR67: 0 | AS67: 1 | AT67: 51 | AU67: 3 | AV67: -1 | AW67: 7 | AX67: -3 | AY67: -4 | AZ67: 0 | BA67: 0 | BB67: -2 | BC67: -6 | BD67: 2 | BE67: -2 | BF67: 4 | BG67: 3 | BH67: 4 | BI67: 1 | BJ67: 0 | BK67: 5 | BL67: -1 | BM67: 5 | BN67: -3 | BO67: 7 | BP67: -3 | BQ67: 7 | BR67: -4 | BS67: 4 | BT67: -4 | BU67: 4 | BV67: -2 | BW67: 3 | BX67: -2 | BY67: 3 | BZ67: -1 | CA67: -2 | CB67: 0 | CC67: -2 | CD67: -2 | CE67: 0 | CF67: -2 | CG67: 0 | CH67: -3 | CI67: -3 | CJ67: -3 | CK67: -3 | CL67: -1 | CM67: -4 | CN67: -1 | CO67: -4 | CP67: 0 | CQ67: -4 | CR67: 2 | CS67: -4 | CT67: 4 | CU67: -2 | CV67: 4 | CW67: -2 | CX67: 5 | CY67: -5 | CZ67: 5 | DA67: -5 | DB67: 3 | DC67: -6 | DD67: 3 | DE67: -6 | DF67: 2 | DG67: 0 | DH67: 3 | DI67: 2 | DJ67: 3 | DK67: 2 | DL67: 4 | DM67: 3 | DN67: 4 | DO67: 3 | DP67: 2 | DQ67: 1 | DR67: 2 | DS67: 1 | DT67: 0 | DU67: 0 | DV67: 0 | DW67: 9 | DX67: 1 | DY67: 4 | DZ67: 4 | EA67: 7 | EB67: -2.5 | EC67: 3 | ED67: -0.5 | EE67: -4 | EF67: 0.5 | EG67: -6 | EH67: 1.5 | EI67: 3 | EJ67: 4.5 | EK67: 0 | EL67: -2 | EM67: -2 | EN67: 4 | EO67: 1 | EP67: 0 | EQ67: 0 | ER67: -2 | ES67: -2 | ET67: 4 | EU67: 1 | EV67: 0 | EW67: 1 | EX67: 1 | EY67: 1 | EZ67: 1 | FA67: 1 | FB67: 1
C68: -109 | D68: -94 | E68: -10 | F68: 5 | G68: -20 | H68: 0 | AR68: -1 | AS68: 1 | AT68: 52 | AU68: 3 | AV68: -1 | AW68: 4 | AX68: -3 | AY68: -4 | AZ68: -2 | BA68: -3 | BB68: -4 | BC68: -8 | BD68: 2 | BE68: -7 | BF68: 4 | BG68: 5 | BH68: 4 | BI68: 7 | BJ68: 5 | BK68: 2 | BL68: -3 | BM68: 2 | BN68: -1 | BO68: 3 | BP68: -1 | BQ68: 3 | BR68: -1 | BS68: 3 | BT68: -1 | BU68: 3 | BV68: -2 | BW68: 4 | BX68: -2 | BY68: 4 | BZ68: -3 | CA68: -5 | CB68: -4 | CC68: -5 | CD68: -2 | CE68: -4 | CF68: -2 | CG68: -4 | CH68: -2 | CI68: -4 | CJ68: -2 | CK68: -4 | CL68: -3 | CM68: -3 | CN68: -3 | CO68: -3 | CP68: -4 | CQ68: -9 | CR68: 4 | CS68: -9 | CT68: 2 | CU68: -8 | CV68: 2 | CW68: -8 | CX68: 2 | CY68: -8 | CZ68: 2 | DA68: -8 | DB68: 3 | DC68: -7 | DD68: 3 | DE68: -7 | DF68: 4 | DG68: 7 | DH68: 5 | DI68: 7 | DJ68: 3 | DK68: 5 | DL68: 3 | DM68: 5 | DN68: 4 | DO68: 6 | DP68: 4 | DQ68: 6 | DR68: 5 | DS68: 7 | DT68: 5 | DU68: 7 | DV68: 5 | DW68: 9 | DX68: 4 | DY68: 1 | DZ68: 1 | EA68: 4 | EB68: -3.5 | EC68: 3 | ED68: -0.5 | EE68: -4 | EF68: -1.5 | EG68: -8 | EH68: 1.5 | EI68: 5 | EJ68: 4.5 | EK68: -3 | EL68: -4 | EM68: -7 | EN68: 4 | EO68: 7 | EP68: 5 | EQ68: -3 | ER68: -4 | ES68: -7 | ET68: 4 | EU68: 7 | EV68: 5 | EW68: 1 | EX68: 1 | EY68: 1 | EZ68: 1 | FA68: 1 | FB68: 1
C69: -89 | D69: -94 | E69: 10 | F69: 5 | G69: 0 | H69: 0 | AR69: 1 | AS69: 1 | AT69: 53 | AU69: 6 | AV69: -1 | AW69: 4 | AX69: -4 | AY69: -5 | AZ69: 1 | BA69: -7 | BB69: -2 | BC69: -8 | BD69: 5 | BE69: -6 | BF69: 2 | BG69: 7 | BH69: 2 | BI69: 10 | BJ69: 0 | BK69: 6 | BL69: -1 | BM69: 7 | BN69: -2 | BO69: 7 | BP69: -3 | BQ69: 6 | BR69: -4 | BS69: 4 | BT69: -4 | BU69: 3 | BV69: -3 | BW69: 3 | BX69: -2 | BY69: 4 | BZ69: -1 | CA69: -5 | CB69: 1 | CC69: -4 | CD69: 0 | CE69: -4 | CF69: -1 | CG69: -5 | CH69: -2 | CI69: -7 | CJ69: -2 | CK69: -8 | CL69: -1 | CM69: -8 | CN69: 0 | CO69: -7 | CP69: 1 | CQ69: -6 | CR69: 5 | CS69: -5 | CT69: 4 | CU69: -5 | CV69: 3 | CW69: -6 | CX69: 2 | CY69: -8 | CZ69: 2 | DA69: -9 | DB69: 3 | DC69: -9 | DD69: 4 | DE69: -8 | DF69: 5 | DG69: 9 | DH69: 3 | DI69: 10 | DJ69: 2 | DK69: 10 | DL69: 0 | DM69: 9 | DN69: -1 | DO69: 8 | DP69: -1 | DQ69: 7 | DR69: 0 | DS69: 7 | DT69: 2 | DU69: 8 | DV69: 3 | DW69: 9 | DX69: 3 | DY69: 3 | DZ69: 4 | EA69: 4 | EB69: -4.5 | EC69: 6 | ED69: -0.5 | EE69: -5 | EF69: 1.5 | EG69: -8 | EH69: 5.5 | EI69: 6 | EJ69: =-EJ27+$AS69+1 -> 2.5 | EK69: -7 | EL69: -2 | EM69: -6 | EN69: 2 | EO69: 10 | EP69: 0 | EQ69: -7 | ER69: -2 | ES69: -6 | ET69: 2 | EU69: 10 | EV69: 0 | EW69: 1 | EX69: 1 | EY69: 1 | EZ69: 1 | FA69: 1 | FB69: 1
C70: -89 | D70: -94 | E70: 10 | F70: 5 | G70: 0 | H70: 0 | AR70: 0 | AS70: 1 | AT70: 54 | AU70: 7 | AV70: -1 | AW70: 5 | AX70: -4 | AY70: -4 | AZ70: 1 | BA70: -6 | BB70: -2 | BC70: -7 | BD70: 5 | BE70: -5 | BF70: 2 | BG70: 5 | BH70: 3 | BI70: 8 | BJ70: 5 | BK70: 5 | BL70: -1 | BM70: 7 | BN70: -1 | BO70: 6 | BP70: -2 | BQ70: 7 | BR70: -3 | BS70: 5 | BT70: -3 | BU70: 5 | BV70: -4 | BW70: 4 | BX70: -3 | BY70: 4 | BZ70: -2 | CA70: -6 | CB70: 1 | CC70: -4 | CD70: 1 | CE70: -5 | CF70: 0 | CG70: -4 | CH70: -1 | CI70: -6 | CJ70: -1 | CK70: -6 | CL70: -2 | CM70: -7 | CN70: -1 | CO70: -7 | CP70: 0 | CQ70: -7 | CR70: 2 | CS70: -5 | CT70: 2 | CU70: -6 | CV70: 3 | CW70: -5 | CX70: 4 | CY70: -7 | CZ70: 4 | DA70: -7 | DB70: 5 | DC70: -8 | DD70: 4 | DE70: -8 | DF70: 3 | DG70: 8 | DH70: 5 | DI70: 8 | DJ70: 3 | DK70: 7 | DL70: 2 | DM70: 6 | DN70: 2 | DO70: 5 | DP70: 3 | DQ70: 6 | DR70: 3 | DS70: 6 | DT70: 5 | DU70: 7 | DV70: 4 | DW70: 9 | DX70: 4 | DY70: 1 | DZ70: 2 | EA70: 5 | EB70: -4.5 | EC70: 7 | ED70: -0.5 | EE70: -4 | EF70: 1.5 | EG70: -7 | EH70: 5.5 | EI70: 5 | EJ70: =-EJ28+$AS70 -> 3.5 | EK70: -6 | EL70: -2 | EM70: -5 | EN70: 2 | EO70: 8 | EP70: 5 | EQ70: -6 | ER70: -2 | ES70: -5 | ET70: 2 | EU70: 8 | EV70: 5 | EW70: 1 | EX70: 1 | EY70: 1 | EZ70: 1 | FA70: 1 | FB70: 1
C71: -109 | D71: -94 | E71: -10 | F71: 5 | G71: -20 | H71: 0 | AR71: 0 | AS71: 1 | AT71: 55 | AU71: 5 | AV71: 0 | AW71: 4 | AX71: -4 | AY71: -6 | AZ71: 2 | BA71: -7 | BB71: -2 | BC71: -3 | BD71: 5 | BE71: -2 | BF71: 1 | BG71: 5 | BH71: 2 | BI71: 9 | BJ71: 3 | BK71: 5 | BL71: 0 | BM71: 7 | BN71: -2 | BO71: 7 | BP71: -3 | BQ71: 6 | BR71: -4 | BS71: 5 | BT71: -3 | BU71: 4 | BV71: -4 | BW71: 3 | BX71: -3 | BY71: 3 | BZ71: -2 | CA71: -6 | CB71: 2 | CC71: -4 | CD71: 0 | CE71: -4 | CF71: -1 | CG71: -5 | CH71: -2 | CI71: -6 | CJ71: -1 | CK71: -7 | CL71: -2 | CM71: -8 | CN71: -1 | CO71: -8 | CP71: 0 | CQ71: -2 | CR71: 1 | CS71: 0 | CT71: 3 | CU71: 0 | CV71: 4 | CW71: -1 | CX71: 5 | CY71: -2 | CZ71: 4 | DA71: -3 | DB71: 5 | DC71: -4 | DD71: 4 | DE71: -4 | DF71: 3 | DG71: 7 | DH71: 5 | DI71: 9 | DJ71: 3 | DK71: 7 | DL71: 1 | DM71: 6 | DN71: 1 | DO71: 5 | DP71: 2 | DQ71: 6 | DR71: 3 | DS71: 5 | DT71: 4 | DU71: 6 | DV71: 5 | DW71: 9 | DX71: 3 | DY71: 3 | DZ71: 4 | EA71: 4 | EB71: -4.5 | EC71: 5 | ED71: 0.5 | EE71: -6 | EF71: 2.5 | EG71: -3 | EH71: 5.5 | EI71: 4 | EJ71: =-EJ29+$AS71+1 -> 2.5 | EK71: -7 | EL71: -2 | EM71: -2 | EN71: 1 | EO71: 9 | EP71: 3 | EQ71: -7 | ER71: -2 | ES71: -2 | ET71: 1 | EU71: 9 | EV71: 3 | EW71: 1 | EX71: 1 | EY71: 1 | EZ71: 1 | FA71: 1 | FB71: 1
C72: -109 | D72: -95 | E72: -10 | F72: 4 | G72: -20 | H72: -1 | AR72: 0 | AS72: 1 | AT72: 56 | AU72: 5 | AV72: -1 | AW72: 7 | AX72: -4 | AY72: -5 | AZ72: 0 | BA72: -3 | BB72: -3 | BC72: -9 | BD72: 0 | BE72: -7 | BF72: 3 | BG72: 9 | BH72: 2 | BI72: 7 | BJ72: 5 | BK72: 5 | BL72: -1 | BM72: 8 | BN72: -1 | BO72: 8 | BP72: -4 | BQ72: 7 | BR72: -4 | BS72: 7 | BT72: -3 | BU72: 6 | BV72: -3 | BW72: 6 | BX72: -2 | BY72: 5 | BZ72: -2 | CA72: -5 | CB72: 0 | CC72: -2 | CD72: 0 | CE72: -2 | CF72: -3 | CG72: -3 | CH72: -3 | CI72: -3 | CJ72: -2 | CK72: -4 | CL72: -2 | CM72: -4 | CN72: -1 | CO72: -5 | CP72: -1 | CQ72: -9 | CR72: 0 | CS72: -6 | CT72: 0 | CU72: -6 | CV72: 3 | CW72: -7 | CX72: 3 | CY72: -7 | CZ72: 2 | DA72: -8 | DB72: 2 | DC72: -8 | DD72: 1 | DE72: -9 | DF72: 1 | DG72: 9 | DH72: 2 | DI72: 6 | DJ72: 2 | DK72: 6 | DL72: 5 | DM72: 7 | DN72: 5 | DO72: 7 | DP72: 4 | DQ72: 8 | DR72: 4 | DS72: 8 | DT72: 3 | DU72: 9 | DV72: 3 | DW72: 9 | DX72: 3 | DY72: 2 | DZ72: 1 | EA72: 7 | EB72: -4.5 | EC72: 5 | ED72: -0.5 | EE72: -5 | EF72: 0.5 | EG72: -9 | EH72: -0.5 | EI72: 9 | EJ72: =-EJ30+$AS72 -> 1.5 | EK72: -3 | EL72: -3 | EM72: -7 | EN72: 3 | EO72: 7 | EP72: 5 | EQ72: -3 | ER72: -3 | ES72: -7 | ET72: 3 | EU72: 7 | EV72: 5 | EW72: 1 | EX72: 1 | EY72: 1 | EZ72: 1 | FA72: 1 | FB72: 1
C73: -89 | D73: -95 | E73: 10 | F73: 4 | G73: 0 | H73: -1 | AR73: 0 | AS73: 0 | AT73: 57 | AU73: 8 | AV73: -1 | AW73: 6 | AX73: -5 | AY73: -6 | AZ73: -4 | BA73: -8 | BB73: 0 | BC73: -1 | BD73: 0 | BE73: -3 | BF73: 4 | BG73: 6 | BH73: 4 | BI73: 2 | BJ73: 2 | BK73: 9 | BL73: -2 | BM73: 8 | BN73: -1 | BO73: 7 | BP73: -2 | BQ73: 6 | BR73: -1 | BS73: 5 | BT73: -2 | BU73: 4 | BV73: -1 | BW73: 3 | BX73: -2 | BY73: 6 | BZ73: -5 | CA73: -3 | CB73: -1 | CC73: -4 | CD73: 0 | CE73: -5 | CF73: -1 | CG73: -6 | CH73: 0 | CI73: -7 | CJ73: -1 | CK73: -8 | CL73: 0 | CM73: -9 | CN73: -1 | CO73: -6 | CP73: -4 | CQ73: 0 | CR73: 1 | CS73: -1 | CT73: 0 | CU73: -2 | CV73: 1 | CW73: -3 | CX73: 0 | CY73: -4 | CZ73: 1 | DA73: -5 | DB73: 0 | DC73: -6 | DD73: 1 | DE73: -3 | DF73: 4 | DG73: 5 | DH73: 5 | DI73: 6 | DJ73: 4 | DK73: 5 | DL73: 3 | DM73: 6 | DN73: 2 | DO73: 5 | DP73: 1 | DQ73: 6 | DR73: 0 | DS73: 5 | DT73: -1 | DU73: 2 | DV73: 2 | DW73: 9 | DX73: 1 | DY73: 1 | DZ73: 2 | EA73: 6 | EB73: -5.5 | EC73: 8 | ED73: -0.5 | EE73: -6 | EF73: -4.5 | EG73: -1 | EH73: -0.5 | EI73: 7 | EJ73: =-EJ31+$AS73+1 -> 4.5 | EK73: -8 | EL73: 0 | EM73: -3 | EN73: 4 | EO73: 2 | EP73: 2 | EQ73: -8 | ER73: 0 | ES73: -3 | ET73: 4 | EU73: 2 | EV73: 2 | EW73: 1 | EX73: 1 | EY73: 1 | EZ73: 1 | FA73: 1 | FB73: 1
C74: -89 | D74: -96 | E74: 10 | F74: 3 | G74: 0 | H74: -2 | AR74: 0 | AS74: 1 | AT74: 58 | AU74: 6 | AV74: 0 | AW74: 8 | AX74: -4 | AY74: -4 | AZ74: -3 | BA74: -6 | BB74: 1 | BC74: -1 | BD74: 5 | BE74: -3 | BF74: 1 | BG74: 5 | BH74: 5 | BI74: 7 | BJ74: 1 | BK74: 9 | BL74: -1 | BM74: 8 | BN74: -2 | BO74: 9 | BP74: -3 | BQ74: 8 | BR74: -4 | BS74: 5 | BT74: -1 | BU74: 6 | BV74: 0 | BW74: 7 | BX74: -1 | BY74: 8 | BZ74: 0 | CA74: -3 | CB74: 0 | CC74: -4 | CD74: -1 | CE74: -3 | CF74: -2 | CG74: -4 | CH74: -3 | CI74: -7 | CJ74: 0 | CK74: -6 | CL74: 1 | CM74: -5 | CN74: 0 | CO74: -4 | CP74: 1 | CQ74: 0 | CR74: 2 | CS74: -1 | CT74: 3 | CU74: 0 | CV74: 4 | CW74: -1 | CX74: 5 | CY74: -4 | CZ74: 2 | DA74: -3 | DB74: 1 | DC74: -2 | DD74: 2 | DE74: -1 | DF74: 1 | DG74: 5 | DH74: 5 | DI74: 8 | DJ74: 2 | DK74: 7 | DL74: 1 | DM74: 6 | DN74: 2 | DO74: 5 | DP74: 1 | DQ74: 4 | DR74: 2 | DS74: 5 | DT74: 3 | DU74: 4 | DV74: 4 | DW74: 9 | DX74: 2 | DY74: 4 | DZ74: 4 | EA74: 8 | EB74: -4.5 | EC74: 6 | ED74: 0.5 | EE74: -4 | EF74: -3.5 | EG74: -1 | EH74: 5.5 | EI74: 5 | EJ74: =-EJ32+$AS74 -> 5.5 | EK74: -6 | EL74: 1 | EM74: -3 | EN74: 1 | EO74: 7 | EP74: 1 | EQ74: -6 | ER74: 1 | ES74: -3 | ET74: 1 | EU74: 7 | EV74: 1 | EW74: 1 | EX74: 1 | EY74: 1 | EZ74: 1 | FA74: 1 | FB74: 1
C75: -109 | D75: -96 | E75: -10 | F75: 3 | G75: -20 | H75: -2 | AR75: 0 | AS75: 1 | AT75: 59 | AU75: 6 | AV75: 2 | AW75: 7 | AX75: -3 | AY75: -5 | AZ75: -2 | BA75: -6 | BB75: 3 | BC75: -2 | BD75: 4 | BE75: -3 | BF75: -1 | BG75: 6 | BH75: 4 | BI75: 1 | BJ75: 3 | BK75: 6 | BL75: 2 | BM75: 8 | BN75: 0 | BO75: 7 | BP75: -1 | BQ75: 8 | BR75: -2 | BS75: 7 | BT75: -3 | BU75: 5 | BV75: -1 | BW75: 6 | BX75: 0 | BY75: 5 | BZ75: 1 | CA75: -6 | CB75: 3 | CC75: -4 | CD75: 1 | CE75: -5 | CF75: 0 | CG75: -4 | CH75: -1 | CI75: -5 | CJ75: -2 | CK75: -7 | CL75: 0 | CM75: -6 | CN75: 1 | CO75: -7 | CP75: 2 | CQ75: -3 | CR75: -1 | CS75: -1 | CT75: 1 | CU75: -2 | CV75: 2 | CW75: -1 | CX75: 3 | CY75: -2 | CZ75: 4 | DA75: -4 | DB75: 2 | DC75: -3 | DD75: 1 | DE75: -4 | DF75: 0 | DG75: 5 | DH75: 5 | DI75: 6 | DJ75: 4 | DK75: 4 | DL75: 2 | DM75: 3 | DN75: 3 | DO75: 2 | DP75: 2 | DQ75: 1 | DR75: 3 | DS75: 3 | DT75: 5 | DU75: 4 | DV75: 4 | DW75: 9 | DX75: 2 | DY75: 4 | DZ75: 2 | EA75: 7 | EB75: -3.5 | EC75: 6 | ED75: 2.5 | EE75: -5 | EF75: -2.5 | EG75: -2 | EH75: 4.5 | EI75: 7 | EJ75: =-EJ33+$AS75+1 -> 4.5 | EK75: -6 | EL75: 3 | EM75: -3 | EN75: -1 | EO75: 1 | EP75: 3 | EQ75: -6 | ER75: 3 | ES75: -3 | ET75: -1 | EU75: 1 | EV75: 3 | EW75: 1 | EX75: 1 | EY75: 1 | EZ75: 1 | FA75: 1 | FB75: 1
C76: -109 | D76: -97 | E76: -10 | F76: 2 | G76: -20 | H76: -3 | AR76: 0 | AS76: 0 | AT76: 60 | AU76: 4 | AV76: -3 | AW76: 7 | AX76: -4 | AY76: -5 | AZ76: -3 | BA76: -8 | BB76: -2 | BC76: -6 | BD76: 3 | BE76: -9 | BF76: 2 | BG76: 4 | BH76: 1 | BI76: 5 | BJ76: 4 | BK76: 6 | BL76: -1 | BM76: 7 | BN76: -2 | BO76: 6 | BP76: -3 | BQ76: 7 | BR76: -4 | BS76: 6 | BT76: -5 | BU76: 4 | BV76: -3 | BW76: 6 | BX76: -1 | BY76: 6 | BZ76: -1 | CA76: -6 | CB76: 0 | CC76: -5 | CD76: -1 | CE76: -6 | CF76: -2 | CG76: -5 | CH76: -3 | CI76: -6 | CJ76: -4 | CK76: -8 | CL76: -2 | CM76: -6 | CN76: 0 | CO76: -6 | CP76: 0 | CQ76: -8 | CR76: 1 | CS76: -9 | CT76: 2 | CU76: -8 | CV76: 3 | CW76: -9 | CX76: 4 | CY76: -8 | CZ76: 5 | DA76: -6 | DB76: 3 | DC76: -8 | DD76: 1 | DE76: -8 | DF76: 1 | DG76: 5 | DH76: 4 | DI76: 6 | DJ76: 3 | DK76: 4 | DL76: 1 | DM76: 2 | DN76: 3 | DO76: 3 | DP76: 4 | DQ76: 4 | DR76: 3 | DS76: 5 | DT76: 4 | DU76: 5 | DV76: 4 | DW76: 9 | DX76: 2 | DY76: 2 | DZ76: 1 | EA76: 8 | EB76: =-EB34+$AS76+1 -> -3.5 | EC76: 3 | ED76: =-ED34+$AS76+1 -> -2.5 | EE76: -4 | EF76: =-EF34+$AS76+1 -> -2.5 | EG76: -5 | EH76: =-EH34+$AS76+1 -> 3.5 | EI76: 4 | EJ76: =-EJ34+$AS76 -> 0.5 | EK76: -8 | EL76: -2 | EM76: -9 | EN76: 2 | EO76: 5 | EP76: 4 | EQ76: -8 | ER76: -2 | ES76: -9 | ET76: 2 | EU76: 5 | EV76: 4 | EW76: 1 | EX76: 1 | EY76: 1 | EZ76: 1 | FA76: 1 | FB76: 1
C77: -89 | D77: -97 | E77: 10 | F77: 2 | G77: 0 | H77: -3 | AR77: 1 | AS77: 0 | AT77: 61 | AU77: 4 | AV77: -1 | AW77: 9 | AX77: 0 | AY77: -4 | AZ77: -1 | BA77: -9 | BB77: -2 | BC77: -4 | BD77: 2 | BE77: 1 | BF77: 1 | BG77: 4 | BH77: 0 | BI77: 3 | BJ77: 5 | BK77: 9 | BL77: 0 | BM77: 8 | BN77: -1 | BO77: 7 | BP77: 0 | BQ77: 6 | BR77: -1 | BS77: 8 | BT77: -3 | BU77: 7 | BV77: -4 | BW77: 4 | BX77: -1 | BY77: 7 | BZ77: 2 | CA77: -4 | CB77: -1 | CC77: -5 | CD77: -2 | CE77: -6 | CF77: -1 | CG77: -7 | CH77: -2 | CI77: -5 | CJ77: -4 | CK77: -6 | CL77: -5 | CM77: -9 | CN77: -2 | CO77: -6 | CP77: 1 | CQ77: -1 | CR77: 5 | CS77: 0 | CT77: 4 | CU77: -2 | CV77: 2 | CW77: -1 | CX77: 1 | CY77: 0 | CZ77: 2 | DA77: 1 | DB77: 1 | DC77: -1 | DD77: -1 | DE77: -4 | DF77: 2 | DG77: 3 | DH77: 5 | DI77: 4 | DJ77: 4 | DK77: 3 | DL77: 3 | DM77: 4 | DN77: 2 | DO77: 6 | DP77: 4 | DQ77: 7 | DR77: 3 | DS77: 4 | DT77: 0 | DU77: 1 | DV77: 3 | DW77: 9 | DX77: 2 | DY77: 4 | DZ77: 1 | EA77: 10 | EB77: =-EB35+$AS77+1 -> 0.5 | EC77: 3 | ED77: =-ED35+$AS77 -> -1.5 | EE77: -3 | EF77: =-EF35+$AS77+1 -> -0.5 | EG77: -5 | EH77: =-EH35+$AS77+1 -> 2.5 | EI77: 3 | EJ77: =-EJ35+$AS77 -> -0.5 | EK77: -9 | EL77: -2 | EM77: 1 | EN77: 1 | EO77: 3 | EP77: 5 | EQ77: -9 | ER77: -2 | ES77: 1 | ET77: 1 | EU77: 3 | EV77: 5 | EW77: 1 | EX77: 1 | EY77: 1 | EZ77: 1 | FA77: 1 | FB77: 1
C78: -89 | D78: -98 | E78: 10 | F78: 1 | G78: 0 | H78: -4 | AR78: 0 | AS78: 1 | AT78: 62 | AU78: 7 | AV78: -3 | AW78: 8 | AX78: 0 | AY78: -6 | AZ78: -4 | BA78: -5 | BB78: -1 | BC78: -4 | BD78: 5 | BE78: -3 | BF78: 2 | BG78: 4 | BH78: 3 | BI78: 1 | BJ78: 4 | BK78: 8 | BL78: 0 | BM78: 9 | BN78: -1 | BO78: 8 | BP78: -3 | BQ78: 7 | BR78: -3 | BS78: 6 | BT78: -1 | BU78: 7 | BV78: 0 | BW78: 8 | BX78: 0 | BY78: 8 | BZ78: 0 | CA78: -5 | CB78: -1 | CC78: -4 | CD78: -2 | CE78: -5 | CF78: -4 | CG78: -6 | CH78: -4 | CI78: -7 | CJ78: -2 | CK78: -6 | CL78: -1 | CM78: -5 | CN78: -1 | CO78: -5 | CP78: -1 | CQ78: -2 | CR78: 3 | CS78: -3 | CT78: 2 | CU78: -4 | CV78: 2 | CW78: -5 | CX78: 3 | CY78: -4 | CZ78: 5 | DA78: -3 | DB78: 5 | DC78: -2 | DD78: 3 | DE78: -2 | DF78: 3 | DG78: 3 | DH78: 5 | DI78: 4 | DJ78: 4 | DK78: 4 | DL78: 3 | DM78: 3 | DN78: 2 | DO78: 1 | DP78: 3 | DQ78: 1 | DR78: 4 | DS78: 3 | DT78: 5 | DU78: 3 | DV78: 5 | DW78: 9 | DX78: 1 | DY78: 4 | DZ78: 2 | EA78: 8 | EB78: =-EB36+$AS78 -> 0.5 | EC78: 7 | ED78: -3.5 | EE78: -6 | EF78: =-EF36+$AS78 -> -4.5 | EG78: -4 | EH78: =-EH36+$AS78 -> 5.5 | EI78: 5 | EJ78: =-EJ36+$AS78+1 -> 3.5 | EK78: -5 | EL78: -1 | EM78: -3 | EN78: 2 | EO78: 1 | EP78: 4 | EQ78: -5 | ER78: -1 | ES78: -3 | ET78: 2 | EU78: 1 | EV78: 4 | EW78: 1 | EX78: 1 | EY78: 1 | EZ78: 1 | FA78: 1 | FB78: 1
C79: -109 | D79: -98 | E79: -10 | F79: 1 | G79: -20 | H79: -4 | AR79: 0 | AS79: 1 | AT79: 63 | AU79: 5 | AV79: -2 | AW79: 8 | AX79: 0 | AY79: -8 | AZ79: -3 | BA79: -5 | BB79: -1 | BC79: -7 | BD79: 4 | BE79: -4 | BF79: 2 | BG79: 3 | BH79: -1 | BI79: 5 | BJ79: 2 | BK79: 8 | BL79: 0 | BM79: 9 | BN79: -1 | BO79: 9 | BP79: -2 | BQ79: 7 | BR79: -3 | BS79: 5 | BT79: -2 | BU79: 5 | BV79: -1 | BW79: 6 | BX79: 0 | BY79: 8 | BZ79: 0 | CA79: -5 | CB79: -1 | CC79: -4 | CD79: -2 | CE79: -4 | CF79: -3 | CG79: -6 | CH79: -4 | CI79: -8 | CJ79: -3 | CK79: -8 | CL79: -2 | CM79: -7 | CN79: -1 | CO79: -5 | CP79: -1 | CQ79: -5 | CR79: 5 | CS79: -3 | CT79: 4 | CU79: -3 | CV79: 3 | CW79: -4 | CX79: 2 | CY79: -6 | CZ79: 2 | DA79: -7 | DB79: 3 | DC79: -7 | DD79: 4 | DE79: -5 | DF79: 5 | DG79: 3 | DH79: 3 | DI79: 4 | DJ79: 3 | DK79: 5 | DL79: 2 | DM79: 5 | DN79: 0 | DO79: 4 | DP79: -1 | DQ79: 3 | DR79: -1 | DS79: 2 | DT79: 1 | DU79: 3 | DV79: 3 | DW79: 9 | DX79: 1 | DY79: 4 | DZ79: 1 | EA79: 8 | EB79: =-EB37+$AS79 -> 0.5 | EC79: 4 | ED79: -2.5 | EE79: -9 | EF79: =-EF37+$AS79+1 -> -2.5 | EG79: -8 | EH79: =-EH37+$AS79 -> 4.5 | EI79: 3 | EJ79: =-EJ37+$AS79 -> -1.5 | EK79: -5 | EL79: -1 | EM79: -4 | EN79: 2 | EO79: 5 | EP79: 2 | EQ79: -5 | ER79: -1 | ES79: -4 | ET79: 2 | EU79: 5 | EV79: 2 | EW79: 1 | EX79: 1 | EY79: 1 | EZ79: 1 | FA79: 1 | FB79: 1
C80: -109 | D80: -99 | E80: -10 | F80: 0 | G80: -20 | H80: -5 | AR80: 1 | AS80: 1 | AT80: 64 | AU80: 6 | AV80: -1 | AW80: 3 | AX80: -2 | AY80: -6 | AZ80: 0 | BA80: -9 | BB80: -1 | BC80: -6 | BD80: 3 | BE80: -3 | BF80: 2 | BG80: 8 | BH80: 1 | BI80: 7 | BJ80: 4 | BK80: 6 | BL80: -1 | BM80: 7 | BN80: -2 | BO80: 5 | BP80: -4 | BQ80: 3 | BR80: -2 | BS80: 4 | BT80: -1 | BU80: 6 | BV80: -1 | BW80: 6 | BX80: -1 | BY80: 6 | BZ80: -1 | CA80: -6 | CB80: 0 | CC80: -5 | CD80: -1 | CE80: -7 | CF80: -3 | CG80: -9 | CH80: -1 | CI80: -8 | CJ80: 0 | CK80: -6 | CL80: 0 | CM80: -6 | CN80: 0 | CO80: -6 | CP80: 0 | CQ80: -4 | CR80: 5 | CS80: -2 | CT80: 3 | CU80: -3 | CV80: 2 | CW80: -5 | CX80: 2 | CY80: -6 | CZ80: 3 | DA80: -4 | DB80: 5 | DC80: -4 | DD80: 5 | DE80: -4 | DF80: 5 | DG80: 8 | DH80: 5 | DI80: 10 | DJ80: 3 | DK80: 8 | DL80: 1 | DM80: 7 | DN80: 2 | DO80: 7 | DP80: 4 | DQ80: 8 | DR80: 5 | DS80: 8 | DT80: 5 | DU80: 8 | DV80: 5 | DW80: 9 | DX80: 2 | DY80: 4 | DZ80: 2 | EA80: 2 | EB80: =-EB38+$AS80+1 -> -1.5 | EC80: 6 | ED80: -0.5 | EE80: -6 | EF80: =-EF38+$AS80 -> 0.5 | EG80: -7 | EH80: =-EH38+$AS80+1 -> 3.5 | EI80: 8 | EJ80: 0.5 | EK80: -9 | EL80: -1 | EM80: -3 | EN80: 2 | EO80: 7 | EP80: 4 | EQ80: -9 | ER80: -1 | ES80: -3 | ET80: 2 | EU80: 7 | EV80: 4 | EW80: 1 | EX80: 1 | EY80: 1 | EZ80: 1 | FA80: 1 | FB80: 1
C81: -89 | D81: -99 | E81: 10 | F81: 0 | G81: 0 | H81: -5 | AR81: 0 | AS81: 1 | AT81: 65 | AU81: 5 | AV81: 0 | AW81: 6 | AX81: -3 | AY81: -6 | AZ81: -2 | BA81: -7 | BB81: 1 | BC81: -4 | BD81: 5 | BE81: -5 | BF81: 2 | BG81: 3 | BH81: 3 | BI81: 6 | BJ81: 4 | BK81: 5 | BL81: 0 | BM81: 6 | BN81: 0 | BO81: 6 | BP81: -2 | BQ81: 7 | BR81: -2 | BS81: 6 | BT81: -3 | BU81: 5 | BV81: -3 | BW81: 5 | BX81: 0 | BY81: 5 | BZ81: 0 | CA81: -7 | CB81: 1 | CC81: -6 | CD81: 1 | CE81: -6 | CF81: -1 | CG81: -5 | CH81: -1 | CI81: -6 | CJ81: -2 | CK81: -7 | CL81: -2 | CM81: -7 | CN81: 1 | CO81: -7 | CP81: 1 | CQ81: -5 | CR81: 5 | CS81: -4 | CT81: 5 | CU81: -3 | CV81: 4 | CW81: -4 | CX81: 4 | CY81: -4 | CZ81: 2 | DA81: -5 | DB81: 2 | DC81: -5 | DD81: 5 | DE81: -5 | DF81: 5 | DG81: 5 | DH81: 5 | DI81: 6 | DJ81: 4 | DK81: 6 | DL81: 3 | DM81: 3 | DN81: 3 | DO81: 3 | DP81: 4 | DQ81: 5 | DR81: 4 | DS81: 5 | DT81: 5 | DU81: 5 | DV81: 5 | DW81: 9 | DX81: 2 | DY81: 3 | DZ81: 1 | EA81: 6 | EB81: =-EB39+$AS81 -> -3.5 | EC81: 5 | ED81: 0.5 | EE81: -6 | EF81: -2.5 | EG81: -4 | EH81: =-EH39+$AS81 -> 5.5 | EI81: 3 | EJ81: 2.5 | EK81: -7 | EL81: 1 | EM81: -5 | EN81: 2 | EO81: 6 | EP81: 4 | EQ81: -7 | ER81: 1 | ES81: -5 | ET81: 2 | EU81: 6 | EV81: 4 | EW81: 1 | EX81: 1 | EY81: 1 | EZ81: 1 | FA81: 1 | FB81: 1
C82: -89 | D82: -100 | E82: 10 | F82: -1 | G82: 0 | H82: -6 | AR82: -1 | AS82: 1 | AT82: 66 | AU82: 3 | AV82: 0 | AW82: 5 | AX82: -3 | AY82: -7 | AZ82: -1 | BA82: -9 | BB82: 2 | BC82: -4 | BD82: 5 | BE82: -6 | BF82: 2 | BG82: 7 | BH82: 5 | BI82: 4 | BJ82: 3 | BK82: 4 | BL82: 0 | BM82: 6 | BN82: -2 | BO82: 5 | BP82: -3 | BQ82: 3 | BR82: -1 | BS82: 3 | BT82: 0 | BU82: 4 | BV82: 0 | BW82: 4 | BX82: 0 | BY82: 4 | BZ82: 0 | CA82: -8 | CB82: 2 | CC82: -6 | CD82: 0 | CE82: -7 | CF82: -1 | CG82: -9 | CH82: 1 | CI82: -9 | CJ82: 2 | CK82: -8 | CL82: 2 | CM82: -8 | CN82: 2 | CO82: -8 | CP82: 2 | CQ82: -4 | CR82: 5 | CS82: -3 | CT82: 4 | CU82: -5 | CV82: 2 | CW82: -6 | CX82: 2 | CY82: -6 | CZ82: 3 | DA82: -4 | DB82: 5 | DC82: -4 | DD82: 5 | DE82: -4 | DF82: 5 | DG82: 7 | DH82: 5 | DI82: 7 | DJ82: 4 | DK82: 5 | DL82: 2 | DM82: 4 | DN82: 3 | DO82: 6 | DP82: 5 | DQ82: 7 | DR82: 5 | DS82: 7 | DT82: 5 | DU82: 7 | DV82: 5 | DW82: 9 | DX82: 2 | DY82: 3 | DZ82: 2 | EA82: 5 | EB82: -3.5 | EC82: 3 | ED82: 0.5 | EE82: -7 | EF82: -1.5 | EG82: -4 | EH82: 5.5 | EI82: 7 | EJ82: 5.5 | EK82: -9 | EL82: 2 | EM82: -6 | EN82: 2 | EO82: 4 | EP82: 3 | EQ82: -9 | ER82: 2 | ES82: -6 | ET82: 2 | EU82: 4 | EV82: 3 | EW82: 1 | EX82: 1 | EY82: 1 | EZ82: 1 | FA82: 1 | FB82: 1
C83: -109 | D83: -100 | E83: -10 | F83: -1 | G83: -20 | H83: -6 | AR83: 0 | AS83: 1 | AT83: =AT82+1 -> 67 | AU83: 3 | AV83: -3 | AW83: 7 | AX83: -1 | AY83: -5 | AZ83: 1 | BA83: -9 | BB83: -1 | BC83: -5 | BD83: 5 | BE83: -1 | BF83: 3 | BG83: 6 | BH83: 5 | BI83: 4 | BJ83: 1 | BK83: 6 | BL83: 0 | BM83: 7 | BN83: -1 | BO83: 6 | BP83: -1 | BQ83: 5 | BR83: -3 | BS83: 3 | BT83: -3 | BU83: 4 | BV83: -1 | BW83: 3 | BX83: -1 | BY83: 4 | BZ83: 0 | CA83: -6 | CB83: 2 | CC83: -5 | CD83: 1 | CE83: -6 | CF83: 1 | CG83: -7 | CH83: -1 | CI83: -9 | CJ83: -1 | CK83: -8 | CL83: 1 | CM83: -9 | CN83: 1 | CO83: -8 | CP83: 2 | CQ83: -5 | CR83: 5 | CS83: -3 | CT83: 5 | CU83: -2 | CV83: 3 | CW83: -1 | CX83: 3 | CY83: -2 | CZ83: 2 | DA83: -4 | DB83: 2 | DC83: -5 | DD83: 3 | DE83: -4 | DF83: 3 | DG83: 6 | DH83: 5 | DI83: 7 | DJ83: 4 | DK83: 7 | DL83: 2 | DM83: 6 | DN83: 1 | DO83: 6 | DP83: 2 | DQ83: 4 | DR83: 1 | DS83: 4 | DT83: 3 | DU83: 6 | DV83: 4 | DW83: 9 | DX83: 3 | DY83: 1 | DZ83: 2 | EA83: 7 | EB83: -1.5 | EC83: 3 | ED83: -3.5 | EE83: -5 | EF83: 0.5 | EG83: -5 | EH83: 5.5 | EI83: 6 | EJ83: 5.5 | EK83: -9 | EL83: -1 | EM83: -1 | EN83: 3 | EO83: 4 | EP83: 1 | EQ83: -9 | ER83: -1 | ES83: -1 | ET83: 3 | EU83: 4 | EV83: 1 | EW83: 1 | EX83: 1 | EY83: 1 | EZ83: 1 | FA83: 1 | FB83: 1
C84: -109 | D84: -101 | E84: -10 | F84: -2 | G84: -20 | H84: -7 | AR84: 1 | AS84: 1 | AT84: 68 | AU84: 5 | AV84: -4 | AW84: 6 | AX84: 0 | AY84: -7 | AZ84: -2 | BA84: -6 | BB84: 2 | BC84: -3 | BD84: 4 | BE84: -2 | BF84: 0 | BG84: 9 | BH84: 2 | BI84: 5 | BJ84: 3 | BK84: 4 | BL84: 0 | BM84: 6 | BN84: 0 | BO84: 6 | BP84: -2 | BQ84: 7 | BR84: -2 | BS84: 5 | BT84: -4 | BU84: 3 | BV84: -2 | BW84: 4 | BX84: -2 | BY84: 4 | BZ84: 0 | CA84: -8 | CB84: 2 | CC84: -6 | CD84: 2 | CE84: -6 | CF84: 0 | CG84: -5 | CH84: 0 | CI84: -7 | CJ84: -2 | CK84: -9 | CL84: 0 | CM84: -8 | CN84: 0 | CO84: -8 | CP84: 2 | CQ84: -4 | CR84: 0 | CS84: -2 | CT84: 0 | CU84: -2 | CV84: 2 | CW84: -1 | CX84: 2 | CY84: -3 | CZ84: 4 | DA84: -5 | DB84: 2 | DC84: -4 | DD84: 2 | DE84: -4 | DF84: 0 | DG84: 7 | DH84: 5 | DI84: 7 | DJ84: 4 | DK84: 9 | DL84: 4 | DM84: 9 | DN84: 2 | DO84: 7 | DP84: 2 | DQ84: 7 | DR84: 1 | DS84: 5 | DT84: 3 | DU84: 7 | DV84: 5 | DW84: 9 | DX84: 1 | DY84: 4 | DZ84: 2 | EA84: 6 | EB84: 0.5 | EC84: 5 | ED84: -4.5 | EE84: -7 | EF84: -2.5 | EG84: -3 | EH84: 4.5 | EI84: 9 | EJ84: 1.5 | EK84: -6 | EL84: 2 | EM84: -2 | EN84: 0 | EO84: 5 | EP84: 3 | EQ84: -6 | ER84: 2 | ES84: -2 | ET84: 0 | EU84: 5 | EV84: 3 | EW84: 1 | EX84: 1 | EY84: 1 | EZ84: 1 | FA84: 1 | FB84: 1
C85: =$E$20+E85 -> -89 | D85: -101 | E85: 10 | F85: -2 | G85: 0 | H85: -7 | AR85: 0 | AS85: 1 | AT85: 69 | AU85: 6 | AV85: -3 | AW85: 7 | AX85: 0 | AY85: -6 | AZ85: -1 | BA85: -5 | BB85: 2 | BC85: -2 | BD85: 3 | BE85: -1 | BF85: 0 | BG85: 8 | BH85: 4 | BI85: 5 | BJ85: 5 | BK85: 3 | BL85: 0 | BM85: 7 | BN85: 0 | BO85: 6 | BP85: -3 | BQ85: 4 | BR85: -3 | BS85: 3 | BT85: 0 | BU85: 3 | BV85: 0 | BW85: 3 | BX85: 0 | BY85: 3 | BZ85: 0 | CA85: -9 | CB85: 2 | CC85: -5 | CD85: 2 | CE85: -6 | CF85: -1 | CG85: -8 | CH85: -1 | CI85: -9 | CJ85: 2 | CK85: -9 | CL85: 2 | CM85: -9 | CN85: 2 | CO85: -9 | CP85: 2 | CQ85: -5 | CR85: 0 | CS85: -1 | CT85: 0 | CU85: -2 | CV85: 3 | CW85: -4 | CX85: 3 | CY85: -5 | CZ85: 0 | DA85: -5 | DB85: 0 | DC85: -5 | DD85: 0 | DE85: -5 | DF85: 0 | DG85: 5 | DH85: 5 | DI85: 8 | DJ85: 4 | DK85: 8 | DL85: 2 | DM85: 5 | DN85: 1 | DO85: 5 | DP85: 5 | DQ85: 5 | DR85: 5 | DS85: 5 | DT85: 5 | DU85: 5 | DV85: 5 | DW85: 9 | DX85: 1 | DY85: 4 | DZ85: 2 | EA85: 7 | EB85: 0.5 | EC85: 6 | ED85: -3.5 | EE85: -6 | EF85: -1.5 | EG85: -2 | EH85: 3.5 | EI85: =-EI43+$AR85+0.5 -> 8.5 | EJ85: 4.5 | EK85: -5 | EL85: 2 | EM85: -1 | EN85: 0 | EO85: 5 | EP85: 5 | EQ85: -5 | ER85: 2 | ES85: -1 | ET85: 0 | EU85: 5 | EV85: 5 | EW85: 1 | EX85: 1 | EY85: 1 | EZ85: 1 | FA85: 1 | FB85: 1
C86: -89 | D86: -100 | E86: 10 | F86: -1 | G86: =E86-10 -> 0 | H86: =F86-5 -> -6 | AR86: -1 | AS86: 1 | AT86: 70 | AU86: 5 | AV86: -4 | AW86: 2 | AX86: 0 | AY86: -7 | AZ86: -2 | BA86: -10 | BB86: 2 | BC86: -3 | BD86: 4 | BE86: -6 | BF86: 0 | BG86: 7 | BH86: 5 | BI86: 3 | BJ86: 2 | BK86: 2 | BL86: 0 | BM86: 5 | BN86: -1 | BO86: 5 | BP86: -4 | BQ86: 2 | BR86: -2 | BS86: 2 | BT86: 0 | BU86: 2 | BV86: 0 | BW86: 2 | BX86: 0 | BY86: 2 | BZ86: 0 | CA86: -10 | CB86: 2 | CC86: -7 | CD86: 1 | CE86: -7 | CF86: -2 | CG86: -10 | CH86: 0 | CI86: -10 | CJ86: 2 | CK86: -10 | CL86: 2 | CM86: -10 | CN86: 2 | CO86: -10 | CP86: 2 | CQ86: -6 | CR86: 0 | CS86: -3 | CT86: 1 | CU86: -3 | CV86: 4 | CW86: -6 | CX86: 2 | CY86: -6 | CZ86: 0 | DA86: -6 | DB86: 0 | DC86: -6 | DD86: 0 | DE86: -6 | DF86: 0 | DG86: 4 | DH86: 5 | DI86: 7 | DJ86: 5 | DK86: 5 | DL86: 2 | DM86: 3 | DN86: 2 | DO86: 4 | DP86: 5 | DQ86: 4 | DR86: 5 | DS86: 4 | DT86: 5 | DU86: 4 | DV86: 5 | DW86: 9 | DX86: 1 | DY86: 3 | DZ86: 3 | EA86: 2 | EB86: 0.5 | EC86: 5 | ED86: -4.5 | EE86: -7 | EF86: -2.5 | EG86: -3 | EH86: 4.5 | EI86: =-EI44+$AR86 -> 7 | EJ86: 5.5 | EK86: -10 | EL86: 2 | EM86: -6 | EN86: 0 | EO86: 3 | EP86: 2 | EQ86: -10 | ER86: 2 | ES86: -6 | ET86: 0 | EU86: 3 | EV86: 2 | EW86: 1 | EX86: 1 | EY86: 1 | EZ86: 1 | FA86: 1 | FB86: 1
C87: -109 | D87: -100 | E87: -10 | F87: -1 | G87: -20 | H87: -6 | AR87: 0 | AS87: 0 | AT87: 71 | AU87: 1 | AV87: -4 | AW87: 6 | AX87: -1 | AY87: -8 | AZ87: -3 | BA87: -3 | BB87: 0 | BC87: -4 | BD87: 3 | BE87: 1 | BF87: 0 | BG87: 5 | BH87: 4 | BI87: 8 | BJ87: -1 | BK87: 3 | BL87: -1 | BM87: 6 | BN87: -1 | BO87: 4 | BP87: -4 | BQ87: 1 | BR87: -4 | BS87: 3 | BT87: -1 | BU87: 3 | BV87: -1 | BW87: 3 | BX87: -1 | BY87: 3 | BZ87: -1 | CA87: -6 | CB87: 0 | CC87: -3 | CD87: 0 | CE87: -5 | CF87: -3 | CG87: -8 | CH87: -3 | CI87: -6 | CJ87: 0 | CK87: -6 | CL87: 0 | CM87: -6 | CN87: 0 | CO87: -6 | CP87: 0 | CQ87: -2 | CR87: 0 | CS87: 1 | CT87: 0 | CU87: -1 | CV87: 3 | CW87: -4 | CX87: 3 | CY87: -2 | CZ87: 0 | DA87: -2 | DB87: 0 | DC87: -2 | DD87: 0 | DE87: -2 | DF87: 0 | DG87: 5 | DH87: 4 | DI87: 8 | DJ87: 2 | DK87: 8 | DL87: -1 | DM87: 5 | DN87: 1 | DO87: 5 | DP87: 4 | DQ87: 5 | DR87: 4 | DS87: 5 | DT87: 4 | DU87: 5 | DV87: 4 | DW87: 9 | DX87: 1 | DY87: 4 | DZ87: 4 | EA87: 6 | EB87: -0.5 | EC87: 1 | ED87: -4.5 | EE87: -8 | EF87: -3.5 | EG87: -4 | EH87: 3.5 | EI87: 5 | EJ87: 4.5 | EK87: -3 | EL87: 0 | EM87: 1 | EN87: 0 | EO87: 8 | EP87: -1 | EQ87: -3 | ER87: 0 | ES87: 1 | ET87: 0 | EU87: 8 | EV87: -1 | EW87: 1 | EX87: 1 | EY87: 1 | EZ87: 1 | FA87: 1 | FB87: 1
C88: -109 | D88: -101 | E88: -10 | F88: -2 | G88: -20 | H88: -7 | AR88: -1 | AS88: 1 | AT88: 72 | AU88: 2 | AV88: 4 | AW88: 4 | AX88: -4 | AY88: -7 | AZ88: -3 | BA88: -9 | BB88: 5 | BC88: -3 | BD88: 5 | BE88: -5 | BF88: -3 | BG88: 7 | BH88: 5 | BI88: -1 | BJ88: 3 | BK88: 2 | BL88: 4 | BM88: 4 | BN88: 2 | BO88: 4 | BP88: -4 | BQ88: 2 | BR88: -2 | BS88: 2 | BT88: 4 | BU88: 2 | BV88: 4 | BW88: 2 | BX88: 4 | BY88: 2 | BZ88: 4 | CA88: -9 | CB88: 5 | CC88: -7 | CD88: 3 | CE88: -7 | CF88: -3 | CG88: -9 | CH88: -1 | CI88: -9 | CJ88: 5 | CK88: -9 | CL88: 5 | CM88: -9 | CN88: 5 | CO88: -9 | CP88: 5 | CQ88: -5 | CR88: -3 | CS88: -3 | CT88: -1 | CU88: -3 | CV88: 5 | CW88: -5 | CX88: 3 | CY88: -5 | CZ88: -3 | DA88: -5 | DB88: -3 | DC88: -5 | DD88: -3 | DE88: -5 | DF88: -3 | DG88: 7 | DH88: 5 | DI88: 5 | DJ88: 3 | DK88: -1 | DL88: 3 | DM88: 1 | DN88: 5 | DO88: 7 | DP88: 5 | DQ88: 7 | DR88: 5 | DS88: 7 | DT88: 5 | DU88: 7 | DV88: 5 | DW88: 9 | DX88: 2 | DY88: 3 | DZ88: 3 | EA88: 4 | EB88: -4.5 | EC88: 2 | ED88: 4.5 | EE88: -7 | EF88: -3.5 | EG88: -3 | EH88: 5.5 | EI88: 7 | EJ88: 5.5 | EK88: -9 | EL88: 5 | EM88: -5 | EN88: -3 | EO88: -1 | EP88: 3 | EQ88: -9 | ER88: 5 | ES88: -5 | ET88: -3 | EU88: -1 | EV88: 3 | EW88: 1 | EX88: 1 | EY88: 1 | EZ88: 1 | FA88: 1 | FB88: 1
C89: -89 | D89: -101 | E89: 10 | F89: -2 | G89: 0 | H89: -7 | AR89: 0 | AS89: 1 | AT89: 73 | AU89: 2 | AV89: -2 | AW89: 5 | AX89: -4 | AY89: -6 | AZ89: -3 | BA89: -9 | BB89: -1 | BC89: -2 | BD89: 5 | BE89: -5 | BF89: 3 | BG89: 5 | BH89: 5 | BI89: 3 | BJ89: 2 | BK89: 5 | BL89: 0 | BM89: 8 | BN89: -2 | BO89: 5 | BP89: -4 | BQ89: 2 | BR89: -2 | BS89: 5 | BT89: 0 | BU89: 5 | BV89: 0 | BW89: 5 | BX89: 0 | BY89: 5 | BZ89: 0 | CA89: -6 | CB89: 1 | CC89: -3 | CD89: -1 | CE89: -6 | CF89: -3 | CG89: -9 | CH89: -1 | CI89: -6 | CJ89: 1 | CK89: -6 | CL89: 1 | CM89: -6 | CN89: 1 | CO89: -6 | CP89: 1 | CQ89: -2 | CR89: 1 | CS89: 1 | CT89: 3 | CU89: -2 | CV89: 5 | CW89: -5 | CX89: 3 | CY89: -2 | CZ89: 1 | DA89: -2 | DB89: 1 | DC89: -2 | DD89: 1 | DE89: -2 | DF89: 1 | DG89: 5 | DH89: 5 | DI89: 7 | DJ89: 2 | DK89: 5 | DL89: -1 | DM89: 3 | DN89: 2 | DO89: 5 | DP89: 5 | DQ89: 5 | DR89: 5 | DS89: 5 | DT89: 5 | DU89: 5 | DV89: 5 | DW89: 9 | DX89: 2 | DY89: 2 | DZ89: 2 | EA89: 5 | EB89: -4.5 | EC89: 1 | ED89: =-ED47+$AS89+1 -> -1.5 | EE89: -6 | EF89: -3.5 | EG89: -2 | EH89: 5.5 | EI89: 5 | EJ89: 5.5 | EK89: -9 | EL89: -1 | EM89: -5 | EN89: 3 | EO89: 3 | EP89: 2 | EQ89: -9 | ER89: -1 | ES89: -5 | ET89: 3 | EU89: 3 | EV89: 2 | EW89: 1 | EX89: 1 | EY89: 1 | EZ89: 1 | FA89: 1 | FB89: 1
C90: -89 | D90: -102 | E90: 10 | F90: -3 | G90: 0 | H90: -8 | AR90: 0 | AS90: 1 | AT90: 74 | AU90: 8 | AV90: -2 | AW90: 5 | AX90: -4 | AY90: -6 | AZ90: -3 | BA90: -3 | BB90: -1 | BC90: -2 | BD90: 5 | BE90: 1 | BF90: 3 | BG90: 5 | BH90: 5 | BI90: 3 | BJ90: 2 | BK90: 5 | BL90: 0 | BM90: 8 | BN90: -2 | BO90: 5 | BP90: -4 | BQ90: 4 | BR90: -2 | BS90: 5 | BT90: 0 | BU90: 5 | BV90: 0 | BW90: 5 | BX90: 0 | BY90: 5 | BZ90: 0 | CA90: -6 | CB90: 1 | CC90: -3 | CD90: -1 | CE90: -6 | CF90: -3 | CG90: -7 | CH90: -1 | CI90: -6 | CJ90: 1 | CK90: -6 | CL90: 1 | CM90: -6 | CN90: 1 | CO90: -6 | CP90: 1 | CQ90: -2 | CR90: 1 | CS90: 1 | CT90: 3 | CU90: -2 | CV90: 5 | CW90: -3 | CX90: 3 | CY90: -2 | CZ90: 1 | DA90: -2 | DB90: 1 | DC90: -2 | DD90: 1 | DE90: -2 | DF90: 1 | DG90: 5 | DH90: 5 | DI90: 7 | DJ90: 2 | DK90: 5 | DL90: 1 | DM90: 3 | DN90: 2 | DO90: 5 | DP90: 5 | DQ90: 5 | DR90: 5 | DS90: 5 | DT90: 5 | DU90: 5 | DV90: 5 | DW90: 9 | DX90: 1 | DY90: 1 | DZ90: 3 | EA90: 5 | EB90: -4.5 | EC90: 9 | ED90: =-ED48+$AS90+1 -> -1.5 | EE90: -6 | EF90: -3.5 | EG90: -2 | EH90: 5.5 | EI90: 5 | EJ90: 5.5 | EK90: -3 | EL90: -1 | EM90: 1 | EN90: 3 | EO90: 3 | EP90: 2 | EQ90: -3 | ER90: -1 | ES90: 1 | ET90: 3 | EU90: 3 | EV90: 2 | EW90: 1 | EX90: 1 | EY90: 1 | EZ90: 1 | FA90: 1 | FB90: 1
C91: -109 | D91: -102 | E91: -10 | F91: -3 | G91: -20 | H91: -8 | AR91: 0 | AS91: 0 | AT91: 75 | AU91: 7 | AV91: -1 | AW91: 5 | AX91: -5 | AY91: -6 | AZ91: -4 | BA91: -4 | BB91: 0 | BC91: -3 | BD91: 4 | BE91: -1 | BF91: 0 | BG91: 6 | BH91: 1 | BI91: 2 | BJ91: 3 | BK91: 5 | BL91: -2 | BM91: 7 | BN91: -1 | BO91: 5 | BP91: -5 | BQ91: 3 | BR91: -1 | BS91: 5 | BT91: -2 | BU91: 5 | BV91: -2 | BW91: 5 | BX91: -2 | BY91: 5 | BZ91: -2 | CA91: -6 | CB91: -1 | CC91: -4 | CD91: 0 | CE91: -6 | CF91: -4 | CG91: -8 | CH91: 0 | CI91: -6 | CJ91: -1 | CK91: -6 | CL91: -1 | CM91: -6 | CN91: -1 | CO91: -6 | CP91: -1 | CQ91: -3 | CR91: 1 | CS91: -1 | CT91: 0 | CU91: -3 | CV91: 4 | CW91: -5 | CX91: 0 | CY91: -3 | CZ91: 1 | DA91: -3 | DB91: 1 | DC91: -3 | DD91: 1 | DE91: -3 | DF91: 1 | DG91: 6 | DH91: 5 | DI91: 5 | DJ91: 3 | DK91: 6 | DL91: 1 | DM91: 2 | DN91: 3 | DO91: 6 | DP91: 5 | DQ91: 6 | DR91: 5 | DS91: 6 | DT91: 5 | DU91: 6 | DV91: 5 | DW91: 9 | DX91: 4 | DY91: 4 | DZ91: 3 | EA91: 5 | EB91: -5.5 | EC91: 7 | ED91: =-ED49+$AS91 -> -0.5 | EE91: -6 | EF91: -4.5 | EG91: -3 | EH91: 4.5 | EI91: 6 | EJ91: 0.5 | EK91: -4 | EL91: 0 | EM91: -1 | EN91: 0 | EO91: 2 | EP91: 3 | EQ91: -4 | ER91: 0 | ES91: -1 | ET91: 0 | EU91: 2 | EV91: 3 | EW91: 1 | EX91: 1 | EY91: 1 | EZ91: 1 | FA91: 1 | FB91: 1
C92: -109 | D92: -103 | E92: -10 | F92: -4 | G92: -20 | H92: -9 | AR92: 0 | AS92: 0 | AT92: 76 | AU92: 8 | AV92: -1 | AW92: 6 | AX92: -4 | AY92: -7 | AZ92: -5 | BA92: -5 | BB92: -2 | BC92: -8 | BD92: 4 | BE92: -6 | BF92: 1 | BG92: 8 | BH92: 2 | BI92: 5 | BJ92: 4 | BK92: 5 | BL92: -1 | BM92: 8 | BN92: -1 | BO92: 9 | BP92: -2 | BQ92: 6 | BR92: -4 | BS92: 5 | BT92: -1 | BU92: 5 | BV92: -1 | BW92: 5 | BX92: -1 | BY92: 5 | BZ92: -1 | CA92: -8 | CB92: -2 | CC92: -5 | CD92: -2 | CE92: -4 | CF92: -3 | CG92: -7 | CH92: -5 | CI92: -8 | CJ92: -2 | CK92: -8 | CL92: -2 | CM92: -8 | CN92: -2 | CO92: -8 | CP92: -2 | CQ92: -9 | CR92: 1 | CS92: -6 | CT92: 1 | CU92: -5 | CV92: 2 | CW92: -8 | CX92: 4 | CY92: -9 | CZ92: 1 | DA92: -9 | DB92: 1 | DC92: -9 | DD92: 1 | DE92: -9 | DF92: 1 | DG92: 6 | DH92: 5 | DI92: 8 | DJ92: 2 | DK92: 5 | DL92: 1 | DM92: 5 | DN92: 4 | DO92: 6 | DP92: 5 | DQ92: 6 | DR92: 5 | DS92: 6 | DT92: 5 | DU92: 6 | DV92: 5 | DW92: 9 | DX92: 1 | DY92: 4 | DZ92: 2 | EA92: 6 | EB92: -4.5 | EC92: 8 | ED92: -0.5 | EE92: -7 | EF92: -5.5 | EG92: -8 | EH92: 4.5 | EI92: 9 | EJ92: =-EJ50+$AS92+1 -> 2.5 | EK92: -5 | EL92: -2 | EM92: -6 | EN92: 1 | EO92: 5 | EP92: 4 | EQ92: -5 | ER92: -2 | ES92: -6 | ET92: 1 | EU92: 5 | EV92: 4 | EW92: 1 | EX92: 1 | EY92: 1 | EZ92: 1 | FA92: 1 | FB92: 1
C93: -89 | D93: -103 | E93: 10 | F93: -4 | G93: 0 | H93: -9 | AR93: 0 | AS93: 1 | AT93: 77 | AU93: 8 | AV93: -1 | AW93: 5 | AX93: 0 | AY93: -8 | AZ93: 1 | BA93: -5 | BB93: 0 | BC93: -1 | BD93: 1 | BE93: -4 | BF93: 0 | BG93: 2 | BH93: 5 | BI93: 1 | BJ93: 2 | BK93: 5 | BL93: 0 | BM93: 6 | BN93: -1 | BO93: 8 | BP93: -1 | BQ93: 5 | BR93: -4 | BS93: 5 | BT93: 0 | BU93: 5 | BV93: 0 | BW93: 5 | BX93: 0 | BY93: 5 | BZ93: 0 | CA93: -8 | CB93: 1 | CC93: -7 | CD93: 0 | CE93: -5 | CF93: 0 | CG93: -8 | CH93: -3 | CI93: -8 | CJ93: 1 | CK93: -8 | CL93: 1 | CM93: -8 | CN93: 1 | CO93: -8 | CP93: 1 | CQ93: -4 | CR93: 0 | CS93: -3 | CT93: 1 | CU93: -1 | CV93: 1 | CW93: -4 | CX93: 4 | CY93: -4 | CZ93: 0 | DA93: -4 | DB93: 0 | DC93: -4 | DD93: 0 | DE93: -4 | DF93: 0 | DG93: 2 | DH93: 5 | DI93: 5 | DJ93: 2 | DK93: 1 | DL93: 2 | DM93: 2 | DN93: 3 | DO93: 2 | DP93: 5 | DQ93: 2 | DR93: 5 | DS93: 2 | DT93: 5 | DU93: 2 | DV93: 5 | DW93: 9 | DX93: 2 | DY93: 4 | DZ93: 2 | EA93: 5 | EB93: 0.5 | EC93: 8 | ED93: -0.5 | EE93: -8 | EF93: 1.5 | EG93: -1 | EH93: 0.5 | EI93: 2 | EJ93: =-EJ51+$AS93 -> 5.5 | EK93: -5 | EL93: 0 | EM93: -4 | EN93: 0 | EO93: 1 | EP93: 2 | EQ93: -5 | ER93: 0 | ES93: -4 | ET93: 0 | EU93: 1 | EV93: 2 | EW93: 1 | EX93: 1 | EY93: 1 | EZ93: 1 | FA93: 1 | FB93: 1
C94: -89 | D94: -104 | E94: 10 | F94: -5 | G94: 0 | H94: -10 | AR94: 0 | AS94: 1 | AT94: 78 | AU94: 8 | AV94: -4 | AW94: 5 | AX94: 0 | AY94: -8 | AZ94: 1 | BA94: -5 | BB94: -3 | BC94: -1 | BD94: 4 | BE94: -4 | BF94: 0 | BG94: 6 | BH94: 5 | BI94: 2 | BJ94: 2 | BK94: 5 | BL94: 0 | BM94: 8 | BN94: 0 | BO94: 8 | BP94: -4 | BQ94: 5 | BR94: 0 | BS94: 5 | BT94: 0 | BU94: 5 | BV94: 0 | BW94: 5 | BX94: 0 | BY94: 5 | BZ94: 0 | CA94: -8 | CB94: 1 | CC94: -5 | CD94: 1 | CE94: -5 | CF94: -3 | CG94: -8 | CH94: 1 | CI94: -8 | CJ94: 1 | CK94: -8 | CL94: 1 | CM94: -8 | CN94: 1 | CO94: -8 | CP94: 1 | CQ94: -4 | CR94: 0 | CS94: -1 | CT94: 0 | CU94: -1 | CV94: 4 | CW94: -4 | CX94: 0 | CY94: -4 | CZ94: 0 | DA94: -4 | DB94: 0 | DC94: -4 | DD94: 0 | DE94: -4 | DF94: 0 | DG94: 2 | DH94: 2 | DI94: 6 | DJ94: 2 | DK94: 6 | DL94: 5 | DM94: 2 | DN94: 2 | DO94: 2 | DP94: 2 | DQ94: 2 | DR94: 2 | DS94: 2 | DT94: 2 | DU94: 2 | DV94: 2 | DW94: 9 | DX94: 4 | DY94: 3 | DZ94: 3 | EA94: 5 | EB94: 0.5 | EC94: 8 | ED94: -4.5 | EE94: -8 | EF94: 1.5 | EG94: -1 | EH94: 4.5 | EI94: 6 | EJ94: 5.5 | EK94: -5 | EL94: -3 | EM94: -4 | EN94: 0 | EO94: 2 | EP94: 2 | EQ94: -5 | ER94: -3 | ES94: -4 | ET94: 0 | EU94: 2 | EV94: 2 | EW94: 1 | EX94: 1 | EY94: 1 | EZ94: 1 | FA94: 1 | FB94: 1
C95: -109 | D95: -104 | E95: -10 | F95: -5 | G95: -20 | H95: -10 | AR95: 0 | AS95: 0 | AT95: 79 | AU95: 2 | AV95: 2 | AW95: 4 | AX95: -3 | AY95: -7 | AZ95: 1 | BA95: -5 | BB95: -4 | BC95: -1 | BD95: 3 | BE95: -3 | BF95: -2 | BG95: 8 | BH95: 4 | BI95: 3 | BJ95: 2 | BK95: 4 | BL95: -3 | BM95: 2 | BN95: -3 | BO95: 2 | BP95: 2 | BQ95: 4 | BR95: -3 | BS95: 4 | BT95: -3 | BU95: 4 | BV95: -3 | BW95: 4 | BX95: -3 | BY95: 4 | BZ95: -3 | CA95: -5 | CB95: -4 | CC95: -7 | CD95: -4 | CE95: -7 | CF95: 1 | CG95: -5 | CH95: -4 | CI95: -5 | CJ95: -4 | CK95: -5 | CL95: -4 | CM95: -5 | CN95: -4 | CO95: -5 | CP95: -4 | CQ95: -1 | CR95: 3 | CS95: -3 | CT95: 3 | CU95: -3 | CV95: -2 | CW95: -1 | CX95: 3 | CY95: -1 | CZ95: 3 | DA95: -1 | DB95: 3 | DC95: -1 | DD95: 3 | DE95: -1 | DF95: 3 | DG95: 8 | DH95: 4 | DI95: 3 | DJ95: 4 | DK95: 3 | DL95: 2 | DM95: 8 | DN95: 4 | DO95: 8 | DP95: 4 | DQ95: 8 | DR95: 4 | DS95: 8 | DT95: 4 | DU95: 8 | DV95: 4 | DW95: 9 | DX95: 4 | DY95: 3 | DZ95: 3 | EA95: 4 | EB95: -3.5 | EC95: 2 | ED95: 2.5 | EE95: -7 | EF95: 1.5 | EG95: -1 | EH95: 3.5 | EI95: 8 | EJ95: 4.5 | EK95: -5 | EL95: -4 | EM95: -3 | EN95: -2 | EO95: 3 | EP95: 2 | EQ95: -5 | ER95: -4 | ES95: -3 | ET95: -2 | EU95: 3 | EV95: 2 | EW95: 1 | EX95: 1 | EY95: 1 | EZ95: 1 | FA95: 1 | FB95: 1
AR96: 0 | AS96: 1 | AT96: 80 | AU96: 7 | AV96: -4 | AW96: 3 | AX96: -3 | AY96: -6 | AZ96: -1 | BA96: -2 | BB96: -2 | BC96: -2 | BD96: 2 | BE96: 2 | BF96: 3 | BG96: 6 | BH96: 5 | BI96: 5 | BJ96: 1 | BK96: 5 | BL96: -1 | BM96: 7 | BN96: -4 | BO96: 3 | BP96: -3 | BQ96: 5 | BR96: -1 | BS96: 5 | BT96: -1 | BU96: 5 | BV96: -1 | BW96: 5 | BX96: -1 | BY96: 5 | BZ96: -1 | CA96: -4 | CB96: 1 | CC96: -2 | CD96: -2 | CE96: -6 | CF96: -1 | CG96: -4 | CH96: 1 | CI96: -4 | CJ96: 1 | CK96: -4 | CL96: 1 | CM96: -4 | CN96: 1 | CO96: -4 | CP96: 1 | CQ96: 0 | CR96: 0 | CS96: 2 | CT96: 3 | CU96: -2 | CV96: 2 | CW96: 0 | CX96: 0 | CY96: 0 | CZ96: 0 | DA96: 0 | DB96: 0 | DC96: 0 | DD96: 0 | DE96: 0 | DF96: 0 | DG96: 8 | DH96: 3 | DI96: 5 | DJ96: 1 | DK96: 6 | DL96: 5 | DM96: 8 | DN96: 3 | DO96: 8 | DP96: 3 | DQ96: 8 | DR96: 3 | DS96: 8 | DT96: 3 | DU96: 8 | DV96: 3 | DW96: 9 | DX96: 4 | DY96: 1 | DZ96: 3 | EA96: 2 | EB96: =-EB54+$AS96+1 -> -2.5 | EC96: 7 | ED96: -4.5 | EE96: -7 | EF96: =-EF54+$AS96+1 -> -0.5 | EG96: -3 | EH96: =-EH54+$AS96+1 -> 2.5 | EI96: 6 | EJ96: 5.5 | EK96: -2 | EL96: -2 | EM96: 2 | EN96: 3 | EO96: 5 | EP96: 1 | EQ96: -2 | ER96: -2 | ES96: 2 | ET96: 3 | EU96: 5 | EV96: 1 | EW96: 1 | EX96: 1 | EY96: 1 | EZ96: 1 | FA96: 1 | FB96: 1
AR97: 0 | AS97: 1 | AT97: 81 | AU97: 6 | AV97: -2 | AW97: 5 | AX97: 3 | AY97: -4 | AZ97: 1 | BA97: -3 | BB97: -4 | BC97: -7 | BD97: 5 | BE97: -8 | BF97: 0 | BG97: -1 | BH97: 3 | BI97: 4 | BJ97: 4 | BK97: 5 | BL97: 3 | BM97: 7 | BN97: 0 | BO97: 6 | BP97: -2 | BQ97: 5 | BR97: 3 | BS97: 5 | BT97: 3 | BU97: 5 | BV97: 3 | BW97: 5 | BX97: 3 | BY97: 5 | BZ97: 3 | CA97: -4 | CB97: 1 | CC97: -2 | CD97: -2 | CE97: -3 | CF97: -4 | CG97: -4 | CH97: 1 | CI97: -4 | CJ97: 1 | CK97: -4 | CL97: 1 | CM97: -4 | CN97: 1 | CO97: -4 | CP97: 1 | CQ97: -8 | CR97: 0 | CS97: -6 | CT97: 3 | CU97: -7 | CV97: 5 | CW97: -8 | CX97: 0 | CY97: -8 | CZ97: 0 | DA97: -8 | DB97: 0 | DC97: -8 | DD97: 0 | DE97: -8 | DF97: 0 | DG97: 4 | DH97: 4 | DI97: 2 | DJ97: 5 | DK97: -1 | DL97: 3 | DM97: 4 | DN97: 4 | DO97: 4 | DP97: 4 | DQ97: 4 | DR97: 4 | DS97: 4 | DT97: 4 | DU97: 4 | DV97: 4 | DW97: 9 | DX97: 3 | DY97: 3 | DZ97: 1 | EA97: 5 | EB97: =-EB55+$AS97 -> 3.5 | EC97: 6 | ED97: -2.5 | EE97: -4 | EF97: =-EF55+$AS97 -> 1.5 | EG97: -7 | EH97: =-EH55+$AS97 -> 5.5 | EI97: -1 | EJ97: 2.5 | EK97: -3 | EL97: -4 | EM97: -8 | EN97: 0 | EO97: 4 | EP97: 4 | EQ97: -3 | ER97: -4 | ES97: -8 | ET97: 0 | EU97: 4 | EV97: 4 | EW97: 1 | EX97: 1 | EY97: 1 | EZ97: 1 | FA97: 1 | FB97: 1
AR98: 1 | AS98: 1 | AT98: 82 | AU98: 5 | AV98: -2 | AW98: 3 | AX98: 2 | AY98: -6 | AZ98: 0 | BA98: -4 | BB98: -4 | BC98: -7 | BD98: 5 | BE98: -9 | BF98: 1 | BG98: 10 | BH98: 1 | BI98: 6 | BJ98: 3 | BK98: 7 | BL98: 2 | BM98: 3 | BN98: 2 | BO98: 5 | BP98: -2 | BQ98: 7 | BR98: 2 | BS98: 7 | BT98: 2 | BU98: 7 | BV98: 2 | BW98: 7 | BX98: 2 | BY98: 7 | BZ98: 2 | CA98: -2 | CB98: 0 | CC98: -6 | CD98: 0 | CE98: -4 | CF98: -4 | CG98: -2 | CH98: 0 | CI98: -2 | CJ98: 0 | CK98: -2 | CL98: 0 | CM98: -2 | CN98: 0 | CO98: -2 | CP98: 0 | CQ98: -5 | CR98: 1 | CS98: -9 | CT98: 1 | CU98: -7 | CV98: 5 | CW98: -5 | CX98: 1 | CY98: -5 | CZ98: 1 | DA98: -5 | DB98: 1 | DC98: -5 | DD98: 1 | DE98: -5 | DF98: 1 | DG98: 10 | DH98: 5 | DI98: 10 | DJ98: 1 | DK98: 6 | DL98: 3 | DM98: 10 | DN98: 5 | DO98: 10 | DP98: 5 | DQ98: 10 | DR98: 5 | DS98: 10 | DT98: 5 | DU98: 10 | DV98: 5 | DW98: 9 | DX98: 4 | DY98: 3 | DZ98: 2 | EA98: 3 | EB98: =-EB56+$AS98 -> 2.5 | EC98: 5 | ED98: -2.5 | EE98: -6 | EF98: =-EF56+$AS98 -> 0.5 | EG98: -7 | EH98: =-EH56+$AS98 -> 5.5 | EI98: 10 | EJ98: 0.5 | EK98: -4 | EL98: -4 | EM98: -9 | EN98: 1 | EO98: 6 | EP98: 3 | EQ98: -4 | ER98: -4 | ES98: -9 | ET98: 1 | EU98: 6 | EV98: 3 | EW98: 1 | EX98: 1 | EY98: 1 | EZ98: 1 | FA98: 1 | FB98: 1
AR99: 0 | AS99: 0 | AT99: 83 | AU99: 4 | AV99: -5 | AW99: 6 | AX99: -1 | AY99: -5 | AZ99: -3 | BA99: -3 | BB99: 1 | BC99: -8 | BD99: 3 | BE99: -6 | BF99: -1 | BG99: 9 | BH99: 1 | BI99: 5 | BJ99: 3 | BK99: 6 | BL99: -1 | BM99: 8 | BN99: -3 | BO99: 4 | BP99: -5 | BQ99: 6 | BR99: -1 | BS99: 6 | BT99: -1 | BU99: 6 | BV99: -1 | BW99: 6 | BX99: -1 | BY99: 6 | BZ99: -1 | CA99: -3 | CB99: 1 | CC99: -1 | CD99: -1 | CE99: -5 | CF99: -3 | CG99: -3 | CH99: 1 | CI99: -3 | CJ99: 1 | CK99: -3 | CL99: 1 | CM99: -3 | CN99: 1 | CO99: -3 | CP99: 1 | CQ99: -6 | CR99: -1 | CS99: -4 | CT99: 1 | CU99: -8 | CV99: 3 | CW99: -6 | CX99: -1 | CY99: -6 | CZ99: -1 | DA99: -6 | DB99: -1 | DC99: -6 | DD99: -1 | DE99: -6 | DF99: -1 | DG99: 5 | DH99: 3 | DI99: 7 | DJ99: 5 | DK99: 9 | DL99: 1 | DM99: 5 | DN99: 3 | DO99: 5 | DP99: 3 | DQ99: 5 | DR99: 3 | DS99: 5 | DT99: 3 | DU99: 5 | DV99: 3 | DW99: 9 | DX99: 1 | DY99: 3 | DZ99: 2 | EA99: 6 | EB99: =-EB57+$AS99 -> -0.5 | EC99: =-EC57+$AR99-1 -> 3 | ED99: =-ED57+$AS99+1 -> -4.5 | EE99: -5 | EF99: =-EF57+$AS99 -> -3.5 | EG99: -8 | EH99: =-EH57+$AS99 -> 3.5 | EI99: 9 | EJ99: 0.5 | EK99: -3 | EL99: 1 | EM99: -6 | EN99: -1 | EO99: 5 | EP99: 3 | EQ99: -3 | ER99: 1 | ES99: -6 | ET99: -1 | EU99: 5 | EV99: 3 | EW99: 1 | EX99: 1 | EY99: 1 | EZ99: 1 | FA99: 1 | FB99: 1
AR100: 0 | AS100: 0 | AT100: 84 | AU100: 3 | AV100: -5 | AW100: 7 | AX100: -1 | AY100: -3 | AZ100: -3 | BA100: 1 | BB100: 1 | BC100: -9 | BD100: 3 | BE100: -5 | BF100: -1 | BG100: 8 | BH100: 1 | BI100: 4 | BJ100: 5 | BK100: 7 | BL100: -1 | BM100: 4 | BN100: -2 | BO100: 3 | BP100: -5 | BQ100: 7 | BR100: -1 | BS100: 7 | BT100: -1 | BU100: 7 | BV100: -1 | BW100: 7 | BX100: -1 | BY100: 7 | BZ100: -1 | CA100: 1 | CB100: 1 | CC100: -2 | CD100: 0 | CE100: -3 | CF100: -3 | CG100: 1 | CH100: 1 | CI100: 1 | CJ100: 1 | CK100: 1 | CL100: 1 | CM100: 1 | CN100: 1 | CO100: 1 | CP100: 1 | CQ100: -5 | CR100: -1 | CS100: -8 | CT100: 0 | CU100: -9 | CV100: 3 | CW100: -5 | CX100: -1 | CY100: -5 | CZ100: -1 | DA100: -5 | DB100: -1 | DC100: -5 | DD100: -1 | DE100: -5 | DF100: -1 | DG100: 8 | DH100: 1 | DI100: 4 | DJ100: 5 | DK100: 7 | DL100: 4 | DM100: 8 | DN100: 1 | DO100: 8 | DP100: 1 | DQ100: 8 | DR100: 1 | DS100: 8 | DT100: 1 | DU100: 8 | DV100: 1 | DW100: 9 | DX100: 1 | DY100: 4 | DZ100: 3 | EA100: 7 | EB100: =-EB58+$AS100 -> -0.5 | EC100: =-EC58+$AR100-1 -> 2 | ED100: =-ED58+$AS100+1 -> -4.5 | EE100: -3 | EF100: =-EF58+$AS100 -> -3.5 | EG100: -9 | EH100: =-EH58+$AS100 -> 3.5 | EI100: 8 | EJ100: 0.5 | EK100: 1 | EL100: 1 | EM100: -5 | EN100: -1 | EO100: 4 | EP100: 5 | EQ100: 1 | ER100: 1 | ES100: -5 | ET100: -1 | EU100: 4 | EV100: 5 | EW100: 1 | EX100: =IF(ER100=EL100,1,0) -> 1 | EY100: 1 | EZ100: 1 | FA100: 1 | FB100: 1
AR101: 0 | AS101: 0 | AT101: 85 | AU101: =-AU17+$AR101 -> 5 | AV101: =AV17+$AS101 -> 2 | AW101: =-AW17+$AR101 -> 6 | AX101: =AX17+$AS101 -> 4 | AY101: =-AY17+$AR101 -> -4 | AZ101: =AZ17+$AS101 -> 1 | BA101: =-BA17+$AR101 -> -3 | BB101: =BB17+$AS101 -> 3 | BC101: =-BC17+$AR101 -> -7 | BD101: =BD17+$AS101 -> -2 | BE101: =-BE17+$AR101 -> -6 | BF101: =BF17+$AS101 -> -4 | BG101: =-BG17+$AR101 -> 7 | BH101: =BH17+$AS101 -> -2 | BI101: =-BI17+$AR101 -> 5 | BJ101: =BJ17+$AS101 -> -1 | BK101: =-BK17+$AR101 -> 5 | BL101: =BL17+$AS101 -> 2 | BM101: =-BM17+$AR101 -> 5 | BN101: =BN17+$AS101 -> 3 | BO101: =-BO17+$AR101 -> 6 | BP101: =BP17+$AS101 -> 3 | BQ101: =-BQ17+$AR101 -> 6 | BR101: =BR17+$AS101 -> 4 | BS101: =-BS17+$AR101 -> 3 | BT101: =BT17+$AS101 -> 4 | BU101: =-BU17+$AR101 -> 3 | BV101: =BV17+$AS101 -> 3 | BW101: =-BW17+$AR101 -> 4 | BX101: =BX17+$AS101 -> 3 | BY101: =-BY17+$AR101 -> 4 | BZ101: =BZ17+$AS101 -> 2 | CA101: =-CA17+$AR101 -> -4 | CB101: =CB17+$AS101 -> 1 | CC101: =-CC17+$AR101 -> -4 | CD101: =CD17+$AS101 -> 2 | CE101: =-CE17+$AR101 -> -3 | CF101: =CF17+$AS101 -> 2 | CG101: =-CG17+$AR101 -> -3 | CH101: =CH17+$AS101 -> 3 | CI101: =-CI17+$AR101 -> -6 | CJ101: =CJ17+$AS101 -> 3 | CK101: =-CK17+$AR101 -> -6 | CL101: =CL17+$AS101 -> 2 | CM101: =-CM17+$AR101 -> -5 | CN101: =CN17+$AS101 -> 2 | CO101: =-CO17+$AR101 -> -5 | CP101: =CP17+$AS101 -> 1 | CQ101: =-CQ17+$AR101 -> -7 | CR101: =CR17+$AS101 -> -2 | CS101: =-CS17+$AR101 -> -7 | CT101: =CT17+$AS101 -> -3 | CU101: =-CU17+$AR101 -> -6 | CV101: =CV17+$AS101 -> -3 | CW101: =-CW17+$AR101 -> -6 | CX101: =CX17+$AS101 -> -4 | CY101: =-CY17+$AR101 -> -9 | CZ101: =CZ17+$AS101 -> -4 | DA101: =-DA17+$AR101 -> -9 | DB101: =DB17+$AS101 -> -3 | DC101: =-DC17+$AR101 -> -8 | DD101: =DD17+$AS101 -> -3 | DE101: =-DE17+$AR101 -> -8 | DF101: =DF17+$AS101 -> -2 | DG101: =-DG17+$AR101 -> 7 | DH101: =DH17+$AS101 -> -3 | DI101: =-DI17+$AR101 -> 6 | DJ101: =DJ17+$AS101 -> -3 | DK101: =-DK17+$AR101 -> 6 | DL101: =DL17+$AS101 -> -4 | DM101: =-DM17+$AR101 -> 5 | DN101: =DN17+$AS101 -> -4 | DO101: =-DO17+$AR101 -> 5 | DP101: =DP17+$AS101 -> -1 | DQ101: =-DQ17+$AR101 -> 6 | DR101: =DR17+$AS101 -> -1 | DS101: =-DS17+$AR101 -> 6 | DT101: =DT17+$AS101 -> -2 | DU101: =-DU17+$AR101 -> 7 | DV101: =DV17+$AS101 -> -2 | DW101: 9 | DX101: 1 | DY101: 4 | DZ101: 2 | EA101: =-EA17+$AR101 -> 6 | EB101: =EB17+$AS101 -> 4.5 | EC101: =-EC17+$AR101 -> 5 | ED101: =ED17+$AS101 -> 1.5 | EE101: =-EE17+$AR101 -> -4 | EF101: =EF17+$AS101 -> 0.5 | EG101: =-EG17+$AR101 -> -7 | EH101: =EH17+$AS101 -> -1.5 | EI101: =-EI17+$AR101 -> 7 | EJ101: =EJ17+$AS101 -> -1.5 | EK101: =-EK17+$AR101 -> -3 | EL101: =EL17+$AS101 -> 3 | EM101: =-EM17+$AR101 -> -6 | EN101: =EN17+$AS101 -> -4 | EO101: =-EO17+$AR101 -> 5 | EP101: =EP17+$AS101 -> -1 | EQ101: =BA101 -> -3 | ER101: =BB101 -> 3 | ES101: =BE101 -> -6 | ET101: =BF101 -> -4 | EU101: =BI101 -> 5 | EV101: =BJ101 -> -1 | EW101: =IF(EQ101=EK101,1,0) -> 1 | EX101: 1 | EY101: 1 | EZ101: 1 | FA101: 1 | FB101: 1
AR102: 0 | AS102: 0 | AT102: 86 | AU102: =-AU18+$AR102 -> 3 | AV102: =AV18+$AS102 -> 2 | AW102: 6 | AX102: 4 | AY102: -4 | AZ102: 1 | BA102: -1 | BB102: 3 | BC102: -6 | BD102: -1 | BE102: -3 | BF102: -3 | BG102: 3 | BH102: -3 | BI102: 1 | BJ102: 0 | BK102: 5 | BL102: 2 | BM102: 5 | BN102: 4 | BO102: 6 | BP102: 4 | BQ102: 6 | BR102: 5 | BS102: 4 | BT102: 5 | BU102: 4 | BV102: 3 | BW102: 3 | BX102: 3 | BY102: 3 | BZ102: 2 | CA102: -2 | CB102: 1 | CC102: -2 | CD102: 3 | CE102: -1 | CF102: 3 | CG102: -1 | CH102: 4 | CI102: -3 | CJ102: 4 | CK102: -3 | CL102: 2 | CM102: -4 | CN102: 2 | CO102: -4 | CP102: 1 | CQ102: -4 | CR102: -1 | CS102: -4 | CT102: -3 | CU102: -3 | CV102: -3 | CW102: -3 | CX102: -4 | CY102: -5 | CZ102: -4 | DA102: -5 | DB102: -2 | DC102: -6 | DD102: -2 | DE102: -6 | DF102: -1 | DG102: 0 | DH102: -2 | DI102: 2 | DJ102: -2 | DK102: 2 | DL102: -3 | DM102: 3 | DN102: -3 | DO102: 3 | DP102: -1 | DQ102: 1 | DR102: -1 | DS102: 1 | DT102: 0 | DU102: 0 | DV102: 0 | DW102: 9 | DX102: 4 | DY102: 1 | DZ102: 1 | EA102: 6 | EB102: 3.5 | EC102: 3 | ED102: 1.5 | EE102: -4 | EF102: 0.5 | EG102: -6 | EH102: -0.5 | EI102: 3 | EJ102: -3.5 | EK102: -1 | EL102: 3 | EM102: -3 | EN102: -3 | EO102: 1 | EP102: 0 | EQ102: =BA102 -> -1 | ER102: =BB102 -> 3 | ES102: =BE102 -> -3 | ET102: =BF102 -> -3 | EU102: =BI102 -> 1 | EV102: =BJ102 -> 0 | EW102: =IF(EQ102=EK102,1,0) -> 1 | EX102: =IF(ER102=EL102,1,0) -> 1 | EY102: =IF(ES102=EM102,1,0) -> 1 | EZ102: =IF(ET102=EN102,1,0) -> 1 | FA102: =IF(EU102=EO102,1,0) -> 1 | FB102: =IF(EV102=EP102,1,0) -> 1
AR103: 0 | AS103: 0 | AT103: 87 | AU103: 5 | AV103: 2 | AW103: 8 | AX103: 4 | AY103: -2 | AZ103: 3 | BA103: -5 | BB103: 1 | BC103: -4 | BD103: -4 | BE103: -7 | BF103: -2 | BG103: 3 | BH103: -3 | BI103: 1 | BJ103: 0 | BK103: 5 | BL103: 2 | BM103: 5 | BN103: 4 | BO103: 8 | BP103: 4 | BQ103: 8 | BR103: 1 | BS103: 7 | BT103: 1 | BU103: 7 | BV103: 3 | BW103: 6 | BX103: 3 | BY103: 6 | BZ103: 2 | CA103: -5 | CB103: 1 | CC103: -5 | CD103: 3 | CE103: -2 | CF103: 3 | CG103: -2 | CH103: 0 | CI103: -3 | CJ103: 0 | CK103: -3 | CL103: 2 | CM103: -4 | CN103: 2 | CO103: -4 | CP103: 1 | CQ103: -4 | CR103: -4 | CS103: -4 | CT103: -1 | CU103: -5 | CV103: -1 | CW103: -5 | CX103: -3 | CY103: -6 | CZ103: -3 | DA103: -6 | DB103: -2 | DC103: -7 | DD103: -2 | DE103: -7 | DF103: -4 | DG103: 3 | DH103: -3 | DI103: 3 | DJ103: 0 | DK103: 1 | DL103: 0 | DM103: 1 | DN103: -1 | DO103: 2 | DP103: -1 | DQ103: 2 | DR103: -2 | DS103: 0 | DT103: -2 | DU103: 0 | DV103: -3 | DW103: 9 | DX103: 3 | DY103: 2 | DZ103: 2 | EA103: 8 | EB103: 4.5 | EC103: 5 | ED103: 1.5 | EE103: -2 | EF103: 3.5 | EG103: -4 | EH103: -4.5 | EI103: 3 | EJ103: -3.5 | EK103: -5 | EL103: 1 | EM103: -7 | EN103: -2 | EO103: 1 | EP103: 0 | EQ103: -5 | ER103: 1 | ES103: -7 | ET103: -2 | EU103: 1 | EV103: 0 | EW103: 1 | EX103: 1 | EY103: 1 | EZ103: 1 | FA103: 1 | FB103: 1
AR104: 0 | AS104: 0 | AT104: 88 | AU104: 5 | AV104: 4 | AW104: 8 | AX104: 2 | AY104: -4 | AZ104: 3 | BA104: -1 | BB104: 1 | BC104: -7 | BD104: -4 | BE104: -4 | BF104: -2 | BG104: 7 | BH104: -2 | BI104: 5 | BJ104: 1 | BK104: 5 | BL104: 4 | BM104: 5 | BN104: 3 | BO104: 8 | BP104: 3 | BQ104: 8 | BR104: 2 | BS104: 3 | BT104: 2 | BU104: 3 | BV104: 3 | BW104: 4 | BX104: 3 | BY104: 4 | BZ104: 4 | CA104: -4 | CB104: 3 | CC104: -4 | CD104: 2 | CE104: -1 | CF104: 2 | CG104: -1 | CH104: 1 | CI104: -6 | CJ104: 1 | CK104: -6 | CL104: 2 | CM104: -5 | CN104: 2 | CO104: -5 | CP104: 3 | CQ104: -7 | CR104: -4 | CS104: -7 | CT104: -3 | CU104: -4 | CV104: -3 | CW104: -4 | CX104: -2 | CY104: -9 | CZ104: -2 | DA104: -9 | DB104: -3 | DC104: -8 | DD104: -3 | DE104: -8 | DF104: -4 | DG104: 7 | DH104: -3 | DI104: 6 | DJ104: -3 | DK104: 6 | DL104: -4 | DM104: 5 | DN104: -4 | DO104: 5 | DP104: 1 | DQ104: 6 | DR104: 1 | DS104: 6 | DT104: -2 | DU104: 7 | DV104: -2 | DW104: 9 | DX104: 4 | DY104: 1 | DZ104: 2 | EA104: 8 | EB104: 1.5 | EC104: 5 | ED104: 4.5 | EE104: -4 | EF104: 3.5 | EG104: -7 | EH104: -4.5 | EI104: 7 | EJ104: -1.5 | EK104: -1 | EL104: 1 | EM104: -4 | EN104: -2 | EO104: 5 | EP104: 1 | EQ104: -1 | ER104: 1 | ES104: -4 | ET104: -2 | EU104: 5 | EV104: 1 | EW104: 1 | EX104: 1 | EY104: 1 | EZ104: 1 | FA104: 1 | FB104: 1
AR105: -2 | AS105: 0 | AT105: 89 | AU105: 7 | AV105: 2 | AW105: 5 | AX105: 5 | AY105: -5 | AZ105: 4 | BA105: -3 | BB105: 1 | BC105: -8 | BD105: -4 | BE105: -6 | BF105: -1 | BG105: 2 | BH105: -3 | BI105: 5 | BJ105: -1 | BK105: 5 | BL105: 2 | BM105: 7 | BN105: 2 | BO105: 7 | BP105: 5 | BQ105: 5 | BR105: 5 | BS105: 5 | BT105: 4 | BU105: 6 | BV105: 4 | BW105: 6 | BX105: 3 | BY105: 5 | BZ105: 3 | CA105: -5 | CB105: 1 | CC105: -3 | CD105: 1 | CE105: -3 | CF105: 4 | CG105: -5 | CH105: 4 | CI105: -5 | CJ105: 3 | CK105: -4 | CL105: 3 | CM105: -4 | CN105: 2 | CO105: -5 | CP105: 2 | CQ105: -6 | CR105: -4 | CS105: -6 | CT105: -3 | CU105: -7 | CV105: -3 | CW105: -7 | CX105: -2 | CY105: -6 | CZ105: -2 | DA105: -6 | DB105: -1 | DC105: -8 | DD105: -1 | DE105: -8 | DF105: -4 | DG105: 5 | DH105: -3 | DI105: 5 | DJ105: -1 | DK105: 2 | DL105: -1 | DM105: 2 | DN105: -3 | DO105: 3 | DP105: -3 | DQ105: 3 | DR105: -2 | DS105: 4 | DT105: -2 | DU105: 4 | DV105: -3 | DW105: 9 | DX105: 4 | DY105: 1 | DZ105: 1 | EA105: 5 | EB105: 5.5 | EC105: 7 | ED105: 1.5 | EE105: -5 | EF105: 4.5 | EG105: -8 | EH105: -4.5 | EI105: 2 | EJ105: -3.5 | EK105: -3 | EL105: 1 | EM105: -6 | EN105: -1 | EO105: 5 | EP105: -1 | EQ105: -3 | ER105: 1 | ES105: -6 | ET105: -1 | EU105: 5 | EV105: -1 | EW105: 1 | EX105: 1 | EY105: 1 | EZ105: 1 | FA105: 1 | FB105: 1
AR106: 0 | AS106: 0 | AT106: 90 | AU106: 3 | AV106: 2 | AW106: 5 | AX106: 5 | AY106: -4 | AZ106: 1 | BA106: -2 | BB106: 4 | BC106: -6 | BD106: -1 | BE106: -4 | BF106: -4 | BG106: 3 | BH106: -2 | BI106: 0 | BJ106: 0 | BK106: 5 | BL106: 2 | BM106: 5 | BN106: 5 | BO106: 4 | BP106: 5 | BQ106: 4 | BR106: 5 | BS106: 4 | BT106: 5 | BU106: 4 | BV106: 3 | BW106: 3 | BX106: 3 | BY106: 3 | BZ106: 2 | CA106: -2 | CB106: 1 | CC106: -2 | CD106: 4 | CE106: -3 | CF106: 4 | CG106: -3 | CH106: 4 | CI106: -3 | CJ106: 4 | CK106: -3 | CL106: 2 | CM106: -4 | CN106: 2 | CO106: -4 | CP106: 1 | CQ106: -4 | CR106: -1 | CS106: -4 | CT106: -3 | CU106: -4 | CV106: -3 | CW106: -4 | CX106: -4 | CY106: -5 | CZ106: -4 | DA106: -5 | DB106: -2 | DC106: -6 | DD106: -2 | DE106: -6 | DF106: -1 | DG106: 0 | DH106: -2 | DI106: 2 | DJ106: -2 | DK106: 2 | DL106: -2 | DM106: 3 | DN106: -2 | DO106: 3 | DP106: -1 | DQ106: 1 | DR106: -1 | DS106: 1 | DT106: 0 | DU106: 0 | DV106: 0 | DW106: 9 | DX106: 1 | DY106: 4 | DZ106: 2 | EA106: 5 | EB106: 5.5 | EC106: 3 | ED106: 1.5 | EE106: -4 | EF106: 0.5 | EG106: -6 | EH106: -0.5 | EI106: 3 | EJ106: -2.5 | EK106: -2 | EL106: 4 | EM106: -4 | EN106: -4 | EO106: 0 | EP106: 0 | EQ106: -2 | ER106: 4 | ES106: -4 | ET106: -4 | EU106: 0 | EV106: 0 | EW106: 1 | EX106: 1 | EY106: 1 | EZ106: 1 | FA106: 1 | FB106: 1
AR107: 0 | AS107: 0 | AT107: 91 | AU107: 2 | AV107: 3 | AW107: 5 | AX107: 5 | AY107: -7 | AZ107: 1 | BA107: -4 | BB107: 3 | BC107: -9 | BD107: -2 | BE107: -6 | BF107: -4 | BG107: 6 | BH107: 0 | BI107: 8 | BJ107: -3 | BK107: 5 | BL107: 2 | BM107: 5 | BN107: 5 | BO107: 2 | BP107: 5 | BQ107: 2 | BR107: 3 | BS107: 4 | BT107: 3 | BU107: 4 | BV107: 2 | BW107: 4 | BX107: 2 | BY107: 4 | BZ107: 2 | CA107: -4 | CB107: 0 | CC107: -4 | CD107: 3 | CE107: -7 | CF107: 3 | CG107: -7 | CH107: 1 | CI107: -5 | CJ107: 1 | CK107: -5 | CL107: 0 | CM107: -5 | CN107: 0 | CO107: -5 | CP107: 0 | CQ107: -6 | CR107: -4 | CS107: -6 | CT107: -1 | CU107: -7 | CV107: -1 | CW107: -7 | CX107: -2 | CY107: -9 | CZ107: -2 | DA107: -9 | DB107: -4 | DC107: -6 | DD107: -4 | DE107: -6 | DF107: -4 | DG107: 8 | DH107: -3 | DI107: 8 | DJ107: 0 | DK107: 6 | DL107: 0 | DM107: 6 | DN107: -2 | DO107: 5 | DP107: -2 | DQ107: 5 | DR107: -3 | DS107: 5 | DT107: -3 | DU107: 5 | DV107: -3 | DW107: 9 | DX107: 1 | DY107: 4 | DZ107: 4 | EA107: 5 | EB107: 5.5 | EC107: 2 | ED107: 2.5 | EE107: -7 | EF107: 0.5 | EG107: -9 | EH107: -1.5 | EI107: 6 | EJ107: 0.5 | EK107: -4 | EL107: 3 | EM107: -6 | EN107: -4 | EO107: 8 | EP107: -3 | EQ107: -4 | ER107: 3 | ES107: -6 | ET107: -4 | EU107: 8 | EV107: -3 | EW107: 1 | EX107: 1 | EY107: 1 | EZ107: 1 | FA107: 1 | FB107: 1
AR108: 0 | AS108: 0 | AT108: 92 | AU108: 2 | AV108: 1 | AW108: -1 | AX108: 5 | AY108: -4 | AZ108: -1 | BA108: -7 | BB108: 3 | BC108: -6 | BD108: 0 | BE108: -9 | BF108: -4 | BG108: 5 | BH108: -3 | BI108: 9 | BJ108: 0 | BK108: 3 | BL108: 1 | BM108: 3 | BN108: 5 | BO108: -1 | BP108: 5 | BQ108: -1 | BR108: 4 | BS108: 2 | BT108: 4 | BU108: 2 | BV108: 1 | BW108: 2 | BX108: 1 | BY108: 2 | BZ108: 1 | CA108: -3 | CB108: -1 | CC108: -3 | CD108: 3 | CE108: -7 | CF108: 3 | CG108: -7 | CH108: 2 | CI108: -4 | CJ108: 2 | CK108: -4 | CL108: -1 | CM108: -4 | CN108: -1 | CO108: -4 | CP108: -1 | CQ108: -5 | CR108: -4 | CS108: -5 | CT108: 0 | CU108: -6 | CV108: 0 | CW108: -6 | CX108: -3 | CY108: -9 | CZ108: -3 | DA108: -9 | DB108: -4 | DC108: -9 | DD108: -4 | DE108: -9 | DF108: -4 | DG108: 5 | DH108: -3 | DI108: 6 | DJ108: -3 | DK108: 6 | DL108: 0 | DM108: 9 | DN108: 0 | DO108: 9 | DP108: 1 | DQ108: 5 | DR108: 1 | DS108: 5 | DT108: -3 | DU108: 5 | DV108: -3 | DW108: 9 | DX108: 2 | DY108: 3 | DZ108: 4 | EA108: -1 | EB108: 5.5 | EC108: 2 | ED108: 0.5 | EE108: -4 | EF108: -1.5 | EG108: -6 | EH108: 0.5 | EI108: 5 | EJ108: -3.5 | EK108: -7 | EL108: 3 | EM108: -9 | EN108: -4 | EO108: 9 | EP108: 0 | EQ108: -7 | ER108: 3 | ES108: -9 | ET108: -4 | EU108: 9 | EV108: 0 | EW108: 1 | EX108: 1 | EY108: 1 | EZ108: 1 | FA108: 1 | FB108: 1
AR109: 0 | AS109: 0 | AT109: 93 | AU109: 3 | AV109: 2 | AW109: 7 | AX109: 4 | AY109: -4 | AZ109: 1 | BA109: 0 | BB109: 3 | BC109: -6 | BD109: -1 | BE109: -2 | BF109: -3 | BG109: 3 | BH109: -3 | BI109: 1 | BJ109: 1 | BK109: 5 | BL109: 2 | BM109: 5 | BN109: 4 | BO109: 7 | BP109: 4 | BQ109: 7 | BR109: 5 | BS109: 4 | BT109: 5 | BU109: 4 | BV109: 3 | BW109: 3 | BX109: 3 | BY109: 3 | BZ109: 2 | CA109: -2 | CB109: 1 | CC109: -2 | CD109: 3 | CE109: 0 | CF109: 3 | CG109: 0 | CH109: 4 | CI109: -3 | CJ109: 4 | CK109: -3 | CL109: 2 | CM109: -4 | CN109: 2 | CO109: -4 | CP109: 1 | CQ109: -4 | CR109: -1 | CS109: -4 | CT109: -3 | CU109: -2 | CV109: -3 | CW109: -2 | CX109: -4 | CY109: -5 | CZ109: -4 | DA109: -5 | DB109: -2 | DC109: -6 | DD109: -2 | DE109: -6 | DF109: -1 | DG109: 0 | DH109: -2 | DI109: 2 | DJ109: -2 | DK109: 2 | DL109: -3 | DM109: 3 | DN109: -3 | DO109: 3 | DP109: -1 | DQ109: 1 | DR109: -1 | DS109: 1 | DT109: 1 | DU109: 0 | DV109: 1 | DW109: 9 | DX109: 4 | DY109: 1 | DZ109: 1 | EA109: 7 | EB109: 3.5 | EC109: 3 | ED109: 1.5 | EE109: -4 | EF109: 0.5 | EG109: -6 | EH109: -0.5 | EI109: 3 | EJ109: -3.5 | EK109: 0 | EL109: 3 | EM109: -2 | EN109: -3 | EO109: 1 | EP109: 1 | EQ109: 0 | ER109: 3 | ES109: -2 | ET109: -3 | EU109: 1 | EV109: 1 | EW109: 1 | EX109: 1 | EY109: 1 | EZ109: 1 | FA109: 1 | FB109: 1
AR110: 0 | AS110: 0 | AT110: 94 | AU110: 4 | AV110: 2 | AW110: 5 | AX110: 4 | AY110: -3 | AZ110: 3 | BA110: -2 | BB110: 5 | BC110: -7 | BD110: -1 | BE110: -6 | BF110: -3 | BG110: 6 | BH110: -3 | BI110: 8 | BJ110: -4 | BK110: 3 | BL110: 4 | BM110: 3 | BN110: 2 | BO110: 4 | BP110: 2 | BQ110: 4 | BR110: 2 | BS110: 4 | BT110: 2 | BU110: 4 | BV110: 3 | BW110: 5 | BX110: 3 | BY110: 5 | BZ110: 4 | CA110: -4 | CB110: 5 | CC110: -4 | CD110: 3 | CE110: -3 | CF110: 3 | CG110: -3 | CH110: 3 | CI110: -3 | CJ110: 3 | CK110: -3 | CL110: 4 | CM110: -2 | CN110: 4 | CO110: -2 | CP110: 5 | CQ110: -8 | CR110: -3 | CS110: -8 | CT110: -1 | CU110: -7 | CV110: -1 | CW110: -7 | CX110: -1 | CY110: -7 | CZ110: -1 | DA110: -7 | DB110: -2 | DC110: -6 | DD110: -2 | DE110: -6 | DF110: -3 | DG110: 8 | DH110: -4 | DI110: 8 | DJ110: -2 | DK110: 6 | DL110: -2 | DM110: 6 | DN110: -3 | DO110: 7 | DP110: -3 | DQ110: 7 | DR110: -4 | DS110: 8 | DT110: -4 | DU110: 8 | DV110: -4 | DW110: 9 | DX110: 1 | DY110: 4 | DZ110: 4 | EA110: 5 | EB110: 4.5 | EC110: 4 | ED110: 1.5 | EE110: -3 | EF110: 2.5 | EG110: -7 | EH110: -0.5 | EI110: 6 | EJ110: -3.5 | EK110: -2 | EL110: 5 | EM110: -6 | EN110: -3 | EO110: 8 | EP110: -4 | EQ110: -2 | ER110: 5 | ES110: -6 | ET110: -3 | EU110: 8 | EV110: -4 | EW110: 1 | EX110: 1 | EY110: 1 | EZ110: 1 | FA110: 1 | FB110: 1
AR111: 1 | AS111: 0 | AT111: 95 | AU111: 6 | AV111: 2 | AW111: 4 | AX111: 5 | AY111: -5 | AZ111: 0 | BA111: -7 | BB111: 3 | BC111: -8 | BD111: -4 | BE111: -6 | BF111: -1 | BG111: 7 | BH111: -1 | BI111: 10 | BJ111: 1 | BK111: 6 | BL111: 2 | BM111: 7 | BN111: 3 | BO111: 7 | BP111: 4 | BQ111: 6 | BR111: 5 | BS111: 4 | BT111: 5 | BU111: 3 | BV111: 4 | BW111: 3 | BX111: 3 | BY111: 4 | BZ111: 2 | CA111: -5 | CB111: 0 | CC111: -4 | CD111: 1 | CE111: -4 | CF111: 2 | CG111: -5 | CH111: 3 | CI111: -7 | CJ111: 3 | CK111: -8 | CL111: 2 | CM111: -8 | CN111: 1 | CO111: -7 | CP111: 0 | CQ111: -6 | CR111: -4 | CS111: -5 | CT111: -3 | CU111: -5 | CV111: -2 | CW111: -6 | CX111: -1 | CY111: -8 | CZ111: -1 | DA111: -9 | DB111: -2 | DC111: -9 | DD111: -3 | DE111: -8 | DF111: -4 | DG111: 9 | DH111: -2 | DI111: 10 | DJ111: -1 | DK111: 10 | DL111: 1 | DM111: 9 | DN111: 2 | DO111: 8 | DP111: 2 | DQ111: 7 | DR111: 1 | DS111: 7 | DT111: -1 | DU111: 8 | DV111: -2 | DW111: 9 | DX111: 2 | DY111: 2 | DZ111: 1 | EA111: 4 | EB111: 5.5 | EC111: 6 | ED111: 1.5 | EE111: -5 | EF111: -0.5 | EG111: -8 | EH111: -4.5 | EI111: 6 | EJ111: -0.5 | EK111: -7 | EL111: 3 | EM111: -6 | EN111: -1 | EO111: 10 | EP111: 1 | EQ111: -7 | ER111: 3 | ES111: -6 | ET111: -1 | EU111: 10 | EV111: 1 | EW111: 1 | EX111: 1 | EY111: 1 | EZ111: 1 | FA111: 1 | FB111: 1
AR112: 0 | AS112: 0 | AT112: 96 | AU112: 7 | AV112: 2 | AW112: 5 | AX112: 5 | AY112: -4 | AZ112: 0 | BA112: -6 | BB112: 3 | BC112: -7 | BD112: -4 | BE112: -5 | BF112: -1 | BG112: 5 | BH112: -2 | BI112: 8 | BJ112: -4 | BK112: 5 | BL112: 2 | BM112: 7 | BN112: 2 | BO112: 6 | BP112: 3 | BQ112: 7 | BR112: 4 | BS112: 5 | BT112: 4 | BU112: 5 | BV112: 5 | BW112: 4 | BX112: 4 | BY112: 4 | BZ112: 3 | CA112: -6 | CB112: 0 | CC112: -4 | CD112: 0 | CE112: -5 | CF112: 1 | CG112: -4 | CH112: 2 | CI112: -6 | CJ112: 2 | CK112: -6 | CL112: 3 | CM112: -7 | CN112: 2 | CO112: -7 | CP112: 1 | CQ112: -7 | CR112: -1 | CS112: -5 | CT112: -1 | CU112: -6 | CV112: -2 | CW112: -5 | CX112: -3 | CY112: -7 | CZ112: -3 | DA112: -7 | DB112: -4 | DC112: -8 | DD112: -3 | DE112: -8 | DF112: -2 | DG112: 8 | DH112: -4 | DI112: 8 | DJ112: -2 | DK112: 7 | DL112: -1 | DM112: 6 | DN112: -1 | DO112: 5 | DP112: -2 | DQ112: 6 | DR112: -2 | DS112: 6 | DT112: -4 | DU112: 7 | DV112: -3 | DW112: 9 | DX112: 1 | DY112: 4 | DZ112: 4 | EA112: 5 | EB112: 5.5 | EC112: 7 | ED112: 1.5 | EE112: -4 | EF112: -0.5 | EG112: -7 | EH112: -4.5 | EI112: 5 | EJ112: -2.5 | EK112: -6 | EL112: 3 | EM112: -5 | EN112: -1 | EO112: 8 | EP112: -4 | EQ112: -6 | ER112: 3 | ES112: -5 | ET112: -1 | EU112: 8 | EV112: -4 | EW112: 1 | EX112: 1 | EY112: 1 | EZ112: 1 | FA112: 1 | FB112: 1
AR113: 0 | AS113: 0 | AT113: 97 | AU113: 5 | AV113: 1 | AW113: 4 | AX113: 5 | AY113: -6 | AZ113: -1 | BA113: -7 | BB113: 3 | BC113: -3 | BD113: -4 | BE113: -2 | BF113: 0 | BG113: 5 | BH113: -1 | BI113: 9 | BJ113: -2 | BK113: 5 | BL113: 1 | BM113: 7 | BN113: 3 | BO113: 7 | BP113: 4 | BQ113: 6 | BR113: 5 | BS113: 5 | BT113: 4 | BU113: 4 | BV113: 5 | BW113: 3 | BX113: 4 | BY113: 3 | BZ113: 3 | CA113: -6 | CB113: -1 | CC113: -4 | CD113: 1 | CE113: -4 | CF113: 2 | CG113: -5 | CH113: 3 | CI113: -6 | CJ113: 2 | CK113: -7 | CL113: 3 | CM113: -8 | CN113: 2 | CO113: -8 | CP113: 1 | CQ113: -2 | CR113: 0 | CS113: 0 | CT113: -2 | CU113: 0 | CV113: -3 | CW113: -1 | CX113: -4 | CY113: -2 | CZ113: -3 | DA113: -3 | DB113: -4 | DC113: -4 | DD113: -3 | DE113: -4 | DF113: -2 | DG113: 7 | DH113: -4 | DI113: 9 | DJ113: -2 | DK113: 7 | DL113: 0 | DM113: 6 | DN113: 0 | DO113: 5 | DP113: -1 | DQ113: 6 | DR113: -2 | DS113: 5 | DT113: -3 | DU113: 6 | DV113: -4 | DW113: 9 | DX113: 1 | DY113: 1 | DZ113: 1 | EA113: 4 | EB113: 5.5 | EC113: 5 | ED113: 0.5 | EE113: -6 | EF113: -1.5 | EG113: -3 | EH113: -4.5 | EI113: 4 | EJ113: -0.5 | EK113: -7 | EL113: 3 | EM113: -2 | EN113: 0 | EO113: 9 | EP113: -2 | EQ113: -7 | ER113: 3 | ES113: -2 | ET113: 0 | EU113: 9 | EV113: -2 | EW113: 1 | EX113: 1 | EY113: 1 | EZ113: 1 | FA113: 1 | FB113: 1
AR114: 0 | AS114: 0 | AT114: 98 | AU114: 5 | AV114: 2 | AW114: 7 | AX114: 5 | AY114: -5 | AZ114: 1 | BA114: -3 | BB114: 4 | BC114: -9 | BD114: 1 | BE114: -7 | BF114: -2 | BG114: 9 | BH114: -1 | BI114: 7 | BJ114: -4 | BK114: 5 | BL114: 2 | BM114: 8 | BN114: 2 | BO114: 8 | BP114: 5 | BQ114: 7 | BR114: 5 | BS114: 7 | BT114: 4 | BU114: 6 | BV114: 4 | BW114: 6 | BX114: 3 | BY114: 5 | BZ114: 3 | CA114: -5 | CB114: 1 | CC114: -2 | CD114: 1 | CE114: -2 | CF114: 4 | CG114: -3 | CH114: 4 | CI114: -3 | CJ114: 3 | CK114: -4 | CL114: 3 | CM114: -4 | CN114: 2 | CO114: -5 | CP114: 2 | CQ114: -9 | CR114: 1 | CS114: -6 | CT114: 1 | CU114: -6 | CV114: -2 | CW114: -7 | CX114: -2 | CY114: -7 | CZ114: -1 | DA114: -8 | DB114: -1 | DC114: -8 | DD114: 0 | DE114: -9 | DF114: 0 | DG114: 9 | DH114: -1 | DI114: 6 | DJ114: -1 | DK114: 6 | DL114: -4 | DM114: 7 | DN114: -4 | DO114: 7 | DP114: -3 | DQ114: 8 | DR114: -3 | DS114: 8 | DT114: -2 | DU114: 9 | DV114: -2 | DW114: 9 | DX114: 2 | DY114: 3 | DZ114: 4 | EA114: 7 | EB114: 5.5 | EC114: 5 | ED114: 1.5 | EE114: -5 | EF114: 0.5 | EG114: -9 | EH114: 1.5 | EI114: 9 | EJ114: -0.5 | EK114: -3 | EL114: 4 | EM114: -7 | EN114: -2 | EO114: 7 | EP114: -4 | EQ114: -3 | ER114: 4 | ES114: -7 | ET114: -2 | EU114: 7 | EV114: -4 | EW114: 1 | EX114: 1 | EY114: 1 | EZ114: 1 | FA114: 1 | FB114: 1
AR115: 0 | AS115: 0 | AT115: 99 | AU115: 8 | AV115: 1 | AW115: 6 | AX115: 5 | AY115: -6 | AZ115: 4 | BA115: -8 | BB115: 0 | BC115: -1 | BD115: 0 | BE115: -3 | BF115: -4 | BG115: 6 | BH115: -4 | BI115: 2 | BJ115: -2 | BK115: 9 | BL115: 2 | BM115: 8 | BN115: 1 | BO115: 7 | BP115: 2 | BQ115: 6 | BR115: 1 | BS115: 5 | BT115: 2 | BU115: 4 | BV115: 1 | BW115: 3 | BX115: 2 | BY115: 6 | BZ115: 5 | CA115: -3 | CB115: 1 | CC115: -4 | CD115: 0 | CE115: -5 | CF115: 1 | CG115: -6 | CH115: 0 | CI115: -7 | CJ115: 1 | CK115: -8 | CL115: 0 | CM115: -9 | CN115: 1 | CO115: -6 | CP115: 4 | CQ115: 0 | CR115: -1 | CS115: -1 | CT115: 0 | CU115: -2 | CV115: -1 | CW115: -3 | CX115: 0 | CY115: -4 | CZ115: -1 | DA115: -5 | DB115: 0 | DC115: -6 | DD115: -1 | DE115: -3 | DF115: -4 | DG115: 5 | DH115: -5 | DI115: 6 | DJ115: -4 | DK115: 5 | DL115: -3 | DM115: 6 | DN115: -2 | DO115: 5 | DP115: -1 | DQ115: 6 | DR115: 0 | DS115: 5 | DT115: 1 | DU115: 2 | DV115: -2 | DW115: 9 | DX115: 3 | DY115: 4 | DZ115: 2 | EA115: 6 | EB115: 5.5 | EC115: 8 | ED115: 0.5 | EE115: -6 | EF115: 4.5 | EG115: -1 | EH115: 0.5 | EI115: 7 | EJ115: -3.5 | EK115: -8 | EL115: 0 | EM115: -3 | EN115: -4 | EO115: 2 | EP115: -2 | EQ115: -8 | ER115: 0 | ES115: -3 | ET115: -4 | EU115: 2 | EV115: -2 | EW115: 1 | EX115: 1 | EY115: 1 | EZ115: 1 | FA115: 1 | FB115: 1
AR116: -1 | AS116: 0 | AT116: 100 | AU116: 5 | AV116: 1 | AW116: 7 | AX116: 5 | AY116: -5 | AZ116: 4 | BA116: -7 | BB116: 0 | BC116: -2 | BD116: -4 | BE116: -4 | BF116: 0 | BG116: 4 | BH116: -4 | BI116: 6 | BJ116: 0 | BK116: 8 | BL116: 2 | BM116: 7 | BN116: 3 | BO116: 8 | BP116: 4 | BQ116: 7 | BR116: 5 | BS116: 4 | BT116: 2 | BU116: 5 | BV116: 1 | BW116: 6 | BX116: 2 | BY116: 7 | BZ116: 1 | CA116: -4 | CB116: 1 | CC116: -5 | CD116: 2 | CE116: -4 | CF116: 3 | CG116: -5 | CH116: 4 | CI116: -8 | CJ116: 1 | CK116: -7 | CL116: 0 | CM116: -6 | CN116: 1 | CO116: -5 | CP116: 0 | CQ116: -1 | CR116: -1 | CS116: -2 | CT116: -2 | CU116: -1 | CV116: -3 | CW116: -2 | CX116: -4 | CY116: -5 | CZ116: -1 | DA116: -4 | DB116: 0 | DC116: -3 | DD116: -1 | DE116: -2 | DF116: 0 | DG116: 4 | DH116: -4 | DI116: 7 | DJ116: -1 | DK116: 6 | DL116: 0 | DM116: 5 | DN116: -1 | DO116: 4 | DP116: 0 | DQ116: 3 | DR116: -1 | DS116: 4 | DT116: -2 | DU116: 3 | DV116: -3 | DW116: 9 | DX116: 3 | DY116: 1 | DZ116: 1 | EA116: 7 | EB116: 5.5 | EC116: 5 | ED116: 0.5 | EE116: -5 | EF116: 4.5 | EG116: -2 | EH116: -4.5 | EI116: 4 | EJ116: -4.5 | EK116: -7 | EL116: 0 | EM116: -4 | EN116: 0 | EO116: 6 | EP116: 0 | EQ116: -7 | ER116: 0 | ES116: -4 | ET116: 0 | EU116: 6 | EV116: 0 | EW116: 1 | EX116: 1 | EY116: 1 | EZ116: 1 | FA116: 1 | FB116: 1
AR117: 0 | AS117: 0 | AT117: 101 | AU117: 6 | AV117: -1 | AW117: 7 | AX117: 4 | AY117: -5 | AZ117: 3 | BA117: -6 | BB117: -2 | BC117: -2 | BD117: -3 | BE117: -3 | BF117: 2 | BG117: 6 | BH117: -3 | BI117: 1 | BJ117: -2 | BK117: 6 | BL117: -1 | BM117: 8 | BN117: 1 | BO117: 7 | BP117: 2 | BQ117: 8 | BR117: 3 | BS117: 7 | BT117: 4 | BU117: 5 | BV117: 2 | BW117: 6 | BX117: 1 | BY117: 5 | BZ117: 0 | CA117: -6 | CB117: -2 | CC117: -4 | CD117: 0 | CE117: -5 | CF117: 1 | CG117: -4 | CH117: 2 | CI117: -5 | CJ117: 3 | CK117: -7 | CL117: 1 | CM117: -6 | CN117: 0 | CO117: -7 | CP117: -1 | CQ117: -3 | CR117: 2 | CS117: -1 | CT117: 0 | CU117: -2 | CV117: -1 | CW117: -1 | CX117: -2 | CY117: -2 | CZ117: -3 | DA117: -4 | DB117: -1 | DC117: -3 | DD117: 0 | DE117: -4 | DF117: 1 | DG117: 5 | DH117: -4 | DI117: 6 | DJ117: -3 | DK117: 4 | DL117: -1 | DM117: 3 | DN117: -2 | DO117: 2 | DP117: -1 | DQ117: 1 | DR117: -2 | DS117: 3 | DT117: -4 | DU117: 4 | DV117: -3 | DW117: 9 | DX117: 3 | DY117: 1 | DZ117: 3 | EA117: 7 | EB117: 4.5 | EC117: 6 | ED117: -1.5 | EE117: -5 | EF117: 3.5 | EG117: -2 | EH117: -3.5 | EI117: 7 | EJ117: -2.5 | EK117: -6 | EL117: -2 | EM117: -3 | EN117: 2 | EO117: 1 | EP117: -2 | EQ117: -6 | ER117: -2 | ES117: -3 | ET117: 2 | EU117: 1 | EV117: -2 | EW117: 1 | EX117: 1 | EY117: 1 | EZ117: 1 | FA117: 1 | FB117: 1
AR118: 0 | AS118: 0 | AT118: 102 | AU118: 4 | AV118: 3 | AW118: 7 | AX118: 4 | AY118: -5 | AZ118: 3 | BA118: -8 | BB118: 2 | BC118: -6 | BD118: -3 | BE118: -9 | BF118: -2 | BG118: 4 | BH118: -1 | BI118: 5 | BJ118: -4 | BK118: 6 | BL118: 1 | BM118: 7 | BN118: 2 | BO118: 6 | BP118: 3 | BQ118: 7 | BR118: 4 | BS118: 6 | BT118: 5 | BU118: 4 | BV118: 3 | BW118: 6 | BX118: 1 | BY118: 6 | BZ118: 1 | CA118: -6 | CB118: 0 | CC118: -5 | CD118: 1 | CE118: -6 | CF118: 2 | CG118: -5 | CH118: 3 | CI118: -6 | CJ118: 4 | CK118: -8 | CL118: 2 | CM118: -6 | CN118: 0 | CO118: -6 | CP118: 0 | CQ118: -8 | CR118: -1 | CS118: -9 | CT118: -2 | CU118: -8 | CV118: -3 | CW118: -9 | CX118: -4 | CY118: -8 | CZ118: -5 | DA118: -6 | DB118: -3 | DC118: -8 | DD118: -1 | DE118: -8 | DF118: -1 | DG118: 5 | DH118: -4 | DI118: 6 | DJ118: -3 | DK118: 4 | DL118: -1 | DM118: 2 | DN118: -3 | DO118: 3 | DP118: -4 | DQ118: 4 | DR118: -3 | DS118: 5 | DT118: -4 | DU118: 5 | DV118: -4 | DW118: 9 | DX118: 2 | DY118: 2 | DZ118: 4 | EA118: 8 | EB118: 4.5 | EC118: 3 | ED118: 3.5 | EE118: -4 | EF118: 3.5 | EG118: -5 | EH118: -2.5 | EI118: 4 | EJ118: -0.5 | EK118: -8 | EL118: 2 | EM118: -9 | EN118: -2 | EO118: 5 | EP118: -4 | EQ118: -8 | ER118: 2 | ES118: -9 | ET118: -2 | EU118: 5 | EV118: -4 | EW118: 1 | EX118: 1 | EY118: 1 | EZ118: 1 | FA118: 1 | FB118: 1
AR119: 1 | AS119: 0 | AT119: 103 | AU119: 4 | AV119: 1 | AW119: 9 | AX119: 0 | AY119: -4 | AZ119: 1 | BA119: -9 | BB119: 2 | BC119: -4 | BD119: -2 | BE119: 1 | BF119: -1 | BG119: 4 | BH119: 0 | BI119: 3 | BJ119: -5 | BK119: 9 | BL119: 0 | BM119: 8 | BN119: 1 | BO119: 7 | BP119: 0 | BQ119: 6 | BR119: 1 | BS119: 8 | BT119: 3 | BU119: 7 | BV119: 4 | BW119: 4 | BX119: 1 | BY119: 7 | BZ119: -2 | CA119: -4 | CB119: 1 | CC119: -5 | CD119: 2 | CE119: -6 | CF119: 1 | CG119: -7 | CH119: 2 | CI119: -5 | CJ119: 4 | CK119: -6 | CL119: 5 | CM119: -9 | CN119: 2 | CO119: -6 | CP119: -1 | CQ119: -1 | CR119: -5 | CS119: 0 | CT119: -4 | CU119: -2 | CV119: -2 | CW119: -1 | CX119: -1 | CY119: 0 | CZ119: -2 | DA119: 1 | DB119: -1 | DC119: -1 | DD119: 1 | DE119: -4 | DF119: -2 | DG119: 3 | DH119: -5 | DI119: 4 | DJ119: -4 | DK119: 3 | DL119: -3 | DM119: 4 | DN119: -2 | DO119: 6 | DP119: -4 | DQ119: 7 | DR119: -3 | DS119: 4 | DT119: 0 | DU119: 1 | DV119: -3 | DW119: 9 | DX119: 2 | DY119: 1 | DZ119: 4 | EA119: 10 | EB119: 0.5 | EC119: 3 | ED119: 1.5 | EE119: -3 | EF119: 1.5 | EG119: -5 | EH119: -1.5 | EI119: 3 | EJ119: 0.5 | EK119: -9 | EL119: 2 | EM119: 1 | EN119: -1 | EO119: 3 | EP119: -5 | EQ119: -9 | ER119: 2 | ES119: 1 | ET119: -1 | EU119: 3 | EV119: -5 | EW119: 1 | EX119: 1 | EY119: 1 | EZ119: 1 | FA119: 1 | FB119: 1
AR120: 0 | AS120: 0 | AT120: 104 | AU120: 7 | AV120: 4 | AW120: 8 | AX120: 1 | AY120: -6 | AZ120: 5 | BA120: -5 | BB120: 2 | BC120: -4 | BD120: -4 | BE120: -3 | BF120: -1 | BG120: 4 | BH120: -2 | BI120: 1 | BJ120: -3 | BK120: 8 | BL120: 1 | BM120: 9 | BN120: 2 | BO120: 8 | BP120: 4 | BQ120: 7 | BR120: 4 | BS120: 6 | BT120: 2 | BU120: 7 | BV120: 1 | BW120: 8 | BX120: 1 | BY120: 8 | BZ120: 1 | CA120: -5 | CB120: 2 | CC120: -4 | CD120: 3 | CE120: -5 | CF120: 5 | CG120: -6 | CH120: 5 | CI120: -7 | CJ120: 3 | CK120: -6 | CL120: 2 | CM120: -5 | CN120: 2 | CO120: -5 | CP120: 2 | CQ120: -2 | CR120: -2 | CS120: -3 | CT120: -1 | CU120: -4 | CV120: -1 | CW120: -5 | CX120: -2 | CY120: -4 | CZ120: -4 | DA120: -3 | DB120: -4 | DC120: -2 | DD120: -2 | DE120: -2 | DF120: -2 | DG120: 3 | DH120: -4 | DI120: 4 | DJ120: -3 | DK120: 4 | DL120: -2 | DM120: 3 | DN120: -1 | DO120: 1 | DP120: -2 | DQ120: 1 | DR120: -3 | DS120: 3 | DT120: -4 | DU120: 3 | DV120: -4 | DW120: 9 | DX120: 4 | DY120: 1 | DZ120: 3 | EA120: 8 | EB120: 0.5 | EC120: 7 | ED120: 4.5 | EE120: -6 | EF120: 5.5 | EG120: -4 | EH120: -4.5 | EI120: 5 | EJ120: -1.5 | EK120: -5 | EL120: 2 | EM120: -3 | EN120: -1 | EO120: 1 | EP120: -3 | EQ120: -5 | ER120: 2 | ES120: -3 | ET120: -1 | EU120: 1 | EV120: -3 | EW120: 1 | EX120: 1 | EY120: 1 | EZ120: 1 | FA120: 1 | FB120: 1
AR121: 0 | AS121: 0 | AT121: 105 | AU121: 5 | AV121: 3 | AW121: 8 | AX121: 1 | AY121: -8 | AZ121: 4 | BA121: -5 | BB121: 2 | BC121: -7 | BD121: -3 | BE121: -4 | BF121: -1 | BG121: 3 | BH121: 2 | BI121: 5 | BJ121: -1 | BK121: 8 | BL121: 1 | BM121: 9 | BN121: 2 | BO121: 9 | BP121: 3 | BQ121: 7 | BR121: 4 | BS121: 5 | BT121: 3 | BU121: 5 | BV121: 2 | BW121: 6 | BX121: 1 | BY121: 8 | BZ121: 1 | CA121: -5 | CB121: 2 | CC121: -4 | CD121: 3 | CE121: -4 | CF121: 4 | CG121: -6 | CH121: 5 | CI121: -8 | CJ121: 4 | CK121: -8 | CL121: 3 | CM121: -7 | CN121: 2 | CO121: -5 | CP121: 2 | CQ121: -5 | CR121: -4 | CS121: -3 | CT121: -3 | CU121: -3 | CV121: -2 | CW121: -4 | CX121: -1 | CY121: -6 | CZ121: -1 | DA121: -7 | DB121: -2 | DC121: -7 | DD121: -3 | DE121: -5 | DF121: -4 | DG121: 3 | DH121: -2 | DI121: 4 | DJ121: -2 | DK121: 5 | DL121: -1 | DM121: 5 | DN121: 1 | DO121: 4 | DP121: 2 | DQ121: 3 | DR121: 2 | DS121: 2 | DT121: 0 | DU121: 3 | DV121: -2 | DW121: 9 | DX121: 4 | DY121: 1 | DZ121: 4 | EA121: 8 | EB121: 0.5 | EC121: 4 | ED121: 3.5 | EE121: -9 | EF121: 4.5 | EG121: -8 | EH121: =EH37+$AS121+1 -> -2.5 | EI121: 3 | EJ121: 2.5 | EK121: -5 | EL121: 2 | EM121: -4 | EN121: -1 | EO121: 5 | EP121: -1 | EQ121: -5 | ER121: 2 | ES121: -4 | ET121: -1 | EU121: 5 | EV121: -1 | EW121: 1 | EX121: 1 | EY121: 1 | EZ121: 1 | FA121: 1 | FB121: 1
AR122: 1 | AS122: 0 | AT122: 106 | AU122: 6 | AV122: 2 | AW122: 3 | AX122: 3 | AY122: -6 | AZ122: 1 | BA122: -9 | BB122: 2 | BC122: -6 | BD122: -2 | BE122: -3 | BF122: -1 | BG122: 8 | BH122: 0 | BI122: 7 | BJ122: -3 | BK122: 6 | BL122: 2 | BM122: 7 | BN122: 3 | BO122: 5 | BP122: 5 | BQ122: 3 | BR122: 3 | BS122: 4 | BT122: 2 | BU122: 6 | BV122: 2 | BW122: 6 | BX122: 2 | BY122: 6 | BZ122: 2 | CA122: -6 | CB122: 1 | CC122: -5 | CD122: 2 | CE122: -7 | CF122: 4 | CG122: -9 | CH122: 2 | CI122: -8 | CJ122: 1 | CK122: -6 | CL122: 1 | CM122: -6 | CN122: 1 | CO122: -6 | CP122: 1 | CQ122: -4 | CR122: -4 | CS122: -2 | CT122: -2 | CU122: -3 | CV122: -1 | CW122: -5 | CX122: -1 | CY122: -6 | CZ122: -2 | DA122: -4 | DB122: -4 | DC122: -4 | DD122: -4 | DE122: -4 | DF122: -4 | DG122: 8 | DH122: -4 | DI122: 10 | DJ122: -2 | DK122: 8 | DL122: 0 | DM122: 7 | DN122: -1 | DO122: 7 | DP122: -3 | DQ122: 8 | DR122: -4 | DS122: 8 | DT122: -4 | DU122: 8 | DV122: -4 | DW122: 9 | DX122: 2 | DY122: 1 | DZ122: 3 | EA122: 2 | EB122: 3.5 | EC122: 6 | ED122: 1.5 | EE122: -6 | EF122: 0.5 | EG122: -7 | EH122: =EH38+$AS122 -> -1.5 | EI122: 8 | EJ122: 0.5 | EK122: -9 | EL122: 2 | EM122: -3 | EN122: -1 | EO122: 7 | EP122: -3 | EQ122: -9 | ER122: 2 | ES122: -3 | ET122: -1 | EU122: 7 | EV122: -3 | EW122: 1 | EX122: 1 | EY122: 1 | EZ122: 1 | FA122: 1 | FB122: 1
AR123: 0 | AS123: 0 | AT123: 107 | AU123: 5 | AV123: 1 | AW123: 6 | AX123: 4 | AY123: -6 | AZ123: 3 | BA123: -7 | BB123: 0 | BC123: -4 | BD123: -4 | BE123: -5 | BF123: -1 | BG123: 3 | BH123: -2 | BI123: 6 | BJ123: -3 | BK123: 5 | BL123: 1 | BM123: 6 | BN123: 1 | BO123: 6 | BP123: 3 | BQ123: 7 | BR123: 3 | BS123: 6 | BT123: 4 | BU123: 5 | BV123: 4 | BW123: 5 | BX123: 1 | BY123: 5 | BZ123: 1 | CA123: -7 | CB123: 0 | CC123: -6 | CD123: 0 | CE123: -6 | CF123: 2 | CG123: -5 | CH123: 2 | CI123: -6 | CJ123: 3 | CK123: -7 | CL123: 3 | CM123: -7 | CN123: 0 | CO123: -7 | CP123: 0 | CQ123: -5 | CR123: -4 | CS123: -4 | CT123: -4 | CU123: -3 | CV123: -3 | CW123: -4 | CX123: -3 | CY123: -4 | CZ123: -1 | DA123: -5 | DB123: -1 | DC123: -5 | DD123: -4 | DE123: -5 | DF123: -4 | DG123: 5 | DH123: -4 | DI123: 6 | DJ123: -3 | DK123: 6 | DL123: -2 | DM123: 3 | DN123: -2 | DO123: 3 | DP123: -3 | DQ123: 5 | DR123: -3 | DS123: 5 | DT123: -4 | DU123: 5 | DV123: -4 | DW123: 9 | DX123: 3 | DY123: 2 | DZ123: 4 | EA123: 6 | EB123: 4.5 | EC123: 5 | ED123: 0.5 | EE123: -6 | EF123: 3.5 | EG123: -4 | EH123: -4.5 | EI123: 3 | EJ123: -1.5 | EK123: -7 | EL123: 0 | EM123: -5 | EN123: -1 | EO123: 6 | EP123: -3 | EQ123: -7 | ER123: 0 | ES123: -5 | ET123: -1 | EU123: 6 | EV123: -3 | EW123: 1 | EX123: 1 | EY123: 1 | EZ123: 1 | FA123: 1 | FB123: 1
AR124: 0 | AS124: 0 | AT124: 108 | AU124: 4 | AV124: 1 | AW124: 6 | AX124: 4 | AY124: -6 | AZ124: 2 | BA124: -8 | BB124: -1 | BC124: -3 | BD124: -4 | BE124: -5 | BF124: -1 | BG124: 8 | BH124: -4 | BI124: 5 | BJ124: -2 | BK124: 5 | BL124: 1 | BM124: 7 | BN124: 3 | BO124: 6 | BP124: 4 | BQ124: 4 | BR124: 2 | BS124: 4 | BT124: 1 | BU124: 5 | BV124: 1 | BW124: 5 | BX124: 1 | BY124: 5 | BZ124: 1 | CA124: -7 | CB124: -1 | CC124: -5 | CD124: 1 | CE124: -6 | CF124: 2 | CG124: -8 | CH124: 0 | CI124: -8 | CJ124: -1 | CK124: -7 | CL124: -1 | CM124: -7 | CN124: -1 | CO124: -7 | CP124: -1 | CQ124: -3 | CR124: -4 | CS124: -2 | CT124: -3 | CU124: -4 | CV124: -1 | CW124: -5 | CX124: -1 | CY124: -5 | CZ124: -2 | DA124: -3 | DB124: -4 | DC124: -3 | DD124: -4 | DE124: -3 | DF124: -4 | DG124: 8 | DH124: -4 | DI124: 8 | DJ124: -3 | DK124: 6 | DL124: -1 | DM124: 5 | DN124: -2 | DO124: 7 | DP124: -4 | DQ124: 8 | DR124: -4 | DS124: 8 | DT124: -4 | DU124: 8 | DV124: -4 | DW124: 9 | DX124: 3 | DY124: 2 | DZ124: 2 | EA124: 6 | EB124: 4.5 | EC124: 4 | ED124: 0.5 | EE124: -6 | EF124: 2.5 | EG124: -3 | EH124: -4.5 | EI124: 8 | EJ124: -4.5 | EK124: -8 | EL124: -1 | EM124: -5 | EN124: -1 | EO124: 5 | EP124: -2 | EQ124: -8 | ER124: -1 | ES124: -5 | ET124: -1 | EU124: 5 | EV124: -2 | EW124: 1 | EX124: 1 | EY124: 1 | EZ124: 1 | FA124: 1 | FB124: 1
AR125: 0 | AS125: 0 | AT125: 109 | AU125: 3 | AV125: 4 | AW125: 7 | AX125: 2 | AY125: -5 | AZ125: 0 | BA125: -9 | BB125: 2 | BC125: -5 | BD125: -4 | BE125: -1 | BF125: -2 | BG125: 6 | BH125: -4 | BI125: 4 | BJ125: 0 | BK125: 6 | BL125: 1 | BM125: 7 | BN125: 2 | BO125: 6 | BP125: 2 | BQ125: 5 | BR125: 4 | BS125: 3 | BT125: 4 | BU125: 4 | BV125: 2 | BW125: 3 | BX125: 2 | BY125: 4 | BZ125: 1 | CA125: -6 | CB125: -1 | CC125: -5 | CD125: 0 | CE125: -6 | CF125: 0 | CG125: -7 | CH125: 2 | CI125: -9 | CJ125: 2 | CK125: -8 | CL125: 0 | CM125: -9 | CN125: 0 | CO125: -8 | CP125: -1 | CQ125: -5 | CR125: -4 | CS125: -3 | CT125: -4 | CU125: -2 | CV125: -2 | CW125: -1 | CX125: -2 | CY125: -2 | CZ125: -1 | DA125: -4 | DB125: -1 | DC125: -5 | DD125: -2 | DE125: -4 | DF125: -2 | DG125: 6 | DH125: -4 | DI125: 7 | DJ125: -3 | DK125: 7 | DL125: -1 | DM125: 6 | DN125: 0 | DO125: 6 | DP125: -1 | DQ125: 4 | DR125: 0 | DS125: 4 | DT125: -2 | DU125: 6 | DV125: -3 | DW125: 9 | DX125: 2 | DY125: 1 | DZ125: 2 | EA125: 7 | EB125: 2.5 | EC125: 3 | ED125: 4.5 | EE125: -5 | EF125: 0.5 | EG125: -5 | EH125: -4.5 | EI125: 6 | EJ125: -4.5 | EK125: -9 | EL125: 2 | EM125: -1 | EN125: -2 | EO125: 4 | EP125: 0 | EQ125: -9 | ER125: 2 | ES125: -1 | ET125: -2 | EU125: 4 | EV125: 0 | EW125: 1 | EX125: 1 | EY125: 1 | EZ125: 1 | FA125: 1 | FB125: 1
AR126: 1 | AS126: 0 | AT126: 110 | AU126: 5 | AV126: 5 | AW126: 6 | AX126: 1 | AY126: -7 | AZ126: 3 | BA126: -6 | BB126: -1 | BC126: -3 | BD126: -3 | BE126: -2 | BF126: 1 | BG126: 9 | BH126: -1 | BI126: 5 | BJ126: -2 | BK126: 4 | BL126: 1 | BM126: 6 | BN126: 1 | BO126: 6 | BP126: 3 | BQ126: 7 | BR126: 3 | BS126: 5 | BT126: 5 | BU126: 3 | BV126: 3 | BW126: 4 | BX126: 3 | BY126: 4 | BZ126: 1 | CA126: -8 | CB126: -1 | CC126: -6 | CD126: -1 | CE126: -6 | CF126: 1 | CG126: -5 | CH126: 1 | CI126: -7 | CJ126: 3 | CK126: -9 | CL126: 1 | CM126: -8 | CN126: 1 | CO126: -8 | CP126: -1 | CQ126: -4 | CR126: 1 | CS126: -2 | CT126: 1 | CU126: -2 | CV126: -1 | CW126: -1 | CX126: -1 | CY126: -3 | CZ126: -3 | DA126: -5 | DB126: -1 | DC126: -4 | DD126: -1 | DE126: -4 | DF126: 1 | DG126: 7 | DH126: -4 | DI126: 7 | DJ126: -3 | DK126: 9 | DL126: -3 | DM126: 9 | DN126: -1 | DO126: 7 | DP126: -1 | DQ126: 7 | DR126: 0 | DS126: 5 | DT126: -2 | DU126: 7 | DV126: -4 | DW126: 9 | DX126: 4 | DY126: 1 | DZ126: 2 | EA126: 6 | EB126: 0.5 | EC126: 5 | ED126: 5.5 | EE126: -7 | EF126: 3.5 | EG126: -3 | EH126: -3.5 | EI126: 9 | EJ126: -0.5 | EK126: -6 | EL126: -1 | EM126: -2 | EN126: 1 | EO126: 5 | EP126: -2 | EQ126: -6 | ER126: -1 | ES126: -2 | ET126: 1 | EU126: 5 | EV126: -2 | EW126: 1 | EX126: 1 | EY126: 1 | EZ126: 1 | FA126: 1 | FB126: 1
AR127: 0 | AS127: 0 | AT127: 111 | AU127: 6 | AV127: 4 | AW127: 7 | AX127: 1 | AY127: -6 | AZ127: 2 | BA127: -5 | BB127: -1 | BC127: -2 | BD127: -2 | BE127: -1 | BF127: 1 | BG127: 8 | BH127: -3 | BI127: 5 | BJ127: -4 | BK127: 3 | BL127: 1 | BM127: 7 | BN127: 1 | BO127: 6 | BP127: 4 | BQ127: 4 | BR127: 4 | BS127: 3 | BT127: 1 | BU127: 3 | BV127: 1 | BW127: 3 | BX127: 1 | BY127: 3 | BZ127: 1 | CA127: -9 | CB127: -1 | CC127: -5 | CD127: -1 | CE127: -6 | CF127: 2 | CG127: -8 | CH127: 2 | CI127: -9 | CJ127: -1 | CK127: -9 | CL127: -1 | CM127: -9 | CN127: -1 | CO127: -9 | CP127: -1 | CQ127: -5 | CR127: 1 | CS127: -1 | CT127: 1 | CU127: -2 | CV127: -2 | CW127: -4 | CX127: -2 | CY127: -5 | CZ127: 1 | DA127: -5 | DB127: 1 | DC127: -5 | DD127: 1 | DE127: -5 | DF127: 1 | DG127: 5 | DH127: -4 | DI127: 8 | DJ127: -3 | DK127: 8 | DL127: -1 | DM127: 5 | DN127: 0 | DO127: 5 | DP127: -4 | DQ127: 5 | DR127: -4 | DS127: 5 | DT127: -4 | DU127: 5 | DV127: -4 | DW127: 9 | DX127: 4 | DY127: 1 | DZ127: 3 | EA127: 7 | EB127: 0.5 | EC127: 6 | ED127: 4.5 | EE127: -6 | EF127: 2.5 | EG127: -2 | EH127: -2.5 | EI127: =-EI43+$AR127+1 -> 9 | EJ127: =EJ43+$AS127+1 -> -2.5 | EK127: -5 | EL127: -1 | EM127: -1 | EN127: 1 | EO127: 5 | EP127: -4 | EQ127: -5 | ER127: -1 | ES127: -1 | ET127: 1 | EU127: 5 | EV127: -4 | EW127: 1 | EX127: 1 | EY127: 1 | EZ127: 1 | FA127: 1 | FB127: 1
AR128: 0 | AS128: 0 | AT128: 112 | AU128: 6 | AV128: 5 | AW128: 3 | AX128: 1 | AY128: -6 | AZ128: 3 | BA128: -9 | BB128: -1 | BC128: -2 | BD128: -3 | BE128: -5 | BF128: 1 | BG128: 8 | BH128: -4 | BI128: 4 | BJ128: -1 | BK128: 3 | BL128: 1 | BM128: 6 | BN128: 2 | BO128: 6 | BP128: 5 | BQ128: 3 | BR128: 3 | BS128: 3 | BT128: 1 | BU128: 3 | BV128: 1 | BW128: 3 | BX128: 1 | BY128: 3 | BZ128: 1 | CA128: -9 | CB128: -1 | CC128: -6 | CD128: 0 | CE128: -6 | CF128: 3 | CG128: -9 | CH128: 1 | CI128: -9 | CJ128: -1 | CK128: -9 | CL128: -1 | CM128: -9 | CN128: -1 | CO128: -9 | CP128: -1 | CQ128: -5 | CR128: 1 | CS128: -2 | CT128: 0 | CU128: -2 | CV128: -3 | CW128: -5 | CX128: -1 | CY128: -5 | CZ128: 1 | DA128: -5 | DB128: 1 | DC128: -5 | DD128: 1 | DE128: -5 | DF128: 1 | DG128: 5 | DH128: -4 | DI128: 8 | DJ128: -4 | DK128: 6 | DL128: -1 | DM128: 4 | DN128: -1 | DO128: 5 | DP128: -4 | DQ128: 5 | DR128: -4 | DS128: 5 | DT128: -4 | DU128: 5 | DV128: -4 | DW128: 9 | DX128: 3 | DY128: 2 | DZ128: 2 | EA128: 3 | EB128: 0.5 | EC128: 6 | ED128: 5.5 | EE128: -6 | EF128: 3.5 | EG128: -2 | EH128: -3.5 | EI128: =-EI44+$AR128 -> 8 | EJ128: =EJ44+$AS128 -> -4.5 | EK128: -9 | EL128: -1 | EM128: -5 | EN128: 1 | EO128: 4 | EP128: -1 | EQ128: -9 | ER128: -1 | ES128: -5 | ET128: 1 | EU128: 4 | EV128: -1 | EW128: 1 | EX128: 1 | EY128: 1 | EZ128: 1 | FA128: 1 | FB128: 1
AR129: 0 | AS129: 0 | AT129: 113 | AU129: 1 | AV129: 4 | AW129: 6 | AX129: 1 | AY129: -8 | AZ129: 3 | BA129: -3 | BB129: 0 | BC129: -4 | BD129: -3 | BE129: 1 | BF129: 0 | BG129: 5 | BH129: -4 | BI129: 8 | BJ129: 1 | BK129: 3 | BL129: 1 | BM129: 6 | BN129: 1 | BO129: 4 | BP129: 4 | BQ129: 1 | BR129: 4 | BS129: 3 | BT129: 1 | BU129: 3 | BV129: 1 | BW129: 3 | BX129: 1 | BY129: 3 | BZ129: 1 | CA129: -6 | CB129: 0 | CC129: -3 | CD129: 0 | CE129: -5 | CF129: 3 | CG129: -8 | CH129: 3 | CI129: -6 | CJ129: 0 | CK129: -6 | CL129: 0 | CM129: -6 | CN129: 0 | CO129: -6 | CP129: 0 | CQ129: -2 | CR129: 0 | CS129: 1 | CT129: 0 | CU129: -1 | CV129: -3 | CW129: -4 | CX129: -3 | CY129: -2 | CZ129: 0 | DA129: -2 | DB129: 0 | DC129: -2 | DD129: 0 | DE129: -2 | DF129: 0 | DG129: 5 | DH129: -4 | DI129: 8 | DJ129: -2 | DK129: 8 | DL129: 1 | DM129: 5 | DN129: -1 | DO129: 5 | DP129: -4 | DQ129: 5 | DR129: -4 | DS129: 5 | DT129: -4 | DU129: 5 | DV129: -4 | DW129: 9 | DX129: 1 | DY129: 1 | DZ129: 1 | EA129: 6 | EB129: 0.5 | EC129: 1 | ED129: 4.5 | EE129: -8 | EF129: 3.5 | EG129: -4 | EH129: -3.5 | EI129: 5 | EJ129: -4.5 | EK129: -3 | EL129: 0 | EM129: 1 | EN129: 0 | EO129: 8 | EP129: 1 | EQ129: -3 | ER129: 0 | ES129: 1 | ET129: 0 | EU129: 8 | EV129: 1 | EW129: 1 | EX129: 1 | EY129: 1 | EZ129: 1 | FA129: 1 | FB129: 1
AR130: 0 | AS130: 0 | AT130: 114 | AU130: 3 | AV130: -3 | AW130: 5 | AX130: 5 | AY130: -6 | AZ130: 4 | BA130: -8 | BB130: -4 | BC130: -2 | BD130: -4 | BE130: -4 | BF130: 4 | BG130: 8 | BH130: -4 | BI130: 0 | BJ130: -2 | BK130: 3 | BL130: -3 | BM130: 5 | BN130: -1 | BO130: 5 | BP130: 5 | BQ130: 3 | BR130: 3 | BS130: 3 | BT130: -3 | BU130: 3 | BV130: -3 | BW130: 3 | BX130: -3 | BY130: 3 | BZ130: -3 | CA130: -8 | CB130: -4 | CC130: -6 | CD130: -2 | CE130: -6 | CF130: 4 | CG130: -8 | CH130: 2 | CI130: -8 | CJ130: -4 | CK130: -8 | CL130: -4 | CM130: -8 | CN130: -4 | CO130: -8 | CP130: -4 | CQ130: -4 | CR130: 4 | CS130: -2 | CT130: 2 | CU130: -2 | CV130: -4 | CW130: -4 | CX130: -2 | CY130: -4 | CZ130: 4 | DA130: -4 | DB130: 4 | DC130: -4 | DD130: 4 | DE130: -4 | DF130: 4 | DG130: 8 | DH130: -4 | DI130: 6 | DJ130: -2 | DK130: 0 | DL130: -2 | DM130: 2 | DN130: -4 | DO130: 8 | DP130: -4 | DQ130: 8 | DR130: -4 | DS130: 8 | DT130: -4 | DU130: 8 | DV130: -4 | DW130: 9 | DX130: 3 | DY130: 2 | DZ130: 2 | EA130: 5 | EB130: 5.5 | EC130: 3 | ED130: -3.5 | EE130: -6 | EF130: 4.5 | EG130: -2 | EH130: -4.5 | EI130: 8 | EJ130: -4.5 | EK130: -8 | EL130: -4 | EM130: -4 | EN130: 4 | EO130: 0 | EP130: -2 | EQ130: -8 | ER130: -4 | ES130: -4 | ET130: 4 | EU130: 0 | EV130: -2 | EW130: 1 | EX130: 1 | EY130: 1 | EZ130: 1 | FA130: 1 | FB130: 1
AR131: 0 | AS131: 0 | AT131: 115 | AU131: 2 | AV131: 3 | AW131: 5 | AX131: 5 | AY131: -6 | AZ131: 4 | BA131: -9 | BB131: 2 | BC131: -2 | BD131: -4 | BE131: -5 | BF131: -2 | BG131: 5 | BH131: -4 | BI131: 3 | BJ131: -1 | BK131: 5 | BL131: 1 | BM131: 8 | BN131: 3 | BO131: 5 | BP131: 5 | BQ131: 2 | BR131: 3 | BS131: 5 | BT131: 1 | BU131: 5 | BV131: 1 | BW131: 5 | BX131: 1 | BY131: 5 | BZ131: 1 | CA131: -6 | CB131: 0 | CC131: -3 | CD131: 2 | CE131: -6 | CF131: 4 | CG131: -9 | CH131: 2 | CI131: -6 | CJ131: 0 | CK131: -6 | CL131: 0 | CM131: -6 | CN131: 0 | CO131: -6 | CP131: 0 | CQ131: -2 | CR131: 0 | CS131: 1 | CT131: -2 | CU131: -2 | CV131: -4 | CW131: -5 | CX131: -2 | CY131: -2 | CZ131: 0 | DA131: -2 | DB131: 0 | DC131: -2 | DD131: 0 | DE131: -2 | DF131: 0 | DG131: 5 | DH131: -4 | DI131: 7 | DJ131: -1 | DK131: 5 | DL131: 2 | DM131: 3 | DN131: -1 | DO131: 5 | DP131: -4 | DQ131: 5 | DR131: -4 | DS131: 5 | DT131: -4 | DU131: 5 | DV131: -4 | DW131: 9 | DX131: 2 | DY131: 2 | DZ131: 2 | EA131: 5 | EB131: 5.5 | EC131: 1 | ED131: 3.5 | EE131: -6 | EF131: 4.5 | EG131: -2 | EH131: -4.5 | EI131: 5 | EJ131: -4.5 | EK131: -9 | EL131: 2 | EM131: -5 | EN131: -2 | EO131: 3 | EP131: -1 | EQ131: -9 | ER131: 2 | ES131: -5 | ET131: -2 | EU131: 3 | EV131: -1 | EW131: 1 | EX131: 1 | EY131: 1 | EZ131: 1 | FA131: 1 | FB131: 1
AR132: 0 | AS132: 0 | AT132: 116 | AU132: 8 | AV132: 3 | AW132: 5 | AX132: 5 | AY132: -6 | AZ132: 4 | BA132: -3 | BB132: 2 | BC132: -2 | BD132: -4 | BE132: 1 | BF132: -2 | BG132: 5 | BH132: -4 | BI132: 3 | BJ132: -1 | BK132: 5 | BL132: 1 | BM132: 8 | BN132: 3 | BO132: 5 | BP132: 5 | BQ132: 4 | BR132: 3 | BS132: 5 | BT132: 1 | BU132: 5 | BV132: 1 | BW132: 5 | BX132: 1 | BY132: 5 | BZ132: 1 | CA132: -6 | CB132: 0 | CC132: -3 | CD132: 2 | CE132: -6 | CF132: 4 | CG132: -7 | CH132: 2 | CI132: -6 | CJ132: 0 | CK132: -6 | CL132: 0 | CM132: -6 | CN132: 0 | CO132: -6 | CP132: 0 | CQ132: -2 | CR132: 0 | CS132: 1 | CT132: -2 | CU132: -2 | CV132: -4 | CW132: -3 | CX132: -2 | CY132: -2 | CZ132: 0 | DA132: -2 | DB132: 0 | DC132: -2 | DD132: 0 | DE132: -2 | DF132: 0 | DG132: 5 | DH132: -4 | DI132: 7 | DJ132: -1 | DK132: 5 | DL132: 0 | DM132: 3 | DN132: -1 | DO132: 5 | DP132: -4 | DQ132: 5 | DR132: -4 | DS132: 5 | DT132: -4 | DU132: 5 | DV132: -4 | DW132: 9 | DX132: 1 | DY132: 1 | DZ132: 2 | EA132: 5 | EB132: 5.5 | EC132: 9 | ED132: 3.5 | EE132: -6 | EF132: 4.5 | EG132: -2 | EH132: -4.5 | EI132: 5 | EJ132: -4.5 | EK132: -3 | EL132: 2 | EM132: 1 | EN132: -2 | EO132: 3 | EP132: -1 | EQ132: -3 | ER132: 2 | ES132: 1 | ET132: -2 | EU132: 3 | EV132: -1 | EW132: 1 | EX132: 1 | EY132: 1 | EZ132: 1 | FA132: 1 | FB132: 1
AR133: 0 | AS133: 0 | AT133: 117 | AU133: 7 | AV133: 1 | AW133: 5 | AX133: 5 | AY133: -6 | AZ133: 4 | BA133: -4 | BB133: 0 | BC133: -3 | BD133: -4 | BE133: -1 | BF133: 0 | BG133: 6 | BH133: -1 | BI133: 2 | BJ133: -3 | BK133: 5 | BL133: 2 | BM133: 7 | BN133: 1 | BO133: 5 | BP133: 5 | BQ133: 3 | BR133: 1 | BS133: 5 | BT133: 2 | BU133: 5 | BV133: 2 | BW133: 5 | BX133: 2 | BY133: 5 | BZ133: 2 | CA133: -6 | CB133: 1 | CC133: -4 | CD133: 0 | CE133: -6 | CF133: 4 | CG133: -8 | CH133: 0 | CI133: -6 | CJ133: 1 | CK133: -6 | CL133: 1 | CM133: -6 | CN133: 1 | CO133: -6 | CP133: 1 | CQ133: -3 | CR133: -1 | CS133: -1 | CT133: 0 | CU133: -3 | CV133: -4 | CW133: -5 | CX133: 0 | CY133: -3 | CZ133: -1 | DA133: -3 | DB133: -1 | DC133: -3 | DD133: -1 | DE133: -3 | DF133: -1 | DG133: 6 | DH133: -5 | DI133: 5 | DJ133: -3 | DK133: 6 | DL133: -1 | DM133: 2 | DN133: -3 | DO133: 6 | DP133: -5 | DQ133: 6 | DR133: -5 | DS133: 6 | DT133: -5 | DU133: 6 | DV133: -5 | DW133: 9 | DX133: 1 | DY133: 1 | DZ133: 2 | EA133: 5 | EB133: 5.5 | EC133: 7 | ED133: 0.5 | EE133: -6 | EF133: 4.5 | EG133: -3 | EH133: -4.5 | EI133: 6 | EJ133: -0.5 | EK133: -4 | EL133: 0 | EM133: -1 | EN133: 0 | EO133: 2 | EP133: -3 | EQ133: -4 | ER133: 0 | ES133: -1 | ET133: 0 | EU133: 2 | EV133: -3 | EW133: 1 | EX133: 1 | EY133: 1 | EZ133: 1 | FA133: 1 | FB133: 1
AR134: 0 | AS134: 0 | AT134: 118 | AU134: 8 | AV134: 1 | AW134: 6 | AX134: 4 | AY134: -7 | AZ134: 5 | BA134: -5 | BB134: 2 | BC134: -8 | BD134: -4 | BE134: -6 | BF134: -1 | BG134: 8 | BH134: -2 | BI134: 5 | BJ134: -4 | BK134: 5 | BL134: 1 | BM134: 8 | BN134: 1 | BO134: 9 | BP134: 2 | BQ134: 6 | BR134: 4 | BS134: 5 | BT134: 1 | BU134: 5 | BV134: 1 | BW134: 5 | BX134: 1 | BY134: 5 | BZ134: 1 | CA134: -8 | CB134: 2 | CC134: -5 | CD134: 2 | CE134: -4 | CF134: 3 | CG134: -7 | CH134: 5 | CI134: -8 | CJ134: 2 | CK134: -8 | CL134: 2 | CM134: -8 | CN134: 2 | CO134: -8 | CP134: 2 | CQ134: -9 | CR134: -1 | CS134: -6 | CT134: -1 | CU134: -5 | CV134: -2 | CW134: -8 | CX134: -4 | CY134: -9 | CZ134: -1 | DA134: -9 | DB134: -1 | DC134: -9 | DD134: -1 | DE134: -9 | DF134: -1 | DG134: 6 | DH134: -5 | DI134: 8 | DJ134: -2 | DK134: 5 | DL134: -1 | DM134: 5 | DN134: -4 | DO134: 6 | DP134: -5 | DQ134: 6 | DR134: -5 | DS134: 6 | DT134: -5 | DU134: 6 | DV134: -5 | DW134: 9 | DX134: 4 | DY134: 1 | DZ134: 3 | EA134: 6 | EB134: 4.5 | EC134: 8 | ED134: 0.5 | EE134: -7 | EF134: 5.5 | EG134: -8 | EH134: -4.5 | EI134: 9 | EJ134: -1.5 | EK134: -5 | EL134: 2 | EM134: -6 | EN134: -1 | EO134: 5 | EP134: -4 | EQ134: -5 | ER134: 2 | ES134: -6 | ET134: -1 | EU134: 5 | EV134: -4 | EW134: 1 | EX134: 1 | EY134: 1 | EZ134: 1 | FA134: 1 | FB134: 1
AR135: 0 | AS135: 0 | AT135: 119 | AU135: 8 | AV135: 2 | AW135: 5 | AX135: 1 | AY135: -8 | AZ135: 0 | BA135: -5 | BB135: 1 | BC135: -1 | BD135: 0 | BE135: -4 | BF135: 1 | BG135: 2 | BH135: -4 | BI135: 1 | BJ135: -1 | BK135: 5 | BL135: 1 | BM135: 6 | BN135: 2 | BO135: 8 | BP135: 2 | BQ135: 5 | BR135: 5 | BS135: 5 | BT135: 1 | BU135: 5 | BV135: 1 | BW135: 5 | BX135: 1 | BY135: 5 | BZ135: 1 | CA135: -8 | CB135: 0 | CC135: -7 | CD135: 1 | CE135: -5 | CF135: 1 | CG135: -8 | CH135: 4 | CI135: -8 | CJ135: 0 | CK135: -8 | CL135: 0 | CM135: -8 | CN135: 0 | CO135: -8 | CP135: 0 | CQ135: -4 | CR135: 1 | CS135: -3 | CT135: 0 | CU135: -1 | CV135: 0 | CW135: -4 | CX135: -3 | CY135: -4 | CZ135: 1 | DA135: -4 | DB135: 1 | DC135: -4 | DD135: 1 | DE135: -4 | DF135: 1 | DG135: 2 | DH135: -4 | DI135: 5 | DJ135: -1 | DK135: 1 | DL135: -1 | DM135: 2 | DN135: -2 | DO135: 2 | DP135: -4 | DQ135: 2 | DR135: -4 | DS135: 2 | DT135: -4 | DU135: 2 | DV135: -4 | DW135: 9 | DX135: 3 | DY135: 1 | DZ135: 1 | EA135: 5 | EB135: 0.5 | EC135: 8 | ED135: 1.5 | EE135: -8 | EF135: -0.5 | EG135: -1 | EH135: 0.5 | EI135: 2 | EJ135: -4.5 | EK135: -5 | EL135: 1 | EM135: -4 | EN135: 1 | EO135: 1 | EP135: -1 | EQ135: -5 | ER135: 1 | ES135: -4 | ET135: 1 | EU135: 1 | EV135: -1 | EW135: 1 | EX135: 1 | EY135: 1 | EZ135: 1 | FA135: 1 | FB135: 1
AR136: -1 | AS136: 0 | AT136: 120 | AU136: 7 | AV136: 5 | AW136: 4 | AX136: 1 | AY136: -9 | AZ136: 0 | BA136: -6 | BB136: 4 | BC136: -2 | BD136: -3 | BE136: -5 | BF136: 1 | BG136: 5 | BH136: -4 | BI136: 1 | BJ136: -1 | BK136: 4 | BL136: 1 | BM136: 7 | BN136: 1 | BO136: 7 | BP136: 5 | BQ136: 4 | BR136: 1 | BS136: 4 | BT136: 1 | BU136: 4 | BV136: 1 | BW136: 4 | BX136: 1 | BY136: 4 | BZ136: 1 | CA136: -9 | CB136: 0 | CC136: -6 | CD136: 0 | CE136: -6 | CF136: 4 | CG136: -9 | CH136: 0 | CI136: -9 | CJ136: 0 | CK136: -9 | CL136: 0 | CM136: -9 | CN136: 0 | CO136: -9 | CP136: 0 | CQ136: -5 | CR136: 1 | CS136: -2 | CT136: 1 | CU136: -2 | CV136: -3 | CW136: -5 | CX136: 1 | CY136: -5 | CZ136: 1 | DA136: -5 | DB136: 1 | DC136: -5 | DD136: 1 | DE136: -5 | DF136: 1 | DG136: 1 | DH136: -1 | DI136: 5 | DJ136: -1 | DK136: 5 | DL136: -4 | DM136: 1 | DN136: -1 | DO136: 1 | DP136: -1 | DQ136: 1 | DR136: -1 | DS136: 1 | DT136: -1 | DU136: 1 | DV136: -1 | DW136: 9 | DX136: 1 | DY136: 2 | DZ136: 2 | EA136: 4 | EB136: 0.5 | EC136: 7 | ED136: 5.5 | EE136: -9 | EF136: -0.5 | EG136: -2 | EH136: -3.5 | EI136: 5 | EJ136: -4.5 | EK136: -6 | EL136: 4 | EM136: -5 | EN136: 1 | EO136: 1 | EP136: -1 | EQ136: -6 | ER136: 4 | ES136: -5 | ET136: 1 | EU136: 1 | EV136: -1 | EW136: 1 | EX136: 1 | EY136: 1 | EZ136: 1 | FA136: 1 | FB136: 1
AR137: 0 | AS137: 0 | AT137: 121 | AU137: 2 | AV137: -2 | AW137: 4 | AX137: 3 | AY137: -7 | AZ137: -1 | BA137: -5 | BB137: 4 | BC137: -1 | BD137: -3 | BE137: -3 | BF137: 2 | BG137: 8 | BH137: -4 | BI137: 3 | BJ137: -2 | BK137: 4 | BL137: 3 | BM137: 2 | BN137: 3 | BO137: 2 | BP137: -2 | BQ137: 4 | BR137: 3 | BS137: 4 | BT137: 3 | BU137: 4 | BV137: 3 | BW137: 4 | BX137: 3 | BY137: 4 | BZ137: 3 | CA137: -5 | CB137: 4 | CC137: -7 | CD137: 4 | CE137: -7 | CF137: -1 | CG137: -5 | CH137: 4 | CI137: -5 | CJ137: 4 | CK137: -5 | CL137: 4 | CM137: -5 | CN137: 4 | CO137: -5 | CP137: 4 | CQ137: -1 | CR137: -3 | CS137: -3 | CT137: -3 | CU137: -3 | CV137: 2 | CW137: -1 | CX137: -3 | CY137: -1 | CZ137: -3 | DA137: -1 | DB137: -3 | DC137: -1 | DD137: -3 | DE137: -1 | DF137: -3 | DG137: 8 | DH137: -4 | DI137: 3 | DJ137: -4 | DK137: 3 | DL137: -2 | DM137: 8 | DN137: -4 | DO137: 8 | DP137: -4 | DQ137: 8 | DR137: -4 | DS137: 8 | DT137: -4 | DU137: 8 | DV137: -4 | DW137: 9 | DX137: 1 | DY137: 1 | DZ137: 1 | EA137: 4 | EB137: 3.5 | EC137: 2 | ED137: -2.5 | EE137: -7 | EF137: -1.5 | EG137: -1 | EH137: -3.5 | EI137: 8 | EJ137: -4.5 | EK137: -5 | EL137: 4 | EM137: -3 | EN137: 2 | EO137: 3 | EP137: -2 | EQ137: -5 | ER137: 4 | ES137: -3 | ET137: 2 | EU137: 3 | EV137: -2 | EW137: 1 | EX137: 1 | EY137: 1 | EZ137: 1 | FA137: 1 | FB137: 1
AR138: 0 | AS138: 0 | AT138: 122 | AU138: 7 | AV138: 5 | AW138: 3 | AX138: 4 | AY138: -6 | AZ138: 2 | BA138: -2 | BB138: 3 | BC138: -2 | BD138: -1 | BE138: 2 | BF138: -2 | BG138: 6 | BH138: -4 | BI138: 5 | BJ138: 0 | BK138: 5 | BL138: 2 | BM138: 7 | BN138: 5 | BO138: 3 | BP138: 4 | BQ138: 5 | BR138: 2 | BS138: 5 | BT138: 2 | BU138: 5 | BV138: 2 | BW138: 5 | BX138: 2 | BY138: 5 | BZ138: 2 | CA138: -4 | CB138: 0 | CC138: -2 | CD138: 3 | CE138: -6 | CF138: 2 | CG138: -4 | CH138: 0 | CI138: -4 | CJ138: 0 | CK138: -4 | CL138: 0 | CM138: -4 | CN138: 0 | CO138: -4 | CP138: 0 | CQ138: 0 | CR138: 1 | CS138: 2 | CT138: -2 | CU138: -2 | CV138: -1 | CW138: 0 | CX138: 1 | CY138: 0 | CZ138: 1 | DA138: 0 | DB138: 1 | DC138: 0 | DD138: 1 | DE138: 0 | DF138: 1 | DG138: 8 | DH138: -2 | DI138: 5 | DJ138: 0 | DK138: 6 | DL138: -4 | DM138: 8 | DN138: -2 | DO138: 8 | DP138: -2 | DQ138: 8 | DR138: -2 | DS138: 8 | DT138: -2 | DU138: 8 | DV138: -2 | DW138: 9 | DX138: 1 | DY138: 1 | DZ138: 1 | EA138: 2 | EB138: 4.5 | EC138: 7 | ED138: 5.5 | EE138: -7 | EF138: 2.5 | EG138: -3 | EH138: -0.5 | EI138: 6 | EJ138: -4.5 | EK138: -2 | EL138: 3 | EM138: 2 | EN138: -2 | EO138: 5 | EP138: 0 | EQ138: -2 | ER138: 3 | ES138: 2 | ET138: -2 | EU138: 5 | EV138: 0 | EW138: 1 | EX138: 1 | EY138: 1 | EZ138: 1 | FA138: 1 | FB138: 1
AR139: 0 | AS139: 0 | AT139: 123 | AU139: 6 | AV139: 3 | AW139: 5 | AX139: -2 | AY139: -4 | AZ139: 0 | BA139: -3 | BB139: 5 | BC139: -7 | BD139: -4 | BE139: -8 | BF139: 1 | BG139: -1 | BH139: -2 | BI139: 4 | BJ139: -3 | BK139: 5 | BL139: -2 | BM139: 7 | BN139: 1 | BO139: 6 | BP139: 3 | BQ139: 5 | BR139: -2 | BS139: 5 | BT139: -2 | BU139: 5 | BV139: -2 | BW139: 5 | BX139: -2 | BY139: 5 | BZ139: -2 | CA139: -4 | CB139: 0 | CC139: -2 | CD139: 3 | CE139: -3 | CF139: 5 | CG139: -4 | CH139: 0 | CI139: -4 | CJ139: 0 | CK139: -4 | CL139: 0 | CM139: -4 | CN139: 0 | CO139: -4 | CP139: 0 | CQ139: -8 | CR139: 1 | CS139: -6 | CT139: -2 | CU139: -7 | CV139: -4 | CW139: -8 | CX139: 1 | CY139: -8 | CZ139: 1 | DA139: -8 | DB139: 1 | DC139: -8 | DD139: 1 | DE139: -8 | DF139: 1 | DG139: 4 | DH139: -3 | DI139: 2 | DJ139: -4 | DK139: -1 | DL139: -2 | DM139: 4 | DN139: -3 | DO139: 4 | DP139: -3 | DQ139: 4 | DR139: -3 | DS139: 4 | DT139: -3 | DU139: 4 | DV139: -3 | DW139: 9 | DX139: 1 | DY139: 1 | DZ139: 4 | EA139: 5 | EB139: -2.5 | EC139: 6 | ED139: 3.5 | EE139: -4 | EF139: -0.5 | EG139: -7 | EH139: -4.5 | EI139: -1 | EJ139: -1.5 | EK139: -3 | EL139: 5 | EM139: -8 | EN139: 1 | EO139: 4 | EP139: -3 | EQ139: -3 | ER139: 5 | ES139: -8 | ET139: 1 | EU139: 4 | EV139: -3 | EW139: 1 | EX139: 1 | EY139: 1 | EZ139: 1 | FA139: 1 | FB139: 1
AR140: 1 | AS140: 0 | AT140: 124 | AU140: 5 | AV140: 3 | AW140: 3 | AX140: -1 | AY140: -6 | AZ140: 1 | BA140: -4 | BB140: 5 | BC140: -7 | BD140: -4 | BE140: -9 | BF140: 0 | BG140: 10 | BH140: 0 | BI140: 6 | BJ140: -2 | BK140: 7 | BL140: -1 | BM140: 3 | BN140: -1 | BO140: 5 | BP140: 3 | BQ140: 7 | BR140: -1 | BS140: 7 | BT140: -1 | BU140: 7 | BV140: -1 | BW140: 7 | BX140: -1 | BY140: 7 | BZ140: -1 | CA140: -2 | CB140: 1 | CC140: -6 | CD140: 1 | CE140: -4 | CF140: 5 | CG140: -2 | CH140: 1 | CI140: -2 | CJ140: 1 | CK140: -2 | CL140: 1 | CM140: -2 | CN140: 1 | CO140: -2 | CP140: 1 | CQ140: -5 | CR140: 0 | CS140: -9 | CT140: 0 | CU140: -7 | CV140: -4 | CW140: -5 | CX140: 0 | CY140: -5 | CZ140: 0 | DA140: -5 | DB140: 0 | DC140: -5 | DD140: 0 | DE140: -5 | DF140: 0 | DG140: 10 | DH140: -4 | DI140: 10 | DJ140: 0 | DK140: 6 | DL140: -2 | DM140: 10 | DN140: -4 | DO140: 10 | DP140: -4 | DQ140: 10 | DR140: -4 | DS140: 10 | DT140: -4 | DU140: 10 | DV140: -4 | DW140: 9 | DX140: 1 | DY140: 2 | DZ140: 3 | EA140: 3 | EB140: -1.5 | EC140: 5 | ED140: 3.5 | EE140: -6 | EF140: 0.5 | EG140: -7 | EH140: -4.5 | EI140: 10 | EJ140: 0.5 | EK140: -4 | EL140: 5 | EM140: -9 | EN140: 0 | EO140: 6 | EP140: -2 | EQ140: -4 | ER140: 5 | ES140: -9 | ET140: 0 | EU140: 6 | EV140: -2 | EW140: 1 | EX140: 1 | EY140: 1 | EZ140: 1 | FA140: 1 | FB140: 1
AR141: 0 | AS141: 0 | AT141: 125 | AU141: 4 | AV141: 5 | AW141: 6 | AX141: 1 | AY141: -5 | AZ141: 3 | BA141: -3 | BB141: -1 | BC141: -8 | BD141: -3 | BE141: -6 | BF141: 1 | BG141: 9 | BH141: -1 | BI141: 5 | BJ141: -3 | BK141: 6 | BL141: 1 | BM141: 8 | BN141: 3 | BO141: 4 | BP141: 5 | BQ141: 6 | BR141: 1 | BS141: 6 | BT141: 1 | BU141: 6 | BV141: 1 | BW141: 6 | BX141: 1 | BY141: 6 | BZ141: 1 | CA141: -3 | CB141: -1 | CC141: -1 | CD141: 1 | CE141: -5 | CF141: 3 | CG141: -3 | CH141: -1 | CI141: -3 | CJ141: -1 | CK141: -3 | CL141: -1 | CM141: -3 | CN141: -1 | CO141: -3 | CP141: -1 | CQ141: -6 | CR141: 1 | CS141: -4 | CT141: -1 | CU141: -8 | CV141: -3 | CW141: -6 | CX141: 1 | CY141: -6 | CZ141: 1 | DA141: -6 | DB141: 1 | DC141: -6 | DD141: 1 | DE141: -6 | DF141: 1 | DG141: 5 | DH141: -3 | DI141: 7 | DJ141: -5 | DK141: 9 | DL141: -1 | DM141: 5 | DN141: -3 | DO141: 5 | DP141: -3 | DQ141: 5 | DR141: -3 | DS141: 5 | DT141: -3 | DU141: 5 | DV141: -3 | DW141: 9 | DX141: 4 | DY141: 2 | DZ141: 2 | EA141: 6 | EB141: 0.5 | EC141: 4 | ED141: 5.5 | EE141: -5 | EF141: 3.5 | EG141: -8 | EH141: -3.5 | EI141: 9 | EJ141: -0.5 | EK141: -3 | EL141: -1 | EM141: -6 | EN141: 1 | EO141: 5 | EP141: -3 | EQ141: -3 | ER141: -1 | ES141: -6 | ET141: 1 | EU141: 5 | EV141: -3 | EW141: 1 | EX141: 1 | EY141: 1 | EZ141: 1 | FA141: 1 | FB141: 1
AR142: 0 | AS142: 0 | AT142: 126 | AU142: 3 | AV142: 5 | AW142: 7 | AX142: 1 | AY142: -3 | AZ142: 3 | BA142: 1 | BB142: -1 | BC142: -9 | BD142: -3 | BE142: -5 | BF142: 1 | BG142: 8 | BH142: -1 | BI142: 4 | BJ142: -5 | BK142: 7 | BL142: 1 | BM142: 4 | BN142: 2 | BO142: 3 | BP142: 5 | BQ142: 7 | BR142: 1 | BS142: 7 | BT142: 1 | BU142: 7 | BV142: 1 | BW142: 7 | BX142: 1 | BY142: 7 | BZ142: 1 | CA142: 1 | CB142: -1 | CC142: -2 | CD142: 0 | CE142: -3 | CF142: 3 | CG142: 1 | CH142: -1 | CI142: 1 | CJ142: -1 | CK142: 1 | CL142: -1 | CM142: 1 | CN142: -1 | CO142: 1 | CP142: -1 | CQ142: -5 | CR142: 1 | CS142: -8 | CT142: 0 | CU142: -9 | CV142: -3 | CW142: -5 | CX142: 1 | CY142: -5 | CZ142: 1 | DA142: -5 | DB142: 1 | DC142: -5 | DD142: 1 | DE142: -5 | DF142: 1 | DG142: 8 | DH142: -1 | DI142: 4 | DJ142: -5 | DK142: 7 | DL142: -4 | DM142: 8 | DN142: -1 | DO142: 8 | DP142: -1 | DQ142: 8 | DR142: -1 | DS142: 8 | DT142: -1 | DU142: 8 | DV142: -1 | DW142: 9 | DX142: 1 | DY142: 1 | DZ142: 2 | EA142: 7 | EB142: 0.5 | EC142: 3 | ED142: 5.5 | EE142: -3 | EF142: 3.5 | EG142: -9 | EH142: -3.5 | EI142: 8 | EJ142: -0.5 | EK142: 1 | EL142: -1 | EM142: -5 | EN142: 1 | EO142: 4 | EP142: -5 | EQ142: 1 | ER142: -1 | ES142: -5 | ET142: 1 | EU142: 4 | EV142: -5 | EW142: 1 | EX142: 1 | EY142: 1 | EZ142: 1 | FA142: 1 | FB142: 1
AR143: 0 | AS143: 0 | AT143: 127 | AU143: =AU17+$AR143 -> -5 | AV143: =-AV17+$AS143 -> -2 | AW143: =AW17+$AR143 -> -6 | AX143: =-AX17+$AS143 -> -4 | AY143: =AY17+$AR143 -> 4 | AZ143: =-AZ17+$AS143 -> -1 | BA143: =BA17+$AR143 -> 3 | BB143: =-BB17+$AS143 -> -3 | BC143: =BC17+$AR143 -> 7 | BD143: =-BD17+$AS143 -> 2 | BE143: =BE17+$AR143 -> 6 | BF143: =-BF17+$AS143 -> 4 | BG143: =BG17+$AR143 -> -7 | BH143: =-BH17+$AS143 -> 2 | BI143: =BI17+$AR143 -> -5 | BJ143: =-BJ17+$AS143 -> 1 | BK143: =BK17+$AR143 -> -5 | BL143: =-BL17+$AS143 -> -2 | BM143: =BM17+$AR143 -> -5 | BN143: =-BN17+$AS143 -> -3 | BO143: =BO17+$AR143 -> -6 | BP143: =-BP17+$AS143 -> -3 | BQ143: =BQ17+$AR143 -> -6 | BR143: =-BR17+$AS143 -> -4 | BS143: =BS17+$AR143 -> -3 | BT143: =-BT17+$AS143 -> -4 | BU143: =BU17+$AR143 -> -3 | BV143: =-BV17+$AS143 -> -3 | BW143: =BW17+$AR143 -> -4 | BX143: =-BX17+$AS143 -> -3 | BY143: =BY17+$AR143 -> -4 | BZ143: =-BZ17+$AS143 -> -2 | CA143: =CA17+$AR143 -> 4 | CB143: =-CB17+$AS143 -> -1 | CC143: =CC17+$AR143 -> 4 | CD143: =-CD17+$AS143 -> -2 | CE143: =CE17+$AR143 -> 3 | CF143: =-CF17+$AS143 -> -2 | CG143: =CG17+$AR143 -> 3 | CH143: =-CH17+$AS143 -> -3 | CI143: =CI17+$AR143 -> 6 | CJ143: =-CJ17+$AS143 -> -3 | CK143: =CK17+$AR143 -> 6 | CL143: =-CL17+$AS143 -> -2 | CM143: =CM17+$AR143 -> 5 | CN143: =-CN17+$AS143 -> -2 | CO143: =CO17+$AR143 -> 5 | CP143: =-CP17+$AS143 -> -1 | CQ143: =CQ17+$AR143 -> 7 | CR143: =-CR17+$AS143 -> 2 | CS143: =CS17+$AR143 -> 7 | CT143: =-CT17+$AS143 -> 3 | CU143: =CU17+$AR143 -> 6 | CV143: =-CV17+$AS143 -> 3 | CW143: =CW17+$AR143 -> 6 | CX143: =-CX17+$AS143 -> 4 | CY143: =CY17+$AR143 -> 9 | CZ143: =-CZ17+$AS143 -> 4 | DA143: =DA17+$AR143 -> 9 | DB143: =-DB17+$AS143 -> 3 | DC143: =DC17+$AR143 -> 8 | DD143: =-DD17+$AS143 -> 3 | DE143: =DE17+$AR143 -> 8 | DF143: =-DF17+$AS143 -> 2 | DG143: =DG17+$AR143 -> -7 | DH143: =-DH17+$AS143 -> 3 | DI143: =DI17+$AR143 -> -6 | DJ143: =-DJ17+$AS143 -> 3 | DK143: =DK17+$AR143 -> -6 | DL143: =-DL17+$AS143 -> 4 | DM143: =DM17+$AR143 -> -5 | DN143: =-DN17+$AS143 -> 4 | DO143: =DO17+$AR143 -> -5 | DP143: =-DP17+$AS143 -> 1 | DQ143: =DQ17+$AR143 -> -6 | DR143: =-DR17+$AS143 -> 1 | DS143: =DS17+$AR143 -> -6 | DT143: =-DT17+$AS143 -> 2 | DU143: =DU17+$AR143 -> -7 | DV143: =-DV17+$AS143 -> 2 | DW143: =DW17+$AR143 -> 9 | DX143: 3 | DY143: 2 | DZ143: 4 | EA143: =EA17+$AR143 -> -6 | EB143: =-EB17+$AS143 -> -4.5 | EC143: =EC17+$AR143 -> -5 | ED143: =-ED17+$AS143 -> -1.5 | EE143: =EE17+$AR143 -> 4 | EF143: =-EF17+$AS143 -> -0.5 | EG143: =EG17+$AR143 -> 7 | EH143: =-EH17+$AS143 -> 1.5 | EI143: =EI17+$AR143 -> -7 | EJ143: =-EJ17+$AS143 -> 1.5 | EK143: =EK17+$AR143 -> 3 | EL143: =-EL17+$AS143 -> -3 | EM143: =EM17+$AR143 -> 6 | EN143: =-EN17+$AS143 -> 4 | EO143: =EO17+$AR143 -> -5 | EP143: =-EP17+$AS143 -> 1 | EQ143: =BA143 -> 3 | ER143: =BB143 -> -3 | ES143: =BE143 -> 6 | ET143: =BF143 -> 4 | EU143: =BI143 -> -5 | EV143: =BJ143 -> 1 | EW143: =IF(EQ143=EK143,1,0) -> 1 | EX143: 1 | EY143: 1 | EZ143: 1 | FA143: 1 | FB143: 1
AR144: 0 | AS144: 1 | AT144: 128 | AU144: =AU18+$AR144 -> -3 | AV144: =-AV18+$AS144 -> -1 | AW144: -6 | AX144: -3 | AY144: 4 | AZ144: 0 | BA144: 1 | BB144: -2 | BC144: 6 | BD144: 2 | BE144: 3 | BF144: 4 | BG144: -3 | BH144: 4 | BI144: -1 | BJ144: 1 | BK144: -5 | BL144: -1 | BM144: -5 | BN144: -3 | BO144: -6 | BP144: -3 | BQ144: -6 | BR144: -4 | BS144: -4 | BT144: -4 | BU144: -4 | BV144: -2 | BW144: -3 | BX144: -2 | BY144: -3 | BZ144: -1 | CA144: 2 | CB144: 0 | CC144: 2 | CD144: -2 | CE144: 1 | CF144: -2 | CG144: 1 | CH144: -3 | CI144: 3 | CJ144: -3 | CK144: 3 | CL144: -1 | CM144: 4 | CN144: -1 | CO144: 4 | CP144: 0 | CQ144: 4 | CR144: 2 | CS144: 4 | CT144: 4 | CU144: 3 | CV144: 4 | CW144: 3 | CX144: 5 | CY144: 5 | CZ144: 5 | DA144: 5 | DB144: 3 | DC144: 6 | DD144: 3 | DE144: 6 | DF144: 2 | DG144: 0 | DH144: 3 | DI144: -2 | DJ144: 3 | DK144: -2 | DL144: 4 | DM144: -3 | DN144: 4 | DO144: -3 | DP144: 2 | DQ144: -1 | DR144: 2 | DS144: -1 | DT144: 1 | DU144: 0 | DV144: 1 | DW144: 9 | DX144: 2 | DY144: 3 | DZ144: 3 | EA144: -6 | EB144: -2.5 | EC144: -3 | ED144: -0.5 | EE144: 4 | EF144: 0.5 | EG144: 6 | EH144: 1.5 | EI144: -3 | EJ144: 4.5 | EK144: 1 | EL144: -2 | EM144: 3 | EN144: 4 | EO144: -1 | EP144: 1 | EQ144: =BA144 -> 1 | ER144: =BB144 -> -2 | ES144: =BE144 -> 3 | ET144: =BF144 -> 4 | EU144: =BI144 -> -1 | EV144: =BJ144 -> 1 | EW144: =IF(EQ144=EK144,1,0) -> 1 | EX144: =IF(ER144=EL144,1,0) -> 1 | EY144: =IF(ES144=EM144,1,0) -> 1 | EZ144: =IF(ET144=EN144,1,0) -> 1 | FA144: =IF(EU144=EO144,1,0) -> 1 | FB144: =IF(EV144=EP144,1,0) -> 1
AR145: 0 | AS145: 0 | AT145: 129 | AU145: -5 | AV145: -2 | AW145: -8 | AX145: -4 | AY145: 2 | AZ145: -3 | BA145: 5 | BB145: -1 | BC145: 4 | BD145: 4 | BE145: 7 | BF145: 2 | BG145: -3 | BH145: 3 | BI145: -1 | BJ145: 0 | BK145: -5 | BL145: -2 | BM145: -5 | BN145: -4 | BO145: -8 | BP145: -4 | BQ145: -8 | BR145: -1 | BS145: -7 | BT145: -1 | BU145: -7 | BV145: -3 | BW145: -6 | BX145: -3 | BY145: -6 | BZ145: -2 | CA145: 5 | CB145: -1 | CC145: 5 | CD145: -3 | CE145: 2 | CF145: -3 | CG145: 2 | CH145: 0 | CI145: 3 | CJ145: 0 | CK145: 3 | CL145: -2 | CM145: 4 | CN145: -2 | CO145: 4 | CP145: -1 | CQ145: 4 | CR145: 4 | CS145: 4 | CT145: 1 | CU145: 5 | CV145: 1 | CW145: 5 | CX145: 3 | CY145: 6 | CZ145: 3 | DA145: 6 | DB145: 2 | DC145: 7 | DD145: 2 | DE145: 7 | DF145: 4 | DG145: -3 | DH145: 3 | DI145: -3 | DJ145: 0 | DK145: -1 | DL145: 0 | DM145: -1 | DN145: 1 | DO145: -2 | DP145: 1 | DQ145: -2 | DR145: 2 | DS145: 0 | DT145: 2 | DU145: 0 | DV145: 3 | DW145: 9 | DX145: 1 | DY145: 4 | DZ145: 4 | EA145: -8 | EB145: -4.5 | EC145: -5 | ED145: -1.5 | EE145: 2 | EF145: -3.5 | EG145: 4 | EH145: 4.5 | EI145: -3 | EJ145: 3.5 | EK145: 5 | EL145: -1 | EM145: 7 | EN145: 2 | EO145: -1 | EP145: 0 | EQ145: 5 | ER145: -1 | ES145: 7 | ET145: 2 | EU145: -1 | EV145: 0 | EW145: 1 | EX145: 1 | EY145: 1 | EZ145: 1 | FA145: 1 | FB145: 1
AR146: 0 | AS146: 0 | AT146: 130 | AU146: -5 | AV146: -4 | AW146: -8 | AX146: -2 | AY146: 4 | AZ146: -3 | BA146: 1 | BB146: -1 | BC146: 7 | BD146: 4 | BE146: 4 | BF146: 2 | BG146: -7 | BH146: 2 | BI146: -5 | BJ146: -1 | BK146: -5 | BL146: -4 | BM146: -5 | BN146: -3 | BO146: -8 | BP146: -3 | BQ146: -8 | BR146: -2 | BS146: -3 | BT146: -2 | BU146: -3 | BV146: -3 | BW146: -4 | BX146: -3 | BY146: -4 | BZ146: -4 | CA146: 4 | CB146: -3 | CC146: 4 | CD146: -2 | CE146: 1 | CF146: -2 | CG146: 1 | CH146: -1 | CI146: 6 | CJ146: -1 | CK146: 6 | CL146: -2 | CM146: 5 | CN146: -2 | CO146: 5 | CP146: -3 | CQ146: 7 | CR146: 4 | CS146: 7 | CT146: 3 | CU146: 4 | CV146: 3 | CW146: 4 | CX146: 2 | CY146: 9 | CZ146: 2 | DA146: 9 | DB146: 3 | DC146: 8 | DD146: 3 | DE146: 8 | DF146: 4 | DG146: -7 | DH146: 3 | DI146: -6 | DJ146: 3 | DK146: -6 | DL146: 4 | DM146: -5 | DN146: 4 | DO146: -5 | DP146: -1 | DQ146: -6 | DR146: -1 | DS146: -6 | DT146: 2 | DU146: -7 | DV146: 2 | DW146: 9 | DX146: 2 | DY146: 3 | DZ146: 4 | EA146: -8 | EB146: -1.5 | EC146: -5 | ED146: -4.5 | EE146: 4 | EF146: -3.5 | EG146: 7 | EH146: 4.5 | EI146: -7 | EJ146: 1.5 | EK146: 1 | EL146: -1 | EM146: 4 | EN146: 2 | EO146: -5 | EP146: -1 | EQ146: 1 | ER146: -1 | ES146: 4 | ET146: 2 | EU146: -5 | EV146: -1 | EW146: 1 | EX146: 1 | EY146: 1 | EZ146: 1 | FA146: 1 | FB146: 1
AR147: 0 | AS147: 1 | AT147: =AT146+1 -> 131 | AU147: -9 | AV147: -1 | AW147: -7 | AX147: -4 | AY147: 3 | AZ147: -3 | BA147: 1 | BB147: 0 | BC147: 6 | BD147: 5 | BE147: 4 | BF147: 2 | BG147: -4 | BH147: 4 | BI147: -7 | BJ147: 2 | BK147: -7 | BL147: -1 | BM147: -9 | BN147: -1 | BO147: -9 | BP147: -4 | BQ147: -7 | BR147: -4 | BS147: -7 | BT147: -3 | BU147: -8 | BV147: -3 | BW147: -8 | BX147: -2 | BY147: -7 | BZ147: -2 | CA147: 3 | CB147: 0 | CC147: 1 | CD147: 0 | CE147: 1 | CF147: -3 | CG147: 3 | CH147: -3 | CI147: 3 | CJ147: -2 | CK147: 2 | CL147: -2 | CM147: 2 | CN147: -1 | CO147: 3 | CP147: -1 | CQ147: 4 | CR147: 5 | CS147: 4 | CT147: 4 | CU147: 5 | CV147: 4 | CW147: 5 | CX147: 3 | CY147: 4 | CZ147: 3 | DA147: 4 | DB147: 2 | DC147: 6 | DD147: 2 | DE147: 6 | DF147: 5 | DG147: -7 | DH147: 4 | DI147: -7 | DJ147: 2 | DK147: -4 | DL147: 2 | DM147: -4 | DN147: 4 | DO147: -5 | DP147: 4 | DQ147: -5 | DR147: 3 | DS147: -6 | DT147: 3 | DU147: -6 | DV147: 4 | DW147: 9 | DX147: 2 | DY147: 3 | DZ147: 3 | EA147: -7 | EB147: -4.5 | EC147: -9 | ED147: -0.5 | EE147: 3 | EF147: -3.5 | EG147: 6 | EH147: 5.5 | EI147: -4 | EJ147: 4.5 | EK147: 1 | EL147: 0 | EM147: 4 | EN147: 2 | EO147: -7 | EP147: 2 | EQ147: 1 | ER147: 0 | ES147: 4 | ET147: 2 | EU147: -7 | EV147: 2 | EW147: 1 | EX147: 1 | EY147: 1 | EZ147: 1 | FA147: 1 | FB147: 1
AR148: 0 | AS148: 1 | AT148: 132 | AU148: -3 | AV148: -1 | AW148: -5 | AX148: -4 | AY148: 4 | AZ148: 0 | BA148: 2 | BB148: -3 | BC148: 6 | BD148: 2 | BE148: 4 | BF148: 5 | BG148: -3 | BH148: 3 | BI148: 0 | BJ148: 1 | BK148: -5 | BL148: -1 | BM148: -5 | BN148: -4 | BO148: -4 | BP148: -4 | BQ148: -4 | BR148: -4 | BS148: -4 | BT148: -4 | BU148: -4 | BV148: -2 | BW148: -3 | BX148: -2 | BY148: -3 | BZ148: -1 | CA148: 2 | CB148: 0 | CC148: 2 | CD148: -3 | CE148: 3 | CF148: -3 | CG148: 3 | CH148: -3 | CI148: 3 | CJ148: -3 | CK148: 3 | CL148: -1 | CM148: 4 | CN148: -1 | CO148: 4 | CP148: 0 | CQ148: 4 | CR148: 2 | CS148: 4 | CT148: 4 | CU148: 4 | CV148: 4 | CW148: 4 | CX148: 5 | CY148: 5 | CZ148: 5 | DA148: 5 | DB148: 3 | DC148: 6 | DD148: 3 | DE148: 6 | DF148: 2 | DG148: 0 | DH148: 3 | DI148: -2 | DJ148: 3 | DK148: -2 | DL148: 3 | DM148: -3 | DN148: 3 | DO148: -3 | DP148: 2 | DQ148: -1 | DR148: 2 | DS148: -1 | DT148: 1 | DU148: 0 | DV148: 1 | DW148: 9 | DX148: 3 | DY148: 2 | DZ148: 4 | EA148: -5 | EB148: -4.5 | EC148: -3 | ED148: -0.5 | EE148: 4 | EF148: 0.5 | EG148: 6 | EH148: 1.5 | EI148: -3 | EJ148: 3.5 | EK148: 2 | EL148: -3 | EM148: 4 | EN148: 5 | EO148: 0 | EP148: 1 | EQ148: 2 | ER148: -3 | ES148: 4 | ET148: 5 | EU148: 0 | EV148: 1 | EW148: 1 | EX148: 1 | EY148: 1 | EZ148: 1 | FA148: 1 | FB148: 1
AR149: 0 | AS149: 1 | AT149: 133 | AU149: -2 | AV149: -2 | AW149: -5 | AX149: -4 | AY149: 7 | AZ149: 0 | BA149: 4 | BB149: -2 | BC149: 9 | BD149: 3 | BE149: 6 | BF149: 5 | BG149: -6 | BH149: 1 | BI149: -8 | BJ149: 4 | BK149: -5 | BL149: -1 | BM149: -5 | BN149: -4 | BO149: -2 | BP149: -4 | BQ149: -2 | BR149: -2 | BS149: -4 | BT149: -2 | BU149: -4 | BV149: -1 | BW149: -4 | BX149: -1 | BY149: -4 | BZ149: -1 | CA149: 4 | CB149: 1 | CC149: 4 | CD149: -2 | CE149: 7 | CF149: -2 | CG149: 7 | CH149: 0 | CI149: 5 | CJ149: 0 | CK149: 5 | CL149: 1 | CM149: 5 | CN149: 1 | CO149: 5 | CP149: 1 | CQ149: 6 | CR149: 5 | CS149: 6 | CT149: 2 | CU149: 7 | CV149: 2 | CW149: 7 | CX149: 3 | CY149: 9 | CZ149: 3 | DA149: 9 | DB149: 5 | DC149: 6 | DD149: 5 | DE149: 6 | DF149: 5 | DG149: -8 | DH149: 4 | DI149: -8 | DJ149: 1 | DK149: -6 | DL149: 1 | DM149: -6 | DN149: 3 | DO149: -5 | DP149: 3 | DQ149: -5 | DR149: 4 | DS149: -5 | DT149: 4 | DU149: -5 | DV149: 4 | DW149: 9 | DX149: 3 | DY149: 2 | DZ149: 2 | EA149: -5 | EB149: -4.5 | EC149: -2 | ED149: -1.5 | EE149: 7 | EF149: 0.5 | EG149: 9 | EH149: 2.5 | EI149: -6 | EJ149: 0.5 | EK149: 4 | EL149: -2 | EM149: 6 | EN149: 5 | EO149: -8 | EP149: 4 | EQ149: 4 | ER149: -2 | ES149: 6 | ET149: 5 | EU149: -8 | EV149: 4 | EW149: 1 | EX149: 1 | EY149: 1 | EZ149: 1 | FA149: 1 | FB149: 1
AR150: 0 | AS150: 1 | AT150: 134 | AU150: -2 | AV150: 0 | AW150: 1 | AX150: -4 | AY150: 4 | AZ150: 2 | BA150: 7 | BB150: -2 | BC150: 6 | BD150: 1 | BE150: 9 | BF150: 5 | BG150: -5 | BH150: 4 | BI150: -9 | BJ150: 1 | BK150: -3 | BL150: 0 | BM150: -3 | BN150: -4 | BO150: 1 | BP150: -4 | BQ150: 1 | BR150: -3 | BS150: -2 | BT150: -3 | BU150: -2 | BV150: 0 | BW150: -2 | BX150: 0 | BY150: -2 | BZ150: 0 | CA150: 3 | CB150: 2 | CC150: 3 | CD150: -2 | CE150: 7 | CF150: -2 | CG150: 7 | CH150: -1 | CI150: 4 | CJ150: -1 | CK150: 4 | CL150: 2 | CM150: 4 | CN150: 2 | CO150: 4 | CP150: 2 | CQ150: 5 | CR150: 5 | CS150: 5 | CT150: 1 | CU150: 6 | CV150: 1 | CW150: 6 | CX150: 4 | CY150: 9 | CZ150: 4 | DA150: 9 | DB150: 5 | DC150: 9 | DD150: 5 | DE150: 9 | DF150: 5 | DG150: -5 | DH150: 4 | DI150: -6 | DJ150: 4 | DK150: -6 | DL150: 1 | DM150: -9 | DN150: 1 | DO150: -9 | DP150: 0 | DQ150: -5 | DR150: 0 | DS150: -5 | DT150: 4 | DU150: -5 | DV150: 4 | DW150: 9 | DX150: 4 | DY150: 4 | DZ150: 2 | EA150: 1 | EB150: -4.5 | EC150: -2 | ED150: 0.5 | EE150: 4 | EF150: 2.5 | EG150: 6 | EH150: 0.5 | EI150: -5 | EJ150: 4.5 | EK150: 7 | EL150: -2 | EM150: 9 | EN150: 5 | EO150: -9 | EP150: 1 | EQ150: 7 | ER150: -2 | ES150: 9 | ET150: 5 | EU150: -9 | EV150: 1 | EW150: 1 | EX150: 1 | EY150: 1 | EZ150: 1 | FA150: 1 | FB150: 1
AR151: 0 | AS151: 1 | AT151: 135 | AU151: -3 | AV151: -1 | AW151: -7 | AX151: -3 | AY151: 4 | AZ151: 0 | BA151: 0 | BB151: -2 | BC151: 6 | BD151: 2 | BE151: 2 | BF151: 4 | BG151: -3 | BH151: 4 | BI151: -1 | BJ151: 0 | BK151: -5 | BL151: -1 | BM151: -5 | BN151: -3 | BO151: -7 | BP151: -3 | BQ151: -7 | BR151: -4 | BS151: -4 | BT151: -4 | BU151: -4 | BV151: -2 | BW151: -3 | BX151: -2 | BY151: -3 | BZ151: -1 | CA151: 2 | CB151: 0 | CC151: 2 | CD151: -2 | CE151: 0 | CF151: -2 | CG151: 0 | CH151: -3 | CI151: 3 | CJ151: -3 | CK151: 3 | CL151: -1 | CM151: 4 | CN151: -1 | CO151: 4 | CP151: 0 | CQ151: 4 | CR151: 2 | CS151: 4 | CT151: 4 | CU151: 2 | CV151: 4 | CW151: 2 | CX151: 5 | CY151: 5 | CZ151: 5 | DA151: 5 | DB151: 3 | DC151: 6 | DD151: 3 | DE151: 6 | DF151: 2 | DG151: 0 | DH151: 3 | DI151: -2 | DJ151: 3 | DK151: -2 | DL151: 4 | DM151: -3 | DN151: 4 | DO151: -3 | DP151: 2 | DQ151: -1 | DR151: 2 | DS151: -1 | DT151: 0 | DU151: 0 | DV151: 0 | DW151: 9 | DX151: 2 | DY151: 3 | DZ151: 3 | EA151: -7 | EB151: -2.5 | EC151: -3 | ED151: -0.5 | EE151: 4 | EF151: 0.5 | EG151: 6 | EH151: 1.5 | EI151: -3 | EJ151: 4.5 | EK151: 0 | EL151: -2 | EM151: 2 | EN151: 4 | EO151: -1 | EP151: 0 | EQ151: 0 | ER151: -2 | ES151: 2 | ET151: 4 | EU151: -1 | EV151: 0 | EW151: 1 | EX151: 1 | EY151: 1 | EZ151: 1 | FA151: 1 | FB151: 1
AR152: 0 | AS152: 1 | AT152: 136 | AU152: -4 | AV152: -1 | AW152: -5 | AX152: -3 | AY152: 3 | AZ152: -2 | BA152: 2 | BB152: -4 | BC152: 7 | BD152: 2 | BE152: 6 | BF152: 4 | BG152: -6 | BH152: 4 | BI152: -8 | BJ152: 5 | BK152: -3 | BL152: -3 | BM152: -3 | BN152: -1 | BO152: -4 | BP152: -1 | BQ152: -4 | BR152: -1 | BS152: -4 | BT152: -1 | BU152: -4 | BV152: -2 | BW152: -5 | BX152: -2 | BY152: -5 | BZ152: -3 | CA152: 4 | CB152: -4 | CC152: 4 | CD152: -2 | CE152: 3 | CF152: -2 | CG152: 3 | CH152: -2 | CI152: 3 | CJ152: -2 | CK152: 3 | CL152: -3 | CM152: 2 | CN152: -3 | CO152: 2 | CP152: -4 | CQ152: 8 | CR152: 4 | CS152: 8 | CT152: 2 | CU152: 7 | CV152: 2 | CW152: 7 | CX152: 2 | CY152: 7 | CZ152: 2 | DA152: 7 | DB152: 3 | DC152: 6 | DD152: 3 | DE152: 6 | DF152: 4 | DG152: -8 | DH152: 5 | DI152: -8 | DJ152: 3 | DK152: -6 | DL152: 3 | DM152: -6 | DN152: 4 | DO152: -7 | DP152: 4 | DQ152: -7 | DR152: 5 | DS152: -8 | DT152: 5 | DU152: -8 | DV152: 5 | DW152: 9 | DX152: 3 | DY152: 2 | DZ152: 2 | EA152: -5 | EB152: -3.5 | EC152: -4 | ED152: -0.5 | EE152: 3 | EF152: -1.5 | EG152: 7 | EH152: 1.5 | EI152: -6 | EJ152: 4.5 | EK152: 2 | EL152: -4 | EM152: 6 | EN152: 4 | EO152: -8 | EP152: 5 | EQ152: 2 | ER152: -4 | ES152: 6 | ET152: 4 | EU152: -8 | EV152: 5 | EW152: 1 | EX152: 1 | EY152: 1 | EZ152: 1 | FA152: 1 | FB152: 1
AR153: 0 | AS153: 0 | AT153: 137 | AU153: -5 | AV153: -2 | AW153: -3 | AX153: -5 | AY153: 6 | AZ153: 0 | BA153: 8 | BB153: -3 | BC153: 9 | BD153: 4 | BE153: 7 | BF153: 1 | BG153: -6 | BH153: 1 | BI153: -9 | BJ153: -1 | BK153: -5 | BL153: -2 | BM153: -6 | BN153: -3 | BO153: -6 | BP153: -4 | BQ153: -5 | BR153: -5 | BS153: -3 | BT153: -5 | BU153: -2 | BV153: -4 | BW153: -2 | BX153: -3 | BY153: -3 | BZ153: -2 | CA153: 6 | CB153: 0 | CC153: 5 | CD153: -1 | CE153: 5 | CF153: -2 | CG153: 6 | CH153: -3 | CI153: 8 | CJ153: -3 | CK153: 9 | CL153: -2 | CM153: 9 | CN153: -1 | CO153: 8 | CP153: 0 | CQ153: 7 | CR153: 4 | CS153: 6 | CT153: 3 | CU153: 6 | CV153: 2 | CW153: 7 | CX153: 1 | CY153: 9 | CZ153: 1 | DA153: 10 | DB153: 2 | DC153: 10 | DD153: 3 | DE153: 9 | DF153: 4 | DG153: -8 | DH153: 2 | DI153: -9 | DJ153: 1 | DK153: -9 | DL153: -1 | DM153: -8 | DN153: -2 | DO153: -7 | DP153: -2 | DQ153: -6 | DR153: -1 | DS153: -6 | DT153: 1 | DU153: -7 | DV153: 2 | DW153: 9 | DX153: 4 | DY153: 4 | DZ153: 3 | EA153: -3 | EB153: -5.5 | EC153: -5 | ED153: -1.5 | EE153: 6 | EF153: 0.5 | EG153: 9 | EH153: 4.5 | EI153: -5 | EJ153: =-EJ27+$AS153+1 -> 1.5 | EK153: 8 | EL153: -3 | EM153: 7 | EN153: 1 | EO153: -9 | EP153: -1 | EQ153: 8 | ER153: -3 | ES153: 7 | ET153: 1 | EU153: -9 | EV153: -1 | EW153: 1 | EX153: 1 | EY153: 1 | EZ153: 1 | FA153: 1 | FB153: 1
AR154: 0 | AS154: 1 | AT154: 138 | AU154: -7 | AV154: -1 | AW154: -5 | AX154: -4 | AY154: 4 | AZ154: 1 | BA154: 6 | BB154: -2 | BC154: 7 | BD154: 5 | BE154: 5 | BF154: 2 | BG154: -5 | BH154: 3 | BI154: -8 | BJ154: 5 | BK154: -5 | BL154: -1 | BM154: -7 | BN154: -1 | BO154: -6 | BP154: -2 | BQ154: -7 | BR154: -3 | BS154: -5 | BT154: -3 | BU154: -5 | BV154: -4 | BW154: -4 | BX154: -3 | BY154: -4 | BZ154: -2 | CA154: 6 | CB154: 1 | CC154: 4 | CD154: 1 | CE154: 5 | CF154: 0 | CG154: 4 | CH154: -1 | CI154: 6 | CJ154: -1 | CK154: 6 | CL154: -2 | CM154: 7 | CN154: -1 | CO154: 7 | CP154: 0 | CQ154: 7 | CR154: 2 | CS154: 5 | CT154: 2 | CU154: 6 | CV154: 3 | CW154: 5 | CX154: 4 | CY154: 7 | CZ154: 4 | DA154: 7 | DB154: 5 | DC154: 8 | DD154: 4 | DE154: 8 | DF154: 3 | DG154: -8 | DH154: 5 | DI154: -8 | DJ154: 3 | DK154: -7 | DL154: 2 | DM154: -6 | DN154: 2 | DO154: -5 | DP154: 3 | DQ154: -6 | DR154: 3 | DS154: -6 | DT154: 5 | DU154: -7 | DV154: 4 | DW154: 9 | DX154: 3 | DY154: 2 | DZ154: 2 | EA154: -5 | EB154: -4.5 | EC154: -7 | ED154: -0.5 | EE154: 4 | EF154: 1.5 | EG154: 7 | EH154: 5.5 | EI154: -5 | EJ154: =-EJ28+$AS154 -> 3.5 | EK154: 6 | EL154: -2 | EM154: 5 | EN154: 2 | EO154: -8 | EP154: 5 | EQ154: 6 | ER154: -2 | ES154: 5 | ET154: 2 | EU154: -8 | EV154: 5 | EW154: 1 | EX154: 1 | EY154: 1 | EZ154: 1 | FA154: 1 | FB154: 1
AR155: 0 | AS155: 1 | AT155: 139 | AU155: -5 | AV155: 0 | AW155: -4 | AX155: -4 | AY155: 6 | AZ155: 2 | BA155: 7 | BB155: -2 | BC155: 3 | BD155: 5 | BE155: 2 | BF155: 1 | BG155: -5 | BH155: 2 | BI155: -9 | BJ155: 3 | BK155: -5 | BL155: 0 | BM155: -7 | BN155: -2 | BO155: -7 | BP155: -3 | BQ155: -6 | BR155: -4 | BS155: -5 | BT155: -3 | BU155: -4 | BV155: -4 | BW155: -3 | BX155: -3 | BY155: -3 | BZ155: -2 | CA155: 6 | CB155: 2 | CC155: 4 | CD155: 0 | CE155: 4 | CF155: -1 | CG155: 5 | CH155: -2 | CI155: 6 | CJ155: -1 | CK155: 7 | CL155: -2 | CM155: 8 | CN155: -1 | CO155: 8 | CP155: 0 | CQ155: 2 | CR155: 1 | CS155: 0 | CT155: 3 | CU155: 0 | CV155: 4 | CW155: 1 | CX155: 5 | CY155: 2 | CZ155: 4 | DA155: 3 | DB155: 5 | DC155: 4 | DD155: 4 | DE155: 4 | DF155: 3 | DG155: -7 | DH155: 5 | DI155: -9 | DJ155: 3 | DK155: -7 | DL155: 1 | DM155: -6 | DN155: 1 | DO155: -5 | DP155: 2 | DQ155: -6 | DR155: 3 | DS155: -5 | DT155: 4 | DU155: -6 | DV155: 5 | DW155: 9 | DX155: 4 | DY155: 4 | DZ155: 2 | EA155: -4 | EB155: -4.5 | EC155: -5 | ED155: 0.5 | EE155: 6 | EF155: 2.5 | EG155: 3 | EH155: 5.5 | EI155: -4 | EJ155: =-EJ29+$AS155+1 -> 2.5 | EK155: 7 | EL155: -2 | EM155: 2 | EN155: 1 | EO155: -9 | EP155: 3 | EQ155: 7 | ER155: -2 | ES155: 2 | ET155: 1 | EU155: -9 | EV155: 3 | EW155: 1 | EX155: 1 | EY155: 1 | EZ155: 1 | FA155: 1 | FB155: 1
AR156: 0 | AS156: 1 | AT156: 140 | AU156: -5 | AV156: -1 | AW156: -7 | AX156: -4 | AY156: 5 | AZ156: 0 | BA156: 3 | BB156: -3 | BC156: 9 | BD156: 0 | BE156: 7 | BF156: 3 | BG156: -9 | BH156: 2 | BI156: -7 | BJ156: 5 | BK156: -5 | BL156: -1 | BM156: -8 | BN156: -1 | BO156: -8 | BP156: -4 | BQ156: -7 | BR156: -4 | BS156: -7 | BT156: -3 | BU156: -6 | BV156: -3 | BW156: -6 | BX156: -2 | BY156: -5 | BZ156: -2 | CA156: 5 | CB156: 0 | CC156: 2 | CD156: 0 | CE156: 2 | CF156: -3 | CG156: 3 | CH156: -3 | CI156: 3 | CJ156: -2 | CK156: 4 | CL156: -2 | CM156: 4 | CN156: -1 | CO156: 5 | CP156: -1 | CQ156: 9 | CR156: 0 | CS156: 6 | CT156: 0 | CU156: 6 | CV156: 3 | CW156: 7 | CX156: 3 | CY156: 7 | CZ156: 2 | DA156: 8 | DB156: 2 | DC156: 8 | DD156: 1 | DE156: 9 | DF156: 1 | DG156: -9 | DH156: 2 | DI156: -6 | DJ156: 2 | DK156: -6 | DL156: 5 | DM156: -7 | DN156: 5 | DO156: -7 | DP156: 4 | DQ156: -8 | DR156: 4 | DS156: -8 | DT156: 3 | DU156: -9 | DV156: 3 | DW156: 9 | DX156: 4 | DY156: 1 | DZ156: 2 | EA156: -7 | EB156: -4.5 | EC156: -5 | ED156: -0.5 | EE156: 5 | EF156: 0.5 | EG156: 9 | EH156: -0.5 | EI156: -9 | EJ156: =-EJ30+$AS156 -> 1.5 | EK156: 3 | EL156: -3 | EM156: 7 | EN156: 3 | EO156: -7 | EP156: 5 | EQ156: 3 | ER156: -3 | ES156: 7 | ET156: 3 | EU156: -7 | EV156: 5 | EW156: 1 | EX156: 1 | EY156: 1 | EZ156: 1 | FA156: 1 | FB156: 1
AR157: 0 | AS157: 0 | AT157: 141 | AU157: -8 | AV157: -1 | AW157: -6 | AX157: -5 | AY157: 6 | AZ157: -4 | BA157: 8 | BB157: 0 | BC157: 1 | BD157: 0 | BE157: 3 | BF157: 4 | BG157: -6 | BH157: 4 | BI157: -2 | BJ157: 2 | BK157: -9 | BL157: -2 | BM157: -8 | BN157: -1 | BO157: -7 | BP157: -2 | BQ157: -6 | BR157: -1 | BS157: -5 | BT157: -2 | BU157: -4 | BV157: -1 | BW157: -3 | BX157: -2 | BY157: -6 | BZ157: -5 | CA157: 3 | CB157: -1 | CC157: 4 | CD157: 0 | CE157: 5 | CF157: -1 | CG157: 6 | CH157: 0 | CI157: 7 | CJ157: -1 | CK157: 8 | CL157: 0 | CM157: 9 | CN157: -1 | CO157: 6 | CP157: -4 | CQ157: 0 | CR157: 1 | CS157: 1 | CT157: 0 | CU157: 2 | CV157: 1 | CW157: 3 | CX157: 0 | CY157: 4 | CZ157: 1 | DA157: 5 | DB157: 0 | DC157: 6 | DD157: 1 | DE157: 3 | DF157: 4 | DG157: -5 | DH157: 5 | DI157: -6 | DJ157: 4 | DK157: -5 | DL157: 3 | DM157: -6 | DN157: 2 | DO157: -5 | DP157: 1 | DQ157: -6 | DR157: 0 | DS157: -5 | DT157: -1 | DU157: -2 | DV157: 2 | DW157: 9 | DX157: 1 | DY157: 1 | DZ157: 1 | EA157: -6 | EB157: -5.5 | EC157: -8 | ED157: -0.5 | EE157: 6 | EF157: -4.5 | EG157: 1 | EH157: -0.5 | EI157: -7 | EJ157: =-EJ31+$AS157+1 -> 4.5 | EK157: 8 | EL157: 0 | EM157: 3 | EN157: 4 | EO157: -2 | EP157: 2 | EQ157: 8 | ER157: 0 | ES157: 3 | ET157: 4 | EU157: -2 | EV157: 2 | EW157: 1 | EX157: 1 | EY157: 1 | EZ157: 1 | FA157: 1 | FB157: 1
AR158: 0 | AS158: 1 | AT158: 142 | AU158: -6 | AV158: 0 | AW158: -8 | AX158: -4 | AY158: 4 | AZ158: -3 | BA158: 6 | BB158: 1 | BC158: 1 | BD158: 5 | BE158: 3 | BF158: 1 | BG158: -5 | BH158: 5 | BI158: -7 | BJ158: 1 | BK158: -9 | BL158: -1 | BM158: -8 | BN158: -2 | BO158: -9 | BP158: -3 | BQ158: -8 | BR158: -4 | BS158: -5 | BT158: -1 | BU158: -6 | BV158: 0 | BW158: -7 | BX158: -1 | BY158: -8 | BZ158: 0 | CA158: 3 | CB158: 0 | CC158: 4 | CD158: -1 | CE158: 3 | CF158: -2 | CG158: 4 | CH158: -3 | CI158: 7 | CJ158: 0 | CK158: 6 | CL158: 1 | CM158: 5 | CN158: 0 | CO158: 4 | CP158: 1 | CQ158: 0 | CR158: 2 | CS158: 1 | CT158: 3 | CU158: 0 | CV158: 4 | CW158: 1 | CX158: 5 | CY158: 4 | CZ158: 2 | DA158: 3 | DB158: 1 | DC158: 2 | DD158: 2 | DE158: 1 | DF158: 1 | DG158: -5 | DH158: 5 | DI158: -8 | DJ158: 2 | DK158: -7 | DL158: 1 | DM158: -6 | DN158: 2 | DO158: -5 | DP158: 1 | DQ158: -4 | DR158: 2 | DS158: -5 | DT158: 3 | DU158: -4 | DV158: 4 | DW158: 9 | DX158: 1 | DY158: 3 | DZ158: 3 | EA158: -8 | EB158: -4.5 | EC158: -6 | ED158: 0.5 | EE158: 4 | EF158: -3.5 | EG158: 1 | EH158: 5.5 | EI158: -5 | EJ158: =-EJ32+$AS158 -> 5.5 | EK158: 6 | EL158: 1 | EM158: 3 | EN158: 1 | EO158: -7 | EP158: 1 | EQ158: 6 | ER158: 1 | ES158: 3 | ET158: 1 | EU158: -7 | EV158: 1 | EW158: 1 | EX158: 1 | EY158: 1 | EZ158: 1 | FA158: 1 | FB158: 1
AR159: 0 | AS159: 0 | AT159: 143 | AU159: -6 | AV159: 1 | AW159: -7 | AX159: -4 | AY159: 5 | AZ159: -3 | BA159: 6 | BB159: 2 | BC159: 2 | BD159: 3 | BE159: 3 | BF159: -2 | BG159: -6 | BH159: 3 | BI159: -1 | BJ159: 2 | BK159: -6 | BL159: 1 | BM159: -8 | BN159: -1 | BO159: -7 | BP159: -2 | BQ159: -8 | BR159: -3 | BS159: -7 | BT159: -4 | BU159: -5 | BV159: -2 | BW159: -6 | BX159: -1 | BY159: -5 | BZ159: 0 | CA159: 6 | CB159: 2 | CC159: 4 | CD159: 0 | CE159: 5 | CF159: -1 | CG159: 4 | CH159: -2 | CI159: 5 | CJ159: -3 | CK159: 7 | CL159: -1 | CM159: 6 | CN159: 0 | CO159: 7 | CP159: 1 | CQ159: 3 | CR159: -2 | CS159: 1 | CT159: 0 | CU159: 2 | CV159: 1 | CW159: 1 | CX159: 2 | CY159: 2 | CZ159: 3 | DA159: 4 | DB159: 1 | DC159: 3 | DD159: 0 | DE159: 4 | DF159: -1 | DG159: -5 | DH159: 4 | DI159: -6 | DJ159: 3 | DK159: -4 | DL159: 1 | DM159: -3 | DN159: 2 | DO159: -2 | DP159: 1 | DQ159: -1 | DR159: 2 | DS159: -3 | DT159: 4 | DU159: -4 | DV159: 3 | DW159: 9 | DX159: 1 | DY159: 3 | DZ159: 1 | EA159: -7 | EB159: -4.5 | EC159: -6 | ED159: 1.5 | EE159: 5 | EF159: -3.5 | EG159: 2 | EH159: 3.5 | EI159: -7 | EJ159: =-EJ33+$AS159+1 -> 3.5 | EK159: 6 | EL159: 2 | EM159: 3 | EN159: -2 | EO159: -1 | EP159: 2 | EQ159: 6 | ER159: 2 | ES159: 3 | ET159: -2 | EU159: -1 | EV159: 2 | EW159: 1 | EX159: 1 | EY159: 1 | EZ159: 1 | FA159: 1 | FB159: 1
AR160: 0 | AS160: 0 | AT160: 144 | AU160: -4 | AV160: -3 | AW160: -7 | AX160: -4 | AY160: 5 | AZ160: -3 | BA160: 8 | BB160: -2 | BC160: 6 | BD160: 3 | BE160: 9 | BF160: 2 | BG160: -4 | BH160: 1 | BI160: -5 | BJ160: 4 | BK160: -6 | BL160: -1 | BM160: -7 | BN160: -2 | BO160: -6 | BP160: -3 | BQ160: -7 | BR160: -4 | BS160: -6 | BT160: -5 | BU160: -4 | BV160: -3 | BW160: -6 | BX160: -1 | BY160: -6 | BZ160: -1 | CA160: 6 | CB160: 0 | CC160: 5 | CD160: -1 | CE160: 6 | CF160: -2 | CG160: 5 | CH160: -3 | CI160: 6 | CJ160: -4 | CK160: 8 | CL160: -2 | CM160: 6 | CN160: 0 | CO160: 6 | CP160: 0 | CQ160: 8 | CR160: 1 | CS160: 9 | CT160: 2 | CU160: 8 | CV160: 3 | CW160: 9 | CX160: 4 | CY160: 8 | CZ160: 5 | DA160: 6 | DB160: 3 | DC160: 8 | DD160: 1 | DE160: 8 | DF160: 1 | DG160: -5 | DH160: 4 | DI160: -6 | DJ160: 3 | DK160: -4 | DL160: 1 | DM160: -2 | DN160: 3 | DO160: -3 | DP160: 4 | DQ160: -4 | DR160: 3 | DS160: -5 | DT160: 4 | DU160: -5 | DV160: 4 | DW160: 9 | DX160: 1 | DY160: 1 | DZ160: 1 | EA160: -8 | EB160: =-EB34+$AS160+1 -> -3.5 | EC160: -3 | ED160: =-ED34+$AS160+1 -> -2.5 | EE160: 4 | EF160: =-EF34+$AS160+1 -> -2.5 | EG160: 5 | EH160: =-EH34+$AS160+1 -> 3.5 | EI160: -4 | EJ160: =-EJ34+$AS160 -> 0.5 | EK160: 8 | EL160: -2 | EM160: 9 | EN160: 2 | EO160: -5 | EP160: 4 | EQ160: 8 | ER160: -2 | ES160: 9 | ET160: 2 | EU160: -5 | EV160: 4 | EW160: 1 | EX160: 1 | EY160: 1 | EZ160: 1 | FA160: 1 | FB160: 1
AR161: 0 | AS161: 0 | AT161: 145 | AU161: -3 | AV161: -1 | AW161: -8 | AX161: 0 | AY161: 5 | AZ161: -1 | BA161: 10 | BB161: -2 | BC161: 5 | BD161: 2 | BE161: 0 | BF161: 1 | BG161: -3 | BH161: 0 | BI161: -2 | BJ161: 5 | BK161: -8 | BL161: 0 | BM161: -7 | BN161: -1 | BO161: -6 | BP161: 0 | BQ161: -5 | BR161: -1 | BS161: -7 | BT161: -3 | BU161: -6 | BV161: -4 | BW161: -3 | BX161: -1 | BY161: -6 | BZ161: 2 | CA161: 5 | CB161: -1 | CC161: 6 | CD161: -2 | CE161: 7 | CF161: -1 | CG161: 8 | CH161: -2 | CI161: 6 | CJ161: -4 | CK161: 7 | CL161: -5 | CM161: 10 | CN161: -2 | CO161: 7 | CP161: 1 | CQ161: 2 | CR161: 5 | CS161: 1 | CT161: 4 | CU161: 3 | CV161: 2 | CW161: 2 | CX161: 1 | CY161: 1 | CZ161: 2 | DA161: 0 | DB161: 1 | DC161: 2 | DD161: -1 | DE161: 5 | DF161: 2 | DG161: -2 | DH161: 5 | DI161: -3 | DJ161: 4 | DK161: -2 | DL161: 3 | DM161: -3 | DN161: 2 | DO161: -5 | DP161: 4 | DQ161: -6 | DR161: 3 | DS161: -3 | DT161: 0 | DU161: 0 | DV161: 3 | DW161: 9 | DX161: 1 | DY161: 2 | DZ161: 1 | EA161: -9 | EB161: =-EB35+$AS161+1 -> 0.5 | EC161: -2 | ED161: =-ED35+$AS161 -> -1.5 | EE161: 4 | EF161: =-EF35+$AS161+1 -> -0.5 | EG161: 6 | EH161: =-EH35+$AS161+1 -> 2.5 | EI161: -2 | EJ161: =-EJ35+$AS161 -> -0.5 | EK161: 10 | EL161: -2 | EM161: 0 | EN161: 1 | EO161: -2 | EP161: 5 | EQ161: 10 | ER161: -2 | ES161: 0 | ET161: 1 | EU161: -2 | EV161: 5 | EW161: 1 | EX161: 1 | EY161: 1 | EZ161: 1 | FA161: 1 | FB161: 1
AR162: 0 | AS162: 1 | AT162: 146 | AU162: -7 | AV162: -3 | AW162: -8 | AX162: 0 | AY162: 6 | AZ162: -4 | BA162: 5 | BB162: -1 | BC162: 4 | BD162: 5 | BE162: 3 | BF162: 2 | BG162: -4 | BH162: 3 | BI162: -1 | BJ162: 4 | BK162: -8 | BL162: 0 | BM162: -9 | BN162: -1 | BO162: -8 | BP162: -3 | BQ162: -7 | BR162: -3 | BS162: -6 | BT162: -1 | BU162: -7 | BV162: 0 | BW162: -8 | BX162: 0 | BY162: -8 | BZ162: 0 | CA162: 5 | CB162: -1 | CC162: 4 | CD162: -2 | CE162: 5 | CF162: -4 | CG162: 6 | CH162: -4 | CI162: 7 | CJ162: -2 | CK162: 6 | CL162: -1 | CM162: 5 | CN162: -1 | CO162: 5 | CP162: -1 | CQ162: 2 | CR162: 3 | CS162: 3 | CT162: 2 | CU162: 4 | CV162: 2 | CW162: 5 | CX162: 3 | CY162: 4 | CZ162: 5 | DA162: 3 | DB162: 5 | DC162: 2 | DD162: 3 | DE162: 2 | DF162: 3 | DG162: -3 | DH162: 5 | DI162: -4 | DJ162: 4 | DK162: -4 | DL162: 3 | DM162: -3 | DN162: 2 | DO162: -1 | DP162: 3 | DQ162: -1 | DR162: 4 | DS162: -3 | DT162: 5 | DU162: -3 | DV162: 5 | DW162: 9 | DX162: 2 | DY162: 3 | DZ162: 1 | EA162: -8 | EB162: =-EB36+$AS162 -> 0.5 | EC162: -7 | ED162: -3.5 | EE162: 6 | EF162: =-EF36+$AS162 -> -4.5 | EG162: 4 | EH162: =-EH36+$AS162 -> 5.5 | EI162: -5 | EJ162: =-EJ36+$AS162+1 -> 3.5 | EK162: 5 | EL162: -1 | EM162: 3 | EN162: 2 | EO162: -1 | EP162: 4 | EQ162: 5 | ER162: -1 | ES162: 3 | ET162: 2 | EU162: -1 | EV162: 4 | EW162: 1 | EX162: 1 | EY162: 1 | EZ162: 1 | FA162: 1 | FB162: 1
AR163: 0 | AS163: 1 | AT163: 147 | AU163: -5 | AV163: -2 | AW163: -8 | AX163: 0 | AY163: 8 | AZ163: -3 | BA163: 5 | BB163: -1 | BC163: 7 | BD163: 4 | BE163: 4 | BF163: 2 | BG163: -3 | BH163: -1 | BI163: -5 | BJ163: 2 | BK163: -8 | BL163: 0 | BM163: -9 | BN163: -1 | BO163: -9 | BP163: -2 | BQ163: -7 | BR163: -3 | BS163: -5 | BT163: -2 | BU163: -5 | BV163: -1 | BW163: -6 | BX163: 0 | BY163: -8 | BZ163: 0 | CA163: 5 | CB163: -1 | CC163: 4 | CD163: -2 | CE163: 4 | CF163: -3 | CG163: 6 | CH163: -4 | CI163: 8 | CJ163: -3 | CK163: 8 | CL163: -2 | CM163: 7 | CN163: -1 | CO163: 5 | CP163: -1 | CQ163: 5 | CR163: 5 | CS163: 3 | CT163: 4 | CU163: 3 | CV163: 3 | CW163: 4 | CX163: 2 | CY163: 6 | CZ163: 2 | DA163: 7 | DB163: 3 | DC163: 7 | DD163: 4 | DE163: 5 | DF163: 5 | DG163: -3 | DH163: 3 | DI163: -4 | DJ163: 3 | DK163: -5 | DL163: 2 | DM163: -5 | DN163: 0 | DO163: -4 | DP163: -1 | DQ163: -3 | DR163: -1 | DS163: -2 | DT163: 1 | DU163: -3 | DV163: 3 | DW163: 9 | DX163: 2 | DY163: 3 | DZ163: 2 | EA163: -8 | EB163: =-EB37+$AS163 -> 0.5 | EC163: -4 | ED163: -2.5 | EE163: 9 | EF163: =-EF37+$AS163+1 -> -2.5 | EG163: 8 | EH163: =-EH37+$AS163 -> 4.5 | EI163: -3 | EJ163: =-EJ37+$AS163 -> -1.5 | EK163: 5 | EL163: -1 | EM163: 4 | EN163: 2 | EO163: -5 | EP163: 2 | EQ163: 5 | ER163: -1 | ES163: 4 | ET163: 2 | EU163: -5 | EV163: 2 | EW163: 1 | EX163: 1 | EY163: 1 | EZ163: 1 | FA163: 1 | FB163: 1
AR164: 0 | AS164: 1 | AT164: 148 | AU164: -5 | AV164: -1 | AW164: -2 | AX164: -2 | AY164: 7 | AZ164: 0 | BA164: 10 | BB164: -1 | BC164: 7 | BD164: 3 | BE164: 4 | BF164: 2 | BG164: -7 | BH164: 1 | BI164: -6 | BJ164: 4 | BK164: -5 | BL164: -1 | BM164: -6 | BN164: -2 | BO164: -4 | BP164: -4 | BQ164: -2 | BR164: -2 | BS164: -3 | BT164: -1 | BU164: -5 | BV164: -1 | BW164: -5 | BX164: -1 | BY164: -5 | BZ164: -1 | CA164: 7 | CB164: 0 | CC164: 6 | CD164: -1 | CE164: 8 | CF164: -3 | CG164: 10 | CH164: -1 | CI164: 9 | CJ164: 0 | CK164: 7 | CL164: 0 | CM164: 7 | CN164: 0 | CO164: 7 | CP164: 0 | CQ164: 5 | CR164: 5 | CS164: 3 | CT164: 3 | CU164: 4 | CV164: 2 | CW164: 6 | CX164: 2 | CY164: 7 | CZ164: 3 | DA164: 5 | DB164: 5 | DC164: 5 | DD164: 5 | DE164: 5 | DF164: 5 | DG164: -7 | DH164: 5 | DI164: -9 | DJ164: 3 | DK164: -7 | DL164: 1 | DM164: -6 | DN164: 2 | DO164: -6 | DP164: 4 | DQ164: -7 | DR164: 5 | DS164: -7 | DT164: 5 | DU164: -7 | DV164: 5 | DW164: 9 | DX164: 1 | DY164: 3 | DZ164: 1 | EA164: -1 | EB164: =-EB38+$AS164+1 -> -1.5 | EC164: -5 | ED164: -0.5 | EE164: 7 | EF164: =-EF38+$AS164 -> 0.5 | EG164: 8 | EH164: =-EH38+$AS164+1 -> 3.5 | EI164: -7 | EJ164: 0.5 | EK164: 10 | EL164: -1 | EM164: 4 | EN164: 2 | EO164: -6 | EP164: 4 | EQ164: 10 | ER164: -1 | ES164: 4 | ET164: 2 | EU164: -6 | EV164: 4 | EW164: 1 | EX164: 1 | EY164: 1 | EZ164: 1 | FA164: 1 | FB164: 1
AR165: 0 | AS165: 0 | AT165: 149 | AU165: -5 | AV165: -1 | AW165: -6 | AX165: -4 | AY165: 6 | AZ165: -3 | BA165: 7 | BB165: 0 | BC165: 4 | BD165: 4 | BE165: 5 | BF165: 1 | BG165: -3 | BH165: 2 | BI165: -6 | BJ165: 3 | BK165: -5 | BL165: -1 | BM165: -6 | BN165: -1 | BO165: -6 | BP165: -3 | BQ165: -7 | BR165: -3 | BS165: -6 | BT165: -4 | BU165: -5 | BV165: -4 | BW165: -5 | BX165: -1 | BY165: -5 | BZ165: -1 | CA165: 7 | CB165: 0 | CC165: 6 | CD165: 0 | CE165: 6 | CF165: -2 | CG165: 5 | CH165: -2 | CI165: 6 | CJ165: -3 | CK165: 7 | CL165: -3 | CM165: 7 | CN165: 0 | CO165: 7 | CP165: 0 | CQ165: 5 | CR165: 4 | CS165: 4 | CT165: 4 | CU165: 3 | CV165: 3 | CW165: 4 | CX165: 3 | CY165: 4 | CZ165: 1 | DA165: 5 | DB165: 1 | DC165: 5 | DD165: 4 | DE165: 5 | DF165: 4 | DG165: -5 | DH165: 4 | DI165: -6 | DJ165: 3 | DK165: -6 | DL165: 2 | DM165: -3 | DN165: 2 | DO165: -3 | DP165: 3 | DQ165: -5 | DR165: 3 | DS165: -5 | DT165: 4 | DU165: -5 | DV165: 4 | DW165: 9 | DX165: 1 | DY165: 4 | DZ165: 2 | EA165: -6 | EB165: =-EB39+$AS165 -> -4.5 | EC165: -5 | ED165: -0.5 | EE165: 6 | EF165: -3.5 | EG165: 4 | EH165: =-EH39+$AS165 -> 4.5 | EI165: -3 | EJ165: 1.5 | EK165: 7 | EL165: 0 | EM165: 5 | EN165: 1 | EO165: -6 | EP165: 3 | EQ165: 7 | ER165: 0 | ES165: 5 | ET165: 1 | EU165: -6 | EV165: 3 | EW165: 1 | EX165: 1 | EY165: 1 | EZ165: 1 | FA165: 1 | FB165: 1
AR166: 0 | AS166: 0 | AT166: 150 | AU166: -4 | AV166: -1 | AW166: -6 | AX166: -4 | AY166: 6 | AZ166: -2 | BA166: 8 | BB166: 1 | BC166: 3 | BD166: 4 | BE166: 5 | BF166: 1 | BG166: -8 | BH166: 4 | BI166: -5 | BJ166: 2 | BK166: -5 | BL166: -1 | BM166: -7 | BN166: -3 | BO166: -6 | BP166: -4 | BQ166: -4 | BR166: -2 | BS166: -4 | BT166: -1 | BU166: -5 | BV166: -1 | BW166: -5 | BX166: -1 | BY166: -5 | BZ166: -1 | CA166: 7 | CB166: 1 | CC166: 5 | CD166: -1 | CE166: 6 | CF166: -2 | CG166: 8 | CH166: 0 | CI166: 8 | CJ166: 1 | CK166: 7 | CL166: 1 | CM166: 7 | CN166: 1 | CO166: 7 | CP166: 1 | CQ166: 3 | CR166: 4 | CS166: 2 | CT166: 3 | CU166: 4 | CV166: 1 | CW166: 5 | CX166: 1 | CY166: 5 | CZ166: 2 | DA166: 3 | DB166: 4 | DC166: 3 | DD166: 4 | DE166: 3 | DF166: 4 | DG166: -8 | DH166: 4 | DI166: -8 | DJ166: 3 | DK166: -6 | DL166: 1 | DM166: -5 | DN166: 2 | DO166: -7 | DP166: 4 | DQ166: -8 | DR166: 4 | DS166: -8 | DT166: 4 | DU166: -8 | DV166: 4 | DW166: 9 | DX166: 1 | DY166: 4 | DZ166: 1 | EA166: -6 | EB166: -4.5 | EC166: -4 | ED166: -0.5 | EE166: 6 | EF166: -2.5 | EG166: 3 | EH166: 4.5 | EI166: -8 | EJ166: 4.5 | EK166: 8 | EL166: 1 | EM166: 5 | EN166: 1 | EO166: -5 | EP166: 2 | EQ166: 8 | ER166: 1 | ES166: 5 | ET166: 1 | EU166: -5 | EV166: 2 | EW166: 1 | EX166: 1 | EY166: 1 | EZ166: 1 | FA166: 1 | FB166: 1
AR167: 0 | AS167: 0 | AT167: 151 | AU167: -3 | AV167: -4 | AW167: -7 | AX167: -2 | AY167: 5 | AZ167: 0 | BA167: 9 | BB167: -2 | BC167: 5 | BD167: 4 | BE167: 1 | BF167: 2 | BG167: -6 | BH167: 4 | BI167: -4 | BJ167: 0 | BK167: -6 | BL167: -1 | BM167: -7 | BN167: -2 | BO167: -6 | BP167: -2 | BQ167: -5 | BR167: -4 | BS167: -3 | BT167: -4 | BU167: -4 | BV167: -2 | BW167: -3 | BX167: -2 | BY167: -4 | BZ167: -1 | CA167: 6 | CB167: 1 | CC167: 5 | CD167: 0 | CE167: 6 | CF167: 0 | CG167: 7 | CH167: -2 | CI167: 9 | CJ167: -2 | CK167: 8 | CL167: 0 | CM167: 9 | CN167: 0 | CO167: 8 | CP167: 1 | CQ167: 5 | CR167: 4 | CS167: 3 | CT167: 4 | CU167: 2 | CV167: 2 | CW167: 1 | CX167: 2 | CY167: 2 | CZ167: 1 | DA167: 4 | DB167: 1 | DC167: 5 | DD167: 2 | DE167: 4 | DF167: 2 | DG167: -6 | DH167: 4 | DI167: -7 | DJ167: 3 | DK167: -7 | DL167: 1 | DM167: -6 | DN167: 0 | DO167: -6 | DP167: 1 | DQ167: -4 | DR167: 0 | DS167: -4 | DT167: 2 | DU167: -6 | DV167: 3 | DW167: 9 | DX167: 4 | DY167: 2 | DZ167: 4 | EA167: -7 | EB167: -2.5 | EC167: -3 | ED167: -4.5 | EE167: 5 | EF167: -0.5 | EG167: 5 | EH167: 4.5 | EI167: -6 | EJ167: 4.5 | EK167: 9 | EL167: -2 | EM167: 1 | EN167: 2 | EO167: -4 | EP167: 0 | EQ167: 9 | ER167: -2 | ES167: 1 | ET167: 2 | EU167: -4 | EV167: 0 | EW167: 1 | EX167: 1 | EY167: 1 | EZ167: 1 | FA167: 1 | FB167: 1
AR168: 0 | AS168: 1 | AT168: 152 | AU168: -4 | AV168: -4 | AW168: -5 | AX168: 0 | AY168: 8 | AZ168: -2 | BA168: 7 | BB168: 2 | BC168: 4 | BD168: 4 | BE168: 3 | BF168: 0 | BG168: -8 | BH168: 2 | BI168: -4 | BJ168: 3 | BK168: -3 | BL168: 0 | BM168: -5 | BN168: 0 | BO168: -5 | BP168: -2 | BQ168: -6 | BR168: -2 | BS168: -4 | BT168: -4 | BU168: -2 | BV168: -2 | BW168: -3 | BX168: -2 | BY168: -3 | BZ168: 0 | CA168: 9 | CB168: 2 | CC168: 7 | CD168: 2 | CE168: 7 | CF168: 0 | CG168: 6 | CH168: 0 | CI168: 8 | CJ168: -2 | CK168: 10 | CL168: 0 | CM168: 9 | CN168: 0 | CO168: 9 | CP168: 2 | CQ168: 5 | CR168: 0 | CS168: 3 | CT168: 0 | CU168: 3 | CV168: 2 | CW168: 2 | CX168: 2 | CY168: 4 | CZ168: 4 | DA168: 6 | DB168: 2 | DC168: 5 | DD168: 2 | DE168: 5 | DF168: 0 | DG168: -6 | DH168: 5 | DI168: -6 | DJ168: 4 | DK168: -8 | DL168: 4 | DM168: -8 | DN168: 2 | DO168: -6 | DP168: 2 | DQ168: -6 | DR168: 1 | DS168: -4 | DT168: 3 | DU168: -6 | DV168: 5 | DW168: 9 | DX168: 2 | DY168: 3 | DZ168: 1 | EA168: -5 | EB168: 0.5 | EC168: -4 | ED168: -4.5 | EE168: 8 | EF168: -2.5 | EG168: 4 | EH168: 4.5 | EI168: -8 | EJ168: 1.5 | EK168: 7 | EL168: 2 | EM168: 3 | EN168: 0 | EO168: -4 | EP168: 3 | EQ168: 7 | ER168: 2 | ES168: 3 | ET168: 0 | EU168: -4 | EV168: 3 | EW168: 1 | EX168: 1 | EY168: 1 | EZ168: 1 | FA168: 1 | FB168: 1
AR169: 0 | AS169: 0 | AT169: 153 | AU169: -6 | AV169: -4 | AW169: -7 | AX169: -1 | AY169: 6 | AZ169: -2 | BA169: 5 | BB169: 1 | BC169: 2 | BD169: 2 | BE169: 1 | BF169: -1 | BG169: -8 | BH169: 3 | BI169: -5 | BJ169: 4 | BK169: -3 | BL169: -1 | BM169: -7 | BN169: -1 | BO169: -6 | BP169: -4 | BQ169: -4 | BR169: -4 | BS169: -3 | BT169: -1 | BU169: -3 | BV169: -1 | BW169: -3 | BX169: -1 | BY169: -3 | BZ169: -1 | CA169: 9 | CB169: 1 | CC169: 5 | CD169: 1 | CE169: 6 | CF169: -2 | CG169: 8 | CH169: -2 | CI169: 9 | CJ169: 1 | CK169: 9 | CL169: 1 | CM169: 9 | CN169: 1 | CO169: 9 | CP169: 1 | CQ169: 5 | CR169: -1 | CS169: 1 | CT169: -1 | CU169: 2 | CV169: 2 | CW169: 4 | CX169: 2 | CY169: 5 | CZ169: -1 | DA169: 5 | DB169: -1 | DC169: 5 | DD169: -1 | DE169: 5 | DF169: -1 | DG169: -5 | DH169: 4 | DI169: -8 | DJ169: 3 | DK169: -8 | DL169: 1 | DM169: -5 | DN169: 0 | DO169: -5 | DP169: 4 | DQ169: -5 | DR169: 4 | DS169: -5 | DT169: 4 | DU169: -5 | DV169: 4 | DW169: 9 | DX169: 2 | DY169: 3 | DZ169: 1 | EA169: -7 | EB169: -0.5 | EC169: -6 | ED169: -4.5 | EE169: 6 | EF169: -2.5 | EG169: 2 | EH169: 2.5 | EI169: -8 | EJ169: 3.5 | EK169: 5 | EL169: 1 | EM169: 1 | EN169: -1 | EO169: -5 | EP169: 4 | EQ169: 5 | ER169: 1 | ES169: 1 | ET169: -1 | EU169: -5 | EV169: 4 | EW169: 1 | EX169: 1 | EY169: 1 | EZ169: 1 | FA169: 1 | FB169: 1
AR170: 0 | AS170: 1 | AT170: 154 | AU170: -6 | AV170: -4 | AW170: -3 | AX170: 0 | AY170: 6 | AZ170: -2 | BA170: 9 | BB170: 2 | BC170: 2 | BD170: 4 | BE170: 5 | BF170: 0 | BG170: -8 | BH170: 5 | BI170: -4 | BJ170: 2 | BK170: -3 | BL170: 0 | BM170: -6 | BN170: -1 | BO170: -6 | BP170: -4 | BQ170: -3 | BR170: -2 | BS170: -3 | BT170: 0 | BU170: -3 | BV170: 0 | BW170: -3 | BX170: 0 | BY170: -3 | BZ170: 0 | CA170: 9 | CB170: 2 | CC170: 6 | CD170: 1 | CE170: 6 | CF170: -2 | CG170: 9 | CH170: 0 | CI170: 9 | CJ170: 2 | CK170: 9 | CL170: 2 | CM170: 9 | CN170: 2 | CO170: 9 | CP170: 2 | CQ170: 5 | CR170: 0 | CS170: 2 | CT170: 1 | CU170: 2 | CV170: 4 | CW170: 5 | CX170: 2 | CY170: 5 | CZ170: 0 | DA170: 5 | DB170: 0 | DC170: 5 | DD170: 0 | DE170: 5 | DF170: 0 | DG170: -5 | DH170: 5 | DI170: -8 | DJ170: 5 | DK170: -6 | DL170: 2 | DM170: -4 | DN170: 2 | DO170: -5 | DP170: 5 | DQ170: -5 | DR170: 5 | DS170: -5 | DT170: 5 | DU170: -5 | DV170: 5 | DW170: 9 | DX170: 1 | DY170: 4 | DZ170: 4 | EA170: -3 | EB170: 0.5 | EC170: -6 | ED170: -4.5 | EE170: 6 | EF170: -2.5 | EG170: 2 | EH170: 4.5 | EI170: -8 | EJ170: 5.5 | EK170: 9 | EL170: 2 | EM170: 5 | EN170: 0 | EO170: -4 | EP170: 2 | EQ170: 9 | ER170: 2 | ES170: 5 | ET170: 0 | EU170: -4 | EV170: 2 | EW170: 1 | EX170: 1 | EY170: 1 | EZ170: 1 | FA170: 1 | FB170: 1
AR171: 0 | AS171: 0 | AT171: 155 | AU171: -1 | AV171: -4 | AW171: -6 | AX171: -1 | AY171: 8 | AZ171: -3 | BA171: 3 | BB171: 0 | BC171: 4 | BD171: 3 | BE171: -1 | BF171: 0 | BG171: -5 | BH171: 4 | BI171: -8 | BJ171: -1 | BK171: -3 | BL171: -1 | BM171: -6 | BN171: -1 | BO171: -4 | BP171: -4 | BQ171: -1 | BR171: -4 | BS171: -3 | BT171: -1 | BU171: -3 | BV171: -1 | BW171: -3 | BX171: -1 | BY171: -3 | BZ171: -1 | CA171: 6 | CB171: 0 | CC171: 3 | CD171: 0 | CE171: 5 | CF171: -3 | CG171: 8 | CH171: -3 | CI171: 6 | CJ171: 0 | CK171: 6 | CL171: 0 | CM171: 6 | CN171: 0 | CO171: 6 | CP171: 0 | CQ171: 2 | CR171: 0 | CS171: -1 | CT171: 0 | CU171: 1 | CV171: 3 | CW171: 4 | CX171: 3 | CY171: 2 | CZ171: 0 | DA171: 2 | DB171: 0 | DC171: 2 | DD171: 0 | DE171: 2 | DF171: 0 | DG171: -5 | DH171: 4 | DI171: -8 | DJ171: 2 | DK171: -8 | DL171: -1 | DM171: -5 | DN171: 1 | DO171: -5 | DP171: 4 | DQ171: -5 | DR171: 4 | DS171: -5 | DT171: 4 | DU171: -5 | DV171: 4 | DW171: 9 | DX171: 1 | DY171: 2 | DZ171: 3 | EA171: -6 | EB171: -0.5 | EC171: -1 | ED171: -4.5 | EE171: 8 | EF171: -3.5 | EG171: 4 | EH171: 3.5 | EI171: -5 | EJ171: 4.5 | EK171: 3 | EL171: 0 | EM171: -1 | EN171: 0 | EO171: -8 | EP171: -1 | EQ171: 3 | ER171: 0 | ES171: -1 | ET171: 0 | EU171: -8 | EV171: -1 | EW171: 1 | EX171: 1 | EY171: 1 | EZ171: 1 | FA171: 1 | FB171: 1
AR172: 0 | AS172: 1 | AT172: 156 | AU172: -3 | AV172: 4 | AW172: -5 | AX172: -4 | AY172: 6 | AZ172: -3 | BA172: 8 | BB172: 5 | BC172: 2 | BD172: 5 | BE172: 4 | BF172: -3 | BG172: -8 | BH172: 5 | BI172: 0 | BJ172: 3 | BK172: -3 | BL172: 4 | BM172: -5 | BN172: 2 | BO172: -5 | BP172: -4 | BQ172: -3 | BR172: -2 | BS172: -3 | BT172: 4 | BU172: -3 | BV172: 4 | BW172: -3 | BX172: 4 | BY172: -3 | BZ172: 4 | CA172: 8 | CB172: 5 | CC172: 6 | CD172: 3 | CE172: 6 | CF172: -3 | CG172: 8 | CH172: -1 | CI172: 8 | CJ172: 5 | CK172: 8 | CL172: 5 | CM172: 8 | CN172: 5 | CO172: 8 | CP172: 5 | CQ172: 4 | CR172: -3 | CS172: 2 | CT172: -1 | CU172: 2 | CV172: 5 | CW172: 4 | CX172: 3 | CY172: 4 | CZ172: -3 | DA172: 4 | DB172: -3 | DC172: 4 | DD172: -3 | DE172: 4 | DF172: -3 | DG172: -8 | DH172: 5 | DI172: -6 | DJ172: 3 | DK172: 0 | DL172: 3 | DM172: -2 | DN172: 5 | DO172: -8 | DP172: 5 | DQ172: -8 | DR172: 5 | DS172: -8 | DT172: 5 | DU172: -8 | DV172: 5 | DW172: 9 | DX172: 1 | DY172: 4 | DZ172: 1 | EA172: -5 | EB172: -4.5 | EC172: -3 | ED172: 4.5 | EE172: 6 | EF172: -3.5 | EG172: 2 | EH172: 5.5 | EI172: -8 | EJ172: 5.5 | EK172: 8 | EL172: 5 | EM172: 4 | EN172: -3 | EO172: 0 | EP172: 3 | EQ172: 8 | ER172: 5 | ES172: 4 | ET172: -3 | EU172: 0 | EV172: 3 | EW172: 1 | EX172: 1 | EY172: 1 | EZ172: 1 | FA172: 1 | FB172: 1
AR173: 0 | AS173: 1 | AT173: 157 | AU173: -2 | AV173: -2 | AW173: -5 | AX173: -4 | AY173: 6 | AZ173: -3 | BA173: 9 | BB173: -1 | BC173: 2 | BD173: 5 | BE173: 5 | BF173: 3 | BG173: -5 | BH173: 5 | BI173: -3 | BJ173: 2 | BK173: -5 | BL173: 0 | BM173: -8 | BN173: -2 | BO173: -5 | BP173: -4 | BQ173: -2 | BR173: -2 | BS173: -5 | BT173: 0 | BU173: -5 | BV173: 0 | BW173: -5 | BX173: 0 | BY173: -5 | BZ173: 0 | CA173: 6 | CB173: 1 | CC173: 3 | CD173: -1 | CE173: 6 | CF173: -3 | CG173: 9 | CH173: -1 | CI173: 6 | CJ173: 1 | CK173: 6 | CL173: 1 | CM173: 6 | CN173: 1 | CO173: 6 | CP173: 1 | CQ173: 2 | CR173: 1 | CS173: -1 | CT173: 3 | CU173: 2 | CV173: 5 | CW173: 5 | CX173: 3 | CY173: 2 | CZ173: 1 | DA173: 2 | DB173: 1 | DC173: 2 | DD173: 1 | DE173: 2 | DF173: 1 | DG173: -5 | DH173: 5 | DI173: -7 | DJ173: 2 | DK173: -5 | DL173: -1 | DM173: -3 | DN173: 2 | DO173: -5 | DP173: 5 | DQ173: -5 | DR173: 5 | DS173: -5 | DT173: 5 | DU173: -5 | DV173: 5 | DW173: 9 | DX173: 1 | DY173: 1 | DZ173: 1 | EA173: -5 | EB173: -4.5 | EC173: -1 | ED173: =-ED47+$AS173+1 -> -1.5 | EE173: 6 | EF173: -3.5 | EG173: 2 | EH173: 5.5 | EI173: -5 | EJ173: 5.5 | EK173: 9 | EL173: -1 | EM173: 5 | EN173: 3 | EO173: -3 | EP173: 2 | EQ173: 9 | ER173: -1 | ES173: 5 | ET173: 3 | EU173: -3 | EV173: 2 | EW173: 1 | EX173: 1 | EY173: 1 | EZ173: 1 | FA173: 1 | FB173: 1
AR174: 0 | AS174: 1 | AT174: 158 | AU174: -8 | AV174: -2 | AW174: -5 | AX174: -4 | AY174: 6 | AZ174: -3 | BA174: 3 | BB174: -1 | BC174: 2 | BD174: 5 | BE174: -1 | BF174: 3 | BG174: -5 | BH174: 5 | BI174: -3 | BJ174: 2 | BK174: -5 | BL174: 0 | BM174: -8 | BN174: -2 | BO174: -5 | BP174: -4 | BQ174: -4 | BR174: -2 | BS174: -5 | BT174: 0 | BU174: -5 | BV174: 0 | BW174: -5 | BX174: 0 | BY174: -5 | BZ174: 0 | CA174: 6 | CB174: 1 | CC174: 3 | CD174: -1 | CE174: 6 | CF174: -3 | CG174: 7 | CH174: -1 | CI174: 6 | CJ174: 1 | CK174: 6 | CL174: 1 | CM174: 6 | CN174: 1 | CO174: 6 | CP174: 1 | CQ174: 2 | CR174: 1 | CS174: -1 | CT174: 3 | CU174: 2 | CV174: 5 | CW174: 3 | CX174: 3 | CY174: 2 | CZ174: 1 | DA174: 2 | DB174: 1 | DC174: 2 | DD174: 1 | DE174: 2 | DF174: 1 | DG174: -5 | DH174: 5 | DI174: -7 | DJ174: 2 | DK174: -5 | DL174: 1 | DM174: -3 | DN174: 2 | DO174: -5 | DP174: 5 | DQ174: -5 | DR174: 5 | DS174: -5 | DT174: 5 | DU174: -5 | DV174: 5 | DW174: 9 | DX174: 2 | DY174: 2 | DZ174: 1 | EA174: -5 | EB174: -4.5 | EC174: -9 | ED174: =-ED48+$AS174+1 -> -1.5 | EE174: 6 | EF174: -3.5 | EG174: 2 | EH174: 5.5 | EI174: -5 | EJ174: 5.5 | EK174: 3 | EL174: -1 | EM174: -1 | EN174: 3 | EO174: -3 | EP174: 2 | EQ174: 3 | ER174: -1 | ES174: -1 | ET174: 3 | EU174: -3 | EV174: 2 | EW174: 1 | EX174: 1 | EY174: 1 | EZ174: 1 | FA174: 1 | FB174: 1
AR175: 0 | AS175: 0 | AT175: 159 | AU175: -7 | AV175: -1 | AW175: -5 | AX175: -5 | AY175: 6 | AZ175: -4 | BA175: 4 | BB175: 0 | BC175: 3 | BD175: 4 | BE175: 1 | BF175: 0 | BG175: -6 | BH175: 1 | BI175: -2 | BJ175: 3 | BK175: -5 | BL175: -2 | BM175: -7 | BN175: -1 | BO175: -5 | BP175: -5 | BQ175: -3 | BR175: -1 | BS175: -5 | BT175: -2 | BU175: -5 | BV175: -2 | BW175: -5 | BX175: -2 | BY175: -5 | BZ175: -2 | CA175: 6 | CB175: -1 | CC175: 4 | CD175: 0 | CE175: 6 | CF175: -4 | CG175: 8 | CH175: 0 | CI175: 6 | CJ175: -1 | CK175: 6 | CL175: -1 | CM175: 6 | CN175: -1 | CO175: 6 | CP175: -1 | CQ175: 3 | CR175: 1 | CS175: 1 | CT175: 0 | CU175: 3 | CV175: 4 | CW175: 5 | CX175: 0 | CY175: 3 | CZ175: 1 | DA175: 3 | DB175: 1 | DC175: 3 | DD175: 1 | DE175: 3 | DF175: 1 | DG175: -6 | DH175: 5 | DI175: -5 | DJ175: 3 | DK175: -6 | DL175: 1 | DM175: -2 | DN175: 3 | DO175: -6 | DP175: 5 | DQ175: -6 | DR175: 5 | DS175: -6 | DT175: 5 | DU175: -6 | DV175: 5 | DW175: 9 | DX175: 3 | DY175: 2 | DZ175: 1 | EA175: -5 | EB175: -5.5 | EC175: -7 | ED175: =-ED49+$AS175 -> -0.5 | EE175: 6 | EF175: -4.5 | EG175: 3 | EH175: 4.5 | EI175: -6 | EJ175: 0.5 | EK175: 4 | EL175: 0 | EM175: 1 | EN175: 0 | EO175: -2 | EP175: 3 | EQ175: 4 | ER175: 0 | ES175: 1 | ET175: 0 | EU175: -2 | EV175: 3 | EW175: 1 | EX175: 1 | EY175: 1 | EZ175: 1 | FA175: 1 | FB175: 1
AR176: 0 | AS176: 0 | AT176: 160 | AU176: -8 | AV176: -1 | AW176: -6 | AX176: -4 | AY176: 7 | AZ176: -5 | BA176: 5 | BB176: -2 | BC176: 8 | BD176: 4 | BE176: 6 | BF176: 1 | BG176: -8 | BH176: 2 | BI176: -5 | BJ176: 4 | BK176: -5 | BL176: -1 | BM176: -8 | BN176: -1 | BO176: -9 | BP176: -2 | BQ176: -6 | BR176: -4 | BS176: -5 | BT176: -1 | BU176: -5 | BV176: -1 | BW176: -5 | BX176: -1 | BY176: -5 | BZ176: -1 | CA176: 8 | CB176: -2 | CC176: 5 | CD176: -2 | CE176: 4 | CF176: -3 | CG176: 7 | CH176: -5 | CI176: 8 | CJ176: -2 | CK176: 8 | CL176: -2 | CM176: 8 | CN176: -2 | CO176: 8 | CP176: -2 | CQ176: 9 | CR176: 1 | CS176: 6 | CT176: 1 | CU176: 5 | CV176: 2 | CW176: 8 | CX176: 4 | CY176: 9 | CZ176: 1 | DA176: 9 | DB176: 1 | DC176: 9 | DD176: 1 | DE176: 9 | DF176: 1 | DG176: -6 | DH176: 5 | DI176: -8 | DJ176: 2 | DK176: -5 | DL176: 1 | DM176: -5 | DN176: 4 | DO176: -6 | DP176: 5 | DQ176: -6 | DR176: 5 | DS176: -6 | DT176: 5 | DU176: -6 | DV176: 5 | DW176: 9 | DX176: 2 | DY176: 3 | DZ176: 1 | EA176: -6 | EB176: -4.5 | EC176: -8 | ED176: -0.5 | EE176: =EE50+$AR176 -> 7 | EF176: =-EF50+$AS176 -> -5.5 | EG176: 8 | EH176: 4.5 | EI176: -9 | EJ176: =-EJ50+$AS176+1 -> 2.5 | EK176: 5 | EL176: -2 | EM176: 6 | EN176: 1 | EO176: -5 | EP176: 4 | EQ176: 5 | ER176: -2 | ES176: 6 | ET176: 1 | EU176: -5 | EV176: 4 | EW176: 1 | EX176: 1 | EY176: 1 | EZ176: 1 | FA176: 1 | FB176: 1
AR177: 0 | AS177: 1 | AT177: 161 | AU177: -8 | AV177: -1 | AW177: -5 | AX177: 0 | AY177: 8 | AZ177: 1 | BA177: 5 | BB177: 0 | BC177: 1 | BD177: 1 | BE177: 4 | BF177: 0 | BG177: -2 | BH177: 5 | BI177: -1 | BJ177: 2 | BK177: -5 | BL177: 0 | BM177: -6 | BN177: -1 | BO177: -8 | BP177: -1 | BQ177: -5 | BR177: -4 | BS177: -5 | BT177: 0 | BU177: -5 | BV177: 0 | BW177: -5 | BX177: 0 | BY177: -5 | BZ177: 0 | CA177: 8 | CB177: 1 | CC177: 7 | CD177: 0 | CE177: 5 | CF177: 0 | CG177: 8 | CH177: -3 | CI177: 8 | CJ177: 1 | CK177: 8 | CL177: 1 | CM177: 8 | CN177: 1 | CO177: 8 | CP177: 1 | CQ177: 4 | CR177: 0 | CS177: 3 | CT177: 1 | CU177: 1 | CV177: 1 | CW177: 4 | CX177: 4 | CY177: 4 | CZ177: 0 | DA177: 4 | DB177: 0 | DC177: 4 | DD177: 0 | DE177: 4 | DF177: 0 | DG177: -2 | DH177: 5 | DI177: -5 | DJ177: 2 | DK177: -1 | DL177: 2 | DM177: -2 | DN177: 3 | DO177: -2 | DP177: 5 | DQ177: -2 | DR177: 5 | DS177: -2 | DT177: 5 | DU177: -2 | DV177: 5 | DW177: 9 | DX177: 2 | DY177: 3 | DZ177: 1 | EA177: -5 | EB177: 0.5 | EC177: -8 | ED177: -0.5 | EE177: 8 | EF177: 1.5 | EG177: 1 | EH177: 0.5 | EI177: -2 | EJ177: =-EJ51+$AS177 -> 5.5 | EK177: 5 | EL177: 0 | EM177: 4 | EN177: 0 | EO177: -1 | EP177: 2 | EQ177: 5 | ER177: 0 | ES177: 4 | ET177: 0 | EU177: -1 | EV177: 2 | EW177: 1 | EX177: 1 | EY177: 1 | EZ177: 1 | FA177: 1 | FB177: 1
AR178: 0 | AS178: 1 | AT178: 162 | AU178: -8 | AV178: -4 | AW178: -5 | AX178: 0 | AY178: 8 | AZ178: 1 | BA178: 5 | BB178: -3 | BC178: 1 | BD178: 4 | BE178: 4 | BF178: 0 | BG178: -6 | BH178: 5 | BI178: -2 | BJ178: 2 | BK178: -5 | BL178: 0 | BM178: -8 | BN178: 0 | BO178: -8 | BP178: -4 | BQ178: -5 | BR178: 0 | BS178: -5 | BT178: 0 | BU178: -5 | BV178: 0 | BW178: -5 | BX178: 0 | BY178: -5 | BZ178: 0 | CA178: 8 | CB178: 1 | CC178: 5 | CD178: 1 | CE178: 5 | CF178: -3 | CG178: 8 | CH178: 1 | CI178: 8 | CJ178: 1 | CK178: 8 | CL178: 1 | CM178: 8 | CN178: 1 | CO178: 8 | CP178: 1 | CQ178: 4 | CR178: 0 | CS178: 1 | CT178: 0 | CU178: 1 | CV178: 4 | CW178: 4 | CX178: 0 | CY178: 4 | CZ178: 0 | DA178: 4 | DB178: 0 | DC178: 4 | DD178: 0 | DE178: 4 | DF178: 0 | DG178: -2 | DH178: 2 | DI178: -6 | DJ178: 2 | DK178: -6 | DL178: 5 | DM178: -2 | DN178: 2 | DO178: -2 | DP178: 2 | DQ178: -2 | DR178: 2 | DS178: -2 | DT178: 2 | DU178: -2 | DV178: 2 | DW178: 9 | DX178: 3 | DY178: 1 | DZ178: 1 | EA178: -5 | EB178: 0.5 | EC178: -8 | ED178: -4.5 | EE178: 8 | EF178: 1.5 | EG178: 1 | EH178: 4.5 | EI178: -6 | EJ178: 5.5 | EK178: 5 | EL178: -3 | EM178: 4 | EN178: 0 | EO178: -2 | EP178: 2 | EQ178: 5 | ER178: -3 | ES178: 4 | ET178: 0 | EU178: -2 | EV178: 2 | EW178: 1 | EX178: 1 | EY178: 1 | EZ178: 1 | FA178: 1 | FB178: 1
AR179: 0 | AS179: 0 | AT179: 163 | AU179: -2 | AV179: 2 | AW179: -4 | AX179: -3 | AY179: 7 | AZ179: 1 | BA179: 5 | BB179: -4 | BC179: 1 | BD179: 3 | BE179: 3 | BF179: -2 | BG179: -8 | BH179: 4 | BI179: -3 | BJ179: 2 | BK179: -4 | BL179: -3 | BM179: -2 | BN179: -3 | BO179: -2 | BP179: 2 | BQ179: -4 | BR179: -3 | BS179: -4 | BT179: -3 | BU179: -4 | BV179: -3 | BW179: -4 | BX179: -3 | BY179: -4 | BZ179: -3 | CA179: 5 | CB179: -4 | CC179: 7 | CD179: -4 | CE179: 7 | CF179: 1 | CG179: 5 | CH179: -4 | CI179: 5 | CJ179: -4 | CK179: 5 | CL179: -4 | CM179: 5 | CN179: -4 | CO179: 5 | CP179: -4 | CQ179: 1 | CR179: 3 | CS179: 3 | CT179: 3 | CU179: 3 | CV179: -2 | CW179: 1 | CX179: 3 | CY179: 1 | CZ179: 3 | DA179: 1 | DB179: 3 | DC179: 1 | DD179: 3 | DE179: 1 | DF179: 3 | DG179: -8 | DH179: 4 | DI179: -3 | DJ179: 4 | DK179: -3 | DL179: 2 | DM179: -8 | DN179: 4 | DO179: -8 | DP179: 4 | DQ179: -8 | DR179: 4 | DS179: -8 | DT179: 4 | DU179: -8 | DV179: 4 | DW179: 9 | DX179: 3 | DY179: 4 | DZ179: 3 | EA179: -4 | EB179: -3.5 | EC179: -2 | ED179: 2.5 | EE179: 7 | EF179: 1.5 | EG179: 1 | EH179: 3.5 | EI179: -8 | EJ179: 4.5 | EK179: 5 | EL179: -4 | EM179: 3 | EN179: -2 | EO179: -3 | EP179: 2 | EQ179: 5 | ER179: -4 | ES179: 3 | ET179: -2 | EU179: -3 | EV179: 2 | EW179: 1 | EX179: 1 | EY179: 1 | EZ179: 1 | FA179: 1 | FB179: 1
AR180: 0 | AS180: 1 | AT180: 164 | AU180: -7 | AV180: -4 | AW180: -3 | AX180: -3 | AY180: 6 | AZ180: -1 | BA180: 2 | BB180: -2 | BC180: 2 | BD180: 2 | BE180: -2 | BF180: 3 | BG180: -6 | BH180: 5 | BI180: -5 | BJ180: 1 | BK180: -5 | BL180: -1 | BM180: -7 | BN180: -4 | BO180: -3 | BP180: -3 | BQ180: -5 | BR180: -1 | BS180: -5 | BT180: -1 | BU180: -5 | BV180: -1 | BW180: -5 | BX180: -1 | BY180: -5 | BZ180: -1 | CA180: 4 | CB180: 1 | CC180: 2 | CD180: -2 | CE180: 6 | CF180: -1 | CG180: 4 | CH180: 1 | CI180: 4 | CJ180: 1 | CK180: 4 | CL180: 1 | CM180: 4 | CN180: 1 | CO180: 4 | CP180: 1 | CQ180: 0 | CR180: 0 | CS180: -2 | CT180: 3 | CU180: 2 | CV180: 2 | CW180: 0 | CX180: 0 | CY180: 0 | CZ180: 0 | DA180: 0 | DB180: 0 | DC180: 0 | DD180: 0 | DE180: 0 | DF180: 0 | DG180: -8 | DH180: 3 | DI180: -5 | DJ180: 1 | DK180: -6 | DL180: 5 | DM180: -8 | DN180: 3 | DO180: -8 | DP180: 3 | DQ180: -8 | DR180: 3 | DS180: -8 | DT180: 3 | DU180: -8 | DV180: 3 | DW180: 9 | DX180: 3 | DY180: 2 | DZ180: 4 | EA180: -2 | EB180: =-EB54+$AS180+1 -> -2.5 | EC180: -7 | ED180: -4.5 | EE180: 7 | EF180: =-EF54+$AS180+1 -> -0.5 | EG180: 3 | EH180: =-EH54+$AS180+1 -> 2.5 | EI180: -6 | EJ180: 5.5 | EK180: 2 | EL180: -2 | EM180: -2 | EN180: 3 | EO180: -5 | EP180: 1 | EQ180: 2 | ER180: -2 | ES180: -2 | ET180: 3 | EU180: -5 | EV180: 1 | EW180: 1 | EX180: 1 | EY180: 1 | EZ180: 1 | FA180: 1 | FB180: 1
AR181: 0 | AS181: 1 | AT181: 165 | AU181: -6 | AV181: -2 | AW181: -5 | AX181: 3 | AY181: 4 | AZ181: 1 | BA181: 3 | BB181: -4 | BC181: 7 | BD181: 5 | BE181: 8 | BF181: 0 | BG181: 1 | BH181: 3 | BI181: -4 | BJ181: 4 | BK181: -5 | BL181: 3 | BM181: -7 | BN181: 0 | BO181: -6 | BP181: -2 | BQ181: -5 | BR181: 3 | BS181: -5 | BT181: 3 | BU181: -5 | BV181: 3 | BW181: -5 | BX181: 3 | BY181: -5 | BZ181: 3 | CA181: 4 | CB181: 1 | CC181: 2 | CD181: -2 | CE181: 3 | CF181: -4 | CG181: 4 | CH181: 1 | CI181: 4 | CJ181: 1 | CK181: 4 | CL181: 1 | CM181: 4 | CN181: 1 | CO181: 4 | CP181: 1 | CQ181: 8 | CR181: 0 | CS181: 6 | CT181: 3 | CU181: 7 | CV181: 5 | CW181: 8 | CX181: 0 | CY181: 8 | CZ181: 0 | DA181: 8 | DB181: 0 | DC181: 8 | DD181: 0 | DE181: 8 | DF181: 0 | DG181: -4 | DH181: 4 | DI181: -2 | DJ181: 5 | DK181: 1 | DL181: 3 | DM181: -4 | DN181: 4 | DO181: -4 | DP181: 4 | DQ181: -4 | DR181: 4 | DS181: -4 | DT181: 4 | DU181: -4 | DV181: 4 | DW181: 9 | DX181: 4 | DY181: 4 | DZ181: 2 | EA181: -5 | EB181: =-EB55+$AS181 -> 3.5 | EC181: -6 | ED181: -2.5 | EE181: 4 | EF181: =-EF55+$AS181 -> 1.5 | EG181: 7 | EH181: =-EH55+$AS181 -> 5.5 | EI181: 1 | EJ181: 2.5 | EK181: 3 | EL181: -4 | EM181: 8 | EN181: 0 | EO181: -4 | EP181: 4 | EQ181: 3 | ER181: -4 | ES181: 8 | ET181: 0 | EU181: -4 | EV181: 4 | EW181: 1 | EX181: 1 | EY181: 1 | EZ181: 1 | FA181: 1 | FB181: 1
AR182: 0 | AS182: 0 | AT182: 166 | AU182: -4 | AV182: -3 | AW182: -2 | AX182: 1 | AY182: 7 | AZ182: -1 | BA182: 5 | BB182: -5 | BC182: 8 | BD182: 4 | BE182: 10 | BF182: 0 | BG182: -9 | BH182: 0 | BI182: -5 | BJ182: 2 | BK182: -6 | BL182: 1 | BM182: -2 | BN182: 1 | BO182: -4 | BP182: -3 | BQ182: -6 | BR182: 1 | BS182: -6 | BT182: 1 | BU182: -6 | BV182: 1 | BW182: -6 | BX182: 1 | BY182: -6 | BZ182: 1 | CA182: 3 | CB182: -1 | CC182: 7 | CD182: -1 | CE182: 5 | CF182: -5 | CG182: 3 | CH182: -1 | CI182: 3 | CJ182: -1 | CK182: 3 | CL182: -1 | CM182: 3 | CN182: -1 | CO182: 3 | CP182: -1 | CQ182: 6 | CR182: 0 | CS182: 10 | CT182: 0 | CU182: 8 | CV182: 4 | CW182: 6 | CX182: 0 | CY182: 6 | CZ182: 0 | DA182: 6 | DB182: 0 | DC182: 6 | DD182: 0 | DE182: 6 | DF182: 0 | DG182: -9 | DH182: 4 | DI182: -9 | DJ182: 0 | DK182: -5 | DL182: 2 | DM182: -9 | DN182: 4 | DO182: -9 | DP182: 4 | DQ182: -9 | DR182: 4 | DS182: -9 | DT182: 4 | DU182: -9 | DV182: 4 | DW182: 9 | DX182: 3 | DY182: 4 | DZ182: 1 | EA182: -2 | EB182: =-EB56+$AS182 -> 1.5 | EC182: -4 | ED182: -3.5 | EE182: 7 | EF182: =-EF56+$AS182 -> -0.5 | EG182: 8 | EH182: =-EH56+$AS182 -> 4.5 | EI182: -9 | EJ182: -0.5 | EK182: 5 | EL182: -5 | EM182: 10 | EN182: 0 | EO182: -5 | EP182: 2 | EQ182: 5 | ER182: -5 | ES182: 10 | ET182: 0 | EU182: -5 | EV182: 2 | EW182: 1 | EX182: 1 | EY182: 1 | EZ182: 1 | FA182: 1 | FB182: 1
AR183: 0 | AS183: 0 | AT183: 167 | AU183: -4 | AV183: -5 | AW183: -6 | AX183: -1 | AY183: 5 | AZ183: -3 | BA183: 3 | BB183: 1 | BC183: 8 | BD183: 3 | BE183: 6 | BF183: -1 | BG183: -9 | BH183: 1 | BI183: -5 | BJ183: 3 | BK183: -6 | BL183: -1 | BM183: -8 | BN183: -3 | BO183: -4 | BP183: -5 | BQ183: -6 | BR183: -1 | BS183: -6 | BT183: -1 | BU183: -6 | BV183: -1 | BW183: -6 | BX183: -1 | BY183: -6 | BZ183: -1 | CA183: 3 | CB183: 1 | CC183: 1 | CD183: -1 | CE183: 5 | CF183: -3 | CG183: 3 | CH183: 1 | CI183: 3 | CJ183: 1 | CK183: 3 | CL183: 1 | CM183: 3 | CN183: 1 | CO183: 3 | CP183: 1 | CQ183: 6 | CR183: -1 | CS183: 4 | CT183: 1 | CU183: 8 | CV183: 3 | CW183: 6 | CX183: -1 | CY183: 6 | CZ183: -1 | DA183: 6 | DB183: -1 | DC183: 6 | DD183: -1 | DE183: 6 | DF183: -1 | DG183: -5 | DH183: 3 | DI183: -7 | DJ183: 5 | DK183: -9 | DL183: 1 | DM183: -5 | DN183: 3 | DO183: -5 | DP183: 3 | DQ183: -5 | DR183: 3 | DS183: -5 | DT183: 3 | DU183: -5 | DV183: 3 | DW183: 9 | DX183: 2 | DY183: 4 | DZ183: 1 | EA183: -6 | EB183: =-EB57+$AS183 -> -0.5 | EC183: =EC57+$AR183+1 -> -3 | ED183: =-ED57+$AS183+1 -> -4.5 | EE183: 5 | EF183: =-EF57+$AS183 -> -3.5 | EG183: 8 | EH183: =-EH57+$AS183 -> 3.5 | EI183: -9 | EJ183: 0.5 | EK183: 3 | EL183: 1 | EM183: 6 | EN183: -1 | EO183: -5 | EP183: 3 | EQ183: 3 | ER183: 1 | ES183: 6 | ET183: -1 | EU183: -5 | EV183: 3 | EW183: 1 | EX183: 1 | EY183: 1 | EZ183: 1 | FA183: 1 | FB183: 1
AR184: 0 | AS184: 0 | AT184: 168 | AU184: -3 | AV184: -5 | AW184: -7 | AX184: -1 | AY184: 3 | AZ184: -3 | BA184: -1 | BB184: 1 | BC184: 9 | BD184: 3 | BE184: 5 | BF184: -1 | BG184: -8 | BH184: 1 | BI184: -4 | BJ184: 5 | BK184: -7 | BL184: -1 | BM184: -4 | BN184: -2 | BO184: -3 | BP184: -5 | BQ184: -7 | BR184: -1 | BS184: -7 | BT184: -1 | BU184: -7 | BV184: -1 | BW184: -7 | BX184: -1 | BY184: -7 | BZ184: -1 | CA184: -1 | CB184: 1 | CC184: 2 | CD184: 0 | CE184: 3 | CF184: -3 | CG184: -1 | CH184: 1 | CI184: -1 | CJ184: 1 | CK184: -1 | CL184: 1 | CM184: -1 | CN184: 1 | CO184: -1 | CP184: 1 | CQ184: 5 | CR184: -1 | CS184: 8 | CT184: 0 | CU184: 9 | CV184: 3 | CW184: 5 | CX184: -1 | CY184: 5 | CZ184: -1 | DA184: 5 | DB184: -1 | DC184: 5 | DD184: -1 | DE184: 5 | DF184: -1 | DG184: -8 | DH184: 1 | DI184: -4 | DJ184: 5 | DK184: -7 | DL184: 4 | DM184: -8 | DN184: 1 | DO184: -8 | DP184: 1 | DQ184: -8 | DR184: 1 | DS184: -8 | DT184: 1 | DU184: -8 | DV184: 1 | DW184: 9 | DX184: 2 | DY184: 3 | DZ184: 1 | EA184: -7 | EB184: =-EB58+$AS184 -> -0.5 | EC184: =EC58+$AR184+1 -> -2 | ED184: =-ED58+$AS184+1 -> -4.5 | EE184: 3 | EF184: =-EF58+$AS184 -> -3.5 | EG184: 9 | EH184: =-EH58+$AS184 -> 3.5 | EI184: -8 | EJ184: 0.5 | EK184: -1 | EL184: 1 | EM184: 5 | EN184: -1 | EO184: -4 | EP184: 5 | EQ184: -1 | ER184: 1 | ES184: 5 | ET184: -1 | EU184: -4 | EV184: 5 | EW184: 1 | EX184: 1 | EY184: 1 | EZ184: 1 | FA184: 1 | FB184: 1
AT185: 169
AT186: 170
AT187: 171
AT188: 172
AT189: 173
AT190: 174
AT191: 175
AT192: 176
AT193: 177
AT194: 178
AT195: 179
AT196: 180
AT197: 181
AT198: 182
AT199: 183
AT200: 184
AT201: 185
AT202: 186
... 14 more rows

Sheet CONGRUENT (2)
C2: These four shapes are congruent to each other. | AT2: =RAND() -> 0.1184584142 | AU2: 0.5945638017 | AX2: 0.35 | AZ2: 0 | BA2: 0 | BB2: 0 | BC2: 0 | BD2: 0 | BE2: =BK16 -> 9 | BF2: =BL16 -> 2 | BG2: =CA16 -> -3 | BH2: =CB16 -> 1 | BI2: =CQ16 -> 0 | BJ2: =CR16 -> -1 | BK2: =DG16 -> 5 | BL2: =DH16 -> -4
AT3: 1 | AU3: =INT(168*AU2)+1 -> 100 | AV3: =IF(AW5>5,0,1) -> 1 | BE3: =BM16 -> 8 | BF3: =BN16 -> 3 | BG3: =CC16 -> -4 | BH3: =CD16 -> 2 | BI3: =CS16 -> -1 | BJ3: =CT16 -> -2 | BK3: =DI16 -> 8 | BL3: =DJ16 -> -1
AT4: 0 | AU4: 0 | AV4: =AT4 -> 0 | AW4: =AU4 -> 0 | AX4: =AV4 -> 0 | AY4: =AW4 -> 0 | AZ4: =IF($AV$3=1,AV4,AX4) -> 0 | BA4: =IF($AV$3=1,AW4,AY4) -> 0 | BE4: =BO16 -> 9 | BF4: =BP16 -> 4 | BG4: =CE16 -> -3 | BH4: =CF16 -> 3 | BI4: =CU16 -> 0 | BJ4: =CV16 -> -3 | BK4: =DK16 -> 7 | BL4: =DL16 -> 0
AT5: =2*AT9 -> 12 | AU5: =2*AU9 -> 2 | AV5: 10 | AW5: =AV5/AT5*AU5 -> 1.666666667 | AX5: =AY5/AU5*AT5 -> 30 | AY5: 5 | AZ5: =IF($AV$3=1,AV5,AX5) -> 10 | BA5: =IF($AV$3=1,AW5,AY5) -> 1.666666667 | BE5: =BQ16 -> 8 | BF5: =BR16 -> 5 | BG5: =CG16 -> -4 | BH5: =CH16 -> 4 | BI5: =CW16 -> -1 | BJ5: =CX16 -> -4 | BK5: =DM16 -> 6 | BL5: =DN16 -> -1
AT6: =((AU9/3*2)-AU10)/((AT9/3*2)-AT10) -> 1.083333333 | AU6: =AU10-AT6*AT10 -> -3.666666667 | BE6: =BS16 -> 5 | BF6: =BT16 -> 2 | BG6: =CI16 -> -7 | BH6: =CJ16 -> 1 | BI6: =CY16 -> -4 | BJ6: =CZ16 -> -1 | BK6: =DO16 -> 5 | BL6: =DP16 -> 0
AT7: 0 | AU7: =AT7*AT6+AU6 -> -3.666666667 | BE7: =BU16 -> 6 | BF7: =BV16 -> 1 | BG7: =CK16 -> -6 | BH7: =CL16 -> 0 | BI7: =DA16 -> -3 | BJ7: =DB16 -> 0 | BK7: =DQ16 -> 4 | BL7: =DR16 -> -1
AT8: =4*(AT9/3*2) -> 16 | AU8: =AU7-4*(AU7-(AU9/3*2)) -> 13.66666667 | BE8: =BW16 -> 7 | BF8: =BX16 -> 2 | BG8: =CM16 -> -5 | BH8: =CN16 -> 1 | BI8: =DC16 -> -2 | BJ8: =DD16 -> -1 | BK8: =DS16 -> 5 | BL8: =DT16 -> -2
AT9: =AU16 -> 6 | AU9: =AV16 -> 1 | BE9: =BY16 -> 8 | BF9: =BZ16 -> 1 | BG9: =CO16 -> -4 | BH9: =CP16 -> 0 | BI9: =DE16 -> -1 | BJ9: =DF16 -> 0 | BK9: =DU16 -> 4 | BL9: =DV16 -> -3
AT10: =AW16 -> 8 | AU10: =AX16 -> 5 | BE10: =BE2 -> 9 | BF10: 2 | BG10: -3 | BH10: 1 | BI10: 0 | BJ10: -1 | BK10: 5 | BL10: -4
AT12: =BC16 -> -1 | AU12: =BD16 -> -4 | AV12: =BE16 -> -3 | AW12: =BF16 -> 0 | AX12: =EG16 -> -1 | AY12: =EH16 -> -4.5 | AZ12: =CONCATENATE("(",IF(AT12<0,"−",""),ABS(AT12),", ",IF(AU12<0,"−",""),ABS(AU12),")") -> (−1, −4) | BA12: =IF(BD12=1,AV12+$AX$2,IF(BD12=2,AV12-$AX$2,IF(BD12=3,AV12-$AX$2,AV12+$AX$2))) -> -2.65 | BB12: =IF(BD12=1,AW12+$AX$2,IF(BD12=2,AW12+$AX$2,IF(BD12=3,AW12-$AX$2,AW12-$AX$2))) -> 0.35 | BC12: G | BD12: =$DY$16 -> 1
AT13: =BG16 -> 5 | AU13: =BH16 -> -4 | AV13: =BI16 -> 7 | AW13: =BJ16 -> 0 | AX13: =EI16 -> 5 | AY13: =EJ16 -> -4.5 | AZ13: =CONCATENATE("(",IF(AT13<0,"−",""),ABS(AT13),", ",IF(AU13<0,"−",""),ABS(AU13),")") -> (5, −4) | BA13: =IF(BD13=1,AV13+$AX$2,IF(BD13=2,AV13-$AX$2,IF(BD13=3,AV13-$AX$2,AV13+$AX$2))) -> 7.35 | BB13: =IF(BD13=1,AW13+$AX$2,IF(BD13=2,AW13+$AX$2,IF(BD13=3,AW13-$AX$2,AW13-$AX$2))) -> 0.35 | BC13: P | BD13: =$DZ$16 -> 1
C14: Complete | N14: R = | O14: =IF(BB2=1,CONCATENATE("(",IF(EK16<0,"−",""),ABS(EK16),", ",IF(EL16<0,"−",""),ABS(EL16),")"),"( , )") -> ( , ) | X14: G = | Y14: =IF(BC2=1,CONCATENATE("(",IF(EM16<0,"−",""),ABS(EM16),", ",IF(EN16<0,"−",""),ABS(EN16),")"),"( , )") -> ( , ) | AH14: P = | AI14: =IF(BD2=1,CONCATENATE("(",IF(EO16<0,"−",""),ABS(EO16),", ",IF(EP16<0,"−",""),ABS(EP16),")"),"( , )") -> ( , ) | AT14: =AY16 -> -4 | AU14: =AZ16 -> 4 | AV14: =BA16 -> -6 | AW14: =BB16 -> 0 | AX14: =EE16 -> -4 | AY14: =EF16 -> 4.5 | AZ14: =CONCATENATE("(",IF(AT14<0,"−",""),ABS(AT14),", ",IF(AU14<0,"−",""),ABS(AU14),")") -> (−4, 4) | BA14: =IF(BD14=1,AV14+$AX$2,IF(BD14=2,AV14-$AX$2,IF(BD14=3,AV14-$AX$2,AV14+$AX$2))) -> -6.35 | BB14: =IF(BD14=1,AW14+$AX$2,IF(BD14=2,AW14+$AX$2,IF(BD14=3,AW14-$AX$2,AW14-$AX$2))) -> -0.35 | BC14: R | BD14: =$DX$16 -> 3
AT15: =AU16 -> 6 | AU15: =AV16 -> 1 | AV15: =AW16 -> 8 | AW15: =AX16 -> 5 | AX15: =EC16 -> 6 | AY15: =ED16 -> 0.5 | AZ15: =CONCATENATE("(",IF(AT15<0,"−",""),ABS(AT15),", ",IF(AU15<0,"−",""),ABS(AU15),")") -> (6, 1) | BA15: =EA16 -> 8 | BB15: =EB16 -> 5.5 | BC15: =CONCATENATE("(",IF(AV15<0,"−",""),ABS(AV15),", ",IF(AW15<0,"−",""),ABS(AW15),")") -> (8, 5) | BD15: =$DW$16 -> 9
AT16: =AU3 -> 100 | AU16: =VLOOKUP($AT$16,$AT$17:$AX$216,2) -> 6 | AV16: =VLOOKUP($AT$16,$AT$17:$AX$216,3) -> 1 | AW16: =VLOOKUP($AT$16,$AT$17:$AX$216,4) -> 8 | AX16: =VLOOKUP($AT$16,$AT$17:$AX$216,5) -> 5 | AY16: =VLOOKUP($AT$16,$AT$17:$BD$216,6) -> -4 | AZ16: =VLOOKUP($AT$16,$AT$17:$BD$216,7) -> 4 | BA16: =VLOOKUP($AT$16,$AT$17:$BD$216,8) -> -6 | BB16: =VLOOKUP($AT$16,$AT$17:$BD$216,9) -> 0 | BC16: =VLOOKUP($AT$16,$AT$17:$CD$216,10) -> -1 | BD16: =VLOOKUP($AT$16,$AT$17:$CD$216,11) -> -4 | BE16: =VLOOKUP($AT$16,$AT$17:$CD$216,12) -> -3 | BF16: =VLOOKUP($AT$16,$AT$17:$CD$216,13) -> 0 | BG16: =VLOOKUP($AT$16,$AT$17:$CD$216,14) -> 5 | BH16: =VLOOKUP($AT$16,$AT$17:$CD$216,15) -> -4 | BI16: =VLOOKUP($AT$16,$AT$17:$CD$216,16) -> 7 | BJ16: =VLOOKUP($AT$16,$AT$17:$CD$216,17) -> 0 | BK16: =VLOOKUP($AT$16,$AT$17:$CD$216,18) -> 9 | BL16: =VLOOKUP($AT$16,$AT$17:$CD$216,19) -> 2 | BM16: =VLOOKUP($AT$16,$AT$17:$CD$216,20) -> 8 | BN16: =VLOOKUP($AT$16,$AT$17:$CD$216,21) -> 3 | BO16: =VLOOKUP($AT$16,$AT$17:$CD$216,22) -> 9 | BP16: =VLOOKUP($AT$16,$AT$17:$CD$216,23) -> 4 | BQ16: =VLOOKUP($AT$16,$AT$17:$CD$216,24) -> 8 | BR16: =VLOOKUP($AT$16,$AT$17:$CD$216,25) -> 5 | BS16: =VLOOKUP($AT$16,$AT$17:$CD$216,26) -> 5 | BT16: =VLOOKUP($AT$16,$AT$17:$CD$216,27) -> 2 | BU16: =VLOOKUP($AT$16,$AT$17:$CD$216,28) -> 6 | BV16: =VLOOKUP($AT$16,$AT$17:$CD$216,29) -> 1 | BW16: =VLOOKUP($AT$16,$AT$17:$CD$216,30) -> 7 | BX16: =VLOOKUP($AT$16,$AT$17:$CX$216,31) -> 2 | BY16: =VLOOKUP($AT$16,$AT$17:$CX$216,32) -> 8 | BZ16: =VLOOKUP($AT$16,$AT$17:$CX$216,33) -> 1 | CA16: =VLOOKUP($AT$16,$AT$17:$CX$216,34) -> -3 | CB16: =VLOOKUP($AT$16,$AT$17:$CX$216,35) -> 1 | CC16: =VLOOKUP($AT$16,$AT$17:$CX$216,36) -> -4 | CD16: =VLOOKUP($AT$16,$AT$17:$CX$216,37) -> 2 | CE16: =VLOOKUP($AT$16,$AT$17:$CX$216,38) -> -3 | CF16: =VLOOKUP($AT$16,$AT$17:$CX$216,39) -> 3 | CG16: =VLOOKUP($AT$16,$AT$17:$CX$216,40) -> -4 | CH16: =VLOOKUP($AT$16,$AT$17:$CX$216,41) -> 4 | CI16: =VLOOKUP($AT$16,$AT$17:$CX$216,42) -> -7 | CJ16: =VLOOKUP($AT$16,$AT$17:$CX$216,43) -> 1 | CK16: =VLOOKUP($AT$16,$AT$17:$CX$216,44) -> -6 | CL16: =VLOOKUP($AT$16,$AT$17:$CX$216,45) -> 0 | CM16: =VLOOKUP($AT$16,$AT$17:$CX$216,46) -> -5 | CN16: =VLOOKUP($AT$16,$AT$17:$CX$216,47) -> 1 | CO16: =VLOOKUP($AT$16,$AT$17:$CX$216,48) -> -4 | CP16: =VLOOKUP($AT$16,$AT$17:$CX$216,49) -> 0 | CQ16: =VLOOKUP($AT$16,$AT$17:$DX$216,50) -> 0 | CR16: =VLOOKUP($AT$16,$AT$17:$DX$216,51) -> -1 | CS16: =VLOOKUP($AT$16,$AT$17:$DX$216,52) -> -1 | CT16: =VLOOKUP($AT$16,$AT$17:$DX$216,53) -> -2 | CU16: =VLOOKUP($AT$16,$AT$17:$DX$216,54) -> 0 | CV16: =VLOOKUP($AT$16,$AT$17:$DX$216,55) -> -3 | CW16: =VLOOKUP($AT$16,$AT$17:$DX$216,56) -> -1 | CX16: =VLOOKUP($AT$16,$AT$17:$DX$216,57) -> -4 | CY16: =VLOOKUP($AT$16,$AT$17:$DX$216,58) -> -4 | CZ16: =VLOOKUP($AT$16,$AT$17:$DX$216,59) -> -1 | DA16: =VLOOKUP($AT$16,$AT$17:$DX$216,60) -> -3 | DB16: =VLOOKUP($AT$16,$AT$17:$DX$216,61) -> 0 | DC16: =VLOOKUP($AT$16,$AT$17:$DX$216,62) -> -2 | DD16: =VLOOKUP($AT$16,$AT$17:$DX$216,63) -> -1 | DE16: =VLOOKUP($AT$16,$AT$17:$DX$216,64) -> -1 | DF16: =VLOOKUP($AT$16,$AT$17:$DX$216,65) -> 0 | DG16: =VLOOKUP($AT$16,$AT$17:$DX$216,66) -> 5 | DH16: =VLOOKUP($AT$16,$AT$17:$DX$216,67) -> -4 | DI16: =VLOOKUP($AT$16,$AT$17:$DX$216,68) -> 8 | DJ16: =VLOOKUP($AT$16,$AT$17:$DX$216,69) -> -1 | DK16: =VLOOKUP($AT$16,$AT$17:$DX$216,70) -> 7 | DL16: =VLOOKUP($AT$16,$AT$17:$DX$216,71) -> 0 | DM16: =VLOOKUP($AT$16,$AT$17:$DX$216,72) -> 6 | DN16: =VLOOKUP($AT$16,$AT$17:$DX$216,73) -> -1 | DO16: =VLOOKUP($AT$16,$AT$17:$DX$216,74) -> 5 | DP16: =VLOOKUP($AT$16,$AT$17:$DX$216,75) -> 0 | DQ16: =VLOOKUP($AT$16,$AT$17:$DX$216,76) -> 4 | DR16: =VLOOKUP($AT$16,$AT$17:$DX$216,77) -> -1 | DS16: =VLOOKUP($AT$16,$AT$17:$DX$216,78) -> 5 | DT16: =VLOOKUP($AT$16,$AT$17:$DX$216,79) -> -2 | DU16: =VLOOKUP($AT$16,$AT$17:$DX$216,80) -> 4 | DV16: =VLOOKUP($AT$16,$AT$17:$DX$216,81) -> -3 | DW16: =VLOOKUP($AT$16,$AT$17:$DX$216,82) -> 9 | DX16: =VLOOKUP($AT$16,$AT$17:$DX$216,83) -> 3 | DY16: =VLOOKUP($AT$16,$AT$17:$DZ$216,84) -> 1 | DZ16: =VLOOKUP($AT$16,$AT$17:$DZ$216,85) -> 1 | EA16: =VLOOKUP($AT$16,$AT$17:$EC$216,86) -> 8 | EB16: =VLOOKUP($AT$16,$AT$17:$EC$216,87) -> 5.5 | EC16: =VLOOKUP($AT$16,$AT$17:$EM$216,88) -> 6 | ED16: =VLOOKUP($AT$16,$AT$17:$EM$216,89) -> 0.5 | EE16: =VLOOKUP($AT$16,$AT$17:$EM$216,90) -> -4 | EF16: =VLOOKUP($AT$16,$AT$17:$EM$216,91) -> 4.5 | EG16: =VLOOKUP($AT$16,$AT$17:$EM$216,92) -> -1 | EH16: =VLOOKUP($AT$16,$AT$17:$EM$216,93) -> -4.5 | EI16: =VLOOKUP($AT$16,$AT$17:$EM$216,94) -> 5 | EJ16: =VLOOKUP($AT$16,$AT$17:$EM$216,95) -> -4.5 | EK16: =VLOOKUP($AT$16,$AT$17:$EM$216,96) -> -6 | EL16: =VLOOKUP($AT$16,$AT$17:$EM$216,97) -> 0 | EM16: =VLOOKUP($AT$16,$AT$17:$EM$216,98) -> -3 | EN16: =VLOOKUP($AT$16,$AT$17:$EP$216,99) -> 0 | EO16: =VLOOKUP($AT$16,$AT$17:$EP$216,100) -> 7 | EP16: =VLOOKUP($AT$16,$AT$17:$EP$216,101) -> 0
AT17: 1 | AU17: -5 | AV17: 2 | AW17: -6 | AX17: 4 | AY17: 4 | AZ17: 1 | BA17: 3 | BB17: 3 | BC17: 7 | BD17: -2 | BE17: 6 | BF17: -4 | BG17: -7 | BH17: -2 | BI17: -5 | BJ17: -1 | BK17: -5 | BL17: 2 | BM17: -5 | BN17: 3 | BO17: -6 | BP17: 3 | BQ17: -6 | BR17: 4 | BS17: -3 | BT17: 4 | BU17: -3 | BV17: 3 | BW17: -4 | BX17: 3 | BY17: -4 | BZ17: 2 | CA17: 4 | CB17: 1 | CC17: 4 | CD17: 2 | CE17: 3 | CF17: 2 | CG17: 3 | CH17: 3 | CI17: 6 | CJ17: 3 | CK17: 6 | CL17: 2 | CM17: 5 | CN17: 2 | CO17: 5 | CP17: 1 | CQ17: 7 | CR17: -2 | CS17: 7 | CT17: -3 | CU17: 6 | CV17: -3 | CW17: 6 | CX17: -4 | CY17: 9 | CZ17: -4 | DA17: 9 | DB17: -3 | DC17: 8 | DD17: -3 | DE17: 8 | DF17: -2 | DG17: -7 | DH17: -3 | DI17: -6 | DJ17: -3 | DK17: -6 | DL17: -4 | DM17: -5 | DN17: -4 | DO17: -5 | DP17: -1 | DQ17: -6 | DR17: -1 | DS17: -6 | DT17: -2 | DU17: -7 | DV17: -2 | DW17: 9 | DX17: 2 | DY17: 3 | DZ17: 1 | EA17: -6 | EB17: 4.5 | EC17: -5 | ED17: 1.5 | EE17: 4 | EF17: 0.5 | EG17: 7 | EH17: -1.5 | EI17: -7 | EJ17: -1.5 | EK17: 3 | EL17: 3 | EM17: 6 | EN17: -4 | EO17: -5 | EP17: -1 | EQ17: =BA17 -> 3 | ER17: =BB17 -> 3 | ES17: =BE17 -> 6 | ET17: =BF17 -> -4 | EU17: =BI17 -> -5 | EV17: =BJ17 -> -1 | EW17: =IF(EQ17=EK17,1,0) -> 1 | EX17: 1 | EY17: 1 | EZ17: 1 | FA17: 1 | FB17: 1
C18: =IF($AZ$2=1,5,"") ->  | D18: =IF($AZ$2=1,4,"") ->  | E18: =IF($AZ$2=1,3,"") ->  | F18: =IF($AZ$2=1,2,"") ->  | G18: =IF($AZ$2=1,1,"") ->  | H18: =IF($AZ$2=1,"−1","") ->  | I18: =IF($AZ$2=1,"−2","") ->  | J18: =IF($AZ$2=1,"−3","") ->  | K18: =IF($AZ$2=1,"−4","") ->  | L18: =IF($AZ$2=1,"−5","") ->  | AT18: =AT17+1 -> 2 | AU18: -3 | AV18: 2 | AW18: -6 | AX18: 4 | AY18: 4 | AZ18: 1 | BA18: 1 | BB18: 3 | BC18: 6 | BD18: -1 | BE18: 3 | BF18: -3 | BG18: -4 | BH18: -5 | BI18: -2 | BJ18: -2 | BK18: -5 | BL18: 2 | BM18: -5 | BN18: 4 | BO18: -6 | BP18: 4 | BQ18: -6 | BR18: 5 | BS18: -4 | BT18: 5 | BU18: -4 | BV18: 3 | BW18: -3 | BX18: 3 | BY18: -3 | BZ18: 2 | CA18: 2 | CB18: 1 | CC18: 2 | CD18: 3 | CE18: 1 | CF18: 3 | CG18: 1 | CH18: 4 | CI18: 3 | CJ18: 4 | CK18: 3 | CL18: 2 | CM18: 4 | CN18: 2 | CO18: 4 | CP18: 1 | CQ18: 4 | CR18: -1 | CS18: 4 | CT18: -3 | CU18: 3 | CV18: -3 | CW18: 3 | CX18: -4 | CY18: 5 | CZ18: -4 | DA18: 5 | DB18: -2 | DC18: 6 | DD18: -2 | DE18: 6 | DF18: -1 | DG18: -1 | DH18: -4 | DI18: -3 | DJ18: -4 | DK18: -3 | DL18: -5 | DM18: -4 | DN18: -5 | DO18: -4 | DP18: -3 | DQ18: -2 | DR18: -3 | DS18: -2 | DT18: -2 | DU18: -1 | DV18: -2 | DW18: 9 | DX18: 3 | DY18: 2 | DZ18: 2 | EA18: -6 | EB18: 3.5 | EC18: -3 | ED18: 1.5 | EE18: 4 | EF18: 0.5 | EG18: 6 | EH18: -0.5 | EI18: -4 | EJ18: -5.5 | EK18: 1 | EL18: 3 | EM18: 3 | EN18: -3 | EO18: -2 | EP18: -2 | EQ18: =BA18 -> 1 | ER18: 3 | ES18: =BE18 -> 3 | ET18: -3 | EU18: =BI18 -> -2 | EV18: -2 | EW18: 1 | EX18: 1 | EY18: 1 | EZ18: 1 | FA18: 1 | FB18: 1
C19: =IF($AZ$2=1,10,"") ->  | D19: =IF($AZ$2=1,9,"") ->  | E19: =IF($AZ$2=1,8,"") ->  | F19: =IF($AZ$2=1,7,"") ->  | G19: =IF($AZ$2=1,6,"") ->  | H19: =IF($AZ$2=1,5,"") ->  | I19: =IF($AZ$2=1,4,"") ->  | J19: =IF($AZ$2=1,3,"") ->  | K19: =IF($AZ$2=1,2,"") ->  | L19: =IF($AZ$2=1,1,"") ->  | M19: =IF($AZ$2=1,"−1","") ->  | N19: =IF($AZ$2=1,"−2","") ->  | O19: =IF($AZ$2=1,"−3","") ->  | P19: =IF($AZ$2=1,"−4","") ->  | Q19: =IF($AZ$2=1,"−5","") ->  | R19: =IF($AZ$2=1,"−6","") ->  | S19: =IF($AZ$2=1,"−7","") ->  | T19: =IF($AZ$2=1,"−8","") ->  | U19: =IF($AZ$2=1,"−9","") ->  | V19: =IF($AZ$2=1,"−10","") ->  | AT19: =AT18+1 -> 3 | AU19: -5 | AV19: 2 | AW19: -8 | AX19: 4 | AY19: 2 | AZ19: 3 | BA19: 5 | BB19: 1 | BC19: 4 | BD19: -4 | BE19: 7 | BF19: -2 | BG19: -5 | BH19: -4 | BI19: -3 | BJ19: -1 | BK19: -5 | BL19: 2 | BM19: -5 | BN19: 4 | BO19: -8 | BP19: 4 | BQ19: -8 | BR19: 1 | BS19: -7 | BT19: 1 | BU19: -7 | BV19: 3 | BW19: -6 | BX19: 3 | BY19: -6 | BZ19: 2 | CA19: 5 | CB19: 1 | CC19: 5 | CD19: 3 | CE19: 2 | CF19: 3 | CG19: 2 | CH19: 0 | CI19: 3 | CJ19: 0 | CK19: 3 | CL19: 2 | CM19: 4 | CN19: 2 | CO19: 4 | CP19: 1 | CQ19: 4 | CR19: -4 | CS19: 4 | CT19: -1 | CU19: 5 | CV19: -1 | CW19: 5 | CX19: -3 | CY19: 6 | CZ19: -3 | DA19: 6 | DB19: -2 | DC19: 7 | DD19: -2 | DE19: 7 | DF19: -4 | DG19: -5 | DH19: -4 | DI19: -5 | DJ19: -1 | DK19: -3 | DL19: -1 | DM19: -3 | DN19: -2 | DO19: -4 | DP19: -2 | DQ19: -4 | DR19: -3 | DS19: -2 | DT19: -3 | DU19: -2 | DV19: -4 | DW19: 9 | DX19: 4 | DY19: 1 | DZ19: 1 | EA19: -8 | EB19: 4.5 | EC19: -5 | ED19: 1.5 | EE19: 2 | EF19: 3.5 | EG19: 4 | EH19: -4.5 | EI19: -5 | EJ19: -4.5 | EK19: 5 | EL19: 1 | EM19: 7 | EN19: -2 | EO19: -3 | EP19: -1 | EQ19: 5 | ER19: 1 | ES19: 7 | ET19: -2 | EU19: -3 | EV19: -1 | EW19: 1 | EX19: 1 | EY19: 1 | EZ19: 1 | FA19: 1 | FB19: 1
C20: x | D20: y | E20: =IF(BA2=1,0,-99) -> -99 | AT20: 4 | AU20: -5 | AV20: 4 | AW20: -8 | AX20: 2 | AY20: 4 | AZ20: 3 | BA20: 1 | BB20: 1 | BC20: 7 | BD20: -4 | BE20: 4 | BF20: -2 | BG20: -7 | BH20: -2 | BI20: -5 | BJ20: 1 | BK20: -5 | BL20: 4 | BM20: -5 | BN20: 3 | BO20: -8 | BP20: 3 | BQ20: -8 | BR20: 2 | BS20: -3 | BT20: 2 | BU20: -3 | BV20: 3 | BW20: -4 | BX20: 3 | BY20: -4 | BZ20: 4 | CA20: 4 | CB20: 3 | CC20: 4 | CD20: 2 | CE20: 1 | CF20: 2 | CG20: 1 | CH20: 1 | CI20: 6 | CJ20: 1 | CK20: 6 | CL20: 2 | CM20: 5 | CN20: 2 | CO20: 5 | CP20: 3 | CQ20: 7 | CR20: -4 | CS20: 7 | CT20: -3 | CU20: 4 | CV20: -3 | CW20: 4 | CX20: -2 | CY20: 9 | CZ20: -2 | DA20: 9 | DB20: -3 | DC20: 8 | DD20: -3 | DE20: 8 | DF20: -4 | DG20: -7 | DH20: -3 | DI20: -6 | DJ20: -3 | DK20: -6 | DL20: -4 | DM20: -5 | DN20: -4 | DO20: -5 | DP20: 1 | DQ20: -6 | DR20: 1 | DS20: -6 | DT20: -2 | DU20: -7 | DV20: -2 | DW20: 9 | DX20: 3 | DY20: 2 | DZ20: 1 | EA20: -8 | EB20: 1.5 | EC20: -5 | ED20: 4.5 | EE20: 4 | EF20: 3.5 | EG20: 7 | EH20: -4.5 | EI20: -7 | EJ20: -1.5 | EK20: 1 | EL20: 1 | EM20: 4 | EN20: -2 | EO20: -5 | EP20: 1 | EQ20: 1 | ER20: 1 | ES20: 4 | ET20: -2 | EU20: -5 | EV20: 1 | EW20: 1 | EX20: 1 | EY20: 1 | EZ20: 1 | FA20: 1 | FB20: 1
C21: =$E$20+E21 -> -109 | D21: -104 | E21: -10 | F21: -5 | G21: =E21-10 -> -20 | H21: =F21-5 -> -10 | AT21: 5 | AU21: -9 | AV21: 2 | AW21: -7 | AX21: 5 | AY21: 3 | AZ21: 4 | BA21: 1 | BB21: 1 | BC21: 6 | BD21: -4 | BE21: 4 | BF21: -1 | BG21: -4 | BH21: -3 | BI21: -7 | BJ21: -1 | BK21: -7 | BL21: 2 | BM21: -9 | BN21: 2 | BO21: -9 | BP21: 5 | BQ21: -7 | BR21: 5 | BS21: -7 | BT21: 4 | BU21: -8 | BV21: 4 | BW21: -8 | BX21: 3 | BY21: -7 | BZ21: 3 | CA21: 3 | CB21: 1 | CC21: 1 | CD21: 1 | CE21: 1 | CF21: 4 | CG21: 3 | CH21: 4 | CI21: 3 | CJ21: 3 | CK21: 2 | CL21: 3 | CM21: 2 | CN21: 2 | CO21: 3 | CP21: 2 | CQ21: 4 | CR21: -4 | CS21: 4 | CT21: -3 | CU21: 5 | CV21: -3 | CW21: 5 | CX21: -2 | CY21: 4 | CZ21: -2 | DA21: 4 | DB21: -1 | DC21: 6 | DD21: -1 | DE21: 6 | DF21: -4 | DG21: -7 | DH21: -3 | DI21: -7 | DJ21: -1 | DK21: -4 | DL21: -1 | DM21: -4 | DN21: -3 | DO21: -5 | DP21: -3 | DQ21: -5 | DR21: -2 | DS21: -6 | DT21: -2 | DU21: -6 | DV21: -3 | DW21: 9 | DX21: 3 | DY21: 2 | DZ21: 2 | EA21: -7 | EB21: 5.5 | EC21: -9 | ED21: 1.5 | EE21: 3 | EF21: 4.5 | EG21: 6 | EH21: -4.5 | EI21: -4 | EJ21: -3.5 | EK21: 1 | EL21: 1 | EM21: 4 | EN21: -1 | EO21: -7 | EP21: -1 | EQ21: 1 | ER21: 1 | ES21: 4 | ET21: -1 | EU21: -7 | EV21: -1 | EW21: 1 | EX21: 1 | EY21: 1 | EZ21: 1 | FA21: 1 | FB21: 1
C22: -109 | D22: -94 | E22: -10 | F22: 5 | G22: =E22-10 -> -20 | H22: =F22-5 -> 0 | AT22: 6 | AU22: -3 | AV22: 2 | AW22: -5 | AX22: 5 | AY22: 4 | AZ22: 1 | BA22: 2 | BB22: 4 | BC22: 6 | BD22: -1 | BE22: 4 | BF22: -4 | BG22: -4 | BH22: -3 | BI22: -1 | BJ22: -1 | BK22: -5 | BL22: 2 | BM22: -5 | BN22: 5 | BO22: -4 | BP22: 5 | BQ22: -4 | BR22: 5 | BS22: -4 | BT22: 5 | BU22: -4 | BV22: 3 | BW22: -3 | BX22: 3 | BY22: -3 | BZ22: 2 | CA22: 2 | CB22: 1 | CC22: 2 | CD22: 4 | CE22: 3 | CF22: 4 | CG22: 3 | CH22: 4 | CI22: 3 | CJ22: 4 | CK22: 3 | CL22: 2 | CM22: 4 | CN22: 2 | CO22: 4 | CP22: 1 | CQ22: 4 | CR22: -1 | CS22: 4 | CT22: -3 | CU22: 4 | CV22: -3 | CW22: 4 | CX22: -4 | CY22: 5 | CZ22: -4 | DA22: 5 | DB22: -2 | DC22: 6 | DD22: -2 | DE22: 6 | DF22: -1 | DG22: -1 | DH22: -3 | DI22: -3 | DJ22: -3 | DK22: -3 | DL22: -3 | DM22: -4 | DN22: -3 | DO22: -4 | DP22: -2 | DQ22: -2 | DR22: -2 | DS22: -2 | DT22: -1 | DU22: -1 | DV22: -1 | DW22: 9 | DX22: 2 | DY22: 3 | DZ22: 1 | EA22: -5 | EB22: 5.5 | EC22: -3 | ED22: 1.5 | EE22: 4 | EF22: 0.5 | EG22: 6 | EH22: -0.5 | EI22: -4 | EJ22: -3.5 | EK22: 2 | EL22: 4 | EM22: 4 | EN22: -4 | EO22: -1 | EP22: -1 | EQ22: 2 | ER22: 4 | ES22: 4 | ET22: -4 | EU22: -1 | EV22: -1 | EW22: 1 | EX22: 1 | EY22: 1 | EZ22: 1 | FA22: 1 | FB22: 1
C23: -108 | D23: -94 | E23: -9 | F23: 5 | G23: -19 | H23: 0 | AT23: 7 | AU23: -2 | AV23: 3 | AW23: -5 | AX23: 5 | AY23: 7 | AZ23: 1 | BA23: 4 | BB23: 3 | BC23: 9 | BD23: -2 | BE23: 6 | BF23: -4 | BG23: -6 | BH23: -2 | BI23: -8 | BJ23: -5 | BK23: -5 | BL23: 2 | BM23: -5 | BN23: 5 | BO23: -2 | BP23: 5 | BQ23: -2 | BR23: 3 | BS23: -4 | BT23: 3 | BU23: -4 | BV23: 2 | BW23: -4 | BX23: 2 | BY23: -4 | BZ23: 2 | CA23: 4 | CB23: 0 | CC23: 4 | CD23: 3 | CE23: 7 | CF23: 3 | CG23: 7 | CH23: 1 | CI23: 5 | CJ23: 1 | CK23: 5 | CL23: 0 | CM23: 5 | CN23: 0 | CO23: 5 | CP23: 0 | CQ23: 6 | CR23: -4 | CS23: 6 | CT23: -1 | CU23: 7 | CV23: -1 | CW23: 7 | CX23: -2 | CY23: 9 | CZ23: -2 | DA23: 9 | DB23: -4 | DC23: 6 | DD23: -4 | DE23: 6 | DF23: -4 | DG23: -8 | DH23: -5 | DI23: -8 | DJ23: -2 | DK23: -6 | DL23: -2 | DM23: -6 | DN23: -4 | DO23: -5 | DP23: -4 | DQ23: -5 | DR23: -5 | DS23: -5 | DT23: -5 | DU23: -5 | DV23: -5 | DW23: 9 | DX23: 2 | DY23: 3 | DZ23: 3 | EA23: -5 | EB23: 5.5 | EC23: -2 | ED23: 2.5 | EE23: 7 | EF23: 0.5 | EG23: 9 | EH23: -1.5 | EI23: -6 | EJ23: -1.5 | EK23: 4 | EL23: 3 | EM23: 6 | EN23: -4 | EO23: -8 | EP23: -5 | EQ23: 4 | ER23: 3 | ES23: 6 | ET23: -4 | EU23: -8 | EV23: -5 | EW23: 1 | EX23: 1 | EY23: 1 | EZ23: 1 | FA23: 1 | FB23: 1
C24: -108 | D24: -104 | E24: -9 | F24: -5 | G24: -19 | H24: -10 | AT24: 8 | AU24: -2 | AV24: 1 | AW24: 1 | AX24: 5 | AY24: 4 | AZ24: -1 | BA24: 7 | BB24: 3 | BC24: 6 | BD24: 0 | BE24: 9 | BF24: -4 | BG24: -5 | BH24: -2 | BI24: -9 | BJ24: 1 | BK24: -3 | BL24: 1 | BM24: -3 | BN24: 5 | BO24: 1 | BP24: 5 | BQ24: 1 | BR24: 4 | BS24: -2 | BT24: 4 | BU24: -2 | BV24: 1 | BW24: -2 | BX24: 1 | BY24: -2 | BZ24: 1 | CA24: 3 | CB24: -1 | CC24: 3 | CD24: 3 | CE24: 7 | CF24: 3 | CG24: 7 | CH24: 2 | CI24: 4 | CJ24: 2 | CK24: 4 | CL24: -1 | CM24: 4 | CN24: -1 | CO24: 4 | CP24: -1 | CQ24: 5 | CR24: -4 | CS24: 5 | CT24: 0 | CU24: 6 | CV24: 0 | CW24: 6 | CX24: -3 | CY24: 9 | CZ24: -3 | DA24: 9 | DB24: -4 | DC24: 9 | DD24: -4 | DE24: 9 | DF24: -4 | DG24: -5 | DH24: -2 | DI24: -6 | DJ24: -2 | DK24: -6 | DL24: 1 | DM24: -9 | DN24: 1 | DO24: -9 | DP24: 2 | DQ24: -5 | DR24: 2 | DS24: -5 | DT24: -2 | DU24: -5 | DV24: -2 | DW24: 9 | DX24: 1 | DY24: 4 | DZ24: 3 | EA24: 1 | EB24: 5.5 | EC24: -2 | ED24: 0.5 | EE24: 4 | EF24: -1.5 | EG24: 6 | EH24: 0.5 | EI24: -5 | EJ24: -2.5 | EK24: 7 | EL24: 3 | EM24: 9 | EN24: -4 | EO24: -9 | EP24: 1 | EQ24: 7 | ER24: 3 | ES24: 9 | ET24: -4 | EU24: -9 | EV24: 1 | EW24: 1 | EX24: 1 | EY24: 1 | EZ24: 1 | FA24: 1 | FB24: 1
C25: -107 | D25: -104 | E25: -8 | F25: -5 | G25: -18 | H25: -10 | AT25: 9 | AU25: -3 | AV25: 2 | AW25: -7 | AX25: 4 | AY25: 4 | AZ25: 1 | BA25: 0 | BB25: 3 | BC25: 6 | BD25: -1 | BE25: 2 | BF25: -3 | BG25: -8 | BH25: -3 | BI25: -6 | BJ25: 1 | BK25: -5 | BL25: 2 | BM25: -5 | BN25: 4 | BO25: -7 | BP25: 4 | BQ25: -7 | BR25: 5 | BS25: -4 | BT25: 5 | BU25: -4 | BV25: 3 | BW25: -3 | BX25: 3 | BY25: -3 | BZ25: 2 | CA25: 2 | CB25: 1 | CC25: 2 | CD25: 3 | CE25: 0 | CF25: 3 | CG25: 0 | CH25: 4 | CI25: 3 | CJ25: 4 | CK25: 3 | CL25: 2 | CM25: 4 | CN25: 2 | CO25: 4 | CP25: 1 | CQ25: 4 | CR25: -1 | CS25: 4 | CT25: -3 | CU25: 2 | CV25: -3 | CW25: 2 | CX25: -4 | CY25: 5 | CZ25: -4 | DA25: 5 | DB25: -2 | DC25: 6 | DD25: -2 | DE25: 6 | DF25: -1 | DG25: -5 | DH25: -2 | DI25: -7 | DJ25: -2 | DK25: -7 | DL25: -3 | DM25: -8 | DN25: -3 | DO25: -8 | DP25: -1 | DQ25: -6 | DR25: -1 | DS25: -6 | DT25: 1 | DU25: -5 | DV25: 1 | DW25: 9 | DX25: 3 | DY25: 2 | DZ25: 2 | EA25: -7 | EB25: 3.5 | EC25: -3 | ED25: 1.5 | EE25: 4 | EF25: 0.5 | EG25: 6 | EH25: -0.5 | EI25: -8 | EJ25: -3.5 | EK25: 0 | EL25: 3 | EM25: 2 | EN25: -3 | EO25: -6 | EP25: 1 | EQ25: 0 | ER25: 3 | ES25: 2 | ET25: -3 | EU25: -6 | EV25: 1 | EW25: 1 | EX25: 1 | EY25: 1 | EZ25: 1 | FA25: 1 | FB25: 1
C26: -107 | D26: -94 | E26: -8 | F26: 5 | G26: -18 | H26: 0 | AT26: 10 | AU26: -4 | AV26: 2 | AW26: -5 | AX26: 4 | AY26: 3 | AZ26: 3 | BA26: 2 | BB26: 5 | BC26: 7 | BD26: -1 | BE26: 6 | BF26: -3 | BG26: -6 | BH26: -3 | BI26: -8 | BJ26: -4 | BK26: -3 | BL26: 4 | BM26: -3 | BN26: 2 | BO26: -4 | BP26: 2 | BQ26: -4 | BR26: 2 | BS26: -4 | BT26: 2 | BU26: -4 | BV26: 3 | BW26: -5 | BX26: 3 | BY26: -5 | BZ26: 4 | CA26: 4 | CB26: 5 | CC26: 4 | CD26: 3 | CE26: 3 | CF26: 3 | CG26: 3 | CH26: 3 | CI26: 3 | CJ26: 3 | CK26: 3 | CL26: 4 | CM26: 2 | CN26: 4 | CO26: 2 | CP26: 5 | CQ26: 8 | CR26: -3 | CS26: 8 | CT26: -1 | CU26: 7 | CV26: -1 | CW26: 7 | CX26: -1 | CY26: 7 | CZ26: -1 | DA26: 7 | DB26: -2 | DC26: 6 | DD26: -2 | DE26: 6 | DF26: -3 | DG26: -8 | DH26: -4 | DI26: -8 | DJ26: -2 | DK26: -6 | DL26: -2 | DM26: -6 | DN26: -3 | DO26: -7 | DP26: -3 | DQ26: -7 | DR26: -4 | DS26: -8 | DT26: -4 | DU26: -8 | DV26: -4 | DW26: 9 | DX26: 2 | DY26: 3 | DZ26: 3 | EA26: -5 | EB26: 4.5 | EC26: -4 | ED26: 1.5 | EE26: 3 | EF26: 2.5 | EG26: 7 | EH26: -0.5 | EI26: -6 | EJ26: -3.5 | EK26: 2 | EL26: 5 | EM26: 6 | EN26: -3 | EO26: -8 | EP26: -4 | EQ26: 2 | ER26: 5 | ES26: 6 | ET26: -3 | EU26: -8 | EV26: -4 | EW26: 1 | EX26: 1 | EY26: 1 | EZ26: 1 | FA26: 1 | FB26: 1
C27: -106 | D27: -94 | E27: -7 | F27: 5 | G27: -17 | H27: 0 | AT27: 11 | AU27: -5 | AV27: 2 | AW27: -3 | AX27: 5 | AY27: 6 | AZ27: 0 | BA27: 8 | BB27: 3 | BC27: 9 | BD27: -4 | BE27: 7 | BF27: -1 | BG27: -6 | BH27: -1 | BI27: -9 | BJ27: 1 | BK27: -5 | BL27: 2 | BM27: -6 | BN27: 3 | BO27: -6 | BP27: 4 | BQ27: -5 | BR27: 5 | BS27: -3 | BT27: 5 | BU27: -2 | BV27: 4 | BW27: -2 | BX27: 3 | BY27: -3 | BZ27: 2 | CA27: 6 | CB27: 0 | CC27: 5 | CD27: 1 | CE27: 5 | CF27: 2 | CG27: 6 | CH27: 3 | CI27: 8 | CJ27: 3 | CK27: 9 | CL27: 2 | CM27: 9 | CN27: 1 | CO27: 8 | CP27: 0 | CQ27: 7 | CR27: -4 | CS27: 6 | CT27: -3 | CU27: 6 | CV27: -2 | CW27: 7 | CX27: -1 | CY27: 9 | CZ27: -1 | DA27: 10 | DB27: -2 | DC27: 10 | DD27: -3 | DE27: 9 | DF27: -4 | DG27: -8 | DH27: -2 | DI27: -9 | DJ27: -1 | DK27: -9 | DL27: 1 | DM27: -8 | DN27: 2 | DO27: -7 | DP27: 2 | DQ27: -6 | DR27: 1 | DS27: -6 | DT27: -1 | DU27: -7 | DV27: -2 | DW27: 9 | DX27: 1 | DY27: 1 | DZ27: 2 | EA27: -3 | EB27: 5.5 | EC27: -5 | ED27: 1.5 | EE27: 6 | EF27: -0.5 | EG27: 9 | EH27: -4.5 | EI27: -5 | EJ27: -1.5 | EK27: 8 | EL27: 3 | EM27: 7 | EN27: -1 | EO27: -9 | EP27: 1 | EQ27: 8 | ER27: 3 | ES27: 7 | ET27: -1 | EU27: -9 | EV27: 1 | EW27: 1 | EX27: 1 | EY27: 1 | EZ27: 1 | FA27: 1 | FB27: 1
C28: -106 | D28: -104 | E28: -7 | F28: -5 | G28: -17 | H28: -10 | AT28: 12 | AU28: -7 | AV28: 2 | AW28: -5 | AX28: 5 | AY28: 4 | AZ28: 0 | BA28: 6 | BB28: 3 | BC28: 7 | BD28: -4 | BE28: 5 | BF28: -1 | BG28: -5 | BH28: -2 | BI28: -8 | BJ28: -4 | BK28: -5 | BL28: 2 | BM28: -7 | BN28: 2 | BO28: -6 | BP28: 3 | BQ28: -7 | BR28: 4 | BS28: -5 | BT28: 4 | BU28: -5 | BV28: 5 | BW28: -4 | BX28: 4 | BY28: -4 | BZ28: 3 | CA28: 6 | CB28: 0 | CC28: 4 | CD28: 0 | CE28: 5 | CF28: 1 | CG28: 4 | CH28: 2 | CI28: 6 | CJ28: 2 | CK28: 6 | CL28: 3 | CM28: 7 | CN28: 2 | CO28: 7 | CP28: 1 | CQ28: 7 | CR28: -1 | CS28: 5 | CT28: -1 | CU28: 6 | CV28: -2 | CW28: 5 | CX28: -3 | CY28: 7 | CZ28: -3 | DA28: 7 | DB28: -4 | DC28: 8 | DD28: -3 | DE28: 8 | DF28: -2 | DG28: -8 | DH28: -4 | DI28: -8 | DJ28: -2 | DK28: -7 | DL28: -1 | DM28: -6 | DN28: -1 | DO28: -5 | DP28: -2 | DQ28: -6 | DR28: -2 | DS28: -6 | DT28: -4 | DU28: -7 | DV28: -3 | DW28: 9 | DX28: 2 | DY28: 3 | DZ28: 3 | EA28: -5 | EB28: 5.5 | EC28: -7 | ED28: 1.5 | EE28: 4 | EF28: -0.5 | EG28: 7 | EH28: -4.5 | EI28: -5 | EJ28: -2.5 | EK28: 6 | EL28: 3 | EM28: 5 | EN28: -1 | EO28: -8 | EP28: -4 | EQ28: 6 | ER28: 3 | ES28: 5 | ET28: -1 | EU28: -8 | EV28: -4 | EW28: 1 | EX28: 1 | EY28: 1 | EZ28: 1 | FA28: 1 | FB28: 1
C29: -105 | D29: -104 | E29: -6 | F29: -5 | G29: -16 | H29: -10 | AT29: 13 | AU29: -5 | AV29: 1 | AW29: -4 | AX29: 5 | AY29: 6 | AZ29: -1 | BA29: 7 | BB29: 3 | BC29: 3 | BD29: -4 | BE29: 2 | BF29: 0 | BG29: -5 | BH29: -1 | BI29: -9 | BJ29: -2 | BK29: -5 | BL29: 1 | BM29: -7 | BN29: 3 | BO29: -7 | BP29: 4 | BQ29: -6 | BR29: 5 | BS29: -5 | BT29: 4 | BU29: -4 | BV29: 5 | BW29: -3 | BX29: 4 | BY29: -3 | BZ29: 3 | CA29: 6 | CB29: -1 | CC29: 4 | CD29: 1 | CE29: 4 | CF29: 2 | CG29: 5 | CH29: 3 | CI29: 6 | CJ29: 2 | CK29: 7 | CL29: 3 | CM29: 8 | CN29: 2 | CO29: 8 | CP29: 1 | CQ29: 2 | CR29: 0 | CS29: 0 | CT29: -2 | CU29: 0 | CV29: -3 | CW29: 1 | CX29: -4 | CY29: 2 | CZ29: -3 | DA29: 3 | DB29: -4 | DC29: 4 | DD29: -3 | DE29: 4 | DF29: -2 | DG29: -7 | DH29: -4 | DI29: -9 | DJ29: -2 | DK29: -7 | DL29: 0 | DM29: -6 | DN29: 0 | DO29: -5 | DP29: -1 | DQ29: -6 | DR29: -2 | DS29: -5 | DT29: -3 | DU29: -6 | DV29: -4 | DW29: 9 | DX29: 1 | DY29: 1 | DZ29: 2 | EA29: -4 | EB29: 5.5 | EC29: -5 | ED29: 0.5 | EE29: 6 | EF29: -1.5 | EG29: 3 | EH29: -4.5 | EI29: -4 | EJ29: -1.5 | EK29: 7 | EL29: 3 | EM29: 2 | EN29: 0 | EO29: -9 | EP29: -2 | EQ29: 7 | ER29: 3 | ES29: 2 | ET29: 0 | EU29: -9 | EV29: -2 | EW29: 1 | EX29: 1 | EY29: 1 | EZ29: 1 | FA29: 1 | FB29: 1
C30: -105 | D30: -94 | E30: -6 | F30: 5 | G30: -16 | H30: 0 | AT30: 14 | AU30: -5 | AV30: 2 | AW30: -7 | AX30: 5 | AY30: 5 | AZ30: 1 | BA30: 3 | BB30: 4 | BC30: 9 | BD30: 1 | BE30: 7 | BF30: -2 | BG30: -9 | BH30: -1 | BI30: -7 | BJ30: -4 | BK30: -5 | BL30: 2 | BM30: -8 | BN30: 2 | BO30: -8 | BP30: 5 | BQ30: -7 | BR30: 5 | BS30: -7 | BT30: 4 | BU30: -6 | BV30: 4 | BW30: -6 | BX30: 3 | BY30: -5 | BZ30: 3 | CA30: 5 | CB30: 1 | CC30: 2 | CD30: 1 | CE30: 2 | CF30: 4 | CG30: 3 | CH30: 4 | CI30: 3 | CJ30: 3 | CK30: 4 | CL30: 3 | CM30: 4 | CN30: 2 | CO30: 5 | CP30: 2 | CQ30: 9 | CR30: 1 | CS30: 6 | CT30: 1 | CU30: 6 | CV30: -2 | CW30: 7 | CX30: -2 | CY30: 7 | CZ30: -1 | DA30: 8 | DB30: -1 | DC30: 8 | DD30: 0 | DE30: 9 | DF30: 0 | DG30: -9 | DH30: -1 | DI30: -6 | DJ30: -1 | DK30: -6 | DL30: -4 | DM30: -7 | DN30: -4 | DO30: -7 | DP30: -3 | DQ30: -8 | DR30: -3 | DS30: -8 | DT30: -2 | DU30: -9 | DV30: -2 | DW30: 9 | DX30: 1 | DY30: 4 | DZ30: 3 | EA30: -7 | EB30: 5.5 | EC30: -5 | ED30: 1.5 | EE30: 5 | EF30: 0.5 | EG30: 9 | EH30: 1.5 | EI30: -9 | EJ30: -0.5 | EK30: 3 | EL30: 4 | EM30: 7 | EN30: -2 | EO30: -7 | EP30: -4 | EQ30: 3 | ER30: 4 | ES30: 7 | ET30: -2 | EU30: -7 | EV30: -4 | EW30: 1 | EX30: 1 | EY30: 1 | EZ30: 1 | FA30: 1 | FB30: 1
C31: -104 | D31: -94 | E31: -5 | F31: 5 | G31: -15 | H31: 0 | AT31: 15 | AU31: -8 | AV31: 1 | AW31: -6 | AX31: 5 | AY31: 6 | AZ31: 4 | BA31: 8 | BB31: 0 | BC31: 1 | BD31: 0 | BE31: 3 | BF31: -4 | BG31: -6 | BH31: -4 | BI31: -2 | BJ31: -2 | BK31: -9 | BL31: 2 | BM31: -8 | BN31: 1 | BO31: -7 | BP31: 2 | BQ31: -6 | BR31: 1 | BS31: -5 | BT31: 2 | BU31: -4 | BV31: 1 | BW31: -3 | BX31: 2 | BY31: -6 | BZ31: 5 | CA31: 3 | CB31: 1 | CC31: 4 | CD31: 0 | CE31: 5 | CF31: 1 | CG31: 6 | CH31: 0 | CI31: 7 | CJ31: 1 | CK31: 8 | CL31: 0 | CM31: 9 | CN31: 1 | CO31: 6 | CP31: 4 | CQ31: 0 | CR31: -1 | CS31: 1 | CT31: 0 | CU31: 2 | CV31: -1 | CW31: 3 | CX31: 0 | CY31: 4 | CZ31: -1 | DA31: 5 | DB31: 0 | DC31: 6 | DD31: -1 | DE31: 3 | DF31: -4 | DG31: -5 | DH31: -5 | DI31: -6 | DJ31: -4 | DK31: -5 | DL31: -3 | DM31: -6 | DN31: -2 | DO31: -5 | DP31: -1 | DQ31: -6 | DR31: 0 | DS31: -5 | DT31: 1 | DU31: -2 | DV31: -2 | DW31: 9 | DX31: 4 | DY31: 4 | DZ31: 1 | EA31: -6 | EB31: 5.5 | EC31: -8 | ED31: 0.5 | EE31: 6 | EF31: 4.5 | EG31: 1 | EH31: 0.5 | EI31: -7 | EJ31: -3.5 | EK31: 8 | EL31: 0 | EM31: 3 | EN31: -4 | EO31: -2 | EP31: -2 | EQ31: 8 | ER31: 0 | ES31: 3 | ET31: -4 | EU31: -2 | EV31: -2 | EW31: 1 | EX31: 1 | EY31: 1 | EZ31: 1 | FA31: 1 | FB31: 1
C32: -104 | D32: -104 | E32: -5 | F32: -5 | G32: -15 | H32: -10 | AT32: 16 | AU32: -6 | AV32: 1 | AW32: -8 | AX32: 5 | AY32: 4 | AZ32: 4 | BA32: 6 | BB32: 0 | BC32: 1 | BD32: -4 | BE32: 3 | BF32: 0 | BG32: -5 | BH32: -4 | BI32: -7 | BJ32: 0 | BK32: -9 | BL32: 2 | BM32: -8 | BN32: 3 | BO32: -9 | BP32: 4 | BQ32: -8 | BR32: 5 | BS32: -5 | BT32: 2 | BU32: -6 | BV32: 1 | BW32: -7 | BX32: 2 | BY32: -8 | BZ32: 1 | CA32: 3 | CB32: 1 | CC32: 4 | CD32: 2 | CE32: 3 | CF32: 3 | CG32: 4 | CH32: 4 | CI32: 7 | CJ32: 1 | CK32: 6 | CL32: 0 | CM32: 5 | CN32: 1 | CO32: 4 | CP32: 0 | CQ32: 0 | CR32: -1 | CS32: 1 | CT32: -2 | CU32: 0 | CV32: -3 | CW32: 1 | CX32: -4 | CY32: 4 | CZ32: -1 | DA32: 3 | DB32: 0 | DC32: 2 | DD32: -1 | DE32: 1 | DF32: 0 | DG32: -5 | DH32: -4 | DI32: -8 | DJ32: -1 | DK32: -7 | DL32: 0 | DM32: -6 | DN32: -1 | DO32: -5 | DP32: 0 | DQ32: -4 | DR32: -1 | DS32: -5 | DT32: -2 | DU32: -4 | DV32: -3 | DW32: 9 | DX32: 4 | DY32: 2 | DZ32: 2 | EA32: -8 | EB32: 5.5 | EC32: -6 | ED32: 0.5 | EE32: 4 | EF32: 4.5 | EG32: 1 | EH32: -4.5 | EI32: -5 | EJ32: -4.5 | EK32: 6 | EL32: 0 | EM32: 3 | EN32: 0 | EO32: -7 | EP32: 0 | EQ32: 6 | ER32: 0 | ES32: 3 | ET32: 0 | EU32: -7 | EV32: 0 | EW32: 1 | EX32: 1 | EY32: 1 | EZ32: 1 | FA32: 1 | FB32: 1
C33: -103 | D33: -104 | E33: -4 | F33: -5 | G33: -14 | H33: -10 | AT33: 17 | AU33: -6 | AV33: -1 | AW33: -7 | AX33: 4 | AY33: 5 | AZ33: 3 | BA33: 6 | BB33: -2 | BC33: 2 | BD33: -3 | BE33: 3 | BF33: 2 | BG33: -6 | BH33: -3 | BI33: -1 | BJ33: -2 | BK33: -6 | BL33: -1 | BM33: -8 | BN33: 1 | BO33: -7 | BP33: 2 | BQ33: -8 | BR33: 3 | BS33: -7 | BT33: 4 | BU33: -5 | BV33: 2 | BW33: -6 | BX33: 1 | BY33: -5 | BZ33: 0 | CA33: 6 | CB33: -2 | CC33: 4 | CD33: 0 | CE33: 5 | CF33: 1 | CG33: 4 | CH33: 2 | CI33: 5 | CJ33: 3 | CK33: 7 | CL33: 1 | CM33: 6 | CN33: 0 | CO33: 7 | CP33: -1 | CQ33: 3 | CR33: 2 | CS33: 1 | CT33: 0 | CU33: 2 | CV33: -1 | CW33: 1 | CX33: -2 | CY33: 2 | CZ33: -3 | DA33: 4 | DB33: -1 | DC33: 3 | DD33: 0 | DE33: 4 | DF33: 1 | DG33: -5 | DH33: -4 | DI33: -6 | DJ33: -3 | DK33: -4 | DL33: -1 | DM33: -3 | DN33: -2 | DO33: -2 | DP33: -1 | DQ33: -1 | DR33: -2 | DS33: -3 | DT33: -4 | DU33: -4 | DV33: -3 | DW33: 9 | DX33: 4 | DY33: 2 | DZ33: 1 | EA33: -7 | EB33: 4.5 | EC33: -6 | ED33: -1.5 | EE33: 5 | EF33: 3.5 | EG33: 2 | EH33: -3.5 | EI33: -7 | EJ33: -2.5 | EK33: 6 | EL33: -2 | EM33: 3 | EN33: 2 | EO33: -1 | EP33: -2 | EQ33: 6 | ER33: -2 | ES33: 3 | ET33: 2 | EU33: -1 | EV33: -2 | EW33: =IF(EQ33=EK33,1,0) -> 1 | EX33: 1 | EY33: 1 | EZ33: 1 | FA33: 1 | FB33: 1
C34: -103 | D34: -94 | E34: -4 | F34: 5 | G34: -14 | H34: 0 | AT34: 18 | AU34: -4 | AV34: 3 | AW34: -7 | AX34: 4 | AY34: 5 | AZ34: 3 | BA34: 8 | BB34: 2 | BC34: 6 | BD34: -3 | BE34: 9 | BF34: -2 | BG34: -4 | BH34: -1 | BI34: -5 | BJ34: -4 | BK34: -6 | BL34: 1 | BM34: -7 | BN34: 2 | BO34: -6 | BP34: 3 | BQ34: -7 | BR34: 4 | BS34: -6 | BT34: 5 | BU34: -4 | BV34: 3 | BW34: -6 | BX34: 1 | BY34: -6 | BZ34: 1 | CA34: 6 | CB34: 0 | CC34: 5 | CD34: 1 | CE34: 6 | CF34: 2 | CG34: 5 | CH34: 3 | CI34: 6 | CJ34: 4 | CK34: 8 | CL34: 2 | CM34: 6 | CN34: 0 | CO34: 6 | CP34: 0 | CQ34: 8 | CR34: -1 | CS34: 9 | CT34: -2 | CU34: 8 | CV34: -3 | CW34: 9 | CX34: -4 | CY34: 8 | CZ34: -5 | DA34: 6 | DB34: -3 | DC34: 8 | DD34: -1 | DE34: 8 | DF34: -1 | DG34: -5 | DH34: -4 | DI34: -6 | DJ34: -3 | DK34: -4 | DL34: -1 | DM34: -2 | DN34: -3 | DO34: -3 | DP34: -4 | DQ34: -4 | DR34: -3 | DS34: -5 | DT34: -4 | DU34: -5 | DV34: -4 | DW34: 9 | DX34: 1 | DY34: 1 | DZ34: 4 | EA34: -8 | EB34: 4.5 | EC34: -3 | ED34: 3.5 | EE34: 4 | EF34: 3.5 | EG34: 5 | EH34: -2.5 | EI34: -4 | EJ34: -0.5 | EK34: 8 | EL34: 2 | EM34: 9 | EN34: -2 | EO34: -5 | EP34: -4 | EQ34: 8 | ER34: 2 | ES34: 9 | ET34: -2 | EU34: -5 | EV34: -4 | EW34: 1 | EX34: 1 | EY34: 1 | EZ34: 1 | FA34: 1 | FB34: 1
C35: -102 | D35: -94 | E35: -3 | F35: 5 | G35: -13 | H35: 0 | AT35: 19 | AU35: -3 | AV35: 1 | AW35: -8 | AX35: 0 | AY35: 5 | AZ35: 1 | BA35: 10 | BB35: 2 | BC35: 5 | BD35: -2 | BE35: 0 | BF35: -1 | BG35: -3 | BH35: 0 | BI35: -2 | BJ35: -5 | BK35: -8 | BL35: 0 | BM35: -7 | BN35: 1 | BO35: -6 | BP35: 0 | BQ35: -5 | BR35: 1 | BS35: -7 | BT35: 3 | BU35: -6 | BV35: 4 | BW35: -3 | BX35: 1 | BY35: -6 | BZ35: -2 | CA35: 5 | CB35: 1 | CC35: 6 | CD35: 2 | CE35: 7 | CF35: 1 | CG35: 8 | CH35: 2 | CI35: 6 | CJ35: 4 | CK35: 7 | CL35: 5 | CM35: 10 | CN35: 2 | CO35: 7 | CP35: -1 | CQ35: 2 | CR35: -5 | CS35: 1 | CT35: -4 | CU35: 3 | CV35: -2 | CW35: 2 | CX35: -1 | CY35: 1 | CZ35: -2 | DA35: 0 | DB35: -1 | DC35: 2 | DD35: 1 | DE35: 5 | DF35: -2 | DG35: -2 | DH35: -5 | DI35: -3 | DJ35: -4 | DK35: -2 | DL35: -3 | DM35: -3 | DN35: -2 | DO35: -5 | DP35: -4 | DQ35: -6 | DR35: -3 | DS35: -3 | DT35: 0 | DU35: 0 | DV35: -3 | DW35: 9 | DX35: 1 | DY35: 2 | DZ35: 4 | EA35: -9 | EB35: 0.5 | EC35: -2 | ED35: 1.5 | EE35: 4 | EF35: 1.5 | EG35: 6 | EH35: -1.5 | EI35: -2 | EJ35: 0.5 | EK35: 10 | EL35: 2 | EM35: 0 | EN35: -1 | EO35: -2 | EP35: -5 | EQ35: 10 | ER35: 2 | ES35: 0 | ET35: -1 | EU35: -2 | EV35: -5 | EW35: 1 | EX35: 1 | EY35: 1 | EZ35: 1 | FA35: 1 | FB35: 1
C36: -102 | D36: -104 | E36: -3 | F36: -5 | G36: -13 | H36: -10 | AT36: 20 | AU36: -7 | AV36: 4 | AW36: -8 | AX36: 1 | AY36: 6 | AZ36: 5 | BA36: 5 | BB36: 2 | BC36: 4 | BD36: -4 | BE36: 3 | BF36: -1 | BG36: -4 | BH36: -2 | BI36: -1 | BJ36: -3 | BK36: -8 | BL36: 1 | BM36: -9 | BN36: 2 | BO36: -8 | BP36: 4 | BQ36: -7 | BR36: 4 | BS36: -6 | BT36: 2 | BU36: -7 | BV36: 1 | BW36: -8 | BX36: 1 | BY36: -8 | BZ36: 1 | CA36: 5 | CB36: 2 | CC36: 4 | CD36: 3 | CE36: 5 | CF36: 5 | CG36: 6 | CH36: 5 | CI36: 7 | CJ36: 3 | CK36: 6 | CL36: 2 | CM36: 5 | CN36: 2 | CO36: 5 | CP36: 2 | CQ36: 2 | CR36: -2 | CS36: 3 | CT36: -1 | CU36: 4 | CV36: -1 | CW36: 5 | CX36: -2 | CY36: 4 | CZ36: -4 | DA36: 3 | DB36: -4 | DC36: 2 | DD36: -2 | DE36: 2 | DF36: -2 | DG36: -3 | DH36: -4 | DI36: -4 | DJ36: -3 | DK36: -4 | DL36: -2 | DM36: -3 | DN36: -1 | DO36: -1 | DP36: -2 | DQ36: -1 | DR36: -3 | DS36: -3 | DT36: -4 | DU36: -3 | DV36: -4 | DW36: 9 | DX36: 3 | DY36: 2 | DZ36: 4 | EA36: -8 | EB36: 0.5 | EC36: -7 | ED36: 4.5 | EE36: 6 | EF36: 5.5 | EG36: 4 | EH36: -4.5 | EI36: -5 | EJ36: -1.5 | EK36: 5 | EL36: 2 | EM36: 3 | EN36: -1 | EO36: -1 | EP36: -3 | EQ36: 5 | ER36: 2 | ES36: 3 | ET36: -1 | EU36: -1 | EV36: -3 | EW36: 1 | EX36: 1 | EY36: 1 | EZ36: 1 | FA36: 1 | FB36: 1
C37: -101 | D37: -104 | E37: -2 | F37: -5 | G37: -12 | H37: -10 | AT37: 21 | AU37: -5 | AV37: 3 | AW37: -8 | AX37: 1 | AY37: 8 | AZ37: 4 | BA37: 5 | BB37: 2 | BC37: 7 | BD37: -3 | BE37: 4 | BF37: -1 | BG37: -3 | BH37: 2 | BI37: -5 | BJ37: -1 | BK37: -8 | BL37: 1 | BM37: -9 | BN37: 2 | BO37: -9 | BP37: 3 | BQ37: -7 | BR37: 4 | BS37: -5 | BT37: 3 | BU37: -5 | BV37: 2 | BW37: -6 | BX37: 1 | BY37: -8 | BZ37: 1 | CA37: 5 | CB37: 2 | CC37: 4 | CD37: 3 | CE37: 4 | CF37: 4 | CG37: 6 | CH37: 5 | CI37: 8 | CJ37: 4 | CK37: 8 | CL37: 3 | CM37: 7 | CN37: 2 | CO37: 5 | CP37: 2 | CQ37: 5 | CR37: -4 | CS37: 3 | CT37: -3 | CU37: 3 | CV37: -2 | CW37: 4 | CX37: -1 | CY37: 6 | CZ37: -1 | DA37: 7 | DB37: -2 | DC37: 7 | DD37: -3 | DE37: 5 | DF37: -4 | DG37: -3 | DH37: -2 | DI37: -4 | DJ37: -2 | DK37: -5 | DL37: -1 | DM37: -5 | DN37: 1 | DO37: -4 | DP37: 2 | DQ37: -3 | DR37: 2 | DS37: -2 | DT37: 0 | DU37: -3 | DV37: -2 | DW37: 9 | DX37: 3 | DY37: 2 | DZ37: 3 | EA37: -8 | EB37: 0.5 | EC37: -4 | ED37: 3.5 | EE37: 9 | EF37: 4.5 | EG37: 8 | EH37: -3.5 | EI37: -3 | EJ37: 2.5 | EK37: 5 | EL37: 2 | EM37: 4 | EN37: -1 | EO37: -5 | EP37: -1 | EQ37: 5 | ER37: 2 | ES37: 4 | ET37: -1 | EU37: -5 | EV37: -1 | EW37: 1 | EX37: 1 | EY37: 1 | EZ37: 1 | FA37: 1 | FB37: 1
C38: -101 | D38: -94 | E38: -2 | F38: 5 | G38: -12 | H38: 0 | AT38: 22 | AU38: -5 | AV38: 2 | AW38: -2 | AX38: 3 | AY38: 7 | AZ38: 1 | BA38: 10 | BB38: 2 | BC38: 7 | BD38: -2 | BE38: 4 | BF38: -1 | BG38: -7 | BH38: 0 | BI38: -6 | BJ38: -3 | BK38: -5 | BL38: 2 | BM38: -6 | BN38: 3 | BO38: -4 | BP38: 5 | BQ38: -2 | BR38: 3 | BS38: -3 | BT38: 2 | BU38: -5 | BV38: 2 | BW38: -5 | BX38: 2 | BY38: -5 | BZ38: 2 | CA38: 7 | CB38: 1 | CC38: 6 | CD38: 2 | CE38: 8 | CF38: 4 | CG38: 10 | CH38: 2 | CI38: 9 | CJ38: 1 | CK38: 7 | CL38: 1 | CM38: 7 | CN38: 1 | CO38: 7 | CP38: 1 | CQ38: 5 | CR38: -4 | CS38: 3 | CT38: -2 | CU38: 4 | CV38: -1 | CW38: 6 | CX38: -1 | CY38: 7 | CZ38: -2 | DA38: 5 | DB38: -4 | DC38: 5 | DD38: -4 | DE38: 5 | DF38: -4 | DG38: -7 | DH38: -4 | DI38: -9 | DJ38: -2 | DK38: -7 | DL38: 0 | DM38: -6 | DN38: -1 | DO38: -6 | DP38: -3 | DQ38: -7 | DR38: -4 | DS38: -7 | DT38: -4 | DU38: -7 | DV38: -4 | DW38: 9 | DX38: 1 | DY38: 2 | DZ38: 4 | EA38: -1 | EB38: 3.5 | EC38: -5 | ED38: 1.5 | EE38: 7 | EF38: 0.5 | EG38: 8 | EH38: -1.5 | EI38: -7 | EJ38: 0.5 | EK38: 10 | EL38: 2 | EM38: 4 | EN38: -1 | EO38: -6 | EP38: -3 | EQ38: 10 | ER38: 2 | ES38: 4 | ET38: -1 | EU38: -6 | EV38: -3 | EW38: 1 | EX38: 1 | EY38: 1 | EZ38: 1 | FA38: 1 | FB38: 1
C39: -100 | D39: -94 | E39: -1 | F39: 5 | G39: -11 | H39: 0 | AT39: 23 | AU39: -5 | AV39: 1 | AW39: -6 | AX39: 4 | AY39: 6 | AZ39: 3 | BA39: 7 | BB39: 0 | BC39: 4 | BD39: -4 | BE39: 5 | BF39: -1 | BG39: -3 | BH39: -2 | BI39: -6 | BJ39: -3 | BK39: -5 | BL39: 1 | BM39: -6 | BN39: 1 | BO39: -6 | BP39: 3 | BQ39: -7 | BR39: 3 | BS39: -6 | BT39: 4 | BU39: -5 | BV39: 4 | BW39: -5 | BX39: 1 | BY39: -5 | BZ39: 1 | CA39: 7 | CB39: 0 | CC39: 6 | CD39: 0 | CE39: 6 | CF39: 2 | CG39: 5 | CH39: 2 | CI39: 6 | CJ39: 3 | CK39: 7 | CL39: 3 | CM39: 7 | CN39: 0 | CO39: 7 | CP39: 0 | CQ39: 5 | CR39: -4 | CS39: 4 | CT39: -4 | CU39: 3 | CV39: -3 | CW39: 4 | CX39: -3 | CY39: 4 | CZ39: -1 | DA39: 5 | DB39: -1 | DC39: 5 | DD39: -4 | DE39: 5 | DF39: -4 | DG39: -5 | DH39: -4 | DI39: -6 | DJ39: -3 | DK39: -6 | DL39: -2 | DM39: -3 | DN39: -2 | DO39: -3 | DP39: -3 | DQ39: -5 | DR39: -3 | DS39: -5 | DT39: -4 | DU39: -5 | DV39: -4 | DW39: 9 | DX39: 4 | DY39: 1 | DZ39: 3 | EA39: -6 | EB39: 4.5 | EC39: -5 | ED39: 0.5 | EE39: 6 | EF39: 3.5 | EG39: 4 | EH39: -4.5 | EI39: -3 | EJ39: -1.5 | EK39: 7 | EL39: 0 | EM39: 5 | EN39: -1 | EO39: -6 | EP39: -3 | EQ39: 7 | ER39: 0 | ES39: 5 | ET39: -1 | EU39: -6 | EV39: -3 | EW39: 1 | EX39: 1 | EY39: 1 | EZ39: 1 | FA39: 1 | FB39: 1
C40: -100 | D40: -104 | E40: -1 | F40: -5 | G40: -11 | H40: -10 | AT40: 24 | AU40: -4 | AV40: 1 | AW40: -6 | AX40: 4 | AY40: 6 | AZ40: 2 | BA40: 8 | BB40: -1 | BC40: 3 | BD40: -4 | BE40: 5 | BF40: -1 | BG40: -8 | BH40: -4 | BI40: -5 | BJ40: -2 | BK40: -5 | BL40: 1 | BM40: -7 | BN40: 3 | BO40: -6 | BP40: 4 | BQ40: -4 | BR40: 2 | BS40: -4 | BT40: 1 | BU40: -5 | BV40: 1 | BW40: -5 | BX40: 1 | BY40: -5 | BZ40: 1 | CA40: 7 | CB40: -1 | CC40: 5 | CD40: 1 | CE40: 6 | CF40: 2 | CG40: 8 | CH40: 0 | CI40: 8 | CJ40: -1 | CK40: 7 | CL40: -1 | CM40: 7 | CN40: -1 | CO40: 7 | CP40: -1 | CQ40: 3 | CR40: -4 | CS40: 2 | CT40: -3 | CU40: 4 | CV40: -1 | CW40: 5 | CX40: -1 | CY40: 5 | CZ40: -2 | DA40: 3 | DB40: -4 | DC40: 3 | DD40: -4 | DE40: 3 | DF40: -4 | DG40: -8 | DH40: -4 | DI40: -8 | DJ40: -3 | DK40: -6 | DL40: -1 | DM40: -5 | DN40: -2 | DO40: -7 | DP40: -4 | DQ40: -8 | DR40: -4 | DS40: -8 | DT40: -4 | DU40: -8 | DV40: -4 | DW40: 9 | DX40: 4 | DY40: 1 | DZ40: 1 | EA40: -6 | EB40: 4.5 | EC40: -4 | ED40: 0.5 | EE40: 6 | EF40: 2.5 | EG40: 3 | EH40: -4.5 | EI40: -8 | EJ40: -4.5 | EK40: 8 | EL40: -1 | EM40: 5 | EN40: -1 | EO40: -5 | EP40: -2 | EQ40: 8 | ER40: -1 | ES40: 5 | ET40: -1 | EU40: -5 | EV40: -2 | EW40: 1 | EX40: 1 | EY40: 1 | EZ40: 1 | FA40: 1 | FB40: 1
C41: -99 | D41: -104 | E41: 0 | F41: -5 | G41: -10 | H41: -10 | AT41: 25 | AU41: -3 | AV41: 4 | AW41: -7 | AX41: 2 | AY41: 5 | AZ41: 0 | BA41: 9 | BB41: 2 | BC41: 5 | BD41: -4 | BE41: 1 | BF41: -2 | BG41: -6 | BH41: -4 | BI41: -4 | BJ41: 0 | BK41: -6 | BL41: 1 | BM41: -7 | BN41: 2 | BO41: -6 | BP41: 2 | BQ41: -5 | BR41: 4 | BS41: -3 | BT41: 4 | BU41: -4 | BV41: 2 | BW41: -3 | BX41: 2 | BY41: -4 | BZ41: 1 | CA41: 6 | CB41: -1 | CC41: 5 | CD41: 0 | CE41: 6 | CF41: 0 | CG41: 7 | CH41: 2 | CI41: 9 | CJ41: 2 | CK41: 8 | CL41: 0 | CM41: 9 | CN41: 0 | CO41: 8 | CP41: -1 | CQ41: 5 | CR41: -4 | CS41: 3 | CT41: -4 | CU41: 2 | CV41: -2 | CW41: 1 | CX41: -2 | CY41: 2 | CZ41: -1 | DA41: 4 | DB41: -1 | DC41: 5 | DD41: -2 | DE41: 4 | DF41: -2 | DG41: -6 | DH41: -4 | DI41: -7 | DJ41: -3 | DK41: -7 | DL41: -1 | DM41: -6 | DN41: 0 | DO41: -6 | DP41: -1 | DQ41: -4 | DR41: 0 | DS41: -4 | DT41: -2 | DU41: -6 | DV41: -3 | DW41: 9 | DX41: 1 | DY41: 3 | DZ41: 1 | EA41: -7 | EB41: 2.5 | EC41: -3 | ED41: 4.5 | EE41: 5 | EF41: 0.5 | EG41: 5 | EH41: -4.5 | EI41: -6 | EJ41: -4.5 | EK41: 9 | EL41: 2 | EM41: 1 | EN41: -2 | EO41: -4 | EP41: 0 | EQ41: 9 | ER41: 2 | ES41: 1 | ET41: -2 | EU41: -4 | EV41: 0 | EW41: 1 | EX41: 1 | EY41: 1 | EZ41: 1 | FA41: 1 | FB41: 1
C42: -99 | D42: -94 | E42: 0 | F42: 5 | G42: -10 | H42: 0 | AT42: 26 | AU42: -4 | AV42: 5 | AW42: -5 | AX42: 1 | AY42: 8 | AZ42: 3 | BA42: 7 | BB42: -1 | BC42: 4 | BD42: -3 | BE42: 3 | BF42: 1 | BG42: -8 | BH42: -1 | BI42: -4 | BJ42: -2 | BK42: -3 | BL42: 1 | BM42: -5 | BN42: 1 | BO42: -5 | BP42: 3 | BQ42: -6 | BR42: 3 | BS42: -4 | BT42: 5 | BU42: -2 | BV42: 3 | BW42: -3 | BX42: 3 | BY42: -3 | BZ42: 1 | CA42: 9 | CB42: -1 | CC42: 7 | CD42: -1 | CE42: 7 | CF42: 1 | CG42: 6 | CH42: 1 | CI42: 8 | CJ42: 3 | CK42: 10 | CL42: 1 | CM42: 9 | CN42: 1 | CO42: 9 | CP42: -1 | CQ42: 5 | CR42: 1 | CS42: 3 | CT42: 1 | CU42: 3 | CV42: -1 | CW42: 2 | CX42: -1 | CY42: 4 | CZ42: -3 | DA42: 6 | DB42: -1 | DC42: 5 | DD42: -1 | DE42: 5 | DF42: 1 | DG42: -6 | DH42: -4 | DI42: -6 | DJ42: -3 | DK42: -8 | DL42: -3 | DM42: -8 | DN42: -1 | DO42: -6 | DP42: -1 | DQ42: -6 | DR42: 0 | DS42: -4 | DT42: -2 | DU42: -6 | DV42: -4 | DW42: 9 | DX42: 3 | DY42: 2 | DZ42: 1 | EA42: -5 | EB42: 0.5 | EC42: -4 | ED42: 5.5 | EE42: 8 | EF42: 3.5 | EG42: 4 | EH42: -3.5 | EI42: -8 | EJ42: -0.5 | EK42: 7 | EL42: -1 | EM42: 3 | EN42: 1 | EO42: -4 | EP42: -2 | EQ42: 7 | ER42: -1 | ES42: 3 | ET42: 1 | EU42: -4 | EV42: -2 | EW42: 1 | EX42: 1 | EY42: 1 | EZ42: 1 | FA42: 1 | FB42: 1
C43: -98 | D43: -94 | E43: 1 | F43: 5 | G43: -9 | H43: 0 | AT43: 27 | AU43: -6 | AV43: 4 | AW43: -7 | AX43: 1 | AY43: 6 | AZ43: 2 | BA43: 5 | BB43: -1 | BC43: 2 | BD43: -2 | BE43: 1 | BF43: 1 | BG43: -8 | BH43: -3 | BI43: -5 | BJ43: -4 | BK43: -3 | BL43: 1 | BM43: -7 | BN43: 1 | BO43: -6 | BP43: 4 | BQ43: -4 | BR43: 4 | BS43: -3 | BT43: 1 | BU43: -3 | BV43: 1 | BW43: -3 | BX43: 1 | BY43: -3 | BZ43: 1 | CA43: 9 | CB43: -1 | CC43: 5 | CD43: -1 | CE43: 6 | CF43: 2 | CG43: 8 | CH43: 2 | CI43: 9 | CJ43: -1 | CK43: 9 | CL43: -1 | CM43: 9 | CN43: -1 | CO43: 9 | CP43: -1 | CQ43: 5 | CR43: 1 | CS43: 1 | CT43: 1 | CU43: 2 | CV43: -2 | CW43: 4 | CX43: -2 | CY43: 5 | CZ43: 1 | DA43: 5 | DB43: 1 | DC43: 5 | DD43: 1 | DE43: 5 | DF43: 1 | DG43: -5 | DH43: -4 | DI43: -8 | DJ43: -3 | DK43: -8 | DL43: -1 | DM43: -5 | DN43: 0 | DO43: -5 | DP43: -4 | DQ43: -5 | DR43: -4 | DS43: -5 | DT43: -4 | DU43: -5 | DV43: -4 | DW43: 9 | DX43: 3 | DY43: 2 | DZ43: 4 | EA43: -7 | EB43: 0.5 | EC43: -6 | ED43: 4.5 | EE43: 6 | EF43: 2.5 | EG43: 2 | EH43: -2.5 | EI43: -8 | EJ43: -3.5 | EK43: 5 | EL43: -1 | EM43: 1 | EN43: 1 | EO43: -5 | EP43: -4 | EQ43: 5 | ER43: -1 | ES43: 1 | ET43: 1 | EU43: -5 | EV43: -4 | EW43: 1 | EX43: 1 | EY43: 1 | EZ43: 1 | FA43: 1 | FB43: 1
C44: -98 | D44: -104 | E44: 1 | F44: -5 | G44: -9 | H44: -10 | AT44: 28 | AU44: -6 | AV44: 5 | AW44: -3 | AX44: 1 | AY44: 6 | AZ44: 3 | BA44: 9 | BB44: -1 | BC44: 2 | BD44: -3 | BE44: 5 | BF44: 1 | BG44: -8 | BH44: -4 | BI44: -4 | BJ44: -1 | BK44: -3 | BL44: 1 | BM44: -6 | BN44: 2 | BO44: -6 | BP44: 5 | BQ44: -3 | BR44: 3 | BS44: -3 | BT44: 1 | BU44: -3 | BV44: 1 | BW44: -3 | BX44: 1 | BY44: -3 | BZ44: 1 | CA44: 9 | CB44: -1 | CC44: 6 | CD44: 0 | CE44: 6 | CF44: 3 | CG44: 9 | CH44: 1 | CI44: 9 | CJ44: -1 | CK44: 9 | CL44: -1 | CM44: 9 | CN44: -1 | CO44: 9 | CP44: -1 | CQ44: 5 | CR44: 1 | CS44: 2 | CT44: 0 | CU44: 2 | CV44: -3 | CW44: 5 | CX44: -1 | CY44: 5 | CZ44: 1 | DA44: 5 | DB44: 1 | DC44: 5 | DD44: 1 | DE44: 5 | DF44: 1 | DG44: -5 | DH44: -4 | DI44: -8 | DJ44: -4 | DK44: -6 | DL44: -1 | DM44: -4 | DN44: -1 | DO44: -5 | DP44: -4 | DQ44: -5 | DR44: -4 | DS44: -5 | DT44: -4 | DU44: -5 | DV44: -4 | DW44: 9 | DX44: 4 | DY44: 1 | DZ44: 1 | EA44: -3 | EB44: 0.5 | EC44: -6 | ED44: 5.5 | EE44: 6 | EF44: 3.5 | EG44: 2 | EH44: -3.5 | EI44: -8 | EJ44: -4.5 | EK44: 9 | EL44: -1 | EM44: 5 | EN44: 1 | EO44: -4 | EP44: -1 | EQ44: 9 | ER44: -1 | ES44: 5 | ET44: 1 | EU44: -4 | EV44: -1 | EW44: 1 | EX44: 1 | EY44: 1 | EZ44: 1 | FA44: 1 | FB44: 1
C45: -97 | D45: -104 | E45: 2 | F45: -5 | G45: -8 | H45: -10 | AT45: 29 | AU45: -1 | AV45: 4 | AW45: -6 | AX45: 1 | AY45: 8 | AZ45: 3 | BA45: 3 | BB45: 0 | BC45: 4 | BD45: -3 | BE45: -1 | BF45: 0 | BG45: -5 | BH45: -4 | BI45: -8 | BJ45: 1 | BK45: -3 | BL45: 1 | BM45: -6 | BN45: 1 | BO45: -4 | BP45: 4 | BQ45: -1 | BR45: 4 | BS45: -3 | BT45: 1 | BU45: -3 | BV45: 1 | BW45: -3 | BX45: 1 | BY45: -3 | BZ45: 1 | CA45: 6 | CB45: 0 | CC45: 3 | CD45: 0 | CE45: 5 | CF45: 3 | CG45: 8 | CH45: 3 | CI45: 6 | CJ45: 0 | CK45: 6 | CL45: 0 | CM45: 6 | CN45: 0 | CO45: 6 | CP45: 0 | CQ45: 2 | CR45: 0 | CS45: -1 | CT45: 0 | CU45: 1 | CV45: -3 | CW45: 4 | CX45: -3 | CY45: 2 | CZ45: 0 | DA45: 2 | DB45: 0 | DC45: 2 | DD45: 0 | DE45: 2 | DF45: 0 | DG45: -5 | DH45: -4 | DI45: -8 | DJ45: -2 | DK45: -8 | DL45: 1 | DM45: -5 | DN45: -1 | DO45: -5 | DP45: -4 | DQ45: -5 | DR45: -4 | DS45: -5 | DT45: -4 | DU45: -5 | DV45: -4 | DW45: 9 | DX45: 2 | DY45: 2 | DZ45: 2 | EA45: -6 | EB45: 0.5 | EC45: -1 | ED45: 4.5 | EE45: 8 | EF45: 3.5 | EG45: 4 | EH45: -3.5 | EI45: -5 | EJ45: -4.5 | EK45: 3 | EL45: 0 | EM45: -1 | EN45: 0 | EO45: -8 | EP45: 1 | EQ45: 3 | ER45: 0 | ES45: -1 | ET45: 0 | EU45: -8 | EV45: 1 | EW45: 1 | EX45: 1 | EY45: 1 | EZ45: 1 | FA45: 1 | FB45: 1
C46: -97 | D46: -94 | E46: 2 | F46: 5 | G46: -8 | H46: 0 | AT46: 30 | AU46: -3 | AV46: -3 | AW46: -5 | AX46: 5 | AY46: 6 | AZ46: 4 | BA46: 8 | BB46: -4 | BC46: 2 | BD46: -4 | BE46: 4 | BF46: 4 | BG46: -8 | BH46: -4 | BI46: 0 | BJ46: -2 | BK46: -3 | BL46: -3 | BM46: -5 | BN46: -1 | BO46: -5 | BP46: 5 | BQ46: -3 | BR46: 3 | BS46: -3 | BT46: -3 | BU46: -3 | BV46: -3 | BW46: -3 | BX46: -3 | BY46: -3 | BZ46: -3 | CA46: 8 | CB46: -4 | CC46: 6 | CD46: -2 | CE46: 6 | CF46: 4 | CG46: 8 | CH46: 2 | CI46: 8 | CJ46: -4 | CK46: 8 | CL46: -4 | CM46: 8 | CN46: -4 | CO46: 8 | CP46: -4 | CQ46: 4 | CR46: 4 | CS46: 2 | CT46: 2 | CU46: 2 | CV46: -4 | CW46: 4 | CX46: -2 | CY46: 4 | CZ46: 4 | DA46: 4 | DB46: 4 | DC46: 4 | DD46: 4 | DE46: 4 | DF46: 4 | DG46: -8 | DH46: -4 | DI46: -6 | DJ46: -2 | DK46: 0 | DL46: -2 | DM46: -2 | DN46: -4 | DO46: -8 | DP46: -4 | DQ46: -8 | DR46: -4 | DS46: -8 | DT46: -4 | DU46: -8 | DV46: -4 | DW46: 9 | DX46: 4 | DY46: 1 | DZ46: 1 | EA46: -5 | EB46: 5.5 | EC46: -3 | ED46: -3.5 | EE46: 6 | EF46: 4.5 | EG46: 2 | EH46: -4.5 | EI46: -8 | EJ46: -4.5 | EK46: 8 | EL46: -4 | EM46: 4 | EN46: 4 | EO46: 0 | EP46: -2 | EQ46: 8 | ER46: -4 | ES46: 4 | ET46: 4 | EU46: 0 | EV46: -2 | EW46: 1 | EX46: 1 | EY46: 1 | EZ46: 1 | FA46: 1 | FB46: 1
C47: -96 | D47: -94 | E47: 3 | F47: 5 | G47: -7 | H47: 0 | AT47: 31 | AU47: -2 | AV47: 3 | AW47: -5 | AX47: 5 | AY47: 6 | AZ47: 4 | BA47: 9 | BB47: 2 | BC47: 2 | BD47: -4 | BE47: 5 | BF47: -2 | BG47: -5 | BH47: -4 | BI47: -3 | BJ47: -1 | BK47: -5 | BL47: 1 | BM47: -8 | BN47: 3 | BO47: -5 | BP47: 5 | BQ47: -2 | BR47: 3 | BS47: -5 | BT47: 1 | BU47: -5 | BV47: 1 | BW47: -5 | BX47: 1 | BY47: -5 | BZ47: 1 | CA47: 6 | CB47: 0 | CC47: 3 | CD47: 2 | CE47: 6 | CF47: 4 | CG47: 9 | CH47: 2 | CI47: 6 | CJ47: 0 | CK47: 6 | CL47: 0 | CM47: 6 | CN47: 0 | CO47: 6 | CP47: 0 | CQ47: 2 | CR47: 0 | CS47: -1 | CT47: -2 | CU47: 2 | CV47: -4 | CW47: 5 | CX47: -2 | CY47: 2 | CZ47: 0 | DA47: 2 | DB47: 0 | DC47: 2 | DD47: 0 | DE47: 2 | DF47: 0 | DG47: -5 | DH47: -4 | DI47: -7 | DJ47: -1 | DK47: -5 | DL47: 2 | DM47: -3 | DN47: -1 | DO47: -5 | DP47: -4 | DQ47: -5 | DR47: -4 | DS47: -5 | DT47: -4 | DU47: -5 | DV47: -4 | DW47: 9 | DX47: 1 | DY47: 1 | DZ47: 1 | EA47: -5 | EB47: 5.5 | EC47: -1 | ED47: 3.5 | EE47: 6 | EF47: 4.5 | EG47: 2 | EH47: -4.5 | EI47: -5 | EJ47: -4.5 | EK47: 9 | EL47: 2 | EM47: 5 | EN47: -2 | EO47: -3 | EP47: -1 | EQ47: 9 | ER47: 2 | ES47: 5 | ET47: -2 | EU47: -3 | EV47: -1 | EW47: 1 | EX47: 1 | EY47: 1 | EZ47: 1 | FA47: 1 | FB47: 1
C48: -96 | D48: -104 | E48: 3 | F48: -5 | G48: -7 | H48: -10 | AT48: 32 | AU48: -8 | AV48: 3 | AW48: -5 | AX48: 5 | AY48: 6 | AZ48: 4 | BA48: 3 | BB48: 2 | BC48: 2 | BD48: -4 | BE48: -1 | BF48: -2 | BG48: -5 | BH48: -4 | BI48: -3 | BJ48: -1 | BK48: -5 | BL48: 1 | BM48: -8 | BN48: 3 | BO48: -5 | BP48: 5 | BQ48: -4 | BR48: 3 | BS48: -5 | BT48: 1 | BU48: -5 | BV48: 1 | BW48: -5 | BX48: 1 | BY48: -5 | BZ48: 1 | CA48: 6 | CB48: 0 | CC48: 3 | CD48: 2 | CE48: 6 | CF48: 4 | CG48: 7 | CH48: 2 | CI48: 6 | CJ48: 0 | CK48: 6 | CL48: 0 | CM48: 6 | CN48: 0 | CO48: 6 | CP48: 0 | CQ48: 2 | CR48: 0 | CS48: -1 | CT48: -2 | CU48: 2 | CV48: -4 | CW48: 3 | CX48: -2 | CY48: 2 | CZ48: 0 | DA48: 2 | DB48: 0 | DC48: 2 | DD48: 0 | DE48: 2 | DF48: 0 | DG48: -5 | DH48: -4 | DI48: -7 | DJ48: -1 | DK48: -5 | DL48: 0 | DM48: -3 | DN48: -1 | DO48: -5 | DP48: -4 | DQ48: -5 | DR48: -4 | DS48: -5 | DT48: -4 | DU48: -5 | DV48: -4 | DW48: 9 | DX48: 2 | DY48: 2 | DZ48: 4 | EA48: -5 | EB48: 5.5 | EC48: -9 | ED48: 3.5 | EE48: 6 | EF48: 4.5 | EG48: 2 | EH48: -4.5 | EI48: -5 | EJ48: -4.5 | EK48: 3 | EL48: 2 | EM48: -1 | EN48: -2 | EO48: -3 | EP48: -1 | EQ48: 3 | ER48: 2 | ES48: -1 | ET48: -2 | EU48: -3 | EV48: -1 | EW48: 1 | EX48: 1 | EY48: 1 | EZ48: 1 | FA48: 1 | FB48: 1
C49: -95 | D49: -104 | E49: 4 | F49: -5 | G49: -6 | H49: -10 | AT49: 33 | AU49: -7 | AV49: 1 | AW49: -5 | AX49: 5 | AY49: 6 | AZ49: 4 | BA49: 4 | BB49: 0 | BC49: 3 | BD49: -4 | BE49: 1 | BF49: 0 | BG49: -6 | BH49: -1 | BI49: -2 | BJ49: -3 | BK49: -5 | BL49: 2 | BM49: -7 | BN49: 1 | BO49: -5 | BP49: 5 | BQ49: -3 | BR49: 1 | BS49: -5 | BT49: 2 | BU49: -5 | BV49: 2 | BW49: -5 | BX49: 2 | BY49: -5 | BZ49: 2 | CA49: 6 | CB49: 1 | CC49: 4 | CD49: 0 | CE49: 6 | CF49: 4 | CG49: 8 | CH49: 0 | CI49: 6 | CJ49: 1 | CK49: 6 | CL49: 1 | CM49: 6 | CN49: 1 | CO49: 6 | CP49: 1 | CQ49: 3 | CR49: -1 | CS49: 1 | CT49: 0 | CU49: 3 | CV49: -4 | CW49: 5 | CX49: 0 | CY49: 3 | CZ49: -1 | DA49: 3 | DB49: -1 | DC49: 3 | DD49: -1 | DE49: 3 | DF49: -1 | DG49: -6 | DH49: -5 | DI49: -5 | DJ49: -3 | DK49: -6 | DL49: -1 | DM49: -2 | DN49: -3 | DO49: -6 | DP49: -5 | DQ49: -6 | DR49: -5 | DS49: -6 | DT49: -5 | DU49: -6 | DV49: -5 | DW49: 9 | DX49: 2 | DY49: 2 | DZ49: 4 | EA49: -5 | EB49: 5.5 | EC49: -7 | ED49: 0.5 | EE49: 6 | EF49: 4.5 | EG49: 3 | EH49: -4.5 | EI49: -6 | EJ49: -0.5 | EK49: 4 | EL49: 0 | EM49: 1 | EN49: 0 | EO49: -2 | EP49: -3 | EQ49: 4 | ER49: 0 | ES49: 1 | ET49: 0 | EU49: -2 | EV49: -3 | EW49: 1 | EX49: 1 | EY49: 1 | EZ49: 1 | FA49: 1 | FB49: 1
C50: -95 | D50: -94 | E50: 4 | F50: 5 | G50: -6 | H50: 0 | AT50: 34 | AU50: -8 | AV50: 1 | AW50: -6 | AX50: 4 | AY50: 7 | AZ50: 5 | BA50: 5 | BB50: 2 | BC50: 8 | BD50: -4 | BE50: 6 | BF50: -1 | BG50: -8 | BH50: -2 | BI50: -5 | BJ50: -4 | BK50: -5 | BL50: 1 | BM50: -8 | BN50: 1 | BO50: -9 | BP50: 2 | BQ50: -6 | BR50: 4 | BS50: -5 | BT50: 1 | BU50: -5 | BV50: 1 | BW50: -5 | BX50: 1 | BY50: -5 | BZ50: 1 | CA50: 8 | CB50: 2 | CC50: 5 | CD50: 2 | CE50: 4 | CF50: 3 | CG50: 7 | CH50: 5 | CI50: 8 | CJ50: 2 | CK50: 8 | CL50: 2 | CM50: 8 | CN50: 2 | CO50: 8 | CP50: 2 | CQ50: 9 | CR50: -1 | CS50: 6 | CT50: -1 | CU50: 5 | CV50: -2 | CW50: 8 | CX50: -4 | CY50: 9 | CZ50: -1 | DA50: 9 | DB50: -1 | DC50: 9 | DD50: -1 | DE50: 9 | DF50: -1 | DG50: -6 | DH50: -5 | DI50: -8 | DJ50: -2 | DK50: -5 | DL50: -1 | DM50: -5 | DN50: -4 | DO50: -6 | DP50: -5 | DQ50: -6 | DR50: -5 | DS50: -6 | DT50: -5 | DU50: -6 | DV50: -5 | DW50: 9 | DX50: 3 | DY50: 2 | DZ50: 1 | EA50: -6 | EB50: 4.5 | EC50: -8 | ED50: 0.5 | EE50: 7 | EF50: 5.5 | EG50: 8 | EH50: -4.5 | EI50: -9 | EJ50: -1.5 | EK50: 5 | EL50: 2 | EM50: 6 | EN50: -1 | EO50: -5 | EP50: -4 | EQ50: 5 | ER50: 2 | ES50: 6 | ET50: -1 | EU50: -5 | EV50: -4 | EW50: 1 | EX50: 1 | EY50: 1 | EZ50: 1 | FA50: 1 | FB50: 1
C51: -94 | D51: -94 | E51: 5 | F51: 5 | G51: -5 | H51: 0 | AT51: 35 | AU51: -8 | AV51: 2 | AW51: -5 | AX51: 1 | AY51: 8 | AZ51: 0 | BA51: 5 | BB51: 1 | BC51: 1 | BD51: 0 | BE51: 4 | BF51: 1 | BG51: -2 | BH51: -4 | BI51: -1 | BJ51: -1 | BK51: -5 | BL51: 1 | BM51: -6 | BN51: 2 | BO51: -8 | BP51: 2 | BQ51: -5 | BR51: 5 | BS51: -5 | BT51: 1 | BU51: -5 | BV51: 1 | BW51: -5 | BX51: 1 | BY51: -5 | BZ51: 1 | CA51: 8 | CB51: 0 | CC51: 7 | CD51: 1 | CE51: 5 | CF51: 1 | CG51: 8 | CH51: 4 | CI51: 8 | CJ51: 0 | CK51: 8 | CL51: 0 | CM51: 8 | CN51: 0 | CO51: 8 | CP51: 0 | CQ51: 4 | CR51: 1 | CS51: 3 | CT51: 0 | CU51: 1 | CV51: 0 | CW51: 4 | CX51: -3 | CY51: 4 | CZ51: 1 | DA51: 4 | DB51: 1 | DC51: 4 | DD51: 1 | DE51: 4 | DF51: 1 | DG51: -2 | DH51: -4 | DI51: -5 | DJ51: -1 | DK51: -1 | DL51: -1 | DM51: -2 | DN51: -2 | DO51: -2 | DP51: -4 | DQ51: -2 | DR51: -4 | DS51: -2 | DT51: -4 | DU51: -2 | DV51: -4 | DW51: 9 | DX51: 3 | DY51: 2 | DZ51: 1 | EA51: -5 | EB51: 0.5 | EC51: -8 | ED51: 1.5 | EE51: 8 | EF51: -0.5 | EG51: 1 | EH51: 0.5 | EI51: -2 | EJ51: -4.5 | EK51: 5 | EL51: 1 | EM51: 4 | EN51: 1 | EO51: -1 | EP51: -1 | EQ51: 5 | ER51: 1 | ES51: 4 | ET51: 1 | EU51: -1 | EV51: -1 | EW51: 1 | EX51: 1 | EY51: 1 | EZ51: 1 | FA51: 1 | FB51: 1
C52: -94 | D52: -104 | E52: 5 | F52: -5 | G52: -5 | H52: -10 | AT52: 36 | AU52: -8 | AV52: 5 | AW52: -5 | AX52: 1 | AY52: 8 | AZ52: 0 | BA52: 5 | BB52: 4 | BC52: 1 | BD52: -3 | BE52: 4 | BF52: 1 | BG52: -6 | BH52: -4 | BI52: -2 | BJ52: -1 | BK52: -5 | BL52: 1 | BM52: -8 | BN52: 1 | BO52: -8 | BP52: 5 | BQ52: -5 | BR52: 1 | BS52: -5 | BT52: 1 | BU52: -5 | BV52: 1 | BW52: -5 | BX52: 1 | BY52: -5 | BZ52: 1 | CA52: 8 | CB52: 0 | CC52: 5 | CD52: 0 | CE52: 5 | CF52: 4 | CG52: 8 | CH52: 0 | CI52: 8 | CJ52: 0 | CK52: 8 | CL52: 0 | CM52: 8 | CN52: 0 | CO52: 8 | CP52: 0 | CQ52: 4 | CR52: 1 | CS52: 1 | CT52: 1 | CU52: 1 | CV52: -3 | CW52: 4 | CX52: 1 | CY52: 4 | CZ52: 1 | DA52: 4 | DB52: 1 | DC52: 4 | DD52: 1 | DE52: 4 | DF52: 1 | DG52: -2 | DH52: -1 | DI52: -6 | DJ52: -1 | DK52: -6 | DL52: -4 | DM52: -2 | DN52: -1 | DO52: -2 | DP52: -1 | DQ52: -2 | DR52: -1 | DS52: -2 | DT52: -1 | DU52: -2 | DV52: -1 | DW52: 9 | DX52: 2 | DY52: 1 | DZ52: 1 | EA52: -5 | EB52: 0.5 | EC52: -8 | ED52: 5.5 | EE52: 8 | EF52: -0.5 | EG52: 1 | EH52: -3.5 | EI52: -6 | EJ52: -4.5 | EK52: 5 | EL52: 4 | EM52: 4 | EN52: 1 | EO52: -2 | EP52: -1 | EQ52: 5 | ER52: 4 | ES52: 4 | ET52: 1 | EU52: -2 | EV52: -1 | EW52: 1 | EX52: 1 | EY52: 1 | EZ52: 1 | FA52: 1 | FB52: 1
C53: =$E$20+E53 -> -93 | D53: -104 | E53: 6 | F53: -5 | G53: -4 | H53: -10 | AT53: 37 | AU53: -2 | AV53: -2 | AW53: -4 | AX53: 3 | AY53: 7 | AZ53: -1 | BA53: 5 | BB53: 4 | BC53: 1 | BD53: -3 | BE53: 3 | BF53: 2 | BG53: -8 | BH53: -4 | BI53: -3 | BJ53: -2 | BK53: -4 | BL53: 3 | BM53: -2 | BN53: 3 | BO53: -2 | BP53: -2 | BQ53: -4 | BR53: 3 | BS53: -4 | BT53: 3 | BU53: -4 | BV53: 3 | BW53: -4 | BX53: 3 | BY53: -4 | BZ53: 3 | CA53: 5 | CB53: 4 | CC53: 7 | CD53: 4 | CE53: 7 | CF53: -1 | CG53: 5 | CH53: 4 | CI53: 5 | CJ53: 4 | CK53: 5 | CL53: 4 | CM53: 5 | CN53: 4 | CO53: 5 | CP53: 4 | CQ53: 1 | CR53: -3 | CS53: 3 | CT53: -3 | CU53: 3 | CV53: 2 | CW53: 1 | CX53: -3 | CY53: 1 | CZ53: -3 | DA53: 1 | DB53: -3 | DC53: 1 | DD53: -3 | DE53: 1 | DF53: -3 | DG53: -8 | DH53: -4 | DI53: -3 | DJ53: -4 | DK53: -3 | DL53: -2 | DM53: -8 | DN53: -4 | DO53: -8 | DP53: -4 | DQ53: -8 | DR53: -4 | DS53: -8 | DT53: -4 | DU53: -8 | DV53: -4 | DW53: 9 | DX53: 2 | DY53: 1 | DZ53: 1 | EA53: -4 | EB53: 3.5 | EC53: -2 | ED53: -2.5 | EE53: 7 | EF53: -1.5 | EG53: 1 | EH53: -3.5 | EI53: -8 | EJ53: -4.5 | EK53: 5 | EL53: 4 | EM53: 3 | EN53: 2 | EO53: -3 | EP53: -2 | EQ53: 5 | ER53: 4 | ES53: 3 | ET53: 2 | EU53: -3 | EV53: -2 | EW53: 1 | EX53: 1 | EY53: 1 | EZ53: 1 | FA53: 1 | FB53: 1
C54: -93 | D54: -94 | E54: 6 | F54: 5 | G54: -4 | H54: 0 | AT54: 38 | AU54: -7 | AV54: 5 | AW54: -3 | AX54: 4 | AY54: 6 | AZ54: 2 | BA54: 2 | BB54: 3 | BC54: 2 | BD54: -1 | BE54: -2 | BF54: -2 | BG54: -6 | BH54: -4 | BI54: -5 | BJ54: 0 | BK54: -5 | BL54: 2 | BM54: -7 | BN54: 5 | BO54: -3 | BP54: 4 | BQ54: -5 | BR54: 2 | BS54: -5 | BT54: 2 | BU54: -5 | BV54: 2 | BW54: -5 | BX54: 2 | BY54: -5 | BZ54: 2 | CA54: 4 | CB54: 0 | CC54: 2 | CD54: 3 | CE54: 6 | CF54: 2 | CG54: 4 | CH54: 0 | CI54: 4 | CJ54: 0 | CK54: 4 | CL54: 0 | CM54: 4 | CN54: 0 | CO54: 4 | CP54: 0 | CQ54: 0 | CR54: 1 | CS54: -2 | CT54: -2 | CU54: 2 | CV54: -1 | CW54: 0 | CX54: 1 | CY54: 0 | CZ54: 1 | DA54: 0 | DB54: 1 | DC54: 0 | DD54: 1 | DE54: 0 | DF54: 1 | DG54: -8 | DH54: -2 | DI54: -5 | DJ54: 0 | DK54: -6 | DL54: -4 | DM54: -8 | DN54: -2 | DO54: -8 | DP54: -2 | DQ54: -8 | DR54: -2 | DS54: -8 | DT54: -2 | DU54: -8 | DV54: -2 | DW54: 9 | DX54: 2 | DY54: 3 | DZ54: 1 | EA54: -2 | EB54: 4.5 | EC54: -7 | ED54: 5.5 | EE54: 7 | EF54: 2.5 | EG54: 3 | EH54: -0.5 | EI54: -6 | EJ54: -4.5 | EK54: 2 | EL54: 3 | EM54: -2 | EN54: -2 | EO54: -5 | EP54: 0 | EQ54: 2 | ER54: 3 | ES54: -2 | ET54: -2 | EU54: -5 | EV54: 0 | EW54: 1 | EX54: 1 | EY54: 1 | EZ54: 1 | FA54: 1 | FB54: 1
C55: -92 | D55: -94 | E55: 7 | F55: 5 | G55: -3 | H55: 0 | AT55: 39 | AU55: -6 | AV55: 3 | AW55: -5 | AX55: -2 | AY55: 4 | AZ55: 0 | BA55: 3 | BB55: 5 | BC55: 7 | BD55: -4 | BE55: 8 | BF55: 1 | BG55: 1 | BH55: -2 | BI55: -4 | BJ55: -3 | BK55: -5 | BL55: -2 | BM55: -7 | BN55: 1 | BO55: -6 | BP55: 3 | BQ55: -5 | BR55: -2 | BS55: -5 | BT55: -2 | BU55: -5 | BV55: -2 | BW55: -5 | BX55: -2 | BY55: -5 | BZ55: -2 | CA55: 4 | CB55: 0 | CC55: 2 | CD55: 3 | CE55: 3 | CF55: 5 | CG55: 4 | CH55: 0 | CI55: 4 | CJ55: 0 | CK55: 4 | CL55: 0 | CM55: 4 | CN55: 0 | CO55: 4 | CP55: 0 | CQ55: 8 | CR55: 1 | CS55: 6 | CT55: -2 | CU55: 7 | CV55: -4 | CW55: 8 | CX55: 1 | CY55: 8 | CZ55: 1 | DA55: 8 | DB55: 1 | DC55: 8 | DD55: 1 | DE55: 8 | DF55: 1 | DG55: -4 | DH55: -3 | DI55: -2 | DJ55: -4 | DK55: 1 | DL55: -2 | DM55: -4 | DN55: -3 | DO55: -4 | DP55: -3 | DQ55: -4 | DR55: -3 | DS55: -4 | DT55: -3 | DU55: -4 | DV55: -3 | DW55: 9 | DX55: 2 | DY55: 1 | DZ55: 3 | EA55: -5 | EB55: -2.5 | EC55: -6 | ED55: 3.5 | EE55: 4 | EF55: -0.5 | EG55: 7 | EH55: -4.5 | EI55: 1 | EJ55: -1.5 | EK55: 3 | EL55: 5 | EM55: 8 | EN55: 1 | EO55: -4 | EP55: -3 | EQ55: 3 | ER55: 5 | ES55: 8 | ET55: 1 | EU55: -4 | EV55: -3 | EW55: 1 | EX55: 1 | EY55: 1 | EZ55: 1 | FA55: 1 | FB55: 1
C56: -92 | D56: -104 | E56: 7 | F56: -5 | G56: -3 | H56: -10 | AT56: 40 | AU56: -4 | AV56: 3 | AW56: -2 | AX56: -1 | AY56: 7 | AZ56: 1 | BA56: 5 | BB56: 5 | BC56: 8 | BD56: -4 | BE56: 10 | BF56: 0 | BG56: -9 | BH56: 0 | BI56: -5 | BJ56: -2 | BK56: -6 | BL56: -1 | BM56: -2 | BN56: -1 | BO56: -4 | BP56: 3 | BQ56: -6 | BR56: -1 | BS56: -6 | BT56: -1 | BU56: -6 | BV56: -1 | BW56: -6 | BX56: -1 | BY56: -6 | BZ56: -1 | CA56: 3 | CB56: 1 | CC56: 7 | CD56: 1 | CE56: 5 | CF56: 5 | CG56: 3 | CH56: 1 | CI56: 3 | CJ56: 1 | CK56: 3 | CL56: 1 | CM56: 3 | CN56: 1 | CO56: 3 | CP56: 1 | CQ56: 6 | CR56: 0 | CS56: 10 | CT56: 0 | CU56: 8 | CV56: -4 | CW56: 6 | CX56: 0 | CY56: 6 | CZ56: 0 | DA56: 6 | DB56: 0 | DC56: 6 | DD56: 0 | DE56: 6 | DF56: 0 | DG56: -9 | DH56: -4 | DI56: -9 | DJ56: 0 | DK56: -5 | DL56: -2 | DM56: -9 | DN56: -4 | DO56: -9 | DP56: -4 | DQ56: -9 | DR56: -4 | DS56: -9 | DT56: -4 | DU56: -9 | DV56: -4 | DW56: 9 | DX56: 2 | DY56: 2 | DZ56: 4 | EA56: -2 | EB56: -1.5 | EC56: -4 | ED56: 3.5 | EE56: 7 | EF56: 0.5 | EG56: 8 | EH56: -4.5 | EI56: -9 | EJ56: 0.5 | EK56: 5 | EL56: 5 | EM56: 10 | EN56: 0 | EO56: -5 | EP56: -2 | EQ56: 5 | ER56: 5 | ES56: 10 | ET56: 0 | EU56: -5 | EV56: -2 | EW56: 1 | EX56: 1 | EY56: 1 | EZ56: 1 | FA56: 1 | FB56: 1
C57: -91 | D57: -104 | E57: 8 | F57: -5 | G57: -2 | H57: -10 | AT57: 41 | AU57: -4 | AV57: 5 | AW57: -6 | AX57: 1 | AY57: 5 | AZ57: 3 | BA57: 3 | BB57: -1 | BC57: 8 | BD57: -3 | BE57: 6 | BF57: 1 | BG57: -9 | BH57: -1 | BI57: -5 | BJ57: -3 | BK57: -6 | BL57: 1 | BM57: -8 | BN57: 3 | BO57: -4 | BP57: 5 | BQ57: -6 | BR57: 1 | BS57: -6 | BT57: 1 | BU57: -6 | BV57: 1 | BW57: -6 | BX57: 1 | BY57: -6 | BZ57: 1 | CA57: 3 | CB57: -1 | CC57: 1 | CD57: 1 | CE57: 5 | CF57: 3 | CG57: 3 | CH57: -1 | CI57: 3 | CJ57: -1 | CK57: 3 | CL57: -1 | CM57: 3 | CN57: -1 | CO57: 3 | CP57: -1 | CQ57: 6 | CR57: 1 | CS57: 4 | CT57: -1 | CU57: 8 | CV57: -3 | CW57: 6 | CX57: 1 | CY57: 6 | CZ57: 1 | DA57: 6 | DB57: 1 | DC57: 6 | DD57: 1 | DE57: 6 | DF57: 1 | DG57: -5 | DH57: -3 | DI57: -7 | DJ57: -5 | DK57: -9 | DL57: -1 | DM57: -5 | DN57: -3 | DO57: -5 | DP57: -3 | DQ57: -5 | DR57: -3 | DS57: -5 | DT57: -3 | DU57: -5 | DV57: -3 | DW57: 9 | DX57: 3 | DY57: 1 | DZ57: 1 | EA57: -6 | EB57: 0.5 | EC57: -4 | ED57: 5.5 | EE57: 5 | EF57: 3.5 | EG57: 8 | EH57: -3.5 | EI57: -9 | EJ57: -0.5 | EK57: 3 | EL57: -1 | EM57: 6 | EN57: 1 | EO57: -5 | EP57: -3 | EQ57: 3 | ER57: -1 | ES57: 6 | ET57: 1 | EU57: -5 | EV57: -3 | EW57: 1 | EX57: 1 | EY57: 1 | EZ57: 1 | FA57: 1 | FB57: 1
C58: -91 | D58: -94 | E58: 8 | F58: 5 | G58: -2 | H58: 0 | AT58: 42 | AU58: -3 | AV58: 5 | AW58: -7 | AX58: 1 | AY58: 3 | AZ58: 3 | BA58: -1 | BB58: -1 | BC58: 9 | BD58: -3 | BE58: 5 | BF58: 1 | BG58: -8 | BH58: -1 | BI58: -4 | BJ58: -5 | BK58: -7 | BL58: 1 | BM58: -4 | BN58: 2 | BO58: -3 | BP58: 5 | BQ58: -7 | BR58: 1 | BS58: -7 | BT58: 1 | BU58: -7 | BV58: 1 | BW58: -7 | BX58: 1 | BY58: -7 | BZ58: 1 | CA58: -1 | CB58: -1 | CC58: 2 | CD58: 0 | CE58: 3 | CF58: 3 | CG58: -1 | CH58: -1 | CI58: -1 | CJ58: -1 | CK58: -1 | CL58: -1 | CM58: -1 | CN58: -1 | CO58: -1 | CP58: -1 | CQ58: 5 | CR58: 1 | CS58: 8 | CT58: 0 | CU58: 9 | CV58: -3 | CW58: 5 | CX58: 1 | CY58: 5 | CZ58: 1 | DA58: 5 | DB58: 1 | DC58: 5 | DD58: 1 | DE58: 5 | DF58: 1 | DG58: -8 | DH58: -1 | DI58: -4 | DJ58: -5 | DK58: -7 | DL58: -4 | DM58: -8 | DN58: -1 | DO58: -8 | DP58: -1 | DQ58: -8 | DR58: -1 | DS58: -8 | DT58: -1 | DU58: -8 | DV58: -1 | DW58: 9 | DX58: 3 | DY58: 2 | DZ58: 1 | EA58: -7 | EB58: 0.5 | EC58: -3 | ED58: 5.5 | EE58: 3 | EF58: 3.5 | EG58: 9 | EH58: -3.5 | EI58: -8 | EJ58: -0.5 | EK58: -1 | EL58: -1 | EM58: 5 | EN58: 1 | EO58: -4 | EP58: -5 | EQ58: =BA58 -> -1 | ER58: =BB58 -> -1 | ES58: 5 | ET58: =BF58 -> 1 | EU58: =BI58 -> -4 | EV58: =BJ58 -> -5 | EW58: =IF(EQ58=EK58,1,0) -> 1 | EX58: 1 | EY58: 1 | EZ58: 1 | FA58: 1 | FB58: 1
